Workbook

Sheet Moi
B2: Mes Stats
B4: x | C4: 16
B5: y | C5: 173
B7: VA | C7: 26
B9: TDC actuel | C9: 239462551

Sheet Mon Alliance
A1: Dernière MaJ | B1: =TODAY() -> 2013-04-16 | D1: Mon tdc | E1: =Moi!C9 -> 239462551 | G1: VA | H1: =Moi!C7 -> 26 | J1: Pos perso: | K1: x | L1: =Moi!C4 -> 16
K2: y | L2: =Moi!C5 -> 173
B3: MAP | C3: TDC | D3: A portée ? | E3: x | F3: y | G3: Distance | H3: Temps
A4: =IF('CC Mon Ally'!D5=0,"",'CC Mon Ally'!D5) -> spetsnaz | C4: =IF(A4=0,"",'CC Mon Ally'!E5) -> 3621975516 | D4: =IF(AND((C4<=(3*$E$1)),(C4>=(0.5*$E$1))),"A PORTEE"," ") ->  | E4: =IFERROR(VLOOKUP(A4,'Liste des joueurs'!A2:D20305,2),"") -> 40 | F4: =IFERROR(VLOOKUP(A4,'Liste des joueurs'!A2:D20305,3),"") -> 125 | G4: =IFERROR(SQRT(($L$1-E4)^2+($L$2-F4)^2),"") -> 53.66563146 | H4: =IFERROR('Data Mon Ally'!G2,"") -> 01:37:33
A5: =IF('CC Mon Ally'!D6=0,"",'CC Mon Ally'!D6) -> Azkanith | C5: =IF(A5=0,"",'CC Mon Ally'!E6) -> 3600000000 | D5: =IF(AND((C5<=(3*$E$1)),(C5>=(0.5*$E$1))),"A PORTEE"," ") ->  | E5: =IFERROR(VLOOKUP(A5,'Liste des joueurs'!A2:D20305,2),"") -> 28 | F5: =IFERROR(VLOOKUP(A5,'Liste des joueurs'!A2:D20305,3),"") -> 61 | G5: =IFERROR(SQRT(($L$1-E5)^2+($L$2-F5)^2),"") -> 112.6410227 | H5: =IFERROR('Data Mon Ally'!G3,"") -> 03:08:50
A6: =IF('CC Mon Ally'!D7=0,"",'CC Mon Ally'!D7) -> agecanonix | C6: =IF(A6=0,"",'CC Mon Ally'!E7) -> 3478184525 | D6: =IF(AND((C6<=(3*$E$1)),(C6>=(0.5*$E$1))),"A PORTEE"," ") ->  | E6: =IFERROR(VLOOKUP(A6,'Liste des joueurs'!A4:D20307,2),"") -> 12 | F6: =IFERROR(VLOOKUP(A6,'Liste des joueurs'!A4:D20307,3),"") -> 271 | G6: =IFERROR(SQRT(($L$1-E6)^2+($L$2-F6)^2),"") -> 98.08159868 | H6: =IFERROR('Data Mon Ally'!G4,"") -> 02:47:42
A7: =IF('CC Mon Ally'!D8=0,"",'CC Mon Ally'!D8) -> Bruxelles | C7: =IF(A7=0,"",'CC Mon Ally'!E8) -> 3200000000 | E7: =IFERROR(VLOOKUP(A7,'Liste des joueurs'!A4:D20307,2),"") -> 41 | F7: =IFERROR(VLOOKUP(A7,'Liste des joueurs'!A4:D20307,3),"") -> 56 | G7: 119.6411301 | H7: =IFERROR('Data Mon Ally'!G5,"") -> 03:18:41
A8: =IF('CC Mon Ally'!D9=0,"",'CC Mon Ally'!D9) -> svanhilde | C8: =IF(A8=0,"",'CC Mon Ally'!E9) -> 2500000000 | E8: =IFERROR(VLOOKUP(A8,'Liste des joueurs'!A6:D20309,2),"") -> 29 | F8: =IFERROR(VLOOKUP(A8,'Liste des joueurs'!A6:D20309,3),"") -> 124 | G8: 50.69516742 | H8: =IFERROR('Data Mon Ally'!G6,"") -> 01:32:32
A9: =IF('CC Mon Ally'!D10=0,"",'CC Mon Ally'!D10) -> Wolverine | C9: =IF(A9=0,"",'CC Mon Ally'!E10) -> 2500000000 | E9: =IFERROR(VLOOKUP(A9,'Liste des joueurs'!A6:D20309,2),"") -> 6 | F9: =IFERROR(VLOOKUP(A9,'Liste des joueurs'!A6:D20309,3),"") -> 34 | G9: 139.359248 | H9: =IFERROR('Data Mon Ally'!G7,"") -> 03:45:23
A10: =IF('CC Mon Ally'!D11=0,"",'CC Mon Ally'!D11) -> Drusilla | C10: =IF(A10=0,"",'CC Mon Ally'!E11) -> 2308193694 | E10: =IFERROR(VLOOKUP(A10,'Liste des joueurs'!A8:D20311,2),"") -> 31 | F10: =IFERROR(VLOOKUP(A10,'Liste des joueurs'!A8:D20311,3),"") -> 23 | G10: 150.7481343 | H10: =IFERROR('Data Mon Ally'!G8,"") -> 04:00:08
A11: =IF('CC Mon Ally'!D12=0,"",'CC Mon Ally'!D12) -> Thunderbird | C11: =IF(A11=0,"",'CC Mon Ally'!E12) -> 2241865299 | E11: =IFERROR(VLOOKUP(A11,'Liste des joueurs'!A8:D20311,2),"") -> 5 | F11: =IFERROR(VLOOKUP(A11,'Liste des joueurs'!A8:D20311,3),"") -> 172 | G11: 11.04536102 | H11: =IFERROR('Data Mon Ally'!G9,"") -> 00:21:19
A12: =IF('CC Mon Ally'!D13=0,"",'CC Mon Ally'!D13) -> pANTSu | C12: =IF(A12=0,"",'CC Mon Ally'!E13) -> 2223116452 | E12: =IFERROR(VLOOKUP(A12,'Liste des joueurs'!A10:D20313,2),"") -> 29 | F12: =IFERROR(VLOOKUP(A12,'Liste des joueurs'!A10:D20313,3),"") -> 292 | G12: 119.707978 | H12: =IFERROR('Data Mon Ally'!G10,"") -> 03:18:46
A13: =IF('CC Mon Ally'!D14=0,"",'CC Mon Ally'!D14) -> Bactroban | C13: =IF(A13=0,"",'CC Mon Ally'!E14) -> 2180863331 | E13: =IFERROR(VLOOKUP(A13,'Liste des joueurs'!A10:D20313,2),"") -> 20 | F13: =IFERROR(VLOOKUP(A13,'Liste des joueurs'!A10:D20313,3),"") -> 115 | G13: 58.13776741 | H13: =IFERROR('Data Mon Ally'!G11,"") -> 01:45:01
A14: =IF('CC Mon Ally'!D15=0,"",'CC Mon Ally'!D15) -> marchombre | C14: =IF(A14=0,"",'CC Mon Ally'!E15) -> 1974437420 | E14: =IFERROR(VLOOKUP(A14,'Liste des joueurs'!A12:D20315,2),"") -> 16 | F14: =IFERROR(VLOOKUP(A14,'Liste des joueurs'!A12:D20315,3),"") -> 106 | G14: 67 | H14: =IFERROR('Data Mon Ally'!G12,"") -> 01:59:33
A15: =IF('CC Mon Ally'!D16=0,"",'CC Mon Ally'!D16) -> Myvin | C15: =IF(A15=0,"",'CC Mon Ally'!E16) -> 1678452546 | E15: =IFERROR(VLOOKUP(A15,'Liste des joueurs'!A12:D20315,2),"") -> 29 | F15: =IFERROR(VLOOKUP(A15,'Liste des joueurs'!A12:D20315,3),"") -> 37 | G15: 136.6199107 | H15: =IFERROR('Data Mon Ally'!G13,"") -> 03:41:46
A16: =IF('CC Mon Ally'!D17=0,"",'CC Mon Ally'!D17) -> Gueust | C16: =IF(A16=0,"",'CC Mon Ally'!E17) -> 1395349574 | E16: =IFERROR(VLOOKUP(A16,'Liste des joueurs'!A14:D20317,2),"") -> 3 | F16: =IFERROR(VLOOKUP(A16,'Liste des joueurs'!A14:D20317,3),"") -> 385 | G16: 212.3982109 | H16: =IFERROR('Data Mon Ally'!G14,"") -> 05:12:10
A17: =IF('CC Mon Ally'!D18=0,"",'CC Mon Ally'!D18) -> hador | C17: =IF(A17=0,"",'CC Mon Ally'!E18) -> 1363544000 | E17: =IFERROR(VLOOKUP(A17,'Liste des joueurs'!A14:D20317,2),"") -> 27 | F17: =IFERROR(VLOOKUP(A17,'Liste des joueurs'!A14:D20317,3),"") -> 186 | G17: 17.02938637 | H17: =IFERROR('Data Mon Ally'!G15,"") -> 00:32:36
A18: =IF('CC Mon Ally'!D19=0,"",'CC Mon Ally'!D19) -> Rockslide | C18: =IF(A18=0,"",'CC Mon Ally'!E19) -> 1338053964 | E18: =IFERROR(VLOOKUP(A18,'Liste des joueurs'!A16:D20319,2),"") -> 16 | F18: =IFERROR(VLOOKUP(A18,'Liste des joueurs'!A16:D20319,3),"") -> 173 | G18: 0 | H18: =IFERROR('Data Mon Ally'!G16,"") -> 00:00:00
A19: =IF('CC Mon Ally'!D20=0,"",'CC Mon Ally'!D20) -> Ishigo | C19: =IF(A19=0,"",'CC Mon Ally'!E20) -> 1229782731 | E19: =IFERROR(VLOOKUP(A19,'Liste des joueurs'!A16:D20319,2),"") -> 23 | F19: =IFERROR(VLOOKUP(A19,'Liste des joueurs'!A16:D20319,3),"") -> 103 | G19: 70.34912935 | H19: =IFERROR('Data Mon Ally'!G17,"") -> 02:04:57
A20: =IF('CC Mon Ally'!D21=0,"",'CC Mon Ally'!D21) -> CroolisVar | C20: =IF(A20=0,"",'CC Mon Ally'!E21) -> 1125036349 | E20: =IFERROR(VLOOKUP(A20,'Liste des joueurs'!A18:D20321,2),"") -> 43 | F20: =IFERROR(VLOOKUP(A20,'Liste des joueurs'!A18:D20321,3),"") -> 205 | G20: 41.86884283 | H20: =IFERROR('Data Mon Ally'!G18,"") -> 01:17:22
A21: =IF('CC Mon Ally'!D22=0,"",'CC Mon Ally'!D22) -> Phenixx | C21: =IF(A21=0,"",'CC Mon Ally'!E22) -> 908308062 | E21: =IFERROR(VLOOKUP(A21,'Liste des joueurs'!A18:D20321,2),"") -> 7 | F21: =IFERROR(VLOOKUP(A21,'Liste des joueurs'!A18:D20321,3),"") -> 181 | G21: 12.04159458 | H21: =IFERROR('Data Mon Ally'!G19,"") -> 00:23:13
A22: =IF('CC Mon Ally'!D23=0,"",'CC Mon Ally'!D23) -> Mimic | C22: =IF(A22=0,"",'CC Mon Ally'!E23) -> 741427214 | E22: =IFERROR(VLOOKUP(A22,'Liste des joueurs'!A20:D20323,2),"") -> 44 | F22: =IFERROR(VLOOKUP(A22,'Liste des joueurs'!A20:D20323,3),"") -> 173 | G22: 28 | H22: =IFERROR('Data Mon Ally'!G20,"") -> 00:52:46
A23: =IF('CC Mon Ally'!D24=0,"",'CC Mon Ally'!D24) -> barouk | C23: =IF(A23=0,"",'CC Mon Ally'!E24) -> 691844608 | D23: A PORTEE | E23: =IFERROR(VLOOKUP(A23,'Liste des joueurs'!A20:D20323,2),"") -> 35 | F23: =IFERROR(VLOOKUP(A23,'Liste des joueurs'!A20:D20323,3),"") -> 161 | G23: 22.47220505 | H23: =IFERROR('Data Mon Ally'!G21,"") -> 00:42:41
A24: =IF('CC Mon Ally'!D25=0,"",'CC Mon Ally'!D25) -> Rita | C24: =IF(A24=0,"",'CC Mon Ally'!E25) -> 601563106 | D24: A PORTEE | E24: =IFERROR(VLOOKUP(A24,'Liste des joueurs'!A22:D20325,2),"") -> 33 | F24: =IFERROR(VLOOKUP(A24,'Liste des joueurs'!A22:D20325,3),"") -> 318 | G24: 145.9931505 | H24: =IFERROR('Data Mon Ally'!G22,"") -> 03:54:02
A25: =IF('CC Mon Ally'!D26=0,"",'CC Mon Ally'!D26) -> Panda | C25: =IF(A25=0,"",'CC Mon Ally'!E26) -> 199515647 | D25: A PORTEE | E25: =IFERROR(VLOOKUP(A25,'Liste des joueurs'!A22:D20325,2),"") -> 4 | F25: =IFERROR(VLOOKUP(A25,'Liste des joueurs'!A22:D20325,3),"") -> 35 | G25: 138.5207566 | H25: =IFERROR('Data Mon Ally'!G23,"") -> 03:44:17
A26: =IF('CC Mon Ally'!D27=0,"",'CC Mon Ally'!D27) -> DrAnts | C26: =IF(A26=0,"",'CC Mon Ally'!E27) -> 176691717 | D26: A PORTEE | E26: =IFERROR(VLOOKUP(A26,'Liste des joueurs'!A24:D20327,2),"") -> 20 | F26: =IFERROR(VLOOKUP(A26,'Liste des joueurs'!A24:D20327,3),"") -> 276 | G26: 103.0776406 | H26: =IFERROR('Data Mon Ally'!G24,"") -> 02:55:03
A27: =IF('CC Mon Ally'!D28=0,"",'CC Mon Ally'!D28) -> Rofulus | C27: =IF(A27=0,"",'CC Mon Ally'!E28) -> 164335588 | D27: A PORTEE | E27: =IFERROR(VLOOKUP(A27,'Liste des joueurs'!A24:D20327,2),"") -> 13 | F27: =IFERROR(VLOOKUP(A27,'Liste des joueurs'!A24:D20327,3),"") -> 107 | G27: 66.06814664 | H27: =IFERROR('Data Mon Ally'!G25,"") -> 01:58:03
A28: =IF('CC Mon Ally'!D29=0,"",'CC Mon Ally'!D29) -> bib595 | C28: =IF(A28=0,"",'CC Mon Ally'!E29) -> 74197715 | E28: =IFERROR(VLOOKUP(A28,'Liste des joueurs'!A26:D20329,2),"") -> 12 | F28: =IFERROR(VLOOKUP(A28,'Liste des joueurs'!A26:D20329,3),"") -> 237 | G28: 64.12487817 | H28: =IFERROR('Data Mon Ally'!G26,"") -> 01:54:53
A29: =IF('CC Mon Ally'!D30=0,"",'CC Mon Ally'!D30) -> osman | C29: =IF(A29=0,"",'CC Mon Ally'!E30) -> 57065150 | E29: =IFERROR(VLOOKUP(A29,'Liste des joueurs'!A26:D20329,2),"") -> 19 | F29: =IFERROR(VLOOKUP(A29,'Liste des joueurs'!A26:D20329,3),"") -> 28 | G29: 145.0310312 | H29: =IFERROR('Data Mon Ally'!G27,"") -> 03:52:47
A30: =IF('CC Mon Ally'!D31=0,"",'CC Mon Ally'!D31) -> Flipper1 | C30: =IF(A30=0,"",'CC Mon Ally'!E31) -> 51864366 | E30: =IFERROR(VLOOKUP(A30,'Liste des joueurs'!A28:D20331,2),"") -> 22 | F30: =IFERROR(VLOOKUP(A30,'Liste des joueurs'!A28:D20331,3),"") -> 69 | G30: 104.1729331 | H30: =IFERROR('Data Mon Ally'!G28,"") -> 02:56:39
A31: =IF('CC Mon Ally'!D32=0,"",'CC Mon Ally'!D32) -> aubertignac | C31: =IF(A31=0,"",'CC Mon Ally'!E32) -> 25797967 | E31: =IFERROR(VLOOKUP(A31,'Liste des joueurs'!A28:D20331,2),"") -> 6 | F31: =IFERROR(VLOOKUP(A31,'Liste des joueurs'!A28:D20331,3),"") -> 52 | G31: 121.4125199 | H31: =IFERROR('Data Mon Ally'!G29,"") -> 03:21:08
A32: =IF('CC Mon Ally'!D33=0,"",'CC Mon Ally'!D33) -> lipoussou | C32: =IF(A32=0,"",'CC Mon Ally'!E33) -> 24685576 | E32: =IFERROR(VLOOKUP(A32,'Liste des joueurs'!A30:D20333,2),"") -> 40 | F32: =IFERROR(VLOOKUP(A32,'Liste des joueurs'!A30:D20333,3),"") -> 147 | G32: 35.38361203 | H32: =IFERROR('Data Mon Ally'!G30,"") -> 01:05:59
A33: =IF('CC Mon Ally'!D34=0,"",'CC Mon Ally'!D34) -> Chryom | C33: =IF(A33=0,"",'CC Mon Ally'!E34) -> 15533796 | E33: =IFERROR(VLOOKUP(A33,'Liste des joueurs'!A30:D20333,2),"") -> 9 | F33: =IFERROR(VLOOKUP(A33,'Liste des joueurs'!A30:D20333,3),"") -> 58 | G33: 115.2128465 | H33: =IFERROR('Data Mon Ally'!G31,"") -> 03:12:28
A34: =IF('CC Mon Ally'!D35=0,"",'CC Mon Ally'!D35) -> Greeny | C34: =IF(A34=0,"",'CC Mon Ally'!E35) -> 14657937 | E34: =IFERROR(VLOOKUP(A34,'Liste des joueurs'!A32:D20335,2),"") -> 23 | F34: =IFERROR(VLOOKUP(A34,'Liste des joueurs'!A32:D20335,3),"") -> 50 | G34: 123.199026 | H34: =IFERROR('Data Mon Ally'!G32,"") -> 03:23:36
A35: =IF('CC Mon Ally'!D36=0,"",'CC Mon Ally'!D36) -> EllaVonZedanltha | C35: =IF(A35=0,"",'CC Mon Ally'!E36) -> 13582916 | E35: =IFERROR(VLOOKUP(A35,'Liste des joueurs'!A32:D20335,2),"") -> 29 | F35: =IFERROR(VLOOKUP(A35,'Liste des joueurs'!A32:D20335,3),"") -> 59 | G35: 114.7388339 | H35: =IFERROR('Data Mon Ally'!G33,"") -> 03:11:48
A36: =IF('CC Mon Ally'!D37=0,"",'CC Mon Ally'!D37) -> Lockheed | C36: =IF(A36=0,"",'CC Mon Ally'!E37) -> 8976576 | E36: =IFERROR(VLOOKUP(A36,'Liste des joueurs'!A34:D20337,2),"") -> 28 | F36: =IFERROR(VLOOKUP(A36,'Liste des joueurs'!A34:D20337,3),"") -> 176 | G36: 12.36931688 | H36: =IFERROR('Data Mon Ally'!G34,"") -> 00:23:50
A37: =IF('CC Mon Ally'!D38=0,"",'CC Mon Ally'!D38) -> Damping | C37: =IF(A37=0,"",'CC Mon Ally'!E38) -> 8026127 | E37: =IFERROR(VLOOKUP(A37,'Liste des joueurs'!A34:D20337,2),"") -> 29 | F37: =IFERROR(VLOOKUP(A37,'Liste des joueurs'!A34:D20337,3),"") -> 270 | G37: 97.86725704 | H37: =IFERROR('Data Mon Ally'!G35,"") -> 02:47:23
A38: =IF('CC Mon Ally'!D39=0,"",'CC Mon Ally'!D39) -> Kiba | C38: =IF(A38=0,"",'CC Mon Ally'!E39) -> 7017940 | E38: =IFERROR(VLOOKUP(A38,'Liste des joueurs'!A36:D20339,2),"") -> 13 | F38: =IFERROR(VLOOKUP(A38,'Liste des joueurs'!A36:D20339,3),"") -> 23 | G38: 150.029997 | H38: =IFERROR('Data Mon Ally'!G36,"") -> 03:59:13
A39: =IF('CC Mon Ally'!D40=0,"",'CC Mon Ally'!D40) -> Tradjette | C39: =IF(A39=0,"",'CC Mon Ally'!E40) -> 6005940 | E39: =IFERROR(VLOOKUP(A39,'Liste des joueurs'!A36:D20339,2),"") -> 7 | F39: =IFERROR(VLOOKUP(A39,'Liste des joueurs'!A36:D20339,3),"") -> 13 | G39: 160.2529251 | H39: =IFERROR('Data Mon Ally'!G37,"") -> 04:12:05
A40: =IF('CC Mon Ally'!D41=0,"",'CC Mon Ally'!D41) -> bill | C40: =IF(A40=0,"",'CC Mon Ally'!E41) -> 5137772 | E40: =IFERROR(VLOOKUP(A40,'Liste des joueurs'!A38:D20341,2),"") -> 19 | F40: =IFERROR(VLOOKUP(A40,'Liste des joueurs'!A38:D20341,3),"") -> 112 | G40: 61.07372594 | H40: =IFERROR('Data Mon Ally'!G38,"") -> 01:49:53
A41: =IF('CC Mon Ally'!D42=0,"",'CC Mon Ally'!D42) -> weaver | C41: =IF(A41=0,"",'CC Mon Ally'!E42) -> 3528979 | E41: =IFERROR(VLOOKUP(A41,'Liste des joueurs'!A38:D20341,2),"") -> 16 | F41: =IFERROR(VLOOKUP(A41,'Liste des joueurs'!A38:D20341,3),"") -> 13 | G41: 160 | H41: =IFERROR('Data Mon Ally'!G39,"") -> 04:11:46
A42: =IF('CC Mon Ally'!D43=0,"",'CC Mon Ally'!D43) -> Morphy | C42: =IF(A42=0,"",'CC Mon Ally'!E43) -> 3086290 | E42: =IFERROR(VLOOKUP(A42,'Liste des joueurs'!A40:D20343,2),"") -> 35 | F42: =IFERROR(VLOOKUP(A42,'Liste des joueurs'!A40:D20343,3),"") -> 6 | G42: 168.0773631 | H42: =IFERROR('Data Mon Ally'!G40,"") -> 04:21:41
A43: =IF('CC Mon Ally'!D44=0,"",'CC Mon Ally'!D44) -> Shikamaru | C43: =IF(A43=0,"",'CC Mon Ally'!E44) -> 2788427 | E43: =IFERROR(VLOOKUP(A43,'Liste des joueurs'!A40:D20343,2),"") -> 35 | F43: =IFERROR(VLOOKUP(A43,'Liste des joueurs'!A40:D20343,3),"") -> 169 | G43: 19.41648784 | H43: =IFERROR('Data Mon Ally'!G41,"") -> 00:37:02
A44: =IF('CC Mon Ally'!D45=0,"",'CC Mon Ally'!D45) -> sentih | C44: =IF(A44=0,"",'CC Mon Ally'!E45) -> 2591879 | E44: =IFERROR(VLOOKUP(A44,'Liste des joueurs'!A42:D20345,2),"") -> 6 | F44: =IFERROR(VLOOKUP(A44,'Liste des joueurs'!A42:D20345,3),"") -> 55 | G44: 118.4229707 | H44: =IFERROR('Data Mon Ally'!G42,"") -> 03:16:59
A45: =IF('CC Mon Ally'!D46=0,"",'CC Mon Ally'!D46) -> Lesqual | C45: =IF(A45=0,"",'CC Mon Ally'!E46) -> 2314160 | E45: =IFERROR(VLOOKUP(A45,'Liste des joueurs'!A42:D20345,2),"") -> 23 | F45: =IFERROR(VLOOKUP(A45,'Liste des joueurs'!A42:D20345,3),"") -> 295 | G45: 122.2006547 | H45: =IFERROR('Data Mon Ally'!G43,"") -> 03:22:14
A46: =IF('CC Mon Ally'!D47=0,"",'CC Mon Ally'!D47) -> TheDentist | C46: =IF(A46=0,"",'CC Mon Ally'!E47) -> 2284808 | E46: =IFERROR(VLOOKUP(A46,'Liste des joueurs'!A44:D20347,2),"") -> 19 | F46: =IFERROR(VLOOKUP(A46,'Liste des joueurs'!A44:D20347,3),"") -> 53 | G46: 120.0374941 | H46: =IFERROR('Data Mon Ally'!G44,"") -> 03:19:14
A47: =IF('CC Mon Ally'!D48=0,"",'CC Mon Ally'!D48) -> Mime | C47: =IF(A47=0,"",'CC Mon Ally'!E48) -> 2005782 | E47: =IFERROR(VLOOKUP(A47,'Liste des joueurs'!A44:D20347,2),"") -> 14 | F47: =IFERROR(VLOOKUP(A47,'Liste des joueurs'!A44:D20347,3),"") -> 128 | G47: 45.04442252 | H47: =IFERROR('Data Mon Ally'!G45,"") -> 01:22:52
A48: =IF('CC Mon Ally'!D49=0,"",'CC Mon Ally'!D49) -> Quivala | C48: =IF(A48=0,"",'CC Mon Ally'!E49) -> 1922647 | E48: =IFERROR(VLOOKUP(A48,'Liste des joueurs'!A46:D20349,2),"") -> 44 | F48: =IFERROR(VLOOKUP(A48,'Liste des joueurs'!A46:D20349,3),"") -> 143 | G48: 41.03656906 | H48: =IFERROR('Data Mon Ally'!G46,"") -> 01:15:55
A49: =IF('CC Mon Ally'!D50=0,"",'CC Mon Ally'!D50) -> pacpac001 | C49: =IF(A49=0,"",'CC Mon Ally'!E50) -> 716072 | E49: =IFERROR(VLOOKUP(A49,'Liste des joueurs'!A46:D20349,2),"") -> 6 | F49: =IFERROR(VLOOKUP(A49,'Liste des joueurs'!A46:D20349,3),"") -> 51 | G49: 122.40915 | H49: =IFERROR('Data Mon Ally'!G47,"") -> 03:22:31
A50: =IF('CC Mon Ally'!D51=0,"",'CC Mon Ally'!D51) -> Reex | C50: =IF(A50=0,"",'CC Mon Ally'!E51) -> 651027 | E50: =IFERROR(VLOOKUP(A50,'Liste des joueurs'!A48:D20351,2),"") -> 36 | F50: =IFERROR(VLOOKUP(A50,'Liste des joueurs'!A48:D20351,3),"") -> 193 | G50: 28.28427125 | H50: =IFERROR('Data Mon Ally'!G48,"") -> 00:53:17
A51: =IF('CC Mon Ally'!D52=0,"",'CC Mon Ally'!D52) -> Seiduna | C51: =IF(A51=0,"",'CC Mon Ally'!E52) -> 268669 | E51: =IFERROR(VLOOKUP(A51,'Liste des joueurs'!A48:D20351,2),"") -> 10 | F51: =IFERROR(VLOOKUP(A51,'Liste des joueurs'!A48:D20351,3),"") -> 63 | G51: 110.1635148 | H51: =IFERROR('Data Mon Ally'!G49,"") -> 03:05:18
A52: =IF('CC Mon Ally'!D53=0,"",'CC Mon Ally'!D53) -> MagnetO | C52: =IF(A52=0,"",'CC Mon Ally'!E53) -> 152964 | E52: =IFERROR(VLOOKUP(A52,'Liste des joueurs'!A50:D20353,2),"") -> 26 | F52: =IFERROR(VLOOKUP(A52,'Liste des joueurs'!A50:D20353,3),"") -> 172 | G52: 10.04987562 | H52: =IFERROR('Data Mon Ally'!G50,"") -> 00:19:26
A53: =IF('CC Mon Ally'!D54=0,"",'CC Mon Ally'!D54) -> riblibli | C53: =IF(A53=0,"",'CC Mon Ally'!E54) -> 124756 | E53: =IFERROR(VLOOKUP(A53,'Liste des joueurs'!A50:D20353,2),"") -> 39 | F53: =IFERROR(VLOOKUP(A53,'Liste des joueurs'!A50:D20353,3),"") -> 25 | G53: 149.7765002 | H53: =IFERROR('Data Mon Ally'!G51,"") -> 03:58:54
A54: =IF('CC Mon Ally'!D55=0,"",'CC Mon Ally'!D55) -> MilesGloriosus | C54: =IF(A54=0,"",'CC Mon Ally'!E55) -> 62528 | E54: =IFERROR(VLOOKUP(A54,'Liste des joueurs'!A52:D20355,2),"") -> 5 | F54: =IFERROR(VLOOKUP(A54,'Liste des joueurs'!A52:D20355,3),"") -> 94 | G54: 79.76214641 | H54: =IFERROR('Data Mon Ally'!G52,"") -> 02:19:51
A55: =IF('CC Mon Ally'!D56=0,"",'CC Mon Ally'!D56) ->  | C55: =IF(A55=0,"",'CC Mon Ally'!E56) -> 0 | E55: =IFERROR(VLOOKUP(A55,'Liste des joueurs'!A52:D20355,2),"") ->  | F55: =IFERROR(VLOOKUP(A55,'Liste des joueurs'!A52:D20355,3),"") ->  | H55: =IFERROR('Data Mon Ally'!G53,"") -> 
A56: =IF('CC Mon Ally'!D57=0,"",'CC Mon Ally'!D57) ->  | C56: =IF(A56=0,"",'CC Mon Ally'!E57) -> 0 | E56: =IFERROR(VLOOKUP(A56,'Liste des joueurs'!A54:D20357,2),"") ->  | F56: =IFERROR(VLOOKUP(A56,'Liste des joueurs'!A54:D20357,3),"") ->  | H56: =IFERROR('Data Mon Ally'!G54,"") -> 
A57: =IF('CC Mon Ally'!D58=0,"",'CC Mon Ally'!D58) ->  | C57: =IF(A57=0,"",'CC Mon Ally'!E58) -> 0 | E57: =IFERROR(VLOOKUP(A57,'Liste des joueurs'!A54:D20357,2),"") ->  | F57: =IFERROR(VLOOKUP(A57,'Liste des joueurs'!A54:D20357,3),"") ->  | H57: =IFERROR('Data Mon Ally'!G55,"") -> 
A58: =IF('CC Mon Ally'!D59=0,"",'CC Mon Ally'!D59) ->  | C58: =IF(A58=0,"",'CC Mon Ally'!E59) -> 0 | E58: =IFERROR(VLOOKUP(A58,'Liste des joueurs'!A56:D20359,2),"") ->  | F58: =IFERROR(VLOOKUP(A58,'Liste des joueurs'!A56:D20359,3),"") ->  | H58: =IFERROR('Data Mon Ally'!G56,"") -> 
A59: =IF('CC Mon Ally'!D60=0,"",'CC Mon Ally'!D60) ->  | C59: =IF(A59=0,"",'CC Mon Ally'!E60) -> 0 | E59: =IFERROR(VLOOKUP(A59,'Liste des joueurs'!A56:D20359,2),"") ->  | F59: =IFERROR(VLOOKUP(A59,'Liste des joueurs'!A56:D20359,3),"") ->  | H59: =IFERROR('Data Mon Ally'!G57,"") -> 
A60: =IF('CC Mon Ally'!D61=0,"",'CC Mon Ally'!D61) ->  | C60: =IF(A60=0,"",'CC Mon Ally'!E61) -> 0 | E60: =IFERROR(VLOOKUP(A60,'Liste des joueurs'!A58:D20361,2),"") ->  | F60: =IFERROR(VLOOKUP(A60,'Liste des joueurs'!A58:D20361,3),"") ->  | H60: =IFERROR('Data Mon Ally'!G58,"") -> 
A61: =IF('CC Mon Ally'!D62=0,"",'CC Mon Ally'!D62) ->  | C61: =IF(A61=0,"",'CC Mon Ally'!E62) -> 0 | E61: =IFERROR(VLOOKUP(A61,'Liste des joueurs'!A58:D20361,2),"") ->  | F61: =IFERROR(VLOOKUP(A61,'Liste des joueurs'!A58:D20361,3),"") ->  | H61: =IFERROR('Data Mon Ally'!G59,"") -> 
A62: =IF('CC Mon Ally'!D63=0,"",'CC Mon Ally'!D63) ->  | C62: =IF(A62=0,"",'CC Mon Ally'!E63) -> 0 | E62: =IFERROR(VLOOKUP(A62,'Liste des joueurs'!A60:D20363,2),"") ->  | F62: =IFERROR(VLOOKUP(A62,'Liste des joueurs'!A60:D20363,3),"") ->  | H62: =IFERROR('Data Mon Ally'!G60,"") -> 
A63: =IF('CC Mon Ally'!D64=0,"",'CC Mon Ally'!D64) ->  | C63: =IF(A63=0,"",'CC Mon Ally'!E64) -> 0 | E63: =IFERROR(VLOOKUP(A63,'Liste des joueurs'!A60:D20363,2),"") ->  | F63: =IFERROR(VLOOKUP(A63,'Liste des joueurs'!A60:D20363,3),"") ->  | H63: =IFERROR('Data Mon Ally'!G61,"") -> 
A64: =IF('CC Mon Ally'!D65=0,"",'CC Mon Ally'!D65) ->  | C64: =IF(A64=0,"",'CC Mon Ally'!E65) -> 0 | E64: =IFERROR(VLOOKUP(A64,'Liste des joueurs'!A62:D20365,2),"") ->  | F64: =IFERROR(VLOOKUP(A64,'Liste des joueurs'!A62:D20365,3),"") ->  | H64: =IFERROR('Data Mon Ally'!G62,"") -> 
A65: =IF('CC Mon Ally'!D66=0,"",'CC Mon Ally'!D66) ->  | C65: =IF(A65=0,"",'CC Mon Ally'!E66) -> 0 | E65: =IFERROR(VLOOKUP(A65,'Liste des joueurs'!A62:D20365,2),"") ->  | F65: =IFERROR(VLOOKUP(A65,'Liste des joueurs'!A62:D20365,3),"") ->  | H65: =IFERROR('Data Mon Ally'!G63,"") -> 
A66: =IF('CC Mon Ally'!D67=0,"",'CC Mon Ally'!D67) ->  | C66: =IF(A66=0,"",'CC Mon Ally'!E67) -> 0 | E66: =IFERROR(VLOOKUP(A66,'Liste des joueurs'!A64:D20367,2),"") ->  | F66: =IFERROR(VLOOKUP(A66,'Liste des joueurs'!A64:D20367,3),"") ->  | H66: =IFERROR('Data Mon Ally'!G64,"") -> 
A67: =IF('CC Mon Ally'!D68=0,"",'CC Mon Ally'!D68) ->  | C67: =IF(A67=0,"",'CC Mon Ally'!E68) -> 0 | E67: =IFERROR(VLOOKUP(A67,'Liste des joueurs'!A64:D20367,2),"") ->  | F67: =IFERROR(VLOOKUP(A67,'Liste des joueurs'!A64:D20367,3),"") ->  | H67: =IFERROR('Data Mon Ally'!G65,"") -> 
A68: =IF('CC Mon Ally'!D69=0,"",'CC Mon Ally'!D69) ->  | C68: =IF(A68=0,"",'CC Mon Ally'!E69) -> 0 | E68: =IFERROR(VLOOKUP(A68,'Liste des joueurs'!A66:D20369,2),"") ->  | F68: =IFERROR(VLOOKUP(A68,'Liste des joueurs'!A66:D20369,3),"") ->  | H68: =IFERROR('Data Mon Ally'!G66,"") -> 
A69: =IF('CC Mon Ally'!D70=0,"",'CC Mon Ally'!D70) ->  | C69: =IF(A69=0,"",'CC Mon Ally'!E70) -> 0 | E69: =IFERROR(VLOOKUP(A69,'Liste des joueurs'!A66:D20369,2),"") ->  | F69: =IFERROR(VLOOKUP(A69,'Liste des joueurs'!A66:D20369,3),"") ->  | H69: =IFERROR('Data Mon Ally'!G67,"") -> 
A70: =IF('CC Mon Ally'!D71=0,"",'CC Mon Ally'!D71) ->  | C70: =IF(A70=0,"",'CC Mon Ally'!E71) -> 0 | D70: =IF(AND((C70<=(3*$E$1)),(C70>=(0.5*$E$1))),"A PORTEE"," ") ->  | E70: =IFERROR(VLOOKUP(A70,'Liste des joueurs'!A68:D20371,2),"") ->  | F70: =IFERROR(VLOOKUP(A70,'Liste des joueurs'!A68:D20371,3),"") ->  | G70: =IFERROR(SQRT(($L$1-E70)^2+($L$2-F70)^2),"") ->  | H70: =IFERROR('Data Mon Ally'!G68,"") -> 
A71: =IF('CC Mon Ally'!D72=0,"",'CC Mon Ally'!D72) ->  | C71: =IF(A71=0,"",'CC Mon Ally'!E72) -> 0 | E71: =IFERROR(VLOOKUP(A71,'Liste des joueurs'!A68:D20371,2),"") ->  | F71: =IFERROR(VLOOKUP(A71,'Liste des joueurs'!A68:D20371,3),"") ->  | H71: =IFERROR('Data Mon Ally'!G69,"") -> 
A72: =IF('CC Mon Ally'!D73=0,"",'CC Mon Ally'!D73) ->  | C72: =IF(A72=0,"",'CC Mon Ally'!E73) -> 0 | E72: =IFERROR(VLOOKUP(A72,'Liste des joueurs'!A70:D20373,2),"") ->  | F72: =IFERROR(VLOOKUP(A72,'Liste des joueurs'!A70:D20373,3),"") ->  | H72: =IFERROR('Data Mon Ally'!G70,"") -> 
A73: =IF('CC Mon Ally'!D74=0,"",'CC Mon Ally'!D74) ->  | C73: =IF(A73=0,"",'CC Mon Ally'!E74) -> 0 | E73: =IFERROR(VLOOKUP(A73,'Liste des joueurs'!A70:D20373,2),"") ->  | F73: =IFERROR(VLOOKUP(A73,'Liste des joueurs'!A70:D20373,3),"") ->  | H73: =IFERROR('Data Mon Ally'!G71,"") -> 
A74: =IF('CC Mon Ally'!D75=0,"",'CC Mon Ally'!D75) ->  | C74: =IF(A74=0,"",'CC Mon Ally'!E75) -> 0 | E74: =IFERROR(VLOOKUP(A74,'Liste des joueurs'!A72:D20375,2),"") ->  | F74: =IFERROR(VLOOKUP(A74,'Liste des joueurs'!A72:D20375,3),"") ->  | H74: =IFERROR('Data Mon Ally'!G72,"") -> 
A75: =IF('CC Mon Ally'!D76=0,"",'CC Mon Ally'!D76) ->  | C75: =IF(A75=0,"",'CC Mon Ally'!E76) -> 0 | E75: =IFERROR(VLOOKUP(A75,'Liste des joueurs'!A72:D20375,2),"") ->  | F75: =IFERROR(VLOOKUP(A75,'Liste des joueurs'!A72:D20375,3),"") ->  | H75: =IFERROR('Data Mon Ally'!G73,"") -> 
A76: =IF('CC Mon Ally'!D77=0,"",'CC Mon Ally'!D77) ->  | C76: =IF(A76=0,"",'CC Mon Ally'!E77) -> 0 | E76: =IFERROR(VLOOKUP(A76,'Liste des joueurs'!A74:D20377,2),"") ->  | F76: =IFERROR(VLOOKUP(A76,'Liste des joueurs'!A74:D20377,3),"") ->  | H76: =IFERROR('Data Mon Ally'!G74,"") -> 
A77: =IF('CC Mon Ally'!D78=0,"",'CC Mon Ally'!D78) ->  | C77: =IF(A77=0,"",'CC Mon Ally'!E78) -> 0 | E77: =IFERROR(VLOOKUP(A77,'Liste des joueurs'!A74:D20377,2),"") ->  | F77: =IFERROR(VLOOKUP(A77,'Liste des joueurs'!A74:D20377,3),"") ->  | H77: =IFERROR('Data Mon Ally'!G75,"") -> 
A78: =IF('CC Mon Ally'!D79=0,"",'CC Mon Ally'!D79) ->  | C78: =IF(A78=0,"",'CC Mon Ally'!E79) -> 0 | E78: =IFERROR(VLOOKUP(A78,'Liste des joueurs'!A76:D20379,2),"") ->  | F78: =IFERROR(VLOOKUP(A78,'Liste des joueurs'!A76:D20379,3),"") ->  | H78: =IFERROR('Data Mon Ally'!G76,"") -> 
A79: =IF('CC Mon Ally'!D80=0,"",'CC Mon Ally'!D80) ->  | C79: =IF(A79=0,"",'CC Mon Ally'!E80) -> 0 | E79: =IFERROR(VLOOKUP(A79,'Liste des joueurs'!A76:D20379,2),"") ->  | F79: =IFERROR(VLOOKUP(A79,'Liste des joueurs'!A76:D20379,3),"") ->  | H79: =IFERROR('Data Mon Ally'!G77,"") -> 
A80: =IF('CC Mon Ally'!D81=0,"",'CC Mon Ally'!D81) ->  | C80: =IF(A80=0,"",'CC Mon Ally'!E81) -> 0 | E80: =IFERROR(VLOOKUP(A80,'Liste des joueurs'!A78:D20381,2),"") ->  | F80: =IFERROR(VLOOKUP(A80,'Liste des joueurs'!A78:D20381,3),"") ->  | H80: =IFERROR('Data Mon Ally'!G78,"") -> 
A81: =IF('CC Mon Ally'!D82=0,"",'CC Mon Ally'!D82) ->  | C81: =IF(A81=0,"",'CC Mon Ally'!E82) -> 0 | E81: =IFERROR(VLOOKUP(A81,'Liste des joueurs'!A78:D20381,2),"") ->  | F81: =IFERROR(VLOOKUP(A81,'Liste des joueurs'!A78:D20381,3),"") ->  | H81: =IFERROR('Data Mon Ally'!G79,"") -> 
A82: =IF('CC Mon Ally'!D83=0,"",'CC Mon Ally'!D83) ->  | C82: =IF(A82=0,"",'CC Mon Ally'!E83) -> 0 | E82: =IFERROR(VLOOKUP(A82,'Liste des joueurs'!A80:D20383,2),"") ->  | F82: =IFERROR(VLOOKUP(A82,'Liste des joueurs'!A80:D20383,3),"") ->  | H82: =IFERROR('Data Mon Ally'!G80,"") -> 
A83: =IF('CC Mon Ally'!D84=0,"",'CC Mon Ally'!D84) ->  | C83: =IF(A83=0,"",'CC Mon Ally'!E84) -> 0 | E83: =IFERROR(VLOOKUP(A83,'Liste des joueurs'!A80:D20383,2),"") ->  | F83: =IFERROR(VLOOKUP(A83,'Liste des joueurs'!A80:D20383,3),"") ->  | H83: =IFERROR('Data Mon Ally'!G81,"") -> 
A84: =IF('CC Mon Ally'!D85=0,"",'CC Mon Ally'!D85) ->  | C84: =IF(A84=0,"",'CC Mon Ally'!E85) -> 0 | E84: =IFERROR(VLOOKUP(A84,'Liste des joueurs'!A82:D20385,2),"") ->  | F84: =IFERROR(VLOOKUP(A84,'Liste des joueurs'!A82:D20385,3),"") ->  | H84: =IFERROR('Data Mon Ally'!G82,"") -> 
A85: =IF('CC Mon Ally'!D86=0,"",'CC Mon Ally'!D86) ->  | C85: =IF(A85=0,"",'CC Mon Ally'!E86) -> 0 | E85: =IFERROR(VLOOKUP(A85,'Liste des joueurs'!A82:D20385,2),"") ->  | F85: =IFERROR(VLOOKUP(A85,'Liste des joueurs'!A82:D20385,3),"") ->  | H85: =IFERROR('Data Mon Ally'!G83,"") -> 
A86: =IF('CC Mon Ally'!D87=0,"",'CC Mon Ally'!D87) ->  | C86: =IF(A86=0,"",'CC Mon Ally'!E87) -> 0 | E86: =IFERROR(VLOOKUP(A86,'Liste des joueurs'!A84:D20387,2),"") ->  | F86: =IFERROR(VLOOKUP(A86,'Liste des joueurs'!A84:D20387,3),"") ->  | H86: =IFERROR('Data Mon Ally'!G84,"") -> 
A87: =IF('CC Mon Ally'!D88=0,"",'CC Mon Ally'!D88) ->  | C87: =IF(A87=0,"",'CC Mon Ally'!E88) -> 0 | E87: =IFERROR(VLOOKUP(A87,'Liste des joueurs'!A84:D20387,2),"") ->  | F87: =IFERROR(VLOOKUP(A87,'Liste des joueurs'!A84:D20387,3),"") ->  | H87: =IFERROR('Data Mon Ally'!G85,"") -> 
A88: =IF('CC Mon Ally'!D89=0,"",'CC Mon Ally'!D89) ->  | C88: =IF(A88=0,"",'CC Mon Ally'!E89) -> 0 | E88: =IFERROR(VLOOKUP(A88,'Liste des joueurs'!A86:D20389,2),"") ->  | F88: =IFERROR(VLOOKUP(A88,'Liste des joueurs'!A86:D20389,3),"") ->  | H88: =IFERROR('Data Mon Ally'!G86,"") -> 
A89: =IF('CC Mon Ally'!D90=0,"",'CC Mon Ally'!D90) ->  | C89: =IF(A89=0,"",'CC Mon Ally'!E90) -> 0 | E89: =IFERROR(VLOOKUP(A89,'Liste des joueurs'!A86:D20389,2),"") ->  | F89: =IFERROR(VLOOKUP(A89,'Liste des joueurs'!A86:D20389,3),"") ->  | H89: =IFERROR('Data Mon Ally'!G87,"") -> 
A90: =IF('CC Mon Ally'!D91=0,"",'CC Mon Ally'!D91) ->  | C90: =IF(A90=0,"",'CC Mon Ally'!E91) -> 0 | E90: =IFERROR(VLOOKUP(A90,'Liste des joueurs'!A88:D20391,2),"") ->  | F90: =IFERROR(VLOOKUP(A90,'Liste des joueurs'!A88:D20391,3),"") ->  | H90: =IFERROR('Data Mon Ally'!G88,"") -> 
A91: =IF('CC Mon Ally'!D92=0,"",'CC Mon Ally'!D92) ->  | C91: =IF(A91=0,"",'CC Mon Ally'!E92) -> 0 | E91: =IFERROR(VLOOKUP(A91,'Liste des joueurs'!A88:D20391,2),"") ->  | F91: =IFERROR(VLOOKUP(A91,'Liste des joueurs'!A88:D20391,3),"") ->  | H91: =IFERROR('Data Mon Ally'!G89,"") -> 
A92: =IF('CC Mon Ally'!D93=0,"",'CC Mon Ally'!D93) ->  | C92: =IF(A92=0,"",'CC Mon Ally'!E93) -> 0 | E92: =IFERROR(VLOOKUP(A92,'Liste des joueurs'!A90:D20393,2),"") ->  | F92: =IFERROR(VLOOKUP(A92,'Liste des joueurs'!A90:D20393,3),"") ->  | H92: =IFERROR('Data Mon Ally'!G90,"") -> 
A93: =IF('CC Mon Ally'!D94=0,"",'CC Mon Ally'!D94) ->  | C93: =IF(A93=0,"",'CC Mon Ally'!E94) -> 0 | E93: =IFERROR(VLOOKUP(A93,'Liste des joueurs'!A90:D20393,2),"") ->  | F93: =IFERROR(VLOOKUP(A93,'Liste des joueurs'!A90:D20393,3),"") ->  | H93: =IFERROR('Data Mon Ally'!G91,"") -> 
A94: =IF('CC Mon Ally'!D95=0,"",'CC Mon Ally'!D95) ->  | C94: =IF(A94=0,"",'CC Mon Ally'!E95) -> 0 | E94: =IFERROR(VLOOKUP(A94,'Liste des joueurs'!A92:D20395,2),"") ->  | F94: =IFERROR(VLOOKUP(A94,'Liste des joueurs'!A92:D20395,3),"") ->  | H94: =IFERROR('Data Mon Ally'!G92,"") -> 
A95: =IF('CC Mon Ally'!D96=0,"",'CC Mon Ally'!D96) ->  | C95: =IF(A95=0,"",'CC Mon Ally'!E96) -> 0 | E95: =IFERROR(VLOOKUP(A95,'Liste des joueurs'!A92:D20395,2),"") ->  | F95: =IFERROR(VLOOKUP(A95,'Liste des joueurs'!A92:D20395,3),"") ->  | H95: =IFERROR('Data Mon Ally'!G93,"") -> 
A96: =IF('CC Mon Ally'!D97=0,"",'CC Mon Ally'!D97) ->  | C96: =IF(A96=0,"",'CC Mon Ally'!E97) -> 0 | E96: =IFERROR(VLOOKUP(A96,'Liste des joueurs'!A94:D20397,2),"") ->  | F96: =IFERROR(VLOOKUP(A96,'Liste des joueurs'!A94:D20397,3),"") ->  | H96: =IFERROR('Data Mon Ally'!G94,"") -> 
A97: =IF('CC Mon Ally'!D98=0,"",'CC Mon Ally'!D98) ->  | C97: =IF(A97=0,"",'CC Mon Ally'!E98) -> 0 | E97: =IFERROR(VLOOKUP(A97,'Liste des joueurs'!A94:D20397,2),"") ->  | F97: =IFERROR(VLOOKUP(A97,'Liste des joueurs'!A94:D20397,3),"") ->  | H97: =IFERROR('Data Mon Ally'!G95,"") -> 
A98: =IF('CC Mon Ally'!D99=0,"",'CC Mon Ally'!D99) ->  | C98: =IF(A98=0,"",'CC Mon Ally'!E99) -> 0 | E98: =IFERROR(VLOOKUP(A98,'Liste des joueurs'!A96:D20399,2),"") ->  | F98: =IFERROR(VLOOKUP(A98,'Liste des joueurs'!A96:D20399,3),"") ->  | H98: =IFERROR('Data Mon Ally'!G96,"") -> 
A99: =IF('CC Mon Ally'!D100=0,"",'CC Mon Ally'!D100) ->  | C99: =IF(A99=0,"",'CC Mon Ally'!E100) -> 0 | E99: =IFERROR(VLOOKUP(A99,'Liste des joueurs'!A96:D20399,2),"") ->  | F99: =IFERROR(VLOOKUP(A99,'Liste des joueurs'!A96:D20399,3),"") ->  | H99: =IFERROR('Data Mon Ally'!G97,"") -> 
A100: =IF('CC Mon Ally'!D101=0,"",'CC Mon Ally'!D101) ->  | C100: =IF(A100=0,"",'CC Mon Ally'!E101) -> 0 | E100: =IFERROR(VLOOKUP(A100,'Liste des joueurs'!A98:D20401,2),"") ->  | F100: =IFERROR(VLOOKUP(A100,'Liste des joueurs'!A98:D20401,3),"") ->  | H100: =IFERROR('Data Mon Ally'!G98,"") -> 

Sheet Alliance 1
A1: Dernière MaJ | B1: =TODAY() -> 2013-04-16 | D1: Mon tdc | E1: =Moi!C9 -> 239462551 | G1: VA | H1: =Moi!C7 -> 26 | J1: Pos perso: | K1: x | L1: =Moi!C4 -> 16
K2: y | L2: =Moi!C5 -> 173
B3: MAP | C3: TDC | D3: A portée ? | E3: x | F3: y | G3: Distance | H3: Temps
A4: =IF('CC Ally 1'!D5=0,"",'CC Ally 1'!D5) -> crunchy | C4: =IF(A4=0,"",'CC Ally 1'!E5) -> 692036580 | D4: =IF(AND((C4<=(3*$E$1)),(C4>=(0.5*$E$1))),"A PORTEE"," ") -> A PORTEE | E4: =IFERROR(VLOOKUP(A4,'Liste des joueurs'!A2:D20305,2),"") -> 34 | F4: =IFERROR(VLOOKUP(A4,'Liste des joueurs'!A2:D20305,3),"") -> 37 | G4: =IFERROR(SQRT(($L$1-E4)^2+($L$2-F4)^2),"") -> 137.1860051 | H4: =IFERROR('Data Ally 1'!G2,"") -> 03:42:31
A5: =IF('CC Ally 1'!D6=0,"",'CC Ally 1'!D6) -> Jericho | C5: =IF(A5=0,"",'CC Ally 1'!E6) -> 650307842 | D5: =IF(AND((C5<=(3*$E$1)),(C5>=(0.5*$E$1))),"A PORTEE"," ") -> A PORTEE | E5: =IFERROR(VLOOKUP(A5,'Liste des joueurs'!A2:D20305,2),"") -> 13 | F5: =IFERROR(VLOOKUP(A5,'Liste des joueurs'!A2:D20305,3),"") -> 209 | G5: =IFERROR(SQRT(($L$1-E5)^2+($L$2-F5)^2),"") -> 36.12478374 | H5: =IFERROR('Data Ally 1'!G3,"") -> 01:07:18
A6: =IF('CC Ally 1'!D7=0,"",'CC Ally 1'!D7) -> Fleau | C6: =IF(A6=0,"",'CC Ally 1'!E7) -> 486565088 | D6: =IF(AND((C6<=(3*$E$1)),(C6>=(0.5*$E$1))),"A PORTEE"," ") -> A PORTEE | E6: =IFERROR(VLOOKUP(A6,'Liste des joueurs'!A4:D20307,2),"") -> 13 | F6: =IFERROR(VLOOKUP(A6,'Liste des joueurs'!A4:D20307,3),"") -> 173 | G6: =IFERROR(SQRT(($L$1-E6)^2+($L$2-F6)^2),"") -> 3 | H6: =IFERROR('Data Ally 1'!G4,"") -> 00:05:52
A7: =IF('CC Ally 1'!D8=0,"",'CC Ally 1'!D8) -> AB64 | C7: =IF(A7=0,"",'CC Ally 1'!E8) -> 295772763 | D7: A PORTEE | E7: =IFERROR(VLOOKUP(A7,'Liste des joueurs'!A4:D20307,2),"") -> 22 | F7: =IFERROR(VLOOKUP(A7,'Liste des joueurs'!A4:D20307,3),"") -> 14 | G7: 159.1131673 | H7: =IFERROR('Data Ally 1'!G5,"") -> 04:10:40
A8: =IF('CC Ally 1'!D9=0,"",'CC Ally 1'!D9) -> Matteo37 | C8: =IF(A8=0,"",'CC Ally 1'!E9) -> 289520233 | D8: A PORTEE | E8: =IFERROR(VLOOKUP(A8,'Liste des joueurs'!A6:D20309,2),"") -> 45 | F8: =IFERROR(VLOOKUP(A8,'Liste des joueurs'!A6:D20309,3),"") -> 169 | G8: 29.27456234 | H8: =IFERROR('Data Ally 1'!G6,"") -> 00:55:04
A9: =IF('CC Ally 1'!D10=0,"",'CC Ally 1'!D10) -> _Angel_ | C9: =IF(A9=0,"",'CC Ally 1'!E10) -> 221227394 | D9: A PORTEE | E9: =IFERROR(VLOOKUP(A9,'Liste des joueurs'!A6:D20309,2),"") -> 40 | F9: =IFERROR(VLOOKUP(A9,'Liste des joueurs'!A6:D20309,3),"") -> 173 | G9: 24 | H9: =IFERROR('Data Ally 1'!G7,"") -> 00:45:29
A10: =IF('CC Ally 1'!D11=0,"",'CC Ally 1'!D11) -> Norrin-Radd | C10: =IF(A10=0,"",'CC Ally 1'!E11) -> 164651602 | D10: A PORTEE | E10: =IFERROR(VLOOKUP(A10,'Liste des joueurs'!A8:D20311,2),"") -> 33 | F10: =IFERROR(VLOOKUP(A10,'Liste des joueurs'!A8:D20311,3),"") -> 171 | G10: 17.11724277 | H10: =IFERROR('Data Ally 1'!G8,"") -> 00:32:46
A11: =IF('CC Ally 1'!D12=0,"",'CC Ally 1'!D12) -> waylander | C11: =IF(A11=0,"",'CC Ally 1'!E12) -> 163366241 | D11: A PORTEE | E11: =IFERROR(VLOOKUP(A11,'Liste des joueurs'!A8:D20311,2),"") -> 16 | F11: =IFERROR(VLOOKUP(A11,'Liste des joueurs'!A8:D20311,3),"") -> 30 | G11: 143 | H11: =IFERROR('Data Ally 1'!G9,"") -> 03:50:09
A12: =IF('CC Ally 1'!D13=0,"",'CC Ally 1'!D13) -> Allerdyce | C12: =IF(A12=0,"",'CC Ally 1'!E13) -> 90948214 | E12: =IFERROR(VLOOKUP(A12,'Liste des joueurs'!A10:D20313,2),"") -> 9 | F12: =IFERROR(VLOOKUP(A12,'Liste des joueurs'!A10:D20313,3),"") -> 172 | G12: 7.071067812 | H12: =IFERROR('Data Ally 1'!G10,"") -> 00:13:44
A13: =IF('CC Ally 1'!D14=0,"",'CC Ally 1'!D14) -> mouche | C13: =IF(A13=0,"",'CC Ally 1'!E14) -> 37012908 | E13: =IFERROR(VLOOKUP(A13,'Liste des joueurs'!A10:D20313,2),"") -> 7 | F13: =IFERROR(VLOOKUP(A13,'Liste des joueurs'!A10:D20313,3),"") -> 245 | G13: 72.56031973 | H13: =IFERROR('Data Ally 1'!G11,"") -> 02:08:29
A14: =IF('CC Ally 1'!D15=0,"",'CC Ally 1'!D15) -> sergioo | C14: =IF(A14=0,"",'CC Ally 1'!E15) -> 9656016 | E14: =IFERROR(VLOOKUP(A14,'Liste des joueurs'!A12:D20315,2),"") -> 40 | F14: =IFERROR(VLOOKUP(A14,'Liste des joueurs'!A12:D20315,3),"") -> 21 | G14: 153.8830725 | H14: =IFERROR('Data Ally 1'!G12,"") -> 04:04:07
A15: =IF('CC Ally 1'!D16=0,"",'CC Ally 1'!D16) -> 4midiable | C15: =IF(A15=0,"",'CC Ally 1'!E16) -> 7916025 | E15: =IFERROR(VLOOKUP(A15,'Liste des joueurs'!A12:D20315,2),"") -> 40 | F15: =IFERROR(VLOOKUP(A15,'Liste des joueurs'!A12:D20315,3),"") -> 161 | G15: 26.83281573 | H15: =IFERROR('Data Ally 1'!G13,"") -> 00:50:39
A16: =IF('CC Ally 1'!D17=0,"",'CC Ally 1'!D17) -> _Wolverine_ | C16: =IF(A16=0,"",'CC Ally 1'!E17) -> 3663339 | E16: =IFERROR(VLOOKUP(A16,'Liste des joueurs'!A14:D20317,2),"") -> 36 | F16: =IFERROR(VLOOKUP(A16,'Liste des joueurs'!A14:D20317,3),"") -> 173 | G16: 20 | H16: =IFERROR('Data Ally 1'!G14,"") -> 00:38:07
A17: =IF('CC Ally 1'!D18=0,"",'CC Ally 1'!D18) -> bubulle | C17: =IF(A17=0,"",'CC Ally 1'!E18) -> 3420198 | E17: =IFERROR(VLOOKUP(A17,'Liste des joueurs'!A14:D20317,2),"") -> 4 | F17: =IFERROR(VLOOKUP(A17,'Liste des joueurs'!A14:D20317,3),"") -> 225 | G17: 53.36665626 | H17: =IFERROR('Data Ally 1'!G15,"") -> 01:37:03
A18: =IF('CC Ally 1'!D19=0,"",'CC Ally 1'!D19) -> laika | C18: =IF(A18=0,"",'CC Ally 1'!E19) -> 1895076 | E18: =IFERROR(VLOOKUP(A18,'Liste des joueurs'!A16:D20319,2),"") -> 42 | F18: =IFERROR(VLOOKUP(A18,'Liste des joueurs'!A16:D20319,3),"") -> 183 | G18: 27.85677655 | H18: =IFERROR('Data Ally 1'!G16,"") -> 00:52:30
A19: =IF('CC Ally 1'!D20=0,"",'CC Ally 1'!D20) -> shub | C19: =IF(A19=0,"",'CC Ally 1'!E20) -> 1148404 | E19: =IFERROR(VLOOKUP(A19,'Liste des joueurs'!A16:D20319,2),"") -> 42 | F19: =IFERROR(VLOOKUP(A19,'Liste des joueurs'!A16:D20319,3),"") -> 35 | G19: 140.4279175 | H19: =IFERROR('Data Ally 1'!G17,"") -> 03:46:47
A20: =IF('CC Ally 1'!D21=0,"",'CC Ally 1'!D21) -> weed | C20: =IF(A20=0,"",'CC Ally 1'!E21) -> 835296 | E20: =IFERROR(VLOOKUP(A20,'Liste des joueurs'!A18:D20321,2),"") -> 7 | F20: =IFERROR(VLOOKUP(A20,'Liste des joueurs'!A18:D20321,3),"") -> 128 | G20: 45.89117562 | H20: =IFERROR('Data Ally 1'!G18,"") -> 01:24:20
A21: =IF('CC Ally 1'!D22=0,"",'CC Ally 1'!D22) -> moontribe | C21: =IF(A21=0,"",'CC Ally 1'!E22) -> 831737 | E21: =IFERROR(VLOOKUP(A21,'Liste des joueurs'!A18:D20321,2),"") -> 37 | F21: =IFERROR(VLOOKUP(A21,'Liste des joueurs'!A18:D20321,3),"") -> 144 | G21: 35.80502758 | H21: =IFERROR('Data Ally 1'!G19,"") -> 01:06:44
A22: =IF('CC Ally 1'!D23=0,"",'CC Ally 1'!D23) -> Domino | C22: =IF(A22=0,"",'CC Ally 1'!E23) -> 714193 | E22: =IFERROR(VLOOKUP(A22,'Liste des joueurs'!A20:D20323,2),"") -> 10 | F22: =IFERROR(VLOOKUP(A22,'Liste des joueurs'!A20:D20323,3),"") -> 173 | G22: 6 | H22: =IFERROR('Data Ally 1'!G20,"") -> 00:11:40
A23: =IF('CC Ally 1'!D24=0,"",'CC Ally 1'!D24) -> maxbo | C23: =IF(A23=0,"",'CC Ally 1'!E24) -> 432627 | E23: =IFERROR(VLOOKUP(A23,'Liste des joueurs'!A20:D20323,2),"") -> 18 | F23: =IFERROR(VLOOKUP(A23,'Liste des joueurs'!A20:D20323,3),"") -> 179 | G23: 6.32455532 | H23: =IFERROR('Data Ally 1'!G21,"") -> 00:12:18
A24: =IF('CC Ally 1'!D25=0,"",'CC Ally 1'!D25) -> Zerek | C24: =IF(A24=0,"",'CC Ally 1'!E25) -> 308142 | E24: =IFERROR(VLOOKUP(A24,'Liste des joueurs'!A22:D20325,2),"") -> 9 | F24: =IFERROR(VLOOKUP(A24,'Liste des joueurs'!A22:D20325,3),"") -> 59 | G24: 114.2147101 | H24: =IFERROR('Data Ally 1'!G22,"") -> 03:11:04
A25: =IF('CC Ally 1'!D26=0,"",'CC Ally 1'!D26) -> Cyclope | C25: =IF(A25=0,"",'CC Ally 1'!E26) -> 189412 | E25: =IFERROR(VLOOKUP(A25,'Liste des joueurs'!A22:D20325,2),"") -> 11 | F25: =IFERROR(VLOOKUP(A25,'Liste des joueurs'!A22:D20325,3),"") -> 172 | G25: 5.099019514 | H25: =IFERROR('Data Ally 1'!G23,"") -> 00:09:56
A26: =IF('CC Ally 1'!D27=0,"",'CC Ally 1'!D27) -> _diablo_ | C26: =IF(A26=0,"",'CC Ally 1'!E27) -> 128104 | E26: =IFERROR(VLOOKUP(A26,'Liste des joueurs'!A24:D20327,2),"") ->  | F26: =IFERROR(VLOOKUP(A26,'Liste des joueurs'!A24:D20327,3),"") ->  | H26: =IFERROR('Data Ally 1'!G24,"") -> 
A27: =IF('CC Ally 1'!D28=0,"",'CC Ally 1'!D28) -> Prend-Ta-Claque | C27: =IF(A27=0,"",'CC Ally 1'!E28) -> 109540 | E27: =IFERROR(VLOOKUP(A27,'Liste des joueurs'!A24:D20327,2),"") -> 15 | F27: =IFERROR(VLOOKUP(A27,'Liste des joueurs'!A24:D20327,3),"") -> 20 | G27: 153.0032679 | H27: =IFERROR('Data Ally 1'!G25,"") -> 04:03:00
A28: =IF('CC Ally 1'!D29=0,"",'CC Ally 1'!D29) -> Formidabilis | C28: =IF(A28=0,"",'CC Ally 1'!E29) -> 79812 | E28: =IFERROR(VLOOKUP(A28,'Liste des joueurs'!A26:D20329,2),"") -> 17 | F28: =IFERROR(VLOOKUP(A28,'Liste des joueurs'!A26:D20329,3),"") -> 176 | G28: 3.16227766 | H28: =IFERROR('Data Ally 1'!G26,"") -> 00:06:11
A29: =IF('CC Ally 1'!D30=0,"",'CC Ally 1'!D30) -> ElTornado | C29: =IF(A29=0,"",'CC Ally 1'!E30) -> 64040 | E29: =IFERROR(VLOOKUP(A29,'Liste des joueurs'!A26:D20329,2),"") -> 45 | F29: =IFERROR(VLOOKUP(A29,'Liste des joueurs'!A26:D20329,3),"") -> 20 | G29: 155.724115 | H29: =IFERROR('Data Ally 1'!G27,"") -> 04:06:26
A30: =IF('CC Ally 1'!D31=0,"",'CC Ally 1'!D31) -> kandide | C30: =IF(A30=0,"",'CC Ally 1'!E31) -> 56685 | E30: =IFERROR(VLOOKUP(A30,'Liste des joueurs'!A28:D20331,2),"") -> 12 | F30: =IFERROR(VLOOKUP(A30,'Liste des joueurs'!A28:D20331,3),"") -> 55 | G30: 118.0677771 | H30: =IFERROR('Data Ally 1'!G28,"") -> 03:16:29
A31: =IF('CC Ally 1'!D32=0,"",'CC Ally 1'!D32) -> Slipstream | C31: =IF(A31=0,"",'CC Ally 1'!E32) -> 50109 | E31: =IFERROR(VLOOKUP(A31,'Liste des joueurs'!A28:D20331,2),"") -> 3 | F31: =IFERROR(VLOOKUP(A31,'Liste des joueurs'!A28:D20331,3),"") -> 173 | G31: 13 | H31: =IFERROR('Data Ally 1'!G29,"") -> 00:25:02
A32: =IF('CC Ally 1'!D33=0,"",'CC Ally 1'!D33) -> Charles_Francois_Xavier | C32: =IF(A32=0,"",'CC Ally 1'!E33) -> 430 | E32: =IFERROR(VLOOKUP(A32,'Liste des joueurs'!A30:D20333,2),"") -> 40 | F32: =IFERROR(VLOOKUP(A32,'Liste des joueurs'!A30:D20333,3),"") -> 211 | G32: 44.94441011 | H32: =IFERROR('Data Ally 1'!G30,"") -> 01:22:42
A33: =IF('CC Ally 1'!D34=0,"",'CC Ally 1'!D34) ->  | C33: =IF(A33=0,"",'CC Ally 1'!E34) -> 0 | E33: =IFERROR(VLOOKUP(A33,'Liste des joueurs'!A30:D20333,2),"") ->  | F33: =IFERROR(VLOOKUP(A33,'Liste des joueurs'!A30:D20333,3),"") ->  | H33: =IFERROR('Data Ally 1'!G31,"") -> 
A34: =IF('CC Ally 1'!D35=0,"",'CC Ally 1'!D35) ->  | C34: =IF(A34=0,"",'CC Ally 1'!E35) -> 0 | E34: =IFERROR(VLOOKUP(A34,'Liste des joueurs'!A32:D20335,2),"") ->  | F34: =IFERROR(VLOOKUP(A34,'Liste des joueurs'!A32:D20335,3),"") ->  | H34: =IFERROR('Data Ally 1'!G32,"") -> 
A35: =IF('CC Ally 1'!D36=0,"",'CC Ally 1'!D36) ->  | C35: =IF(A35=0,"",'CC Ally 1'!E36) -> 0 | E35: =IFERROR(VLOOKUP(A35,'Liste des joueurs'!A32:D20335,2),"") ->  | F35: =IFERROR(VLOOKUP(A35,'Liste des joueurs'!A32:D20335,3),"") ->  | H35: =IFERROR('Data Ally 1'!G33,"") -> 
A36: =IF('CC Ally 1'!D37=0,"",'CC Ally 1'!D37) ->  | C36: =IF(A36=0,"",'CC Ally 1'!E37) -> 0 | E36: =IFERROR(VLOOKUP(A36,'Liste des joueurs'!A34:D20337,2),"") ->  | F36: =IFERROR(VLOOKUP(A36,'Liste des joueurs'!A34:D20337,3),"") ->  | H36: =IFERROR('Data Ally 1'!G34,"") -> 
A37: =IF('CC Ally 1'!D38=0,"",'CC Ally 1'!D38) ->  | C37: =IF(A37=0,"",'CC Ally 1'!E38) -> 0 | E37: =IFERROR(VLOOKUP(A37,'Liste des joueurs'!A34:D20337,2),"") ->  | F37: =IFERROR(VLOOKUP(A37,'Liste des joueurs'!A34:D20337,3),"") ->  | H37: =IFERROR('Data Ally 1'!G35,"") -> 
A38: =IF('CC Ally 1'!D39=0,"",'CC Ally 1'!D39) ->  | C38: =IF(A38=0,"",'CC Ally 1'!E39) -> 0 | E38: =IFERROR(VLOOKUP(A38,'Liste des joueurs'!A36:D20339,2),"") ->  | F38: =IFERROR(VLOOKUP(A38,'Liste des joueurs'!A36:D20339,3),"") ->  | H38: =IFERROR('Data Ally 1'!G36,"") -> 
A39: =IF('CC Ally 1'!D40=0,"",'CC Ally 1'!D40) ->  | C39: =IF(A39=0,"",'CC Ally 1'!E40) -> 0 | E39: =IFERROR(VLOOKUP(A39,'Liste des joueurs'!A36:D20339,2),"") ->  | F39: =IFERROR(VLOOKUP(A39,'Liste des joueurs'!A36:D20339,3),"") ->  | H39: =IFERROR('Data Ally 1'!G37,"") -> 
A40: =IF('CC Ally 1'!D41=0,"",'CC Ally 1'!D41) ->  | C40: =IF(A40=0,"",'CC Ally 1'!E41) -> 0 | E40: =IFERROR(VLOOKUP(A40,'Liste des joueurs'!A38:D20341,2),"") ->  | F40: =IFERROR(VLOOKUP(A40,'Liste des joueurs'!A38:D20341,3),"") ->  | H40: =IFERROR('Data Ally 1'!G38,"") -> 
A41: =IF('CC Ally 1'!D42=0,"",'CC Ally 1'!D42) ->  | C41: =IF(A41=0,"",'CC Ally 1'!E42) -> 0 | E41: =IFERROR(VLOOKUP(A41,'Liste des joueurs'!A38:D20341,2),"") ->  | F41: =IFERROR(VLOOKUP(A41,'Liste des joueurs'!A38:D20341,3),"") ->  | H41: =IFERROR('Data Ally 1'!G39,"") -> 
A42: =IF('CC Ally 1'!D43=0,"",'CC Ally 1'!D43) ->  | C42: =IF(A42=0,"",'CC Ally 1'!E43) -> 0 | E42: =IFERROR(VLOOKUP(A42,'Liste des joueurs'!A40:D20343,2),"") ->  | F42: =IFERROR(VLOOKUP(A42,'Liste des joueurs'!A40:D20343,3),"") ->  | H42: =IFERROR('Data Ally 1'!G40,"") -> 
A43: =IF('CC Ally 1'!D44=0,"",'CC Ally 1'!D44) ->  | C43: =IF(A43=0,"",'CC Ally 1'!E44) -> 0 | E43: =IFERROR(VLOOKUP(A43,'Liste des joueurs'!A40:D20343,2),"") ->  | F43: =IFERROR(VLOOKUP(A43,'Liste des joueurs'!A40:D20343,3),"") ->  | H43: =IFERROR('Data Ally 1'!G41,"") -> 
A44: =IF('CC Ally 1'!D45=0,"",'CC Ally 1'!D45) ->  | C44: =IF(A44=0,"",'CC Ally 1'!E45) -> 0 | E44: =IFERROR(VLOOKUP(A44,'Liste des joueurs'!A42:D20345,2),"") ->  | F44: =IFERROR(VLOOKUP(A44,'Liste des joueurs'!A42:D20345,3),"") ->  | H44: =IFERROR('Data Ally 1'!G42,"") -> 
A45: =IF('CC Ally 1'!D46=0,"",'CC Ally 1'!D46) ->  | C45: =IF(A45=0,"",'CC Ally 1'!E46) -> 0 | E45: =IFERROR(VLOOKUP(A45,'Liste des joueurs'!A42:D20345,2),"") ->  | F45: =IFERROR(VLOOKUP(A45,'Liste des joueurs'!A42:D20345,3),"") ->  | H45: =IFERROR('Data Ally 1'!G43,"") -> 
A46: =IF('CC Ally 1'!D47=0,"",'CC Ally 1'!D47) ->  | C46: =IF(A46=0,"",'CC Ally 1'!E47) -> 0 | E46: =IFERROR(VLOOKUP(A46,'Liste des joueurs'!A44:D20347,2),"") ->  | F46: =IFERROR(VLOOKUP(A46,'Liste des joueurs'!A44:D20347,3),"") ->  | H46: =IFERROR('Data Ally 1'!G44,"") -> 
A47: =IF('CC Ally 1'!D48=0,"",'CC Ally 1'!D48) ->  | C47: =IF(A47=0,"",'CC Ally 1'!E48) -> 0 | E47: =IFERROR(VLOOKUP(A47,'Liste des joueurs'!A44:D20347,2),"") ->  | F47: =IFERROR(VLOOKUP(A47,'Liste des joueurs'!A44:D20347,3),"") ->  | H47: =IFERROR('Data Ally 1'!G45,"") -> 
A48: =IF('CC Ally 1'!D49=0,"",'CC Ally 1'!D49) ->  | C48: =IF(A48=0,"",'CC Ally 1'!E49) -> 0 | E48: =IFERROR(VLOOKUP(A48,'Liste des joueurs'!A46:D20349,2),"") ->  | F48: =IFERROR(VLOOKUP(A48,'Liste des joueurs'!A46:D20349,3),"") ->  | H48: =IFERROR('Data Ally 1'!G46,"") -> 
A49: =IF('CC Ally 1'!D50=0,"",'CC Ally 1'!D50) ->  | C49: =IF(A49=0,"",'CC Ally 1'!E50) -> 0 | E49: =IFERROR(VLOOKUP(A49,'Liste des joueurs'!A46:D20349,2),"") ->  | F49: =IFERROR(VLOOKUP(A49,'Liste des joueurs'!A46:D20349,3),"") ->  | H49: =IFERROR('Data Ally 1'!G47,"") -> 
A50: =IF('CC Ally 1'!D51=0,"",'CC Ally 1'!D51) ->  | C50: =IF(A50=0,"",'CC Ally 1'!E51) -> 0 | E50: =IFERROR(VLOOKUP(A50,'Liste des joueurs'!A48:D20351,2),"") ->  | F50: =IFERROR(VLOOKUP(A50,'Liste des joueurs'!A48:D20351,3),"") ->  | H50: =IFERROR('Data Ally 1'!G48,"") -> 
A51: =IF('CC Ally 1'!D52=0,"",'CC Ally 1'!D52) ->  | C51: =IF(A51=0,"",'CC Ally 1'!E52) -> 0 | E51: =IFERROR(VLOOKUP(A51,'Liste des joueurs'!A48:D20351,2),"") ->  | F51: =IFERROR(VLOOKUP(A51,'Liste des joueurs'!A48:D20351,3),"") ->  | H51: =IFERROR('Data Ally 1'!G49,"") -> 
A52: =IF('CC Ally 1'!D53=0,"",'CC Ally 1'!D53) ->  | C52: =IF(A52=0,"",'CC Ally 1'!E53) -> 0 | E52: =IFERROR(VLOOKUP(A52,'Liste des joueurs'!A50:D20353,2),"") ->  | F52: =IFERROR(VLOOKUP(A52,'Liste des joueurs'!A50:D20353,3),"") ->  | H52: =IFERROR('Data Ally 1'!G50,"") -> 
A53: =IF('CC Ally 1'!D54=0,"",'CC Ally 1'!D54) ->  | C53: =IF(A53=0,"",'CC Ally 1'!E54) -> 0 | E53: =IFERROR(VLOOKUP(A53,'Liste des joueurs'!A50:D20353,2),"") ->  | F53: =IFERROR(VLOOKUP(A53,'Liste des joueurs'!A50:D20353,3),"") ->  | H53: =IFERROR('Data Ally 1'!G51,"") -> 
A54: =IF('CC Ally 1'!D55=0,"",'CC Ally 1'!D55) ->  | C54: =IF(A54=0,"",'CC Ally 1'!E55) -> 0 | E54: =IFERROR(VLOOKUP(A54,'Liste des joueurs'!A52:D20355,2),"") ->  | F54: =IFERROR(VLOOKUP(A54,'Liste des joueurs'!A52:D20355,3),"") ->  | H54: =IFERROR('Data Ally 1'!G52,"") -> 
A55: =IF('CC Ally 1'!D56=0,"",'CC Ally 1'!D56) ->  | C55: =IF(A55=0,"",'CC Ally 1'!E56) -> 0 | E55: =IFERROR(VLOOKUP(A55,'Liste des joueurs'!A52:D20355,2),"") ->  | F55: =IFERROR(VLOOKUP(A55,'Liste des joueurs'!A52:D20355,3),"") ->  | H55: =IFERROR('Data Ally 1'!G53,"") -> 
A56: =IF('CC Ally 1'!D57=0,"",'CC Ally 1'!D57) ->  | C56: =IF(A56=0,"",'CC Ally 1'!E57) -> 0 | E56: =IFERROR(VLOOKUP(A56,'Liste des joueurs'!A54:D20357,2),"") ->  | F56: =IFERROR(VLOOKUP(A56,'Liste des joueurs'!A54:D20357,3),"") ->  | H56: =IFERROR('Data Ally 1'!G54,"") -> 
A57: =IF('CC Ally 1'!D58=0,"",'CC Ally 1'!D58) ->  | C57: =IF(A57=0,"",'CC Ally 1'!E58) -> 0 | E57: =IFERROR(VLOOKUP(A57,'Liste des joueurs'!A54:D20357,2),"") ->  | F57: =IFERROR(VLOOKUP(A57,'Liste des joueurs'!A54:D20357,3),"") ->  | H57: =IFERROR('Data Ally 1'!G55,"") -> 
A58: =IF('CC Ally 1'!D59=0,"",'CC Ally 1'!D59) ->  | C58: =IF(A58=0,"",'CC Ally 1'!E59) -> 0 | E58: =IFERROR(VLOOKUP(A58,'Liste des joueurs'!A56:D20359,2),"") ->  | F58: =IFERROR(VLOOKUP(A58,'Liste des joueurs'!A56:D20359,3),"") ->  | H58: =IFERROR('Data Ally 1'!G56,"") -> 
A59: =IF('CC Ally 1'!D60=0,"",'CC Ally 1'!D60) ->  | C59: =IF(A59=0,"",'CC Ally 1'!E60) -> 0 | E59: =IFERROR(VLOOKUP(A59,'Liste des joueurs'!A56:D20359,2),"") ->  | F59: =IFERROR(VLOOKUP(A59,'Liste des joueurs'!A56:D20359,3),"") ->  | H59: =IFERROR('Data Ally 1'!G57,"") -> 
A60: =IF('CC Ally 1'!D61=0,"",'CC Ally 1'!D61) ->  | C60: =IF(A60=0,"",'CC Ally 1'!E61) -> 0 | E60: =IFERROR(VLOOKUP(A60,'Liste des joueurs'!A58:D20361,2),"") ->  | F60: =IFERROR(VLOOKUP(A60,'Liste des joueurs'!A58:D20361,3),"") ->  | H60: =IFERROR('Data Ally 1'!G58,"") -> 
A61: =IF('CC Ally 1'!D62=0,"",'CC Ally 1'!D62) ->  | C61: =IF(A61=0,"",'CC Ally 1'!E62) -> 0 | E61: =IFERROR(VLOOKUP(A61,'Liste des joueurs'!A58:D20361,2),"") ->  | F61: =IFERROR(VLOOKUP(A61,'Liste des joueurs'!A58:D20361,3),"") ->  | H61: =IFERROR('Data Ally 1'!G59,"") -> 
A62: =IF('CC Ally 1'!D63=0,"",'CC Ally 1'!D63) ->  | C62: =IF(A62=0,"",'CC Ally 1'!E63) -> 0 | E62: =IFERROR(VLOOKUP(A62,'Liste des joueurs'!A60:D20363,2),"") ->  | F62: =IFERROR(VLOOKUP(A62,'Liste des joueurs'!A60:D20363,3),"") ->  | H62: =IFERROR('Data Ally 1'!G60,"") -> 
A63: =IF('CC Ally 1'!D64=0,"",'CC Ally 1'!D64) ->  | C63: =IF(A63=0,"",'CC Ally 1'!E64) -> 0 | E63: =IFERROR(VLOOKUP(A63,'Liste des joueurs'!A60:D20363,2),"") ->  | F63: =IFERROR(VLOOKUP(A63,'Liste des joueurs'!A60:D20363,3),"") ->  | H63: =IFERROR('Data Ally 1'!G61,"") -> 
A64: =IF('CC Ally 1'!D65=0,"",'CC Ally 1'!D65) ->  | C64: =IF(A64=0,"",'CC Ally 1'!E65) -> 0 | E64: =IFERROR(VLOOKUP(A64,'Liste des joueurs'!A62:D20365,2),"") ->  | F64: =IFERROR(VLOOKUP(A64,'Liste des joueurs'!A62:D20365,3),"") ->  | H64: =IFERROR('Data Ally 1'!G62,"") -> 
A65: =IF('CC Ally 1'!D66=0,"",'CC Ally 1'!D66) ->  | C65: =IF(A65=0,"",'CC Ally 1'!E66) -> 0 | E65: =IFERROR(VLOOKUP(A65,'Liste des joueurs'!A62:D20365,2),"") ->  | F65: =IFERROR(VLOOKUP(A65,'Liste des joueurs'!A62:D20365,3),"") ->  | H65: =IFERROR('Data Ally 1'!G63,"") -> 
A66: =IF('CC Ally 1'!D67=0,"",'CC Ally 1'!D67) ->  | C66: =IF(A66=0,"",'CC Ally 1'!E67) -> 0 | E66: =IFERROR(VLOOKUP(A66,'Liste des joueurs'!A64:D20367,2),"") ->  | F66: =IFERROR(VLOOKUP(A66,'Liste des joueurs'!A64:D20367,3),"") ->  | H66: =IFERROR('Data Ally 1'!G64,"") -> 
A67: =IF('CC Ally 1'!D68=0,"",'CC Ally 1'!D68) ->  | C67: =IF(A67=0,"",'CC Ally 1'!E68) -> 0 | E67: =IFERROR(VLOOKUP(A67,'Liste des joueurs'!A64:D20367,2),"") ->  | F67: =IFERROR(VLOOKUP(A67,'Liste des joueurs'!A64:D20367,3),"") ->  | H67: =IFERROR('Data Ally 1'!G65,"") -> 
A68: =IF('CC Ally 1'!D69=0,"",'CC Ally 1'!D69) ->  | C68: =IF(A68=0,"",'CC Ally 1'!E69) -> 0 | E68: =IFERROR(VLOOKUP(A68,'Liste des joueurs'!A66:D20369,2),"") ->  | F68: =IFERROR(VLOOKUP(A68,'Liste des joueurs'!A66:D20369,3),"") ->  | H68: =IFERROR('Data Ally 1'!G66,"") -> 
A69: =IF('CC Ally 1'!D70=0,"",'CC Ally 1'!D70) ->  | C69: =IF(A69=0,"",'CC Ally 1'!E70) -> 0 | E69: =IFERROR(VLOOKUP(A69,'Liste des joueurs'!A66:D20369,2),"") ->  | F69: =IFERROR(VLOOKUP(A69,'Liste des joueurs'!A66:D20369,3),"") ->  | H69: =IFERROR('Data Ally 1'!G67,"") -> 
A70: =IF('CC Ally 1'!D71=0,"",'CC Ally 1'!D71) ->  | C70: =IF(A70=0,"",'CC Ally 1'!E71) -> 0 | D70: =IF(AND((C70<=(3*$E$1)),(C70>=(0.5*$E$1))),"A PORTEE"," ") ->  | E70: =IFERROR(VLOOKUP(A70,'Liste des joueurs'!A68:D20371,2),"") ->  | F70: =IFERROR(VLOOKUP(A70,'Liste des joueurs'!A68:D20371,3),"") ->  | G70: =IFERROR(SQRT(($L$1-E70)^2+($L$2-F70)^2),"") ->  | H70: =IFERROR('Data Ally 1'!G68,"") -> 
A71: =IF('CC Ally 1'!D72=0,"",'CC Ally 1'!D72) ->  | C71: =IF(A71=0,"",'CC Ally 1'!E72) -> 0 | E71: =IFERROR(VLOOKUP(A71,'Liste des joueurs'!A68:D20371,2),"") ->  | F71: =IFERROR(VLOOKUP(A71,'Liste des joueurs'!A68:D20371,3),"") ->  | H71: =IFERROR('Data Ally 1'!G69,"") -> 
A72: =IF('CC Ally 1'!D73=0,"",'CC Ally 1'!D73) ->  | C72: =IF(A72=0,"",'CC Ally 1'!E73) -> 0 | E72: =IFERROR(VLOOKUP(A72,'Liste des joueurs'!A70:D20373,2),"") ->  | F72: =IFERROR(VLOOKUP(A72,'Liste des joueurs'!A70:D20373,3),"") ->  | H72: =IFERROR('Data Ally 1'!G70,"") -> 
A73: =IF('CC Ally 1'!D74=0,"",'CC Ally 1'!D74) ->  | C73: =IF(A73=0,"",'CC Ally 1'!E74) -> 0 | E73: =IFERROR(VLOOKUP(A73,'Liste des joueurs'!A70:D20373,2),"") ->  | F73: =IFERROR(VLOOKUP(A73,'Liste des joueurs'!A70:D20373,3),"") ->  | H73: =IFERROR('Data Ally 1'!G71,"") -> 
A74: =IF('CC Ally 1'!D75=0,"",'CC Ally 1'!D75) ->  | C74: =IF(A74=0,"",'CC Ally 1'!E75) -> 0 | E74: =IFERROR(VLOOKUP(A74,'Liste des joueurs'!A72:D20375,2),"") ->  | F74: =IFERROR(VLOOKUP(A74,'Liste des joueurs'!A72:D20375,3),"") ->  | H74: =IFERROR('Data Ally 1'!G72,"") -> 
A75: =IF('CC Ally 1'!D76=0,"",'CC Ally 1'!D76) ->  | C75: =IF(A75=0,"",'CC Ally 1'!E76) -> 0 | E75: =IFERROR(VLOOKUP(A75,'Liste des joueurs'!A72:D20375,2),"") ->  | F75: =IFERROR(VLOOKUP(A75,'Liste des joueurs'!A72:D20375,3),"") ->  | H75: =IFERROR('Data Ally 1'!G73,"") -> 
A76: =IF('CC Ally 1'!D77=0,"",'CC Ally 1'!D77) ->  | C76: =IF(A76=0,"",'CC Ally 1'!E77) -> 0 | E76: =IFERROR(VLOOKUP(A76,'Liste des joueurs'!A74:D20377,2),"") ->  | F76: =IFERROR(VLOOKUP(A76,'Liste des joueurs'!A74:D20377,3),"") ->  | H76: =IFERROR('Data Ally 1'!G74,"") -> 
A77: =IF('CC Ally 1'!D78=0,"",'CC Ally 1'!D78) ->  | C77: =IF(A77=0,"",'CC Ally 1'!E78) -> 0 | E77: =IFERROR(VLOOKUP(A77,'Liste des joueurs'!A74:D20377,2),"") ->  | F77: =IFERROR(VLOOKUP(A77,'Liste des joueurs'!A74:D20377,3),"") ->  | H77: =IFERROR('Data Ally 1'!G75,"") -> 
A78: =IF('CC Ally 1'!D79=0,"",'CC Ally 1'!D79) ->  | C78: =IF(A78=0,"",'CC Ally 1'!E79) -> 0 | E78: =IFERROR(VLOOKUP(A78,'Liste des joueurs'!A76:D20379,2),"") ->  | F78: =IFERROR(VLOOKUP(A78,'Liste des joueurs'!A76:D20379,3),"") ->  | H78: =IFERROR('Data Ally 1'!G76,"") -> 
A79: =IF('CC Ally 1'!D80=0,"",'CC Ally 1'!D80) ->  | C79: =IF(A79=0,"",'CC Ally 1'!E80) -> 0 | E79: =IFERROR(VLOOKUP(A79,'Liste des joueurs'!A76:D20379,2),"") ->  | F79: =IFERROR(VLOOKUP(A79,'Liste des joueurs'!A76:D20379,3),"") ->  | H79: =IFERROR('Data Ally 1'!G77,"") -> 
A80: =IF('CC Ally 1'!D81=0,"",'CC Ally 1'!D81) ->  | C80: =IF(A80=0,"",'CC Ally 1'!E81) -> 0 | E80: =IFERROR(VLOOKUP(A80,'Liste des joueurs'!A78:D20381,2),"") ->  | F80: =IFERROR(VLOOKUP(A80,'Liste des joueurs'!A78:D20381,3),"") ->  | H80: =IFERROR('Data Ally 1'!G78,"") -> 
A81: =IF('CC Ally 1'!D82=0,"",'CC Ally 1'!D82) ->  | C81: =IF(A81=0,"",'CC Ally 1'!E82) -> 0 | E81: =IFERROR(VLOOKUP(A81,'Liste des joueurs'!A78:D20381,2),"") ->  | F81: =IFERROR(VLOOKUP(A81,'Liste des joueurs'!A78:D20381,3),"") ->  | H81: =IFERROR('Data Ally 1'!G79,"") -> 
A82: =IF('CC Ally 1'!D83=0,"",'CC Ally 1'!D83) ->  | C82: =IF(A82=0,"",'CC Ally 1'!E83) -> 0 | E82: =IFERROR(VLOOKUP(A82,'Liste des joueurs'!A80:D20383,2),"") ->  | F82: =IFERROR(VLOOKUP(A82,'Liste des joueurs'!A80:D20383,3),"") ->  | H82: =IFERROR('Data Ally 1'!G80,"") -> 
A83: =IF('CC Ally 1'!D84=0,"",'CC Ally 1'!D84) ->  | C83: =IF(A83=0,"",'CC Ally 1'!E84) -> 0 | E83: =IFERROR(VLOOKUP(A83,'Liste des joueurs'!A80:D20383,2),"") ->  | F83: =IFERROR(VLOOKUP(A83,'Liste des joueurs'!A80:D20383,3),"") ->  | H83: =IFERROR('Data Ally 1'!G81,"") -> 
A84: =IF('CC Ally 1'!D85=0,"",'CC Ally 1'!D85) ->  | C84: =IF(A84=0,"",'CC Ally 1'!E85) -> 0 | E84: =IFERROR(VLOOKUP(A84,'Liste des joueurs'!A82:D20385,2),"") ->  | F84: =IFERROR(VLOOKUP(A84,'Liste des joueurs'!A82:D20385,3),"") ->  | H84: =IFERROR('Data Ally 1'!G82,"") -> 
A85: =IF('CC Ally 1'!D86=0,"",'CC Ally 1'!D86) ->  | C85: =IF(A85=0,"",'CC Ally 1'!E86) -> 0 | E85: =IFERROR(VLOOKUP(A85,'Liste des joueurs'!A82:D20385,2),"") ->  | F85: =IFERROR(VLOOKUP(A85,'Liste des joueurs'!A82:D20385,3),"") ->  | H85: =IFERROR('Data Ally 1'!G83,"") -> 
A86: =IF('CC Ally 1'!D87=0,"",'CC Ally 1'!D87) ->  | C86: =IF(A86=0,"",'CC Ally 1'!E87) -> 0 | E86: =IFERROR(VLOOKUP(A86,'Liste des joueurs'!A84:D20387,2),"") ->  | F86: =IFERROR(VLOOKUP(A86,'Liste des joueurs'!A84:D20387,3),"") ->  | H86: =IFERROR('Data Ally 1'!G84,"") -> 
A87: =IF('CC Ally 1'!D88=0,"",'CC Ally 1'!D88) ->  | C87: =IF(A87=0,"",'CC Ally 1'!E88) -> 0 | E87: =IFERROR(VLOOKUP(A87,'Liste des joueurs'!A84:D20387,2),"") ->  | F87: =IFERROR(VLOOKUP(A87,'Liste des joueurs'!A84:D20387,3),"") ->  | H87: =IFERROR('Data Ally 1'!G85,"") -> 
A88: =IF('CC Ally 1'!D89=0,"",'CC Ally 1'!D89) ->  | C88: =IF(A88=0,"",'CC Ally 1'!E89) -> 0 | E88: =IFERROR(VLOOKUP(A88,'Liste des joueurs'!A86:D20389,2),"") ->  | F88: =IFERROR(VLOOKUP(A88,'Liste des joueurs'!A86:D20389,3),"") ->  | H88: =IFERROR('Data Ally 1'!G86,"") -> 
A89: =IF('CC Ally 1'!D90=0,"",'CC Ally 1'!D90) ->  | C89: =IF(A89=0,"",'CC Ally 1'!E90) -> 0 | E89: =IFERROR(VLOOKUP(A89,'Liste des joueurs'!A86:D20389,2),"") ->  | F89: =IFERROR(VLOOKUP(A89,'Liste des joueurs'!A86:D20389,3),"") ->  | H89: =IFERROR('Data Ally 1'!G87,"") -> 
A90: =IF('CC Ally 1'!D91=0,"",'CC Ally 1'!D91) ->  | C90: =IF(A90=0,"",'CC Ally 1'!E91) -> 0 | E90: =IFERROR(VLOOKUP(A90,'Liste des joueurs'!A88:D20391,2),"") ->  | F90: =IFERROR(VLOOKUP(A90,'Liste des joueurs'!A88:D20391,3),"") ->  | H90: =IFERROR('Data Ally 1'!G88,"") -> 
A91: =IF('CC Ally 1'!D92=0,"",'CC Ally 1'!D92) ->  | C91: =IF(A91=0,"",'CC Ally 1'!E92) -> 0 | E91: =IFERROR(VLOOKUP(A91,'Liste des joueurs'!A88:D20391,2),"") ->  | F91: =IFERROR(VLOOKUP(A91,'Liste des joueurs'!A88:D20391,3),"") ->  | H91: =IFERROR('Data Ally 1'!G89,"") -> 
A92: =IF('CC Ally 1'!D93=0,"",'CC Ally 1'!D93) ->  | C92: =IF(A92=0,"",'CC Ally 1'!E93) -> 0 | E92: =IFERROR(VLOOKUP(A92,'Liste des joueurs'!A90:D20393,2),"") ->  | F92: =IFERROR(VLOOKUP(A92,'Liste des joueurs'!A90:D20393,3),"") ->  | H92: =IFERROR('Data Ally 1'!G90,"") -> 
A93: =IF('CC Ally 1'!D94=0,"",'CC Ally 1'!D94) ->  | C93: =IF(A93=0,"",'CC Ally 1'!E94) -> 0 | E93: =IFERROR(VLOOKUP(A93,'Liste des joueurs'!A90:D20393,2),"") ->  | F93: =IFERROR(VLOOKUP(A93,'Liste des joueurs'!A90:D20393,3),"") ->  | H93: =IFERROR('Data Ally 1'!G91,"") -> 
A94: =IF('CC Ally 1'!D95=0,"",'CC Ally 1'!D95) ->  | C94: =IF(A94=0,"",'CC Ally 1'!E95) -> 0 | E94: =IFERROR(VLOOKUP(A94,'Liste des joueurs'!A92:D20395,2),"") ->  | F94: =IFERROR(VLOOKUP(A94,'Liste des joueurs'!A92:D20395,3),"") ->  | H94: =IFERROR('Data Ally 1'!G92,"") -> 
A95: =IF('CC Ally 1'!D96=0,"",'CC Ally 1'!D96) ->  | C95: =IF(A95=0,"",'CC Ally 1'!E96) -> 0 | E95: =IFERROR(VLOOKUP(A95,'Liste des joueurs'!A92:D20395,2),"") ->  | F95: =IFERROR(VLOOKUP(A95,'Liste des joueurs'!A92:D20395,3),"") ->  | H95: =IFERROR('Data Ally 1'!G93,"") -> 
A96: =IF('CC Ally 1'!D97=0,"",'CC Ally 1'!D97) ->  | C96: =IF(A96=0,"",'CC Ally 1'!E97) -> 0 | E96: =IFERROR(VLOOKUP(A96,'Liste des joueurs'!A94:D20397,2),"") ->  | F96: =IFERROR(VLOOKUP(A96,'Liste des joueurs'!A94:D20397,3),"") ->  | H96: =IFERROR('Data Ally 1'!G94,"") -> 
A97: =IF('CC Ally 1'!D98=0,"",'CC Ally 1'!D98) ->  | C97: =IF(A97=0,"",'CC Ally 1'!E98) -> 0 | E97: =IFERROR(VLOOKUP(A97,'Liste des joueurs'!A94:D20397,2),"") ->  | F97: =IFERROR(VLOOKUP(A97,'Liste des joueurs'!A94:D20397,3),"") ->  | H97: =IFERROR('Data Ally 1'!G95,"") -> 
A98: =IF('CC Ally 1'!D99=0,"",'CC Ally 1'!D99) ->  | C98: =IF(A98=0,"",'CC Ally 1'!E99) -> 0 | E98: =IFERROR(VLOOKUP(A98,'Liste des joueurs'!A96:D20399,2),"") ->  | F98: =IFERROR(VLOOKUP(A98,'Liste des joueurs'!A96:D20399,3),"") ->  | H98: =IFERROR('Data Ally 1'!G96,"") -> 
A99: =IF('CC Ally 1'!D100=0,"",'CC Ally 1'!D100) ->  | C99: =IF(A99=0,"",'CC Ally 1'!E100) -> 0 | E99: =IFERROR(VLOOKUP(A99,'Liste des joueurs'!A96:D20399,2),"") ->  | F99: =IFERROR(VLOOKUP(A99,'Liste des joueurs'!A96:D20399,3),"") ->  | H99: =IFERROR('Data Ally 1'!G97,"") -> 
A100: =IF('CC Ally 1'!D101=0,"",'CC Ally 1'!D101) ->  | C100: =IF(A100=0,"",'CC Ally 1'!E101) -> 0 | E100: =IFERROR(VLOOKUP(A100,'Liste des joueurs'!A98:D20401,2),"") ->  | F100: =IFERROR(VLOOKUP(A100,'Liste des joueurs'!A98:D20401,3),"") ->  | H100: =IFERROR('Data Ally 1'!G98,"") -> 
A101: ,

Sheet Alliance 2
A1: Dernière MaJ | B1: =TODAY() -> 2013-04-16 | D1: Mon tdc | E1: =Moi!C9 -> 239462551 | G1: VA | H1: =Moi!C7 -> 26 | J1: Pos perso: | K1: x | L1: =Moi!C4 -> 16
K2: y | L2: =Moi!C5 -> 173
B3: MAP | C3: TDC | D3: A portée ? | E3: x | F3: y | G3: Distance | H3: Temps
A4: =IF('CC Ally 2'!D5=0,"",'CC Ally 2'!D5) ->  | C4: =IF(A4=0,"",'CC Ally 2'!E5) -> 0 | D4: =IF(AND((C4<=(3*$E$1)),(C4>=(0.5*$E$1))),"A PORTEE"," ") ->  | E4: =IFERROR(VLOOKUP(A4,'Liste des joueurs'!A2:D20305,2),"") ->  | F4: =IFERROR(VLOOKUP(A4,'Liste des joueurs'!A2:D20305,3),"") ->  | G4: =IFERROR(SQRT(($L$1-E4)^2+($L$2-F4)^2),"") ->  | H4: =IFERROR('Data Ally 2'!G2,"") -> 
A5: =IF('CC Ally 2'!D6=0,"",'CC Ally 2'!D6) ->  | C5: =IF(A5=0,"",'CC Ally 2'!E6) -> 0 | D5: =IF(AND((C5<=(3*$E$1)),(C5>=(0.5*$E$1))),"A PORTEE"," ") ->  | E5: =IFERROR(VLOOKUP(A5,'Liste des joueurs'!A2:D20305,2),"") ->  | F5: =IFERROR(VLOOKUP(A5,'Liste des joueurs'!A2:D20305,3),"") ->  | G5: =IFERROR(SQRT(($L$1-E5)^2+($L$2-F5)^2),"") ->  | H5: =IFERROR('Data Ally 2'!G3,"") -> 
A6: =IF('CC Ally 2'!D7=0,"",'CC Ally 2'!D7) ->  | C6: =IF(A6=0,"",'CC Ally 2'!E7) -> 0 | D6: =IF(AND((C6<=(3*$E$1)),(C6>=(0.5*$E$1))),"A PORTEE"," ") ->  | E6: =IFERROR(VLOOKUP(A6,'Liste des joueurs'!A4:D20307,2),"") ->  | F6: =IFERROR(VLOOKUP(A6,'Liste des joueurs'!A4:D20307,3),"") ->  | G6: =IFERROR(SQRT(($L$1-E6)^2+($L$2-F6)^2),"") ->  | H6: =IFERROR('Data Ally 2'!G4,"") -> 
A7: =IF('CC Ally 2'!D8=0,"",'CC Ally 2'!D8) ->  | C7: =IF(A7=0,"",'CC Ally 2'!E8) -> 0 | E7: =IFERROR(VLOOKUP(A7,'Liste des joueurs'!A4:D20307,2),"") ->  | F7: =IFERROR(VLOOKUP(A7,'Liste des joueurs'!A4:D20307,3),"") ->  | H7: =IFERROR('Data Ally 2'!G5,"") -> 
A8: =IF('CC Ally 2'!D9=0,"",'CC Ally 2'!D9) ->  | C8: =IF(A8=0,"",'CC Ally 2'!E9) -> 0 | E8: =IFERROR(VLOOKUP(A8,'Liste des joueurs'!A6:D20309,2),"") ->  | F8: =IFERROR(VLOOKUP(A8,'Liste des joueurs'!A6:D20309,3),"") ->  | H8: =IFERROR('Data Ally 2'!G6,"") -> 
A9: =IF('CC Ally 2'!D10=0,"",'CC Ally 2'!D10) ->  | C9: =IF(A9=0,"",'CC Ally 2'!E10) -> 0 | E9: =IFERROR(VLOOKUP(A9,'Liste des joueurs'!A6:D20309,2),"") ->  | F9: =IFERROR(VLOOKUP(A9,'Liste des joueurs'!A6:D20309,3),"") ->  | H9: =IFERROR('Data Ally 2'!G7,"") -> 
A10: =IF('CC Ally 2'!D11=0,"",'CC Ally 2'!D11) ->  | C10: =IF(A10=0,"",'CC Ally 2'!E11) -> 0 | E10: =IFERROR(VLOOKUP(A10,'Liste des joueurs'!A8:D20311,2),"") ->  | F10: =IFERROR(VLOOKUP(A10,'Liste des joueurs'!A8:D20311,3),"") ->  | H10: =IFERROR('Data Ally 2'!G8,"") -> 
A11: =IF('CC Ally 2'!D12=0,"",'CC Ally 2'!D12) ->  | C11: =IF(A11=0,"",'CC Ally 2'!E12) -> 0 | E11: =IFERROR(VLOOKUP(A11,'Liste des joueurs'!A8:D20311,2),"") ->  | F11: =IFERROR(VLOOKUP(A11,'Liste des joueurs'!A8:D20311,3),"") ->  | H11: =IFERROR('Data Ally 2'!G9,"") -> 
A12: =IF('CC Ally 2'!D13=0,"",'CC Ally 2'!D13) ->  | C12: =IF(A12=0,"",'CC Ally 2'!E13) -> 0 | E12: =IFERROR(VLOOKUP(A12,'Liste des joueurs'!A10:D20313,2),"") ->  | F12: =IFERROR(VLOOKUP(A12,'Liste des joueurs'!A10:D20313,3),"") ->  | H12: =IFERROR('Data Ally 2'!G10,"") -> 
A13: =IF('CC Ally 2'!D14=0,"",'CC Ally 2'!D14) ->  | C13: =IF(A13=0,"",'CC Ally 2'!E14) -> 0 | E13: =IFERROR(VLOOKUP(A13,'Liste des joueurs'!A10:D20313,2),"") ->  | F13: =IFERROR(VLOOKUP(A13,'Liste des joueurs'!A10:D20313,3),"") ->  | H13: =IFERROR('Data Ally 2'!G11,"") -> 
A14: =IF('CC Ally 2'!D15=0,"",'CC Ally 2'!D15) ->  | C14: =IF(A14=0,"",'CC Ally 2'!E15) -> 0 | E14: =IFERROR(VLOOKUP(A14,'Liste des joueurs'!A12:D20315,2),"") ->  | F14: =IFERROR(VLOOKUP(A14,'Liste des joueurs'!A12:D20315,3),"") ->  | H14: =IFERROR('Data Ally 2'!G12,"") -> 
A15: =IF('CC Ally 2'!D16=0,"",'CC Ally 2'!D16) ->  | C15: =IF(A15=0,"",'CC Ally 2'!E16) -> 0 | E15: =IFERROR(VLOOKUP(A15,'Liste des joueurs'!A12:D20315,2),"") ->  | F15: =IFERROR(VLOOKUP(A15,'Liste des joueurs'!A12:D20315,3),"") ->  | H15: =IFERROR('Data Ally 2'!G13,"") -> 
A16: =IF('CC Ally 2'!D17=0,"",'CC Ally 2'!D17) ->  | C16: =IF(A16=0,"",'CC Ally 2'!E17) -> 0 | E16: =IFERROR(VLOOKUP(A16,'Liste des joueurs'!A14:D20317,2),"") ->  | F16: =IFERROR(VLOOKUP(A16,'Liste des joueurs'!A14:D20317,3),"") ->  | H16: =IFERROR('Data Ally 2'!G14,"") -> 
A17: =IF('CC Ally 2'!D18=0,"",'CC Ally 2'!D18) ->  | C17: =IF(A17=0,"",'CC Ally 2'!E18) -> 0 | E17: =IFERROR(VLOOKUP(A17,'Liste des joueurs'!A14:D20317,2),"") ->  | F17: =IFERROR(VLOOKUP(A17,'Liste des joueurs'!A14:D20317,3),"") ->  | H17: =IFERROR('Data Ally 2'!G15,"") -> 
A18: =IF('CC Ally 2'!D19=0,"",'CC Ally 2'!D19) ->  | C18: =IF(A18=0,"",'CC Ally 2'!E19) -> 0 | E18: =IFERROR(VLOOKUP(A18,'Liste des joueurs'!A16:D20319,2),"") ->  | F18: =IFERROR(VLOOKUP(A18,'Liste des joueurs'!A16:D20319,3),"") ->  | H18: =IFERROR('Data Ally 2'!G16,"") -> 
A19: =IF('CC Ally 2'!D20=0,"",'CC Ally 2'!D20) ->  | C19: =IF(A19=0,"",'CC Ally 2'!E20) -> 0 | E19: =IFERROR(VLOOKUP(A19,'Liste des joueurs'!A16:D20319,2),"") ->  | F19: =IFERROR(VLOOKUP(A19,'Liste des joueurs'!A16:D20319,3),"") ->  | H19: =IFERROR('Data Ally 2'!G17,"") -> 
A20: =IF('CC Ally 2'!D21=0,"",'CC Ally 2'!D21) ->  | C20: =IF(A20=0,"",'CC Ally 2'!E21) -> 0 | E20: =IFERROR(VLOOKUP(A20,'Liste des joueurs'!A18:D20321,2),"") ->  | F20: =IFERROR(VLOOKUP(A20,'Liste des joueurs'!A18:D20321,3),"") ->  | H20: =IFERROR('Data Ally 2'!G18,"") -> 
A21: =IF('CC Ally 2'!D22=0,"",'CC Ally 2'!D22) ->  | C21: =IF(A21=0,"",'CC Ally 2'!E22) -> 0 | E21: =IFERROR(VLOOKUP(A21,'Liste des joueurs'!A18:D20321,2),"") ->  | F21: =IFERROR(VLOOKUP(A21,'Liste des joueurs'!A18:D20321,3),"") ->  | H21: =IFERROR('Data Ally 2'!G19,"") -> 
A22: =IF('CC Ally 2'!D23=0,"",'CC Ally 2'!D23) ->  | C22: =IF(A22=0,"",'CC Ally 2'!E23) -> 0 | E22: =IFERROR(VLOOKUP(A22,'Liste des joueurs'!A20:D20323,2),"") ->  | F22: =IFERROR(VLOOKUP(A22,'Liste des joueurs'!A20:D20323,3),"") ->  | H22: =IFERROR('Data Ally 2'!G20,"") -> 
A23: =IF('CC Ally 2'!D24=0,"",'CC Ally 2'!D24) ->  | C23: =IF(A23=0,"",'CC Ally 2'!E24) -> 0 | E23: =IFERROR(VLOOKUP(A23,'Liste des joueurs'!A20:D20323,2),"") ->  | F23: =IFERROR(VLOOKUP(A23,'Liste des joueurs'!A20:D20323,3),"") ->  | H23: =IFERROR('Data Ally 2'!G21,"") -> 
A24: =IF('CC Ally 2'!D25=0,"",'CC Ally 2'!D25) ->  | C24: =IF(A24=0,"",'CC Ally 2'!E25) -> 0 | E24: =IFERROR(VLOOKUP(A24,'Liste des joueurs'!A22:D20325,2),"") ->  | F24: =IFERROR(VLOOKUP(A24,'Liste des joueurs'!A22:D20325,3),"") ->  | H24: =IFERROR('Data Ally 2'!G22,"") -> 
A25: =IF('CC Ally 2'!D26=0,"",'CC Ally 2'!D26) ->  | C25: =IF(A25=0,"",'CC Ally 2'!E26) -> 0 | E25: =IFERROR(VLOOKUP(A25,'Liste des joueurs'!A22:D20325,2),"") ->  | F25: =IFERROR(VLOOKUP(A25,'Liste des joueurs'!A22:D20325,3),"") ->  | H25: =IFERROR('Data Ally 2'!G23,"") -> 
A26: =IF('CC Ally 2'!D27=0,"",'CC Ally 2'!D27) ->  | C26: =IF(A26=0,"",'CC Ally 2'!E27) -> 0 | E26: =IFERROR(VLOOKUP(A26,'Liste des joueurs'!A24:D20327,2),"") ->  | F26: =IFERROR(VLOOKUP(A26,'Liste des joueurs'!A24:D20327,3),"") ->  | H26: =IFERROR('Data Ally 2'!G24,"") -> 
A27: =IF('CC Ally 2'!D28=0,"",'CC Ally 2'!D28) ->  | C27: =IF(A27=0,"",'CC Ally 2'!E28) -> 0 | E27: =IFERROR(VLOOKUP(A27,'Liste des joueurs'!A24:D20327,2),"") ->  | F27: =IFERROR(VLOOKUP(A27,'Liste des joueurs'!A24:D20327,3),"") ->  | H27: =IFERROR('Data Ally 2'!G25,"") -> 
A28: =IF('CC Ally 2'!D29=0,"",'CC Ally 2'!D29) ->  | C28: =IF(A28=0,"",'CC Ally 2'!E29) -> 0 | E28: =IFERROR(VLOOKUP(A28,'Liste des joueurs'!A26:D20329,2),"") ->  | F28: =IFERROR(VLOOKUP(A28,'Liste des joueurs'!A26:D20329,3),"") ->  | H28: =IFERROR('Data Ally 2'!G26,"") -> 
A29: =IF('CC Ally 2'!D30=0,"",'CC Ally 2'!D30) ->  | C29: =IF(A29=0,"",'CC Ally 2'!E30) -> 0 | E29: =IFERROR(VLOOKUP(A29,'Liste des joueurs'!A26:D20329,2),"") ->  | F29: =IFERROR(VLOOKUP(A29,'Liste des joueurs'!A26:D20329,3),"") ->  | H29: =IFERROR('Data Ally 2'!G27,"") -> 
A30: =IF('CC Ally 2'!D31=0,"",'CC Ally 2'!D31) ->  | C30: =IF(A30=0,"",'CC Ally 2'!E31) -> 0 | E30: =IFERROR(VLOOKUP(A30,'Liste des joueurs'!A28:D20331,2),"") ->  | F30: =IFERROR(VLOOKUP(A30,'Liste des joueurs'!A28:D20331,3),"") ->  | H30: =IFERROR('Data Ally 2'!G28,"") -> 
A31: =IF('CC Ally 2'!D32=0,"",'CC Ally 2'!D32) ->  | C31: =IF(A31=0,"",'CC Ally 2'!E32) -> 0 | E31: =IFERROR(VLOOKUP(A31,'Liste des joueurs'!A28:D20331,2),"") ->  | F31: =IFERROR(VLOOKUP(A31,'Liste des joueurs'!A28:D20331,3),"") ->  | H31: =IFERROR('Data Ally 2'!G29,"") -> 
A32: =IF('CC Ally 2'!D33=0,"",'CC Ally 2'!D33) ->  | C32: =IF(A32=0,"",'CC Ally 2'!E33) -> 0 | E32: =IFERROR(VLOOKUP(A32,'Liste des joueurs'!A30:D20333,2),"") ->  | F32: =IFERROR(VLOOKUP(A32,'Liste des joueurs'!A30:D20333,3),"") ->  | H32: =IFERROR('Data Ally 2'!G30,"") -> 
A33: =IF('CC Ally 2'!D34=0,"",'CC Ally 2'!D34) ->  | C33: =IF(A33=0,"",'CC Ally 2'!E34) -> 0 | E33: =IFERROR(VLOOKUP(A33,'Liste des joueurs'!A30:D20333,2),"") ->  | F33: =IFERROR(VLOOKUP(A33,'Liste des joueurs'!A30:D20333,3),"") ->  | H33: =IFERROR('Data Ally 2'!G31,"") -> 
A34: =IF('CC Ally 2'!D35=0,"",'CC Ally 2'!D35) ->  | C34: =IF(A34=0,"",'CC Ally 2'!E35) -> 0 | E34: =IFERROR(VLOOKUP(A34,'Liste des joueurs'!A32:D20335,2),"") ->  | F34: =IFERROR(VLOOKUP(A34,'Liste des joueurs'!A32:D20335,3),"") ->  | H34: =IFERROR('Data Ally 2'!G32,"") -> 
A35: =IF('CC Ally 2'!D36=0,"",'CC Ally 2'!D36) ->  | C35: =IF(A35=0,"",'CC Ally 2'!E36) -> 0 | E35: =IFERROR(VLOOKUP(A35,'Liste des joueurs'!A32:D20335,2),"") ->  | F35: =IFERROR(VLOOKUP(A35,'Liste des joueurs'!A32:D20335,3),"") ->  | H35: =IFERROR('Data Ally 2'!G33,"") -> 
A36: =IF('CC Ally 2'!D37=0,"",'CC Ally 2'!D37) ->  | C36: =IF(A36=0,"",'CC Ally 2'!E37) -> 0 | E36: =IFERROR(VLOOKUP(A36,'Liste des joueurs'!A34:D20337,2),"") ->  | F36: =IFERROR(VLOOKUP(A36,'Liste des joueurs'!A34:D20337,3),"") ->  | H36: =IFERROR('Data Ally 2'!G34,"") -> 
A37: =IF('CC Ally 2'!D38=0,"",'CC Ally 2'!D38) ->  | C37: =IF(A37=0,"",'CC Ally 2'!E38) -> 0 | E37: =IFERROR(VLOOKUP(A37,'Liste des joueurs'!A34:D20337,2),"") ->  | F37: =IFERROR(VLOOKUP(A37,'Liste des joueurs'!A34:D20337,3),"") ->  | H37: =IFERROR('Data Ally 2'!G35,"") -> 
A38: =IF('CC Ally 2'!D39=0,"",'CC Ally 2'!D39) ->  | C38: =IF(A38=0,"",'CC Ally 2'!E39) -> 0 | E38: =IFERROR(VLOOKUP(A38,'Liste des joueurs'!A36:D20339,2),"") ->  | F38: =IFERROR(VLOOKUP(A38,'Liste des joueurs'!A36:D20339,3),"") ->  | H38: =IFERROR('Data Ally 2'!G36,"") -> 
A39: =IF('CC Ally 2'!D40=0,"",'CC Ally 2'!D40) ->  | C39: =IF(A39=0,"",'CC Ally 2'!E40) -> 0 | E39: =IFERROR(VLOOKUP(A39,'Liste des joueurs'!A36:D20339,2),"") ->  | F39: =IFERROR(VLOOKUP(A39,'Liste des joueurs'!A36:D20339,3),"") ->  | H39: =IFERROR('Data Ally 2'!G37,"") -> 
A40: =IF('CC Ally 2'!D41=0,"",'CC Ally 2'!D41) ->  | C40: =IF(A40=0,"",'CC Ally 2'!E41) -> 0 | E40: =IFERROR(VLOOKUP(A40,'Liste des joueurs'!A38:D20341,2),"") ->  | F40: =IFERROR(VLOOKUP(A40,'Liste des joueurs'!A38:D20341,3),"") ->  | H40: =IFERROR('Data Ally 2'!G38,"") -> 
A41: =IF('CC Ally 2'!D42=0,"",'CC Ally 2'!D42) ->  | C41: =IF(A41=0,"",'CC Ally 2'!E42) -> 0 | E41: =IFERROR(VLOOKUP(A41,'Liste des joueurs'!A38:D20341,2),"") ->  | F41: =IFERROR(VLOOKUP(A41,'Liste des joueurs'!A38:D20341,3),"") ->  | H41: =IFERROR('Data Ally 2'!G39,"") -> 
A42: =IF('CC Ally 2'!D43=0,"",'CC Ally 2'!D43) ->  | C42: =IF(A42=0,"",'CC Ally 2'!E43) -> 0 | E42: =IFERROR(VLOOKUP(A42,'Liste des joueurs'!A40:D20343,2),"") ->  | F42: =IFERROR(VLOOKUP(A42,'Liste des joueurs'!A40:D20343,3),"") ->  | H42: =IFERROR('Data Ally 2'!G40,"") -> 
A43: =IF('CC Ally 2'!D44=0,"",'CC Ally 2'!D44) ->  | C43: =IF(A43=0,"",'CC Ally 2'!E44) -> 0 | E43: =IFERROR(VLOOKUP(A43,'Liste des joueurs'!A40:D20343,2),"") ->  | F43: =IFERROR(VLOOKUP(A43,'Liste des joueurs'!A40:D20343,3),"") ->  | H43: =IFERROR('Data Ally 2'!G41,"") -> 
A44: =IF('CC Ally 2'!D45=0,"",'CC Ally 2'!D45) ->  | C44: =IF(A44=0,"",'CC Ally 2'!E45) -> 0 | E44: =IFERROR(VLOOKUP(A44,'Liste des joueurs'!A42:D20345,2),"") ->  | F44: =IFERROR(VLOOKUP(A44,'Liste des joueurs'!A42:D20345,3),"") ->  | H44: =IFERROR('Data Ally 2'!G42,"") -> 
A45: =IF('CC Ally 2'!D46=0,"",'CC Ally 2'!D46) ->  | C45: =IF(A45=0,"",'CC Ally 2'!E46) -> 0 | E45: =IFERROR(VLOOKUP(A45,'Liste des joueurs'!A42:D20345,2),"") ->  | F45: =IFERROR(VLOOKUP(A45,'Liste des joueurs'!A42:D20345,3),"") ->  | H45: =IFERROR('Data Ally 2'!G43,"") -> 
A46: =IF('CC Ally 2'!D47=0,"",'CC Ally 2'!D47) ->  | C46: =IF(A46=0,"",'CC Ally 2'!E47) -> 0 | E46: =IFERROR(VLOOKUP(A46,'Liste des joueurs'!A44:D20347,2),"") ->  | F46: =IFERROR(VLOOKUP(A46,'Liste des joueurs'!A44:D20347,3),"") ->  | H46: =IFERROR('Data Ally 2'!G44,"") -> 
A47: =IF('CC Ally 2'!D48=0,"",'CC Ally 2'!D48) ->  | C47: =IF(A47=0,"",'CC Ally 2'!E48) -> 0 | E47: =IFERROR(VLOOKUP(A47,'Liste des joueurs'!A44:D20347,2),"") ->  | F47: =IFERROR(VLOOKUP(A47,'Liste des joueurs'!A44:D20347,3),"") ->  | H47: =IFERROR('Data Ally 2'!G45,"") -> 
A48: =IF('CC Ally 2'!D49=0,"",'CC Ally 2'!D49) ->  | C48: =IF(A48=0,"",'CC Ally 2'!E49) -> 0 | E48: =IFERROR(VLOOKUP(A48,'Liste des joueurs'!A46:D20349,2),"") ->  | F48: =IFERROR(VLOOKUP(A48,'Liste des joueurs'!A46:D20349,3),"") ->  | H48: =IFERROR('Data Ally 2'!G46,"") -> 
A49: =IF('CC Ally 2'!D50=0,"",'CC Ally 2'!D50) ->  | C49: =IF(A49=0,"",'CC Ally 2'!E50) -> 0 | E49: =IFERROR(VLOOKUP(A49,'Liste des joueurs'!A46:D20349,2),"") ->  | F49: =IFERROR(VLOOKUP(A49,'Liste des joueurs'!A46:D20349,3),"") ->  | H49: =IFERROR('Data Ally 2'!G47,"") -> 
A50: =IF('CC Ally 2'!D51=0,"",'CC Ally 2'!D51) ->  | C50: =IF(A50=0,"",'CC Ally 2'!E51) -> 0 | E50: =IFERROR(VLOOKUP(A50,'Liste des joueurs'!A48:D20351,2),"") ->  | F50: =IFERROR(VLOOKUP(A50,'Liste des joueurs'!A48:D20351,3),"") ->  | H50: =IFERROR('Data Ally 2'!G48,"") -> 
A51: =IF('CC Ally 2'!D52=0,"",'CC Ally 2'!D52) ->  | C51: =IF(A51=0,"",'CC Ally 2'!E52) -> 0 | E51: =IFERROR(VLOOKUP(A51,'Liste des joueurs'!A48:D20351,2),"") ->  | F51: =IFERROR(VLOOKUP(A51,'Liste des joueurs'!A48:D20351,3),"") ->  | H51: =IFERROR('Data Ally 2'!G49,"") -> 
A52: =IF('CC Ally 2'!D53=0,"",'CC Ally 2'!D53) ->  | C52: =IF(A52=0,"",'CC Ally 2'!E53) -> 0 | E52: =IFERROR(VLOOKUP(A52,'Liste des joueurs'!A50:D20353,2),"") ->  | F52: =IFERROR(VLOOKUP(A52,'Liste des joueurs'!A50:D20353,3),"") ->  | H52: =IFERROR('Data Ally 2'!G50,"") -> 
A53: =IF('CC Ally 2'!D54=0,"",'CC Ally 2'!D54) ->  | C53: =IF(A53=0,"",'CC Ally 2'!E54) -> 0 | E53: =IFERROR(VLOOKUP(A53,'Liste des joueurs'!A50:D20353,2),"") ->  | F53: =IFERROR(VLOOKUP(A53,'Liste des joueurs'!A50:D20353,3),"") ->  | H53: =IFERROR('Data Ally 2'!G51,"") -> 
A54: =IF('CC Ally 2'!D55=0,"",'CC Ally 2'!D55) ->  | C54: =IF(A54=0,"",'CC Ally 2'!E55) -> 0 | E54: =IFERROR(VLOOKUP(A54,'Liste des joueurs'!A52:D20355,2),"") ->  | F54: =IFERROR(VLOOKUP(A54,'Liste des joueurs'!A52:D20355,3),"") ->  | H54: =IFERROR('Data Ally 2'!G52,"") -> 
A55: =IF('CC Ally 2'!D56=0,"",'CC Ally 2'!D56) ->  | C55: =IF(A55=0,"",'CC Ally 2'!E56) -> 0 | E55: =IFERROR(VLOOKUP(A55,'Liste des joueurs'!A52:D20355,2),"") ->  | F55: =IFERROR(VLOOKUP(A55,'Liste des joueurs'!A52:D20355,3),"") ->  | H55: =IFERROR('Data Ally 2'!G53,"") -> 
A56: =IF('CC Ally 2'!D57=0,"",'CC Ally 2'!D57) ->  | C56: =IF(A56=0,"",'CC Ally 2'!E57) -> 0 | E56: =IFERROR(VLOOKUP(A56,'Liste des joueurs'!A54:D20357,2),"") ->  | F56: =IFERROR(VLOOKUP(A56,'Liste des joueurs'!A54:D20357,3),"") ->  | H56: =IFERROR('Data Ally 2'!G54,"") -> 
A57: =IF('CC Ally 2'!D58=0,"",'CC Ally 2'!D58) ->  | C57: =IF(A57=0,"",'CC Ally 2'!E58) -> 0 | E57: =IFERROR(VLOOKUP(A57,'Liste des joueurs'!A54:D20357,2),"") ->  | F57: =IFERROR(VLOOKUP(A57,'Liste des joueurs'!A54:D20357,3),"") ->  | H57: =IFERROR('Data Ally 2'!G55,"") -> 
A58: =IF('CC Ally 2'!D59=0,"",'CC Ally 2'!D59) ->  | C58: =IF(A58=0,"",'CC Ally 2'!E59) -> 0 | E58: =IFERROR(VLOOKUP(A58,'Liste des joueurs'!A56:D20359,2),"") ->  | F58: =IFERROR(VLOOKUP(A58,'Liste des joueurs'!A56:D20359,3),"") ->  | H58: =IFERROR('Data Ally 2'!G56,"") -> 
A59: =IF('CC Ally 2'!D60=0,"",'CC Ally 2'!D60) ->  | C59: =IF(A59=0,"",'CC Ally 2'!E60) -> 0 | E59: =IFERROR(VLOOKUP(A59,'Liste des joueurs'!A56:D20359,2),"") ->  | F59: =IFERROR(VLOOKUP(A59,'Liste des joueurs'!A56:D20359,3),"") ->  | H59: =IFERROR('Data Ally 2'!G57,"") -> 
A60: =IF('CC Ally 2'!D61=0,"",'CC Ally 2'!D61) ->  | C60: =IF(A60=0,"",'CC Ally 2'!E61) -> 0 | E60: =IFERROR(VLOOKUP(A60,'Liste des joueurs'!A58:D20361,2),"") ->  | F60: =IFERROR(VLOOKUP(A60,'Liste des joueurs'!A58:D20361,3),"") ->  | H60: =IFERROR('Data Ally 2'!G58,"") -> 
A61: =IF('CC Ally 2'!D62=0,"",'CC Ally 2'!D62) ->  | C61: =IF(A61=0,"",'CC Ally 2'!E62) -> 0 | E61: =IFERROR(VLOOKUP(A61,'Liste des joueurs'!A58:D20361,2),"") ->  | F61: =IFERROR(VLOOKUP(A61,'Liste des joueurs'!A58:D20361,3),"") ->  | H61: =IFERROR('Data Ally 2'!G59,"") -> 
A62: =IF('CC Ally 2'!D63=0,"",'CC Ally 2'!D63) ->  | C62: =IF(A62=0,"",'CC Ally 2'!E63) -> 0 | E62: =IFERROR(VLOOKUP(A62,'Liste des joueurs'!A60:D20363,2),"") ->  | F62: =IFERROR(VLOOKUP(A62,'Liste des joueurs'!A60:D20363,3),"") ->  | H62: =IFERROR('Data Ally 2'!G60,"") -> 
A63: =IF('CC Ally 2'!D64=0,"",'CC Ally 2'!D64) ->  | C63: =IF(A63=0,"",'CC Ally 2'!E64) -> 0 | E63: =IFERROR(VLOOKUP(A63,'Liste des joueurs'!A60:D20363,2),"") ->  | F63: =IFERROR(VLOOKUP(A63,'Liste des joueurs'!A60:D20363,3),"") ->  | H63: =IFERROR('Data Ally 2'!G61,"") -> 
A64: =IF('CC Ally 2'!D65=0,"",'CC Ally 2'!D65) ->  | C64: =IF(A64=0,"",'CC Ally 2'!E65) -> 0 | E64: =IFERROR(VLOOKUP(A64,'Liste des joueurs'!A62:D20365,2),"") ->  | F64: =IFERROR(VLOOKUP(A64,'Liste des joueurs'!A62:D20365,3),"") ->  | H64: =IFERROR('Data Ally 2'!G62,"") -> 
A65: =IF('CC Ally 2'!D66=0,"",'CC Ally 2'!D66) ->  | C65: =IF(A65=0,"",'CC Ally 2'!E66) -> 0 | E65: =IFERROR(VLOOKUP(A65,'Liste des joueurs'!A62:D20365,2),"") ->  | F65: =IFERROR(VLOOKUP(A65,'Liste des joueurs'!A62:D20365,3),"") ->  | H65: =IFERROR('Data Ally 2'!G63,"") -> 
A66: =IF('CC Ally 2'!D67=0,"",'CC Ally 2'!D67) ->  | C66: =IF(A66=0,"",'CC Ally 2'!E67) -> 0 | E66: =IFERROR(VLOOKUP(A66,'Liste des joueurs'!A64:D20367,2),"") ->  | F66: =IFERROR(VLOOKUP(A66,'Liste des joueurs'!A64:D20367,3),"") ->  | H66: =IFERROR('Data Ally 2'!G64,"") -> 
A67: =IF('CC Ally 2'!D68=0,"",'CC Ally 2'!D68) ->  | C67: =IF(A67=0,"",'CC Ally 2'!E68) -> 0 | E67: =IFERROR(VLOOKUP(A67,'Liste des joueurs'!A64:D20367,2),"") ->  | F67: =IFERROR(VLOOKUP(A67,'Liste des joueurs'!A64:D20367,3),"") ->  | H67: =IFERROR('Data Ally 2'!G65,"") -> 
A68: =IF('CC Ally 2'!D69=0,"",'CC Ally 2'!D69) ->  | C68: =IF(A68=0,"",'CC Ally 2'!E69) -> 0 | E68: =IFERROR(VLOOKUP(A68,'Liste des joueurs'!A66:D20369,2),"") ->  | F68: =IFERROR(VLOOKUP(A68,'Liste des joueurs'!A66:D20369,3),"") ->  | H68: =IFERROR('Data Ally 2'!G66,"") -> 
A69: =IF('CC Ally 2'!D70=0,"",'CC Ally 2'!D70) ->  | C69: =IF(A69=0,"",'CC Ally 2'!E70) -> 0 | E69: =IFERROR(VLOOKUP(A69,'Liste des joueurs'!A66:D20369,2),"") ->  | F69: =IFERROR(VLOOKUP(A69,'Liste des joueurs'!A66:D20369,3),"") ->  | H69: =IFERROR('Data Ally 2'!G67,"") -> 
A70: =IF('CC Ally 2'!D71=0,"",'CC Ally 2'!D71) ->  | C70: =IF(A70=0,"",'CC Ally 2'!E71) -> 0 | D70: =IF(AND((C70<=(3*$E$1)),(C70>=(0.5*$E$1))),"A PORTEE"," ") ->  | E70: =IFERROR(VLOOKUP(A70,'Liste des joueurs'!A68:D20371,2),"") ->  | F70: =IFERROR(VLOOKUP(A70,'Liste des joueurs'!A68:D20371,3),"") ->  | G70: =IFERROR(SQRT(($L$1-E70)^2+($L$2-F70)^2),"") ->  | H70: =IFERROR('Data Ally 2'!G68,"") -> 
A71: =IF('CC Ally 2'!D72=0,"",'CC Ally 2'!D72) ->  | C71: =IF(A71=0,"",'CC Ally 2'!E72) -> 0 | E71: =IFERROR(VLOOKUP(A71,'Liste des joueurs'!A68:D20371,2),"") ->  | F71: =IFERROR(VLOOKUP(A71,'Liste des joueurs'!A68:D20371,3),"") ->  | H71: =IFERROR('Data Ally 2'!G69,"") -> 
A72: =IF('CC Ally 2'!D73=0,"",'CC Ally 2'!D73) ->  | C72: =IF(A72=0,"",'CC Ally 2'!E73) -> 0 | E72: =IFERROR(VLOOKUP(A72,'Liste des joueurs'!A70:D20373,2),"") ->  | F72: =IFERROR(VLOOKUP(A72,'Liste des joueurs'!A70:D20373,3),"") ->  | H72: =IFERROR('Data Ally 2'!G70,"") -> 
A73: =IF('CC Ally 2'!D74=0,"",'CC Ally 2'!D74) ->  | C73: =IF(A73=0,"",'CC Ally 2'!E74) -> 0 | E73: =IFERROR(VLOOKUP(A73,'Liste des joueurs'!A70:D20373,2),"") ->  | F73: =IFERROR(VLOOKUP(A73,'Liste des joueurs'!A70:D20373,3),"") ->  | H73: =IFERROR('Data Ally 2'!G71,"") -> 
A74: =IF('CC Ally 2'!D75=0,"",'CC Ally 2'!D75) ->  | C74: =IF(A74=0,"",'CC Ally 2'!E75) -> 0 | E74: =IFERROR(VLOOKUP(A74,'Liste des joueurs'!A72:D20375,2),"") ->  | F74: =IFERROR(VLOOKUP(A74,'Liste des joueurs'!A72:D20375,3),"") ->  | H74: =IFERROR('Data Ally 2'!G72,"") -> 
A75: =IF('CC Ally 2'!D76=0,"",'CC Ally 2'!D76) ->  | C75: =IF(A75=0,"",'CC Ally 2'!E76) -> 0 | E75: =IFERROR(VLOOKUP(A75,'Liste des joueurs'!A72:D20375,2),"") ->  | F75: =IFERROR(VLOOKUP(A75,'Liste des joueurs'!A72:D20375,3),"") ->  | H75: =IFERROR('Data Ally 2'!G73,"") -> 
A76: =IF('CC Ally 2'!D77=0,"",'CC Ally 2'!D77) ->  | C76: =IF(A76=0,"",'CC Ally 2'!E77) -> 0 | E76: =IFERROR(VLOOKUP(A76,'Liste des joueurs'!A74:D20377,2),"") ->  | F76: =IFERROR(VLOOKUP(A76,'Liste des joueurs'!A74:D20377,3),"") ->  | H76: =IFERROR('Data Ally 2'!G74,"") -> 
A77: =IF('CC Ally 2'!D78=0,"",'CC Ally 2'!D78) ->  | C77: =IF(A77=0,"",'CC Ally 2'!E78) -> 0 | E77: =IFERROR(VLOOKUP(A77,'Liste des joueurs'!A74:D20377,2),"") ->  | F77: =IFERROR(VLOOKUP(A77,'Liste des joueurs'!A74:D20377,3),"") ->  | H77: =IFERROR('Data Ally 2'!G75,"") -> 
A78: =IF('CC Ally 2'!D79=0,"",'CC Ally 2'!D79) ->  | C78: =IF(A78=0,"",'CC Ally 2'!E79) -> 0 | E78: =IFERROR(VLOOKUP(A78,'Liste des joueurs'!A76:D20379,2),"") ->  | F78: =IFERROR(VLOOKUP(A78,'Liste des joueurs'!A76:D20379,3),"") ->  | H78: =IFERROR('Data Ally 2'!G76,"") -> 
A79: =IF('CC Ally 2'!D80=0,"",'CC Ally 2'!D80) ->  | C79: =IF(A79=0,"",'CC Ally 2'!E80) -> 0 | E79: =IFERROR(VLOOKUP(A79,'Liste des joueurs'!A76:D20379,2),"") ->  | F79: =IFERROR(VLOOKUP(A79,'Liste des joueurs'!A76:D20379,3),"") ->  | H79: =IFERROR('Data Ally 2'!G77,"") -> 
A80: =IF('CC Ally 2'!D81=0,"",'CC Ally 2'!D81) ->  | C80: =IF(A80=0,"",'CC Ally 2'!E81) -> 0 | E80: =IFERROR(VLOOKUP(A80,'Liste des joueurs'!A78:D20381,2),"") ->  | F80: =IFERROR(VLOOKUP(A80,'Liste des joueurs'!A78:D20381,3),"") ->  | H80: =IFERROR('Data Ally 2'!G78,"") -> 
A81: =IF('CC Ally 2'!D82=0,"",'CC Ally 2'!D82) ->  | C81: =IF(A81=0,"",'CC Ally 2'!E82) -> 0 | E81: =IFERROR(VLOOKUP(A81,'Liste des joueurs'!A78:D20381,2),"") ->  | F81: =IFERROR(VLOOKUP(A81,'Liste des joueurs'!A78:D20381,3),"") ->  | H81: =IFERROR('Data Ally 2'!G79,"") -> 
A82: =IF('CC Ally 2'!D83=0,"",'CC Ally 2'!D83) ->  | C82: =IF(A82=0,"",'CC Ally 2'!E83) -> 0 | E82: =IFERROR(VLOOKUP(A82,'Liste des joueurs'!A80:D20383,2),"") ->  | F82: =IFERROR(VLOOKUP(A82,'Liste des joueurs'!A80:D20383,3),"") ->  | H82: =IFERROR('Data Ally 2'!G80,"") -> 
A83: =IF('CC Ally 2'!D84=0,"",'CC Ally 2'!D84) ->  | C83: =IF(A83=0,"",'CC Ally 2'!E84) -> 0 | E83: =IFERROR(VLOOKUP(A83,'Liste des joueurs'!A80:D20383,2),"") ->  | F83: =IFERROR(VLOOKUP(A83,'Liste des joueurs'!A80:D20383,3),"") ->  | H83: =IFERROR('Data Ally 2'!G81,"") -> 
A84: =IF('CC Ally 2'!D85=0,"",'CC Ally 2'!D85) ->  | C84: =IF(A84=0,"",'CC Ally 2'!E85) -> 0 | E84: =IFERROR(VLOOKUP(A84,'Liste des joueurs'!A82:D20385,2),"") ->  | F84: =IFERROR(VLOOKUP(A84,'Liste des joueurs'!A82:D20385,3),"") ->  | H84: =IFERROR('Data Ally 2'!G82,"") -> 
A85: =IF('CC Ally 2'!D86=0,"",'CC Ally 2'!D86) ->  | C85: =IF(A85=0,"",'CC Ally 2'!E86) -> 0 | E85: =IFERROR(VLOOKUP(A85,'Liste des joueurs'!A82:D20385,2),"") ->  | F85: =IFERROR(VLOOKUP(A85,'Liste des joueurs'!A82:D20385,3),"") ->  | H85: =IFERROR('Data Ally 2'!G83,"") -> 
A86: =IF('CC Ally 2'!D87=0,"",'CC Ally 2'!D87) ->  | C86: =IF(A86=0,"",'CC Ally 2'!E87) -> 0 | E86: =IFERROR(VLOOKUP(A86,'Liste des joueurs'!A84:D20387,2),"") ->  | F86: =IFERROR(VLOOKUP(A86,'Liste des joueurs'!A84:D20387,3),"") ->  | H86: =IFERROR('Data Ally 2'!G84,"") -> 
A87: =IF('CC Ally 2'!D88=0,"",'CC Ally 2'!D88) ->  | C87: =IF(A87=0,"",'CC Ally 2'!E88) -> 0 | E87: =IFERROR(VLOOKUP(A87,'Liste des joueurs'!A84:D20387,2),"") ->  | F87: =IFERROR(VLOOKUP(A87,'Liste des joueurs'!A84:D20387,3),"") ->  | H87: =IFERROR('Data Ally 2'!G85,"") -> 
A88: =IF('CC Ally 2'!D89=0,"",'CC Ally 2'!D89) ->  | C88: =IF(A88=0,"",'CC Ally 2'!E89) -> 0 | E88: =IFERROR(VLOOKUP(A88,'Liste des joueurs'!A86:D20389,2),"") ->  | F88: =IFERROR(VLOOKUP(A88,'Liste des joueurs'!A86:D20389,3),"") ->  | H88: =IFERROR('Data Ally 2'!G86,"") -> 
A89: =IF('CC Ally 2'!D90=0,"",'CC Ally 2'!D90) ->  | C89: =IF(A89=0,"",'CC Ally 2'!E90) -> 0 | E89: =IFERROR(VLOOKUP(A89,'Liste des joueurs'!A86:D20389,2),"") ->  | F89: =IFERROR(VLOOKUP(A89,'Liste des joueurs'!A86:D20389,3),"") ->  | H89: =IFERROR('Data Ally 2'!G87,"") -> 
A90: =IF('CC Ally 2'!D91=0,"",'CC Ally 2'!D91) ->  | C90: =IF(A90=0,"",'CC Ally 2'!E91) -> 0 | E90: =IFERROR(VLOOKUP(A90,'Liste des joueurs'!A88:D20391,2),"") ->  | F90: =IFERROR(VLOOKUP(A90,'Liste des joueurs'!A88:D20391,3),"") ->  | H90: =IFERROR('Data Ally 2'!G88,"") -> 
A91: =IF('CC Ally 2'!D92=0,"",'CC Ally 2'!D92) ->  | C91: =IF(A91=0,"",'CC Ally 2'!E92) -> 0 | E91: =IFERROR(VLOOKUP(A91,'Liste des joueurs'!A88:D20391,2),"") ->  | F91: =IFERROR(VLOOKUP(A91,'Liste des joueurs'!A88:D20391,3),"") ->  | H91: =IFERROR('Data Ally 2'!G89,"") -> 
A92: =IF('CC Ally 2'!D93=0,"",'CC Ally 2'!D93) ->  | C92: =IF(A92=0,"",'CC Ally 2'!E93) -> 0 | E92: =IFERROR(VLOOKUP(A92,'Liste des joueurs'!A90:D20393,2),"") ->  | F92: =IFERROR(VLOOKUP(A92,'Liste des joueurs'!A90:D20393,3),"") ->  | H92: =IFERROR('Data Ally 2'!G90,"") -> 
A93: =IF('CC Ally 2'!D94=0,"",'CC Ally 2'!D94) ->  | C93: =IF(A93=0,"",'CC Ally 2'!E94) -> 0 | E93: =IFERROR(VLOOKUP(A93,'Liste des joueurs'!A90:D20393,2),"") ->  | F93: =IFERROR(VLOOKUP(A93,'Liste des joueurs'!A90:D20393,3),"") ->  | H93: =IFERROR('Data Ally 2'!G91,"") -> 
A94: =IF('CC Ally 2'!D95=0,"",'CC Ally 2'!D95) ->  | C94: =IF(A94=0,"",'CC Ally 2'!E95) -> 0 | E94: =IFERROR(VLOOKUP(A94,'Liste des joueurs'!A92:D20395,2),"") ->  | F94: =IFERROR(VLOOKUP(A94,'Liste des joueurs'!A92:D20395,3),"") ->  | H94: =IFERROR('Data Ally 2'!G92,"") -> 
A95: =IF('CC Ally 2'!D96=0,"",'CC Ally 2'!D96) ->  | C95: =IF(A95=0,"",'CC Ally 2'!E96) -> 0 | E95: =IFERROR(VLOOKUP(A95,'Liste des joueurs'!A92:D20395,2),"") ->  | F95: =IFERROR(VLOOKUP(A95,'Liste des joueurs'!A92:D20395,3),"") ->  | H95: =IFERROR('Data Ally 2'!G93,"") -> 
A96: =IF('CC Ally 2'!D97=0,"",'CC Ally 2'!D97) ->  | C96: =IF(A96=0,"",'CC Ally 2'!E97) -> 0 | E96: =IFERROR(VLOOKUP(A96,'Liste des joueurs'!A94:D20397,2),"") ->  | F96: =IFERROR(VLOOKUP(A96,'Liste des joueurs'!A94:D20397,3),"") ->  | H96: =IFERROR('Data Ally 2'!G94,"") -> 
A97: =IF('CC Ally 2'!D98=0,"",'CC Ally 2'!D98) ->  | C97: =IF(A97=0,"",'CC Ally 2'!E98) -> 0 | E97: =IFERROR(VLOOKUP(A97,'Liste des joueurs'!A94:D20397,2),"") ->  | F97: =IFERROR(VLOOKUP(A97,'Liste des joueurs'!A94:D20397,3),"") ->  | H97: =IFERROR('Data Ally 2'!G95,"") -> 
A98: =IF('CC Ally 2'!D99=0,"",'CC Ally 2'!D99) ->  | C98: =IF(A98=0,"",'CC Ally 2'!E99) -> 0 | E98: =IFERROR(VLOOKUP(A98,'Liste des joueurs'!A96:D20399,2),"") ->  | F98: =IFERROR(VLOOKUP(A98,'Liste des joueurs'!A96:D20399,3),"") ->  | H98: =IFERROR('Data Ally 2'!G96,"") -> 
A99: =IF('CC Ally 2'!D100=0,"",'CC Ally 2'!D100) ->  | C99: =IF(A99=0,"",'CC Ally 2'!E100) -> 0 | E99: =IFERROR(VLOOKUP(A99,'Liste des joueurs'!A96:D20399,2),"") ->  | F99: =IFERROR(VLOOKUP(A99,'Liste des joueurs'!A96:D20399,3),"") ->  | H99: =IFERROR('Data Ally 2'!G97,"") -> 
A100: =IF('CC Ally 2'!D101=0,"",'CC Ally 2'!D101) ->  | C100: =IF(A100=0,"",'CC Ally 2'!E101) -> 0 | E100: =IFERROR(VLOOKUP(A100,'Liste des joueurs'!A98:D20401,2),"") ->  | F100: =IFERROR(VLOOKUP(A100,'Liste des joueurs'!A98:D20401,3),"") ->  | H100: =IFERROR('Data Ally 2'!G98,"") -> 
A101: ,

Sheet Alliance 3
A1: Dernière MaJ | B1: =TODAY() -> 2013-04-16 | D1: Mon tdc | E1: =Moi!C9 -> 239462551 | G1: VA | H1: =Moi!C7 -> 26 | J1: Pos perso: | K1: x | L1: =Moi!C4 -> 16
K2: y | L2: =Moi!C5 -> 173
B3: MAP | C3: TDC | D3: A portée ? | E3: x | F3: y | G3: Distance | H3: Temps
A4: =IF('CC Ally 3'!D5=0,"",'CC Ally 3'!D5) ->  | C4: =IF(A4=0,"",'CC Ally 3'!E5) -> 0 | D4: =IF(AND((C4<=(3*$E$1)),(C4>=(0.5*$E$1))),"A PORTEE"," ") ->  | E4: =IFERROR(VLOOKUP(A4,'Liste des joueurs'!A2:D20305,2),"") ->  | F4: =IFERROR(VLOOKUP(A4,'Liste des joueurs'!A2:D20305,3),"") ->  | G4: =IFERROR(SQRT(($L$1-E4)^2+($L$2-F4)^2),"") ->  | H4: =IFERROR('Data Ally 3'!G2,"") -> 
A5: =IF('CC Ally 3'!D6=0,"",'CC Ally 3'!D6) ->  | C5: =IF(A5=0,"",'CC Ally 3'!E6) -> 0 | D5: =IF(AND((C5<=(3*$E$1)),(C5>=(0.5*$E$1))),"A PORTEE"," ") ->  | E5: =IFERROR(VLOOKUP(A5,'Liste des joueurs'!A2:D20305,2),"") ->  | F5: =IFERROR(VLOOKUP(A5,'Liste des joueurs'!A2:D20305,3),"") ->  | G5: =IFERROR(SQRT(($L$1-E5)^2+($L$2-F5)^2),"") ->  | H5: =IFERROR('Data Ally 3'!G3,"") -> 
A6: =IF('CC Ally 3'!D7=0,"",'CC Ally 3'!D7) ->  | C6: =IF(A6=0,"",'CC Ally 3'!E7) -> 0 | D6: =IF(AND((C6<=(3*$E$1)),(C6>=(0.5*$E$1))),"A PORTEE"," ") ->  | E6: =IFERROR(VLOOKUP(A6,'Liste des joueurs'!A4:D20307,2),"") ->  | F6: =IFERROR(VLOOKUP(A6,'Liste des joueurs'!A4:D20307,3),"") ->  | G6: =IFERROR(SQRT(($L$1-E6)^2+($L$2-F6)^2),"") ->  | H6: =IFERROR('Data Ally 3'!G4,"") -> 
A7: =IF('CC Ally 3'!D8=0,"",'CC Ally 3'!D8) ->  | C7: =IF(A7=0,"",'CC Ally 3'!E8) -> 0 | E7: =IFERROR(VLOOKUP(A7,'Liste des joueurs'!A4:D20307,2),"") ->  | F7: =IFERROR(VLOOKUP(A7,'Liste des joueurs'!A4:D20307,3),"") ->  | H7: =IFERROR('Data Ally 3'!G5,"") -> 
A8: =IF('CC Ally 3'!D9=0,"",'CC Ally 3'!D9) ->  | C8: =IF(A8=0,"",'CC Ally 3'!E9) -> 0 | E8: =IFERROR(VLOOKUP(A8,'Liste des joueurs'!A6:D20309,2),"") ->  | F8: =IFERROR(VLOOKUP(A8,'Liste des joueurs'!A6:D20309,3),"") ->  | H8: =IFERROR('Data Ally 3'!G6,"") -> 
A9: =IF('CC Ally 3'!D10=0,"",'CC Ally 3'!D10) ->  | C9: =IF(A9=0,"",'CC Ally 3'!E10) -> 0 | E9: =IFERROR(VLOOKUP(A9,'Liste des joueurs'!A6:D20309,2),"") ->  | F9: =IFERROR(VLOOKUP(A9,'Liste des joueurs'!A6:D20309,3),"") ->  | H9: =IFERROR('Data Ally 3'!G7,"") -> 
A10: =IF('CC Ally 3'!D11=0,"",'CC Ally 3'!D11) ->  | C10: =IF(A10=0,"",'CC Ally 3'!E11) -> 0 | E10: =IFERROR(VLOOKUP(A10,'Liste des joueurs'!A8:D20311,2),"") ->  | F10: =IFERROR(VLOOKUP(A10,'Liste des joueurs'!A8:D20311,3),"") ->  | H10: =IFERROR('Data Ally 3'!G8,"") -> 
A11: =IF('CC Ally 3'!D12=0,"",'CC Ally 3'!D12) ->  | C11: =IF(A11=0,"",'CC Ally 3'!E12) -> 0 | E11: =IFERROR(VLOOKUP(A11,'Liste des joueurs'!A8:D20311,2),"") ->  | F11: =IFERROR(VLOOKUP(A11,'Liste des joueurs'!A8:D20311,3),"") ->  | H11: =IFERROR('Data Ally 3'!G9,"") -> 
A12: =IF('CC Ally 3'!D13=0,"",'CC Ally 3'!D13) ->  | C12: =IF(A12=0,"",'CC Ally 3'!E13) -> 0 | E12: =IFERROR(VLOOKUP(A12,'Liste des joueurs'!A10:D20313,2),"") ->  | F12: =IFERROR(VLOOKUP(A12,'Liste des joueurs'!A10:D20313,3),"") ->  | H12: =IFERROR('Data Ally 3'!G10,"") -> 
A13: =IF('CC Ally 3'!D14=0,"",'CC Ally 3'!D14) ->  | C13: =IF(A13=0,"",'CC Ally 3'!E14) -> 0 | E13: =IFERROR(VLOOKUP(A13,'Liste des joueurs'!A10:D20313,2),"") ->  | F13: =IFERROR(VLOOKUP(A13,'Liste des joueurs'!A10:D20313,3),"") ->  | H13: =IFERROR('Data Ally 3'!G11,"") -> 
A14: =IF('CC Ally 3'!D15=0,"",'CC Ally 3'!D15) ->  | C14: =IF(A14=0,"",'CC Ally 3'!E15) -> 0 | E14: =IFERROR(VLOOKUP(A14,'Liste des joueurs'!A12:D20315,2),"") ->  | F14: =IFERROR(VLOOKUP(A14,'Liste des joueurs'!A12:D20315,3),"") ->  | H14: =IFERROR('Data Ally 3'!G12,"") -> 
A15: =IF('CC Ally 3'!D16=0,"",'CC Ally 3'!D16) ->  | C15: =IF(A15=0,"",'CC Ally 3'!E16) -> 0 | E15: =IFERROR(VLOOKUP(A15,'Liste des joueurs'!A12:D20315,2),"") ->  | F15: =IFERROR(VLOOKUP(A15,'Liste des joueurs'!A12:D20315,3),"") ->  | H15: =IFERROR('Data Ally 3'!G13,"") -> 
A16: =IF('CC Ally 3'!D17=0,"",'CC Ally 3'!D17) ->  | C16: =IF(A16=0,"",'CC Ally 3'!E17) -> 0 | E16: =IFERROR(VLOOKUP(A16,'Liste des joueurs'!A14:D20317,2),"") ->  | F16: =IFERROR(VLOOKUP(A16,'Liste des joueurs'!A14:D20317,3),"") ->  | H16: =IFERROR('Data Ally 3'!G14,"") -> 
A17: =IF('CC Ally 3'!D18=0,"",'CC Ally 3'!D18) ->  | C17: =IF(A17=0,"",'CC Ally 3'!E18) -> 0 | E17: =IFERROR(VLOOKUP(A17,'Liste des joueurs'!A14:D20317,2),"") ->  | F17: =IFERROR(VLOOKUP(A17,'Liste des joueurs'!A14:D20317,3),"") ->  | H17: =IFERROR('Data Ally 3'!G15,"") -> 
A18: =IF('CC Ally 3'!D19=0,"",'CC Ally 3'!D19) ->  | C18: =IF(A18=0,"",'CC Ally 3'!E19) -> 0 | E18: =IFERROR(VLOOKUP(A18,'Liste des joueurs'!A16:D20319,2),"") ->  | F18: =IFERROR(VLOOKUP(A18,'Liste des joueurs'!A16:D20319,3),"") ->  | H18: =IFERROR('Data Ally 3'!G16,"") -> 
A19: =IF('CC Ally 3'!D20=0,"",'CC Ally 3'!D20) ->  | C19: =IF(A19=0,"",'CC Ally 3'!E20) -> 0 | E19: =IFERROR(VLOOKUP(A19,'Liste des joueurs'!A16:D20319,2),"") ->  | F19: =IFERROR(VLOOKUP(A19,'Liste des joueurs'!A16:D20319,3),"") ->  | H19: =IFERROR('Data Ally 3'!G17,"") -> 
A20: =IF('CC Ally 3'!D21=0,"",'CC Ally 3'!D21) ->  | C20: =IF(A20=0,"",'CC Ally 3'!E21) -> 0 | E20: =IFERROR(VLOOKUP(A20,'Liste des joueurs'!A18:D20321,2),"") ->  | F20: =IFERROR(VLOOKUP(A20,'Liste des joueurs'!A18:D20321,3),"") ->  | H20: =IFERROR('Data Ally 3'!G18,"") -> 
A21: =IF('CC Ally 3'!D22=0,"",'CC Ally 3'!D22) ->  | C21: =IF(A21=0,"",'CC Ally 3'!E22) -> 0 | E21: =IFERROR(VLOOKUP(A21,'Liste des joueurs'!A18:D20321,2),"") ->  | F21: =IFERROR(VLOOKUP(A21,'Liste des joueurs'!A18:D20321,3),"") ->  | H21: =IFERROR('Data Ally 3'!G19,"") -> 
A22: =IF('CC Ally 3'!D23=0,"",'CC Ally 3'!D23) ->  | C22: =IF(A22=0,"",'CC Ally 3'!E23) -> 0 | E22: =IFERROR(VLOOKUP(A22,'Liste des joueurs'!A20:D20323,2),"") ->  | F22: =IFERROR(VLOOKUP(A22,'Liste des joueurs'!A20:D20323,3),"") ->  | H22: =IFERROR('Data Ally 3'!G20,"") -> 
A23: =IF('CC Ally 3'!D24=0,"",'CC Ally 3'!D24) ->  | C23: =IF(A23=0,"",'CC Ally 3'!E24) -> 0 | E23: =IFERROR(VLOOKUP(A23,'Liste des joueurs'!A20:D20323,2),"") ->  | F23: =IFERROR(VLOOKUP(A23,'Liste des joueurs'!A20:D20323,3),"") ->  | H23: =IFERROR('Data Ally 3'!G21,"") -> 
A24: =IF('CC Ally 3'!D25=0,"",'CC Ally 3'!D25) ->  | C24: =IF(A24=0,"",'CC Ally 3'!E25) -> 0 | E24: =IFERROR(VLOOKUP(A24,'Liste des joueurs'!A22:D20325,2),"") ->  | F24: =IFERROR(VLOOKUP(A24,'Liste des joueurs'!A22:D20325,3),"") ->  | H24: =IFERROR('Data Ally 3'!G22,"") -> 
A25: =IF('CC Ally 3'!D26=0,"",'CC Ally 3'!D26) ->  | C25: =IF(A25=0,"",'CC Ally 3'!E26) -> 0 | E25: =IFERROR(VLOOKUP(A25,'Liste des joueurs'!A22:D20325,2),"") ->  | F25: =IFERROR(VLOOKUP(A25,'Liste des joueurs'!A22:D20325,3),"") ->  | H25: =IFERROR('Data Ally 3'!G23,"") -> 
A26: =IF('CC Ally 3'!D27=0,"",'CC Ally 3'!D27) ->  | C26: =IF(A26=0,"",'CC Ally 3'!E27) -> 0 | E26: =IFERROR(VLOOKUP(A26,'Liste des joueurs'!A24:D20327,2),"") ->  | F26: =IFERROR(VLOOKUP(A26,'Liste des joueurs'!A24:D20327,3),"") ->  | H26: =IFERROR('Data Ally 3'!G24,"") -> 
A27: =IF('CC Ally 3'!D28=0,"",'CC Ally 3'!D28) ->  | C27: =IF(A27=0,"",'CC Ally 3'!E28) -> 0 | E27: =IFERROR(VLOOKUP(A27,'Liste des joueurs'!A24:D20327,2),"") ->  | F27: =IFERROR(VLOOKUP(A27,'Liste des joueurs'!A24:D20327,3),"") ->  | H27: =IFERROR('Data Ally 3'!G25,"") -> 
A28: =IF('CC Ally 3'!D29=0,"",'CC Ally 3'!D29) ->  | C28: =IF(A28=0,"",'CC Ally 3'!E29) -> 0 | E28: =IFERROR(VLOOKUP(A28,'Liste des joueurs'!A26:D20329,2),"") ->  | F28: =IFERROR(VLOOKUP(A28,'Liste des joueurs'!A26:D20329,3),"") ->  | H28: =IFERROR('Data Ally 3'!G26,"") -> 
A29: =IF('CC Ally 3'!D30=0,"",'CC Ally 3'!D30) ->  | C29: =IF(A29=0,"",'CC Ally 3'!E30) -> 0 | E29: =IFERROR(VLOOKUP(A29,'Liste des joueurs'!A26:D20329,2),"") ->  | F29: =IFERROR(VLOOKUP(A29,'Liste des joueurs'!A26:D20329,3),"") ->  | H29: =IFERROR('Data Ally 3'!G27,"") -> 
A30: =IF('CC Ally 3'!D31=0,"",'CC Ally 3'!D31) ->  | C30: =IF(A30=0,"",'CC Ally 3'!E31) -> 0 | E30: =IFERROR(VLOOKUP(A30,'Liste des joueurs'!A28:D20331,2),"") ->  | F30: =IFERROR(VLOOKUP(A30,'Liste des joueurs'!A28:D20331,3),"") ->  | H30: =IFERROR('Data Ally 3'!G28,"") -> 
A31: =IF('CC Ally 3'!D32=0,"",'CC Ally 3'!D32) ->  | C31: =IF(A31=0,"",'CC Ally 3'!E32) -> 0 | E31: =IFERROR(VLOOKUP(A31,'Liste des joueurs'!A28:D20331,2),"") ->  | F31: =IFERROR(VLOOKUP(A31,'Liste des joueurs'!A28:D20331,3),"") ->  | H31: =IFERROR('Data Ally 3'!G29,"") -> 
A32: =IF('CC Ally 3'!D33=0,"",'CC Ally 3'!D33) ->  | C32: =IF(A32=0,"",'CC Ally 3'!E33) -> 0 | E32: =IFERROR(VLOOKUP(A32,'Liste des joueurs'!A30:D20333,2),"") ->  | F32: =IFERROR(VLOOKUP(A32,'Liste des joueurs'!A30:D20333,3),"") ->  | H32: =IFERROR('Data Ally 3'!G30,"") -> 
A33: =IF('CC Ally 3'!D34=0,"",'CC Ally 3'!D34) ->  | C33: =IF(A33=0,"",'CC Ally 3'!E34) -> 0 | E33: =IFERROR(VLOOKUP(A33,'Liste des joueurs'!A30:D20333,2),"") ->  | F33: =IFERROR(VLOOKUP(A33,'Liste des joueurs'!A30:D20333,3),"") ->  | H33: =IFERROR('Data Ally 3'!G31,"") -> 
A34: =IF('CC Ally 3'!D35=0,"",'CC Ally 3'!D35) ->  | C34: =IF(A34=0,"",'CC Ally 3'!E35) -> 0 | E34: =IFERROR(VLOOKUP(A34,'Liste des joueurs'!A32:D20335,2),"") ->  | F34: =IFERROR(VLOOKUP(A34,'Liste des joueurs'!A32:D20335,3),"") ->  | H34: =IFERROR('Data Ally 3'!G32,"") -> 
A35: =IF('CC Ally 3'!D36=0,"",'CC Ally 3'!D36) ->  | C35: =IF(A35=0,"",'CC Ally 3'!E36) -> 0 | E35: =IFERROR(VLOOKUP(A35,'Liste des joueurs'!A32:D20335,2),"") ->  | F35: =IFERROR(VLOOKUP(A35,'Liste des joueurs'!A32:D20335,3),"") ->  | H35: =IFERROR('Data Ally 3'!G33,"") -> 
A36: =IF('CC Ally 3'!D37=0,"",'CC Ally 3'!D37) ->  | C36: =IF(A36=0,"",'CC Ally 3'!E37) -> 0 | E36: =IFERROR(VLOOKUP(A36,'Liste des joueurs'!A34:D20337,2),"") ->  | F36: =IFERROR(VLOOKUP(A36,'Liste des joueurs'!A34:D20337,3),"") ->  | H36: =IFERROR('Data Ally 3'!G34,"") -> 
A37: =IF('CC Ally 3'!D38=0,"",'CC Ally 3'!D38) ->  | C37: =IF(A37=0,"",'CC Ally 3'!E38) -> 0 | E37: =IFERROR(VLOOKUP(A37,'Liste des joueurs'!A34:D20337,2),"") ->  | F37: =IFERROR(VLOOKUP(A37,'Liste des joueurs'!A34:D20337,3),"") ->  | H37: =IFERROR('Data Ally 3'!G35,"") -> 
A38: =IF('CC Ally 3'!D39=0,"",'CC Ally 3'!D39) ->  | C38: =IF(A38=0,"",'CC Ally 3'!E39) -> 0 | E38: =IFERROR(VLOOKUP(A38,'Liste des joueurs'!A36:D20339,2),"") ->  | F38: =IFERROR(VLOOKUP(A38,'Liste des joueurs'!A36:D20339,3),"") ->  | H38: =IFERROR('Data Ally 3'!G36,"") -> 
A39: =IF('CC Ally 3'!D40=0,"",'CC Ally 3'!D40) ->  | C39: =IF(A39=0,"",'CC Ally 3'!E40) -> 0 | E39: =IFERROR(VLOOKUP(A39,'Liste des joueurs'!A36:D20339,2),"") ->  | F39: =IFERROR(VLOOKUP(A39,'Liste des joueurs'!A36:D20339,3),"") ->  | H39: =IFERROR('Data Ally 3'!G37,"") -> 
A40: =IF('CC Ally 3'!D41=0,"",'CC Ally 3'!D41) ->  | C40: =IF(A40=0,"",'CC Ally 3'!E41) -> 0 | E40: =IFERROR(VLOOKUP(A40,'Liste des joueurs'!A38:D20341,2),"") ->  | F40: =IFERROR(VLOOKUP(A40,'Liste des joueurs'!A38:D20341,3),"") ->  | H40: =IFERROR('Data Ally 3'!G38,"") -> 
A41: =IF('CC Ally 3'!D42=0,"",'CC Ally 3'!D42) ->  | C41: =IF(A41=0,"",'CC Ally 3'!E42) -> 0 | E41: =IFERROR(VLOOKUP(A41,'Liste des joueurs'!A38:D20341,2),"") ->  | F41: =IFERROR(VLOOKUP(A41,'Liste des joueurs'!A38:D20341,3),"") ->  | H41: =IFERROR('Data Ally 3'!G39,"") -> 
A42: =IF('CC Ally 3'!D43=0,"",'CC Ally 3'!D43) ->  | C42: =IF(A42=0,"",'CC Ally 3'!E43) -> 0 | E42: =IFERROR(VLOOKUP(A42,'Liste des joueurs'!A40:D20343,2),"") ->  | F42: =IFERROR(VLOOKUP(A42,'Liste des joueurs'!A40:D20343,3),"") ->  | H42: =IFERROR('Data Ally 3'!G40,"") -> 
A43: =IF('CC Ally 3'!D44=0,"",'CC Ally 3'!D44) ->  | C43: =IF(A43=0,"",'CC Ally 3'!E44) -> 0 | E43: =IFERROR(VLOOKUP(A43,'Liste des joueurs'!A40:D20343,2),"") ->  | F43: =IFERROR(VLOOKUP(A43,'Liste des joueurs'!A40:D20343,3),"") ->  | H43: =IFERROR('Data Ally 3'!G41,"") -> 
A44: =IF('CC Ally 3'!D45=0,"",'CC Ally 3'!D45) ->  | C44: =IF(A44=0,"",'CC Ally 3'!E45) -> 0 | E44: =IFERROR(VLOOKUP(A44,'Liste des joueurs'!A42:D20345,2),"") ->  | F44: =IFERROR(VLOOKUP(A44,'Liste des joueurs'!A42:D20345,3),"") ->  | H44: =IFERROR('Data Ally 3'!G42,"") -> 
A45: =IF('CC Ally 3'!D46=0,"",'CC Ally 3'!D46) ->  | C45: =IF(A45=0,"",'CC Ally 3'!E46) -> 0 | E45: =IFERROR(VLOOKUP(A45,'Liste des joueurs'!A42:D20345,2),"") ->  | F45: =IFERROR(VLOOKUP(A45,'Liste des joueurs'!A42:D20345,3),"") ->  | H45: =IFERROR('Data Ally 3'!G43,"") -> 
A46: =IF('CC Ally 3'!D47=0,"",'CC Ally 3'!D47) ->  | C46: =IF(A46=0,"",'CC Ally 3'!E47) -> 0 | E46: =IFERROR(VLOOKUP(A46,'Liste des joueurs'!A44:D20347,2),"") ->  | F46: =IFERROR(VLOOKUP(A46,'Liste des joueurs'!A44:D20347,3),"") ->  | H46: =IFERROR('Data Ally 3'!G44,"") -> 
A47: =IF('CC Ally 3'!D48=0,"",'CC Ally 3'!D48) ->  | C47: =IF(A47=0,"",'CC Ally 3'!E48) -> 0 | E47: =IFERROR(VLOOKUP(A47,'Liste des joueurs'!A44:D20347,2),"") ->  | F47: =IFERROR(VLOOKUP(A47,'Liste des joueurs'!A44:D20347,3),"") ->  | H47: =IFERROR('Data Ally 3'!G45,"") -> 
A48: =IF('CC Ally 3'!D49=0,"",'CC Ally 3'!D49) ->  | C48: =IF(A48=0,"",'CC Ally 3'!E49) -> 0 | E48: =IFERROR(VLOOKUP(A48,'Liste des joueurs'!A46:D20349,2),"") ->  | F48: =IFERROR(VLOOKUP(A48,'Liste des joueurs'!A46:D20349,3),"") ->  | H48: =IFERROR('Data Ally 3'!G46,"") -> 
A49: =IF('CC Ally 3'!D50=0,"",'CC Ally 3'!D50) ->  | C49: =IF(A49=0,"",'CC Ally 3'!E50) -> 0 | E49: =IFERROR(VLOOKUP(A49,'Liste des joueurs'!A46:D20349,2),"") ->  | F49: =IFERROR(VLOOKUP(A49,'Liste des joueurs'!A46:D20349,3),"") ->  | H49: =IFERROR('Data Ally 3'!G47,"") -> 
A50: =IF('CC Ally 3'!D51=0,"",'CC Ally 3'!D51) ->  | C50: =IF(A50=0,"",'CC Ally 3'!E51) -> 0 | E50: =IFERROR(VLOOKUP(A50,'Liste des joueurs'!A48:D20351,2),"") ->  | F50: =IFERROR(VLOOKUP(A50,'Liste des joueurs'!A48:D20351,3),"") ->  | H50: =IFERROR('Data Ally 3'!G48,"") -> 
A51: =IF('CC Ally 3'!D52=0,"",'CC Ally 3'!D52) ->  | C51: =IF(A51=0,"",'CC Ally 3'!E52) -> 0 | E51: =IFERROR(VLOOKUP(A51,'Liste des joueurs'!A48:D20351,2),"") ->  | F51: =IFERROR(VLOOKUP(A51,'Liste des joueurs'!A48:D20351,3),"") ->  | H51: =IFERROR('Data Ally 3'!G49,"") -> 
A52: =IF('CC Ally 3'!D53=0,"",'CC Ally 3'!D53) ->  | C52: =IF(A52=0,"",'CC Ally 3'!E53) -> 0 | E52: =IFERROR(VLOOKUP(A52,'Liste des joueurs'!A50:D20353,2),"") ->  | F52: =IFERROR(VLOOKUP(A52,'Liste des joueurs'!A50:D20353,3),"") ->  | H52: =IFERROR('Data Ally 3'!G50,"") -> 
A53: =IF('CC Ally 3'!D54=0,"",'CC Ally 3'!D54) ->  | C53: =IF(A53=0,"",'CC Ally 3'!E54) -> 0 | E53: =IFERROR(VLOOKUP(A53,'Liste des joueurs'!A50:D20353,2),"") ->  | F53: =IFERROR(VLOOKUP(A53,'Liste des joueurs'!A50:D20353,3),"") ->  | H53: =IFERROR('Data Ally 3'!G51,"") -> 
A54: =IF('CC Ally 3'!D55=0,"",'CC Ally 3'!D55) ->  | C54: =IF(A54=0,"",'CC Ally 3'!E55) -> 0 | E54: =IFERROR(VLOOKUP(A54,'Liste des joueurs'!A52:D20355,2),"") ->  | F54: =IFERROR(VLOOKUP(A54,'Liste des joueurs'!A52:D20355,3),"") ->  | H54: =IFERROR('Data Ally 3'!G52,"") -> 
A55: =IF('CC Ally 3'!D56=0,"",'CC Ally 3'!D56) ->  | C55: =IF(A55=0,"",'CC Ally 3'!E56) -> 0 | E55: =IFERROR(VLOOKUP(A55,'Liste des joueurs'!A52:D20355,2),"") ->  | F55: =IFERROR(VLOOKUP(A55,'Liste des joueurs'!A52:D20355,3),"") ->  | H55: =IFERROR('Data Ally 3'!G53,"") -> 
A56: =IF('CC Ally 3'!D57=0,"",'CC Ally 3'!D57) ->  | C56: =IF(A56=0,"",'CC Ally 3'!E57) -> 0 | E56: =IFERROR(VLOOKUP(A56,'Liste des joueurs'!A54:D20357,2),"") ->  | F56: =IFERROR(VLOOKUP(A56,'Liste des joueurs'!A54:D20357,3),"") ->  | H56: =IFERROR('Data Ally 3'!G54,"") -> 
A57: =IF('CC Ally 3'!D58=0,"",'CC Ally 3'!D58) ->  | C57: =IF(A57=0,"",'CC Ally 3'!E58) -> 0 | E57: =IFERROR(VLOOKUP(A57,'Liste des joueurs'!A54:D20357,2),"") ->  | F57: =IFERROR(VLOOKUP(A57,'Liste des joueurs'!A54:D20357,3),"") ->  | H57: =IFERROR('Data Ally 3'!G55,"") -> 
A58: =IF('CC Ally 3'!D59=0,"",'CC Ally 3'!D59) ->  | C58: =IF(A58=0,"",'CC Ally 3'!E59) -> 0 | E58: =IFERROR(VLOOKUP(A58,'Liste des joueurs'!A56:D20359,2),"") ->  | F58: =IFERROR(VLOOKUP(A58,'Liste des joueurs'!A56:D20359,3),"") ->  | H58: =IFERROR('Data Ally 3'!G56,"") -> 
A59: =IF('CC Ally 3'!D60=0,"",'CC Ally 3'!D60) ->  | C59: =IF(A59=0,"",'CC Ally 3'!E60) -> 0 | E59: =IFERROR(VLOOKUP(A59,'Liste des joueurs'!A56:D20359,2),"") ->  | F59: =IFERROR(VLOOKUP(A59,'Liste des joueurs'!A56:D20359,3),"") ->  | H59: =IFERROR('Data Ally 3'!G57,"") -> 
A60: =IF('CC Ally 3'!D61=0,"",'CC Ally 3'!D61) ->  | C60: =IF(A60=0,"",'CC Ally 3'!E61) -> 0 | E60: =IFERROR(VLOOKUP(A60,'Liste des joueurs'!A58:D20361,2),"") ->  | F60: =IFERROR(VLOOKUP(A60,'Liste des joueurs'!A58:D20361,3),"") ->  | H60: =IFERROR('Data Ally 3'!G58,"") -> 
A61: =IF('CC Ally 3'!D62=0,"",'CC Ally 3'!D62) ->  | C61: =IF(A61=0,"",'CC Ally 3'!E62) -> 0 | E61: =IFERROR(VLOOKUP(A61,'Liste des joueurs'!A58:D20361,2),"") ->  | F61: =IFERROR(VLOOKUP(A61,'Liste des joueurs'!A58:D20361,3),"") ->  | H61: =IFERROR('Data Ally 3'!G59,"") -> 
A62: =IF('CC Ally 3'!D63=0,"",'CC Ally 3'!D63) ->  | C62: =IF(A62=0,"",'CC Ally 3'!E63) -> 0 | E62: =IFERROR(VLOOKUP(A62,'Liste des joueurs'!A60:D20363,2),"") ->  | F62: =IFERROR(VLOOKUP(A62,'Liste des joueurs'!A60:D20363,3),"") ->  | H62: =IFERROR('Data Ally 3'!G60,"") -> 
A63: =IF('CC Ally 3'!D64=0,"",'CC Ally 3'!D64) ->  | C63: =IF(A63=0,"",'CC Ally 3'!E64) -> 0 | E63: =IFERROR(VLOOKUP(A63,'Liste des joueurs'!A60:D20363,2),"") ->  | F63: =IFERROR(VLOOKUP(A63,'Liste des joueurs'!A60:D20363,3),"") ->  | H63: =IFERROR('Data Ally 3'!G61,"") -> 
A64: =IF('CC Ally 3'!D65=0,"",'CC Ally 3'!D65) ->  | C64: =IF(A64=0,"",'CC Ally 3'!E65) -> 0 | E64: =IFERROR(VLOOKUP(A64,'Liste des joueurs'!A62:D20365,2),"") ->  | F64: =IFERROR(VLOOKUP(A64,'Liste des joueurs'!A62:D20365,3),"") ->  | H64: =IFERROR('Data Ally 3'!G62,"") -> 
A65: =IF('CC Ally 3'!D66=0,"",'CC Ally 3'!D66) ->  | C65: =IF(A65=0,"",'CC Ally 3'!E66) -> 0 | E65: =IFERROR(VLOOKUP(A65,'Liste des joueurs'!A62:D20365,2),"") ->  | F65: =IFERROR(VLOOKUP(A65,'Liste des joueurs'!A62:D20365,3),"") ->  | H65: =IFERROR('Data Ally 3'!G63,"") -> 
A66: =IF('CC Ally 3'!D67=0,"",'CC Ally 3'!D67) ->  | C66: =IF(A66=0,"",'CC Ally 3'!E67) -> 0 | E66: =IFERROR(VLOOKUP(A66,'Liste des joueurs'!A64:D20367,2),"") ->  | F66: =IFERROR(VLOOKUP(A66,'Liste des joueurs'!A64:D20367,3),"") ->  | H66: =IFERROR('Data Ally 3'!G64,"") -> 
A67: =IF('CC Ally 3'!D68=0,"",'CC Ally 3'!D68) ->  | C67: =IF(A67=0,"",'CC Ally 3'!E68) -> 0 | E67: =IFERROR(VLOOKUP(A67,'Liste des joueurs'!A64:D20367,2),"") ->  | F67: =IFERROR(VLOOKUP(A67,'Liste des joueurs'!A64:D20367,3),"") ->  | H67: =IFERROR('Data Ally 3'!G65,"") -> 
A68: =IF('CC Ally 3'!D69=0,"",'CC Ally 3'!D69) ->  | C68: =IF(A68=0,"",'CC Ally 3'!E69) -> 0 | E68: =IFERROR(VLOOKUP(A68,'Liste des joueurs'!A66:D20369,2),"") ->  | F68: =IFERROR(VLOOKUP(A68,'Liste des joueurs'!A66:D20369,3),"") ->  | H68: =IFERROR('Data Ally 3'!G66,"") -> 
A69: =IF('CC Ally 3'!D70=0,"",'CC Ally 3'!D70) ->  | C69: =IF(A69=0,"",'CC Ally 3'!E70) -> 0 | E69: =IFERROR(VLOOKUP(A69,'Liste des joueurs'!A66:D20369,2),"") ->  | F69: =IFERROR(VLOOKUP(A69,'Liste des joueurs'!A66:D20369,3),"") ->  | H69: =IFERROR('Data Ally 3'!G67,"") -> 
A70: =IF('CC Ally 3'!D71=0,"",'CC Ally 3'!D71) ->  | C70: =IF(A70=0,"",'CC Ally 3'!E71) -> 0 | D70: =IF(AND((C70<=(3*$E$1)),(C70>=(0.5*$E$1))),"A PORTEE"," ") ->  | E70: =IFERROR(VLOOKUP(A70,'Liste des joueurs'!A68:D20371,2),"") ->  | F70: =IFERROR(VLOOKUP(A70,'Liste des joueurs'!A68:D20371,3),"") ->  | G70: =IFERROR(SQRT(($L$1-E70)^2+($L$2-F70)^2),"") ->  | H70: =IFERROR('Data Ally 3'!G68,"") -> 
A71: =IF('CC Ally 3'!D72=0,"",'CC Ally 3'!D72) ->  | C71: =IF(A71=0,"",'CC Ally 3'!E72) -> 0 | E71: =IFERROR(VLOOKUP(A71,'Liste des joueurs'!A68:D20371,2),"") ->  | F71: =IFERROR(VLOOKUP(A71,'Liste des joueurs'!A68:D20371,3),"") ->  | H71: =IFERROR('Data Ally 3'!G69,"") -> 
A72: =IF('CC Ally 3'!D73=0,"",'CC Ally 3'!D73) ->  | C72: =IF(A72=0,"",'CC Ally 3'!E73) -> 0 | E72: =IFERROR(VLOOKUP(A72,'Liste des joueurs'!A70:D20373,2),"") ->  | F72: =IFERROR(VLOOKUP(A72,'Liste des joueurs'!A70:D20373,3),"") ->  | H72: =IFERROR('Data Ally 3'!G70,"") -> 
A73: =IF('CC Ally 3'!D74=0,"",'CC Ally 3'!D74) ->  | C73: =IF(A73=0,"",'CC Ally 3'!E74) -> 0 | E73: =IFERROR(VLOOKUP(A73,'Liste des joueurs'!A70:D20373,2),"") ->  | F73: =IFERROR(VLOOKUP(A73,'Liste des joueurs'!A70:D20373,3),"") ->  | H73: =IFERROR('Data Ally 3'!G71,"") -> 
A74: =IF('CC Ally 3'!D75=0,"",'CC Ally 3'!D75) ->  | C74: =IF(A74=0,"",'CC Ally 3'!E75) -> 0 | E74: =IFERROR(VLOOKUP(A74,'Liste des joueurs'!A72:D20375,2),"") ->  | F74: =IFERROR(VLOOKUP(A74,'Liste des joueurs'!A72:D20375,3),"") ->  | H74: =IFERROR('Data Ally 3'!G72,"") -> 
A75: =IF('CC Ally 3'!D76=0,"",'CC Ally 3'!D76) ->  | C75: =IF(A75=0,"",'CC Ally 3'!E76) -> 0 | E75: =IFERROR(VLOOKUP(A75,'Liste des joueurs'!A72:D20375,2),"") ->  | F75: =IFERROR(VLOOKUP(A75,'Liste des joueurs'!A72:D20375,3),"") ->  | H75: =IFERROR('Data Ally 3'!G73,"") -> 
A76: =IF('CC Ally 3'!D77=0,"",'CC Ally 3'!D77) ->  | C76: =IF(A76=0,"",'CC Ally 3'!E77) -> 0 | E76: =IFERROR(VLOOKUP(A76,'Liste des joueurs'!A74:D20377,2),"") ->  | F76: =IFERROR(VLOOKUP(A76,'Liste des joueurs'!A74:D20377,3),"") ->  | H76: =IFERROR('Data Ally 3'!G74,"") -> 
A77: =IF('CC Ally 3'!D78=0,"",'CC Ally 3'!D78) ->  | C77: =IF(A77=0,"",'CC Ally 3'!E78) -> 0 | E77: =IFERROR(VLOOKUP(A77,'Liste des joueurs'!A74:D20377,2),"") ->  | F77: =IFERROR(VLOOKUP(A77,'Liste des joueurs'!A74:D20377,3),"") ->  | H77: =IFERROR('Data Ally 3'!G75,"") -> 
A78: =IF('CC Ally 3'!D79=0,"",'CC Ally 3'!D79) ->  | C78: =IF(A78=0,"",'CC Ally 3'!E79) -> 0 | E78: =IFERROR(VLOOKUP(A78,'Liste des joueurs'!A76:D20379,2),"") ->  | F78: =IFERROR(VLOOKUP(A78,'Liste des joueurs'!A76:D20379,3),"") ->  | H78: =IFERROR('Data Ally 3'!G76,"") -> 
A79: =IF('CC Ally 3'!D80=0,"",'CC Ally 3'!D80) ->  | C79: =IF(A79=0,"",'CC Ally 3'!E80) -> 0 | E79: =IFERROR(VLOOKUP(A79,'Liste des joueurs'!A76:D20379,2),"") ->  | F79: =IFERROR(VLOOKUP(A79,'Liste des joueurs'!A76:D20379,3),"") ->  | H79: =IFERROR('Data Ally 3'!G77,"") -> 
A80: =IF('CC Ally 3'!D81=0,"",'CC Ally 3'!D81) ->  | C80: =IF(A80=0,"",'CC Ally 3'!E81) -> 0 | E80: =IFERROR(VLOOKUP(A80,'Liste des joueurs'!A78:D20381,2),"") ->  | F80: =IFERROR(VLOOKUP(A80,'Liste des joueurs'!A78:D20381,3),"") ->  | H80: =IFERROR('Data Ally 3'!G78,"") -> 
A81: =IF('CC Ally 3'!D82=0,"",'CC Ally 3'!D82) ->  | C81: =IF(A81=0,"",'CC Ally 3'!E82) -> 0 | E81: =IFERROR(VLOOKUP(A81,'Liste des joueurs'!A78:D20381,2),"") ->  | F81: =IFERROR(VLOOKUP(A81,'Liste des joueurs'!A78:D20381,3),"") ->  | H81: =IFERROR('Data Ally 3'!G79,"") -> 
A82: =IF('CC Ally 3'!D83=0,"",'CC Ally 3'!D83) ->  | C82: =IF(A82=0,"",'CC Ally 3'!E83) -> 0 | E82: =IFERROR(VLOOKUP(A82,'Liste des joueurs'!A80:D20383,2),"") ->  | F82: =IFERROR(VLOOKUP(A82,'Liste des joueurs'!A80:D20383,3),"") ->  | H82: =IFERROR('Data Ally 3'!G80,"") -> 
A83: =IF('CC Ally 3'!D84=0,"",'CC Ally 3'!D84) ->  | C83: =IF(A83=0,"",'CC Ally 3'!E84) -> 0 | E83: =IFERROR(VLOOKUP(A83,'Liste des joueurs'!A80:D20383,2),"") ->  | F83: =IFERROR(VLOOKUP(A83,'Liste des joueurs'!A80:D20383,3),"") ->  | H83: =IFERROR('Data Ally 3'!G81,"") -> 
A84: =IF('CC Ally 3'!D85=0,"",'CC Ally 3'!D85) ->  | C84: =IF(A84=0,"",'CC Ally 3'!E85) -> 0 | E84: =IFERROR(VLOOKUP(A84,'Liste des joueurs'!A82:D20385,2),"") ->  | F84: =IFERROR(VLOOKUP(A84,'Liste des joueurs'!A82:D20385,3),"") ->  | H84: =IFERROR('Data Ally 3'!G82,"") -> 
A85: =IF('CC Ally 3'!D86=0,"",'CC Ally 3'!D86) ->  | C85: =IF(A85=0,"",'CC Ally 3'!E86) -> 0 | E85: =IFERROR(VLOOKUP(A85,'Liste des joueurs'!A82:D20385,2),"") ->  | F85: =IFERROR(VLOOKUP(A85,'Liste des joueurs'!A82:D20385,3),"") ->  | H85: =IFERROR('Data Ally 3'!G83,"") -> 
A86: =IF('CC Ally 3'!D87=0,"",'CC Ally 3'!D87) ->  | C86: =IF(A86=0,"",'CC Ally 3'!E87) -> 0 | E86: =IFERROR(VLOOKUP(A86,'Liste des joueurs'!A84:D20387,2),"") ->  | F86: =IFERROR(VLOOKUP(A86,'Liste des joueurs'!A84:D20387,3),"") ->  | H86: =IFERROR('Data Ally 3'!G84,"") -> 
A87: =IF('CC Ally 3'!D88=0,"",'CC Ally 3'!D88) ->  | C87: =IF(A87=0,"",'CC Ally 3'!E88) -> 0 | E87: =IFERROR(VLOOKUP(A87,'Liste des joueurs'!A84:D20387,2),"") ->  | F87: =IFERROR(VLOOKUP(A87,'Liste des joueurs'!A84:D20387,3),"") ->  | H87: =IFERROR('Data Ally 3'!G85,"") -> 
A88: =IF('CC Ally 3'!D89=0,"",'CC Ally 3'!D89) ->  | C88: =IF(A88=0,"",'CC Ally 3'!E89) -> 0 | E88: =IFERROR(VLOOKUP(A88,'Liste des joueurs'!A86:D20389,2),"") ->  | F88: =IFERROR(VLOOKUP(A88,'Liste des joueurs'!A86:D20389,3),"") ->  | H88: =IFERROR('Data Ally 3'!G86,"") -> 
A89: =IF('CC Ally 3'!D90=0,"",'CC Ally 3'!D90) ->  | C89: =IF(A89=0,"",'CC Ally 3'!E90) -> 0 | E89: =IFERROR(VLOOKUP(A89,'Liste des joueurs'!A86:D20389,2),"") ->  | F89: =IFERROR(VLOOKUP(A89,'Liste des joueurs'!A86:D20389,3),"") ->  | H89: =IFERROR('Data Ally 3'!G87,"") -> 
A90: =IF('CC Ally 3'!D91=0,"",'CC Ally 3'!D91) ->  | C90: =IF(A90=0,"",'CC Ally 3'!E91) -> 0 | E90: =IFERROR(VLOOKUP(A90,'Liste des joueurs'!A88:D20391,2),"") ->  | F90: =IFERROR(VLOOKUP(A90,'Liste des joueurs'!A88:D20391,3),"") ->  | H90: =IFERROR('Data Ally 3'!G88,"") -> 
A91: =IF('CC Ally 3'!D92=0,"",'CC Ally 3'!D92) ->  | C91: =IF(A91=0,"",'CC Ally 3'!E92) -> 0 | E91: =IFERROR(VLOOKUP(A91,'Liste des joueurs'!A88:D20391,2),"") ->  | F91: =IFERROR(VLOOKUP(A91,'Liste des joueurs'!A88:D20391,3),"") ->  | H91: =IFERROR('Data Ally 3'!G89,"") -> 
A92: =IF('CC Ally 3'!D93=0,"",'CC Ally 3'!D93) ->  | C92: =IF(A92=0,"",'CC Ally 3'!E93) -> 0 | E92: =IFERROR(VLOOKUP(A92,'Liste des joueurs'!A90:D20393,2),"") ->  | F92: =IFERROR(VLOOKUP(A92,'Liste des joueurs'!A90:D20393,3),"") ->  | H92: =IFERROR('Data Ally 3'!G90,"") -> 
A93: =IF('CC Ally 3'!D94=0,"",'CC Ally 3'!D94) ->  | C93: =IF(A93=0,"",'CC Ally 3'!E94) -> 0 | E93: =IFERROR(VLOOKUP(A93,'Liste des joueurs'!A90:D20393,2),"") ->  | F93: =IFERROR(VLOOKUP(A93,'Liste des joueurs'!A90:D20393,3),"") ->  | H93: =IFERROR('Data Ally 3'!G91,"") -> 
A94: =IF('CC Ally 3'!D95=0,"",'CC Ally 3'!D95) ->  | C94: =IF(A94=0,"",'CC Ally 3'!E95) -> 0 | E94: =IFERROR(VLOOKUP(A94,'Liste des joueurs'!A92:D20395,2),"") ->  | F94: =IFERROR(VLOOKUP(A94,'Liste des joueurs'!A92:D20395,3),"") ->  | H94: =IFERROR('Data Ally 3'!G92,"") -> 
A95: =IF('CC Ally 3'!D96=0,"",'CC Ally 3'!D96) ->  | C95: =IF(A95=0,"",'CC Ally 3'!E96) -> 0 | E95: =IFERROR(VLOOKUP(A95,'Liste des joueurs'!A92:D20395,2),"") ->  | F95: =IFERROR(VLOOKUP(A95,'Liste des joueurs'!A92:D20395,3),"") ->  | H95: =IFERROR('Data Ally 3'!G93,"") -> 
A96: =IF('CC Ally 3'!D97=0,"",'CC Ally 3'!D97) ->  | C96: =IF(A96=0,"",'CC Ally 3'!E97) -> 0 | E96: =IFERROR(VLOOKUP(A96,'Liste des joueurs'!A94:D20397,2),"") ->  | F96: =IFERROR(VLOOKUP(A96,'Liste des joueurs'!A94:D20397,3),"") ->  | H96: =IFERROR('Data Ally 3'!G94,"") -> 
A97: =IF('CC Ally 3'!D98=0,"",'CC Ally 3'!D98) ->  | C97: =IF(A97=0,"",'CC Ally 3'!E98) -> 0 | E97: =IFERROR(VLOOKUP(A97,'Liste des joueurs'!A94:D20397,2),"") ->  | F97: =IFERROR(VLOOKUP(A97,'Liste des joueurs'!A94:D20397,3),"") ->  | H97: =IFERROR('Data Ally 3'!G95,"") -> 
A98: =IF('CC Ally 3'!D99=0,"",'CC Ally 3'!D99) ->  | C98: =IF(A98=0,"",'CC Ally 3'!E99) -> 0 | E98: =IFERROR(VLOOKUP(A98,'Liste des joueurs'!A96:D20399,2),"") ->  | F98: =IFERROR(VLOOKUP(A98,'Liste des joueurs'!A96:D20399,3),"") ->  | H98: =IFERROR('Data Ally 3'!G96,"") -> 
A99: =IF('CC Ally 3'!D100=0,"",'CC Ally 3'!D100) ->  | C99: =IF(A99=0,"",'CC Ally 3'!E100) -> 0 | E99: =IFERROR(VLOOKUP(A99,'Liste des joueurs'!A96:D20399,2),"") ->  | F99: =IFERROR(VLOOKUP(A99,'Liste des joueurs'!A96:D20399,3),"") ->  | H99: =IFERROR('Data Ally 3'!G97,"") -> 
A100: =IF('CC Ally 3'!D101=0,"",'CC Ally 3'!D101) ->  | C100: =IF(A100=0,"",'CC Ally 3'!E101) -> 0 | E100: =IFERROR(VLOOKUP(A100,'Liste des joueurs'!A98:D20401,2),"") ->  | F100: =IFERROR(VLOOKUP(A100,'Liste des joueurs'!A98:D20401,3),"") ->  | H100: =IFERROR('Data Ally 3'!G98,"") -> 
A101: ,

Sheet CC Mon Ally
B2: Bien penser à reset avant de c/c !
B3: C/c en B5
B5: 1 | C5: Harvestkiller | D5: spetsnaz | E5: 3621975516 | F5: 177 | G5: 313
B6: 2 | C6: Harvestkiller | D6: Azkanith | E6: 3600000000 | F6: 196 | G6: 318
B7: 3 | C7: Harvestkiller | D7: agecanonix | E7: 3478184525 | F7: 145 | G7: 282
B8: 4 | C8: Harvestkiller | D8: Bruxelles | E8: 3200000000 | F8: 152 | G8: 287
B9: 5 | C9: Harvestkiller | D9: svanhilde | E9: 2500000000 | F9: 181 | G9: 318
B10: 6 | C10: Harvestkiller | D10: Wolverine | E10: 2500000000 | F10: 172 | G10: 280
B11: 7 | C11: Géokiller | D11: Drusilla | E11: 2308193694 | F11: 174 | G11: 313
B12: 8 | C12: Géokiller | D12: Thunderbird | E12: 2241865299 | F12: 183 | G12: 314
B13: 9 | C13: Géokiller | D13: pANTSu | E13: 2223116452 | F13: 174 | G13: 304
B14: 10 | C14: Harvestkiller | D14: Bactroban | E14: 2180863331 | F14: 133 | G14: 256
B15: 11 | C15: Harvestkiller | D15: marchombre | E15: 1974437420 | F15: 180 | G15: 312
B16: 12 | C16: Relief Fund | D16: Myvin | E16: 1678452546 | F16: 170 | G16: 312
B17: 13 | C17: Économe Noir - Géokiller ₪ | D17: Gueust | E17: 1395349574 | F17: 170 | G17: 306
B18: 14 | C18: Harvestkiller | D18: hador | E18: 1363544000 | F18: 180 | G18: 323
B19: 15 | C19: Nomarque Noir - Géokiller ۞ | D19: Rockslide | E19: 1338053964 | F19: 183 | G19: 325
B20: 16 | C20: Économe Noir - Géokiller ₪ | D20: Ishigo | E20: 1229782731 | F20: 177 | G20: 324
B21: 17 | C21: Géokiller | D21: CroolisVar | E21: 1125036349 | F21: 173 | G21: 321
B22: 18 | C22: Nomade - sous protection Théocrâte | D22: Phenixx | E22: 908308062 | F22: 191 | G22: 310
B23: 19 | C23: Géokiller | D23: Mimic | E23: 741427214 | F23: 176 | G23: 292
B24: 20 | C24: Géokiller | D24: barouk | E24: 691844608 | F24: 176 | G24: 306
B25: 21 | C25: Géostratège Noire - Géokiller | D25: Rita | E25: 601563106 | F25: 180 | G25: 309
B26: 22 | C26: Géokiller | D26: Panda | E26: 199515647 | F26: 180 | G26: 317
B27: 23 | C27: Pharaon Noir - Antskiller 🐜 | D27: DrAnts | E27: 176691717 | F27: 192 | G27: 314
B28: 24 | C28: Antskiller | D28: Rofulus | E28: 164335588 | F28: 177 | G28: 307
B29: 25 | C29: Économe Noir - Antskiller ₪ | D29: bib595 | E29: 74197715 | F29: 184 | G29: 320
B30: 26 | C30: Antskiller | D30: osman | E30: 57065150 | F30: 172 | G30: 317
B31: 27 | C31: Géokiller | D31: Flipper1 | E31: 51864366 | F31: 168 | G31: 313
B32: 28 | C32: Géokiller | D32: aubertignac | E32: 25797967 | F32: 184 | G32: 320
B33: 29 | C33: Nomarque Noir - Shadowkiller ۞ | D33: lipoussou | E33: 24685576 | F33: 178 | G33: 310
B34: 30 | C34: Shadowkiller | D34: Chryom | E34: 15533796 | F34: 180 | G34: 316
B35: 31 | C35: Shadowkiller | D35: Greeny | E35: 14657937 | F35: 171 | G35: 310
B36: 32 | C36: Antskiller | D36: EllaVonZedanltha | E36: 13582916 | F36: 190 | G36: 317
B37: 33 | C37: Antskiller | D37: Lockheed | E37: 8976576 | F37: 182 | G37: 317
B38: 34 | C38: Shadowkiller | D38: Damping | E38: 8026127 | F38: 174 | G38: 305
B39: 35 | C39: Antskiller | D39: Kiba | E39: 7017940 | F39: 192 | G39: 320
B40: 36 | C40: Shadowkiller | D40: Tradjette | E40: 6005940 | F40: 186 | G40: 314
B41: 37 | C41: Géokiller | D41: bill | E41: 5137772 | F41: 190 | G41: 316
B42: 38 | C42: Nomarque Noir - Shadowkiller ۞ | D42: weaver | E42: 3528979 | F42: 190 | G42: 322
B43: 39 | C43: Shaman Noir - Enfermé dans sa tente | D43: Morphy | E43: 3086290 | F43: 156 | G43: 265
B44: 40 | C44: Shadowkiller. | D44: Shikamaru | E44: 2788427 | F44: 186 | G44: 315
B45: 41 | C45: Shadowkiller | D45: sentih | E45: 2591879 | F45: 170 | G45: 304
B46: 42 | C46: Vizir Noir - Shadowkiller ۝ | D46: Lesqual | E46: 2314160 | F46: 194 | G46: 321
B47: 43 | C47: Shadowkiller | D47: TheDentist | E47: 2284808 | F47: 170 | G47: 299
B48: 44 | C48: Antskiller | D48: Mime | E48: 2005782 | F48: 176 | G48: 303
B49: 45 | C49: Antskiller | D49: Quivala | E49: 1922647 | F49: 177 | G49: 311
B50: 46 | C50: Shadowkiller | D50: pacpac001 | E50: 716072 | F50: 179 | G50: 318
B51: 47 | C51: Antskiller | D51: Reex | E51: 651027 | F51: 190 | G51: 325
B52: 48 | C52: Nomarque Noir - Shadowkiller ۞ | D52: Seiduna | E52: 268669 | F52: 173 | G52: 312
B53: 49 | C53: Nomarque Noir - Antskiller ۞ | D53: MagnetO | E53: 152964 | F53: 187 | G53: 316
B54: 50 | C54: Nomade - Aube Grise | D54: riblibli | E54: 124756 | F54: 166 | G54: 284
B55: 51 | C55: Harvestkiller | D55: MilesGloriosus | E55: 62528 | F55: 190 | G55: 313

Sheet CC Ally 1
B2: Bien penser à reset avant de c/c !
B3: C/c en B5
B5: 1 | C5: Bravo -11- | D5: crunchy | E5: 692036580 | F5: 174 | G5: 308
B6: 2 | C6: Alpha -12- | D6: Jericho | E6: 650307842 | F6: 162 | G6: 283
B7: 3 | C7: Alpha -13- | D7: Fleau | E7: 486565088 | F7: 167 | G7: 299
B8: 4 | C8: Bravo -10- | D8: AB64 | E8: 295772763 | F8: 184 | G8: 319
B9: 5 | C9: Alpha -12- | D9: Matteo37 | E9: 289520233 | F9: 154 | G9: 290
B10: 6 | C10: Mutante en récupération - Diplomate | D10: _Angel_ | E10: 221227394 | F10: 180 | G10: 321
B11: 7 | C11: Alpha -11- | D11: Norrin-Radd | E11: 164651602 | F11: 184 | G11: 332
B12: 8 | C12: Bravo -08- | D12: waylander | E12: 163366241 | F12: 181 | G12: 311
B13: 9 | C13: Alpha -01- Officier chaine | D13: Allerdyce | E13: 90948214 | F13: 174 | G13: 321
B14: 10 | C14: Alpha -01- | D14: mouche | E14: 37012908 | F14: 171 | G14: 297
B15: 11 | C15: Bravo -07- | D15: sergioo | E15: 9656016 | F15: 182 | G15: 300
B16: 12 | C16: Alpha -09- | D16: 4midiable | E16: 7916025 | F16: 173 | G16: 297
B17: 13 | C17: Alpha -06- | D17: _Wolverine_ | E17: 3663339 | F17: 181 | G17: 313
B18: 14 | C18: Alpha -13- | D18: bubulle | E18: 3420198 | F18: 175 | G18: 289
B19: 15 | C19: Alpha -06- | D19: laika | E19: 1895076 | F19: 183 | G19: 313
B20: 16 | C20: Bravo -04- | D20: shub | E20: 1148404 | F20: 169 | G20: 306
B21: 17 | C21: Alpha -05- | D21: weed | E21: 835296 | F21: 181 | G21: 302
B22: 18 | C22: Alpha -04- | D22: moontribe | E22: 831737 | F22: 171 | G22: 303
B23: 19 | C23: Alpha -07- | D23: Domino | E23: 714193 | F23: 206 | G23: 331
B24: 20 | C24: Alpha -03- | D24: maxbo | E24: 432627 | F24: 178 | G24: 283
B25: 21 | C25: Bravo -03- | D25: Zerek | E25: 308142 | F25: 181 | G25: 307
B26: 22 | C26: Alpha -03- Chef | D26: Cyclope | E26: 189412 | F26: 187 | G26: 319
B27: 23 | C27: Alpha -01- | D27: _diablo_ | E27: 128104 | F27: 194 | G27: 314
B28: 24 | C28: Bravo -01- | D28: Prend-Ta-Claque | E28: 109540 | F28: 188 | G28: 323
B29: 25 | C29: Alpha -03- | D29: Formidabilis | E29: 79812 | F29: 173 | G29: 299
B30: 26 | C30: Bravo -02- | D30: ElTornado | E30: 64040 | F30: 166 | G30: 303
B31: 27 | C31: Bravo -02- | D31: kandide | E31: 56685 | F31: 176 | G31: 316
B32: 28 | C32: Alpha -01- | D32: Slipstream | E32: 50109 | F32: 179 | G32: 318
B33: 29 | C33: Recrue | D33: Charles_Francois_Xavier | E33: 430 | F33: 28 | G33: 51

Sheet CC Ally 2
B2: Bien penser à reset avant de c/c !
B3: C/c en B5
B5: CC ICI

Sheet CC Ally 3
B2: Bien penser à reset avant de c/c !
B3: C/c en B5
B5: CC ICI

Sheet Data Mon Ally (hidden)
A1: Temps | B1: Distance | C1: Temps | D1: h | E1: min | F1: sec | G1: Soit
A2: ='Mon Alliance'!A4 -> spetsnaz | B2: ='Mon Alliance'!G4 -> 53.66563146 | C2: =ROUNDUP(24*3600*(1-EXP(-B2/350))*7.375*(0.9^'Mon Alliance'!$H$1),0) -> 5853 | D2: =ROUNDDOWN(C2/3600,0) -> 1 | E2: =ROUNDDOWN((C2-D2*3600)/60,0) -> 37 | F2: =ROUNDUP((C2-D2*3600-E2*60),0) -> 33 | G2: =TIME(D2,E2,F2) -> 01:37:33
A3: ='Mon Alliance'!A5 -> Azkanith | B3: ='Mon Alliance'!G5 -> 112.6410227 | C3: =ROUNDUP(24*3600*(1-EXP(-B3/350))*7.375*(0.9^'Mon Alliance'!$H$1),0) -> 11330 | D3: =ROUNDDOWN(C3/3600,0) -> 3 | E3: =ROUNDDOWN((C3-D3*3600)/60,0) -> 8 | F3: =ROUNDUP((C3-D3*3600-E3*60),0) -> 50 | G3: =TIME(D3,E3,F3) -> 03:08:50
A4: ='Mon Alliance'!A6 -> agecanonix | B4: ='Mon Alliance'!G6 -> 98.08159868 | C4: =ROUNDUP(24*3600*(1-EXP(-B4/350))*7.375*(0.9^'Mon Alliance'!$H$1),0) -> 10062 | D4: 2 | E4: 47 | F4: 42 | G4: 02:47:42
A5: ='Mon Alliance'!A7 -> Bruxelles | B5: ='Mon Alliance'!G7 -> 119.6411301 | C5: =ROUNDUP(24*3600*(1-EXP(-B5/350))*7.375*(0.9^'Mon Alliance'!$H$1),0) -> 11921 | D5: 3 | E5: 18 | F5: 41 | G5: 03:18:41
A6: ='Mon Alliance'!A8 -> svanhilde | B6: ='Mon Alliance'!G8 -> 50.69516742 | C6: =ROUNDUP(24*3600*(1-EXP(-B6/350))*7.375*(0.9^'Mon Alliance'!$H$1),0) -> 5552 | D6: 1 | E6: 32 | F6: 32 | G6: 01:32:32
A7: ='Mon Alliance'!A9 -> Wolverine | B7: ='Mon Alliance'!G9 -> 139.359248 | C7: =ROUNDUP(24*3600*(1-EXP(-B7/350))*7.375*(0.9^'Mon Alliance'!$H$1),0) -> 13523 | D7: 3 | E7: 45 | F7: 23 | G7: 03:45:23
A8: ='Mon Alliance'!A10 -> Drusilla | B8: ='Mon Alliance'!G10 -> 150.7481343 | C8: =ROUNDUP(24*3600*(1-EXP(-B8/350))*7.375*(0.9^'Mon Alliance'!$H$1),0) -> 14408 | D8: 4 | E8: 0 | F8: 8 | G8: 04:00:08
A9: ='Mon Alliance'!A11 -> Thunderbird | B9: ='Mon Alliance'!G11 -> 11.04536102 | C9: =ROUNDUP(24*3600*(1-EXP(-B9/350))*7.375*(0.9^'Mon Alliance'!$H$1),0) -> 1279 | D9: 0 | E9: 21 | F9: 19 | G9: 00:21:19
A10: ='Mon Alliance'!A12 -> pANTSu | B10: ='Mon Alliance'!G12 -> 119.707978 | C10: =ROUNDUP(24*3600*(1-EXP(-B10/350))*7.375*(0.9^'Mon Alliance'!$H$1),0) -> 11926 | D10: 3 | E10: 18 | F10: 46 | G10: 03:18:46
A11: ='Mon Alliance'!A13 -> Bactroban | B11: ='Mon Alliance'!G13 -> 58.13776741 | C11: =ROUNDUP(24*3600*(1-EXP(-B11/350))*7.375*(0.9^'Mon Alliance'!$H$1),0) -> 6301 | D11: 1 | E11: 45 | F11: 1 | G11: 01:45:01
A12: ='Mon Alliance'!A14 -> marchombre | B12: ='Mon Alliance'!G14 -> 67 | C12: =ROUNDUP(24*3600*(1-EXP(-B12/350))*7.375*(0.9^'Mon Alliance'!$H$1),0) -> 7173 | D12: 1 | E12: 59 | F12: 33 | G12: 01:59:33
A13: ='Mon Alliance'!A15 -> Myvin | B13: ='Mon Alliance'!G15 -> 136.6199107 | C13: =ROUNDUP(24*3600*(1-EXP(-B13/350))*7.375*(0.9^'Mon Alliance'!$H$1),0) -> 13306 | D13: 3 | E13: 41 | F13: 46 | G13: 03:41:46
A14: ='Mon Alliance'!A16 -> Gueust | B14: ='Mon Alliance'!G16 -> 212.3982109 | C14: =ROUNDUP(24*3600*(1-EXP(-B14/350))*7.375*(0.9^'Mon Alliance'!$H$1),0) -> 18730 | D14: 5 | E14: 12 | F14: 10 | G14: 05:12:10
A15: ='Mon Alliance'!A17 -> hador | B15: ='Mon Alliance'!G17 -> 17.02938637 | C15: =ROUNDUP(24*3600*(1-EXP(-B15/350))*7.375*(0.9^'Mon Alliance'!$H$1),0) -> 1956 | D15: 0 | E15: 32 | F15: 36 | G15: 00:32:36
A16: ='Mon Alliance'!A18 -> Rockslide | B16: ='Mon Alliance'!G18 -> 0 | C16: =ROUNDUP(24*3600*(1-EXP(-B16/350))*7.375*(0.9^'Mon Alliance'!$H$1),0) -> 0 | D16: 0 | E16: 0 | F16: 0 | G16: 00:00:00
A17: ='Mon Alliance'!A19 -> Ishigo | B17: ='Mon Alliance'!G19 -> 70.34912935 | C17: =ROUNDUP(24*3600*(1-EXP(-B17/350))*7.375*(0.9^'Mon Alliance'!$H$1),0) -> 7497 | D17: 2 | E17: 4 | F17: 57 | G17: 02:04:57
A18: ='Mon Alliance'!A20 -> CroolisVar | B18: ='Mon Alliance'!G20 -> 41.86884283 | C18: =ROUNDUP(24*3600*(1-EXP(-B18/350))*7.375*(0.9^'Mon Alliance'!$H$1),0) -> 4642 | D18: 1 | E18: 17 | F18: 22 | G18: 01:17:22
A19: ='Mon Alliance'!A21 -> Phenixx | B19: ='Mon Alliance'!G21 -> 12.04159458 | C19: =ROUNDUP(24*3600*(1-EXP(-B19/350))*7.375*(0.9^'Mon Alliance'!$H$1),0) -> 1393 | D19: 0 | E19: 23 | F19: 13 | G19: 00:23:13
A20: ='Mon Alliance'!A22 -> Mimic | B20: ='Mon Alliance'!G22 -> 28 | C20: =ROUNDUP(24*3600*(1-EXP(-B20/350))*7.375*(0.9^'Mon Alliance'!$H$1),0) -> 3166 | D20: 0 | E20: 52 | F20: 46 | G20: 00:52:46
A21: ='Mon Alliance'!A23 -> barouk | B21: ='Mon Alliance'!G23 -> 22.47220505 | C21: =ROUNDUP(24*3600*(1-EXP(-B21/350))*7.375*(0.9^'Mon Alliance'!$H$1),0) -> 2561 | D21: 0 | E21: 42 | F21: 41 | G21: 00:42:41
A22: ='Mon Alliance'!A24 -> Rita | B22: ='Mon Alliance'!G24 -> 145.9931505 | C22: =ROUNDUP(24*3600*(1-EXP(-B22/350))*7.375*(0.9^'Mon Alliance'!$H$1),0) -> 14042 | D22: 3 | E22: 54 | F22: 2 | G22: 03:54:02
A23: ='Mon Alliance'!A25 -> Panda | B23: ='Mon Alliance'!G25 -> 138.5207566 | C23: =ROUNDUP(24*3600*(1-EXP(-B23/350))*7.375*(0.9^'Mon Alliance'!$H$1),0) -> 13457 | D23: 3 | E23: 44 | F23: 17 | G23: 03:44:17
A24: ='Mon Alliance'!A26 -> DrAnts | B24: ='Mon Alliance'!G26 -> 103.0776406 | C24: =ROUNDUP(24*3600*(1-EXP(-B24/350))*7.375*(0.9^'Mon Alliance'!$H$1),0) -> 10503 | D24: 2 | E24: 55 | F24: 3 | G24: 02:55:03
A25: ='Mon Alliance'!A27 -> Rofulus | B25: ='Mon Alliance'!G27 -> 66.06814664 | C25: =ROUNDUP(24*3600*(1-EXP(-B25/350))*7.375*(0.9^'Mon Alliance'!$H$1),0) -> 7083 | D25: 1 | E25: 58 | F25: 3 | G25: 01:58:03
A26: ='Mon Alliance'!A28 -> bib595 | B26: ='Mon Alliance'!G28 -> 64.12487817 | C26: =ROUNDUP(24*3600*(1-EXP(-B26/350))*7.375*(0.9^'Mon Alliance'!$H$1),0) -> 6893 | D26: 1 | E26: 54 | F26: 53 | G26: 01:54:53
A27: ='Mon Alliance'!A29 -> osman | B27: ='Mon Alliance'!G29 -> 145.0310312 | C27: =ROUNDUP(24*3600*(1-EXP(-B27/350))*7.375*(0.9^'Mon Alliance'!$H$1),0) -> 13967 | D27: 3 | E27: 52 | F27: 47 | G27: 03:52:47
A28: ='Mon Alliance'!A30 -> Flipper1 | B28: ='Mon Alliance'!G30 -> 104.1729331 | C28: =ROUNDUP(24*3600*(1-EXP(-B28/350))*7.375*(0.9^'Mon Alliance'!$H$1),0) -> 10599 | D28: 2 | E28: 56 | F28: 39 | G28: 02:56:39
A29: ='Mon Alliance'!A31 -> aubertignac | B29: ='Mon Alliance'!G31 -> 121.4125199 | C29: =ROUNDUP(24*3600*(1-EXP(-B29/350))*7.375*(0.9^'Mon Alliance'!$H$1),0) -> 12068 | D29: 3 | E29: 21 | F29: 8 | G29: 03:21:08
A30: ='Mon Alliance'!A32 -> lipoussou | B30: ='Mon Alliance'!G32 -> 35.38361203 | C30: =ROUNDUP(24*3600*(1-EXP(-B30/350))*7.375*(0.9^'Mon Alliance'!$H$1),0) -> 3959 | D30: 1 | E30: 5 | F30: 59 | G30: 01:05:59
A31: ='Mon Alliance'!A33 -> Chryom | B31: ='Mon Alliance'!G33 -> 115.2128465 | C31: =ROUNDUP(24*3600*(1-EXP(-B31/350))*7.375*(0.9^'Mon Alliance'!$H$1),0) -> 11548 | D31: 3 | E31: 12 | F31: 28 | G31: 03:12:28
A32: ='Mon Alliance'!A34 -> Greeny | B32: ='Mon Alliance'!G34 -> 123.199026 | C32: =ROUNDUP(24*3600*(1-EXP(-B32/350))*7.375*(0.9^'Mon Alliance'!$H$1),0) -> 12216 | D32: 3 | E32: 23 | F32: 36 | G32: 03:23:36
A33: ='Mon Alliance'!A35 -> EllaVonZedanltha | B33: ='Mon Alliance'!G35 -> 114.7388339 | C33: =ROUNDUP(24*3600*(1-EXP(-B33/350))*7.375*(0.9^'Mon Alliance'!$H$1),0) -> 11508 | D33: 3 | E33: 11 | F33: 48 | G33: 03:11:48
A34: ='Mon Alliance'!A36 -> Lockheed | B34: ='Mon Alliance'!G36 -> 12.36931688 | C34: =ROUNDUP(24*3600*(1-EXP(-B34/350))*7.375*(0.9^'Mon Alliance'!$H$1),0) -> 1430 | D34: 0 | E34: 23 | F34: 50 | G34: 00:23:50
A35: ='Mon Alliance'!A37 -> Damping | B35: ='Mon Alliance'!G37 -> 97.86725704 | C35: =ROUNDUP(24*3600*(1-EXP(-B35/350))*7.375*(0.9^'Mon Alliance'!$H$1),0) -> 10043 | D35: 2 | E35: 47 | F35: 23 | G35: 02:47:23
A36: ='Mon Alliance'!A38 -> Kiba | B36: ='Mon Alliance'!G38 -> 150.029997 | C36: =ROUNDUP(24*3600*(1-EXP(-B36/350))*7.375*(0.9^'Mon Alliance'!$H$1),0) -> 14353 | D36: 3 | E36: 59 | F36: 13 | G36: 03:59:13
A37: ='Mon Alliance'!A39 -> Tradjette | B37: ='Mon Alliance'!G39 -> 160.2529251 | C37: =ROUNDUP(24*3600*(1-EXP(-B37/350))*7.375*(0.9^'Mon Alliance'!$H$1),0) -> 15125 | D37: 4 | E37: 12 | F37: 5 | G37: 04:12:05
A38: ='Mon Alliance'!A40 -> bill | B38: ='Mon Alliance'!G40 -> 61.07372594 | C38: =ROUNDUP(24*3600*(1-EXP(-B38/350))*7.375*(0.9^'Mon Alliance'!$H$1),0) -> 6593 | D38: 1 | E38: 49 | F38: 53 | G38: 01:49:53
A39: ='Mon Alliance'!A41 -> weaver | B39: ='Mon Alliance'!G41 -> 160 | C39: =ROUNDUP(24*3600*(1-EXP(-B39/350))*7.375*(0.9^'Mon Alliance'!$H$1),0) -> 15106 | D39: 4 | E39: 11 | F39: 46 | G39: 04:11:46
A40: ='Mon Alliance'!A42 -> Morphy | B40: ='Mon Alliance'!G42 -> 168.0773631 | C40: =ROUNDUP(24*3600*(1-EXP(-B40/350))*7.375*(0.9^'Mon Alliance'!$H$1),0) -> 15701 | D40: 4 | E40: 21 | F40: 41 | G40: 04:21:41
A41: ='Mon Alliance'!A43 -> Shikamaru | B41: ='Mon Alliance'!G43 -> 19.41648784 | C41: =ROUNDUP(24*3600*(1-EXP(-B41/350))*7.375*(0.9^'Mon Alliance'!$H$1),0) -> 2222 | D41: 0 | E41: 37 | F41: 2 | G41: 00:37:02
A42: ='Mon Alliance'!A44 -> sentih | B42: ='Mon Alliance'!G44 -> 118.4229707 | C42: =ROUNDUP(24*3600*(1-EXP(-B42/350))*7.375*(0.9^'Mon Alliance'!$H$1),0) -> 11819 | D42: 3 | E42: 16 | F42: 59 | G42: 03:16:59
A43: ='Mon Alliance'!A45 -> Lesqual | B43: ='Mon Alliance'!G45 -> 122.2006547 | C43: =ROUNDUP(24*3600*(1-EXP(-B43/350))*7.375*(0.9^'Mon Alliance'!$H$1),0) -> 12134 | D43: 3 | E43: 22 | F43: 14 | G43: 03:22:14
A44: ='Mon Alliance'!A46 -> TheDentist | B44: ='Mon Alliance'!G46 -> 120.0374941 | C44: =ROUNDUP(24*3600*(1-EXP(-B44/350))*7.375*(0.9^'Mon Alliance'!$H$1),0) -> 11954 | D44: 3 | E44: 19 | F44: 14 | G44: 03:19:14
A45: ='Mon Alliance'!A47 -> Mime | B45: ='Mon Alliance'!G47 -> 45.04442252 | C45: =ROUNDUP(24*3600*(1-EXP(-B45/350))*7.375*(0.9^'Mon Alliance'!$H$1),0) -> 4972 | D45: 1 | E45: 22 | F45: 52 | G45: 01:22:52
A46: ='Mon Alliance'!A48 -> Quivala | B46: ='Mon Alliance'!G48 -> 41.03656906 | C46: =ROUNDUP(24*3600*(1-EXP(-B46/350))*7.375*(0.9^'Mon Alliance'!$H$1),0) -> 4555 | D46: 1 | E46: 15 | F46: 55 | G46: 01:15:55
A47: ='Mon Alliance'!A49 -> pacpac001 | B47: ='Mon Alliance'!G49 -> 122.40915 | C47: =ROUNDUP(24*3600*(1-EXP(-B47/350))*7.375*(0.9^'Mon Alliance'!$H$1),0) -> 12151 | D47: 3 | E47: 22 | F47: 31 | G47: 03:22:31
A48: ='Mon Alliance'!A50 -> Reex | B48: ='Mon Alliance'!G50 -> 28.28427125 | C48: =ROUNDUP(24*3600*(1-EXP(-B48/350))*7.375*(0.9^'Mon Alliance'!$H$1),0) -> 3197 | D48: 0 | E48: 53 | F48: 17 | G48: 00:53:17
A49: ='Mon Alliance'!A51 -> Seiduna | B49: ='Mon Alliance'!G51 -> 110.1635148 | C49: =ROUNDUP(24*3600*(1-EXP(-B49/350))*7.375*(0.9^'Mon Alliance'!$H$1),0) -> 11118 | D49: 3 | E49: 5 | F49: 18 | G49: 03:05:18
A50: ='Mon Alliance'!A52 -> MagnetO | B50: ='Mon Alliance'!G52 -> 10.04987562 | C50: =ROUNDUP(24*3600*(1-EXP(-B50/350))*7.375*(0.9^'Mon Alliance'!$H$1),0) -> 1166 | D50: 0 | E50: 19 | F50: 26 | G50: 00:19:26
A51: ='Mon Alliance'!A53 -> riblibli | B51: ='Mon Alliance'!G53 -> 149.7765002 | C51: =ROUNDUP(24*3600*(1-EXP(-B51/350))*7.375*(0.9^'Mon Alliance'!$H$1),0) -> 14334 | D51: 3 | E51: 58 | F51: 54 | G51: 03:58:54
A52: ='Mon Alliance'!A54 -> MilesGloriosus | B52: ='Mon Alliance'!G54 -> 79.76214641 | C52: =ROUNDUP(24*3600*(1-EXP(-B52/350))*7.375*(0.9^'Mon Alliance'!$H$1),0) -> 8391 | D52: 2 | E52: 19 | F52: 51 | G52: 02:19:51
A53: ='Mon Alliance'!A55 ->  | B53: ='Mon Alliance'!G55 ->  | C53: =ROUNDUP(24*3600*(1-EXP(-B53/350))*7.375*(0.9^'Mon Alliance'!$H$1),0) -> 
A54: ='Mon Alliance'!A56 ->  | B54: ='Mon Alliance'!G56 ->  | C54: =ROUNDUP(24*3600*(1-EXP(-B54/350))*7.375*(0.9^'Mon Alliance'!$H$1),0) -> 
A55: ='Mon Alliance'!A57 ->  | B55: ='Mon Alliance'!G57 ->  | C55: =ROUNDUP(24*3600*(1-EXP(-B55/350))*7.375*(0.9^'Mon Alliance'!$H$1),0) -> 
A56: ='Mon Alliance'!A58 ->  | B56: ='Mon Alliance'!G58 ->  | C56: =ROUNDUP(24*3600*(1-EXP(-B56/350))*7.375*(0.9^'Mon Alliance'!$H$1),0) -> 
A57: ='Mon Alliance'!A59 ->  | B57: ='Mon Alliance'!G59 ->  | C57: =ROUNDUP(24*3600*(1-EXP(-B57/350))*7.375*(0.9^'Mon Alliance'!$H$1),0) -> 
A58: ='Mon Alliance'!A60 ->  | B58: ='Mon Alliance'!G60 ->  | C58: =ROUNDUP(24*3600*(1-EXP(-B58/350))*7.375*(0.9^'Mon Alliance'!$H$1),0) -> 
A59: ='Mon Alliance'!A61 ->  | B59: ='Mon Alliance'!G61 ->  | C59: =ROUNDUP(24*3600*(1-EXP(-B59/350))*7.375*(0.9^'Mon Alliance'!$H$1),0) -> 
A60: ='Mon Alliance'!A62 ->  | B60: ='Mon Alliance'!G62 ->  | C60: =ROUNDUP(24*3600*(1-EXP(-B60/350))*7.375*(0.9^'Mon Alliance'!$H$1),0) -> 
A61: ='Mon Alliance'!A63 ->  | B61: ='Mon Alliance'!G63 ->  | C61: =ROUNDUP(24*3600*(1-EXP(-B61/350))*7.375*(0.9^'Mon Alliance'!$H$1),0) -> 
A62: ='Mon Alliance'!A64 ->  | B62: ='Mon Alliance'!G64 ->  | C62: =ROUNDUP(24*3600*(1-EXP(-B62/350))*7.375*(0.9^'Mon Alliance'!$H$1),0) -> 
A63: ='Mon Alliance'!A65 ->  | B63: ='Mon Alliance'!G65 ->  | C63: =ROUNDUP(24*3600*(1-EXP(-B63/350))*7.375*(0.9^'Mon Alliance'!$H$1),0) -> 
A64: ='Mon Alliance'!A66 ->  | B64: ='Mon Alliance'!G66 ->  | C64: =ROUNDUP(24*3600*(1-EXP(-B64/350))*7.375*(0.9^'Mon Alliance'!$H$1),0) -> 
A65: ='Mon Alliance'!A67 ->  | B65: ='Mon Alliance'!G67 ->  | C65: =ROUNDUP(24*3600*(1-EXP(-B65/350))*7.375*(0.9^'Mon Alliance'!$H$1),0) -> 
A66: ='Mon Alliance'!A68 ->  | B66: ='Mon Alliance'!G68 ->  | C66: =ROUNDUP(24*3600*(1-EXP(-B66/350))*7.375*(0.9^'Mon Alliance'!$H$1),0) -> 
A67: ='Mon Alliance'!A69 ->  | B67: ='Mon Alliance'!G69 ->  | C67: =ROUNDUP(24*3600*(1-EXP(-B67/350))*7.375*(0.9^'Mon Alliance'!$H$1),0) ->  | D67: =ROUNDDOWN(C67/3600,0) ->  | E67: =ROUNDDOWN((C67-D67*3600)/60,0) ->  | F67: =ROUNDUP((C67-D67*3600-E67*60),0) ->  | G67: =TIME(D67,E67,F67) -> 
A68: ='Mon Alliance'!A70 ->  | B68: ='Mon Alliance'!G70 ->  | C68: =ROUNDUP(24*3600*(1-EXP(-B68/350))*7.375*(0.9^'Mon Alliance'!$H$1),0) -> 
A69: ='Mon Alliance'!A71 ->  | B69: ='Mon Alliance'!G71 ->  | C69: =ROUNDUP(24*3600*(1-EXP(-B69/350))*7.375*(0.9^'Mon Alliance'!$H$1),0) -> 
A70: ='Mon Alliance'!A72 ->  | B70: ='Mon Alliance'!G72 ->  | C70: =ROUNDUP(24*3600*(1-EXP(-B70/350))*7.375*(0.9^'Mon Alliance'!$H$1),0) -> 
A71: ='Mon Alliance'!A73 ->  | B71: ='Mon Alliance'!G73 ->  | C71: =ROUNDUP(24*3600*(1-EXP(-B71/350))*7.375*(0.9^'Mon Alliance'!$H$1),0) -> 
A72: ='Mon Alliance'!A74 ->  | B72: ='Mon Alliance'!G74 ->  | C72: =ROUNDUP(24*3600*(1-EXP(-B72/350))*7.375*(0.9^'Mon Alliance'!$H$1),0) -> 
A73: ='Mon Alliance'!A75 ->  | B73: ='Mon Alliance'!G75 ->  | C73: =ROUNDUP(24*3600*(1-EXP(-B73/350))*7.375*(0.9^'Mon Alliance'!$H$1),0) -> 
A74: ='Mon Alliance'!A76 ->  | B74: ='Mon Alliance'!G76 ->  | C74: =ROUNDUP(24*3600*(1-EXP(-B74/350))*7.375*(0.9^'Mon Alliance'!$H$1),0) -> 
A75: ='Mon Alliance'!A77 ->  | B75: ='Mon Alliance'!G77 ->  | C75: =ROUNDUP(24*3600*(1-EXP(-B75/350))*7.375*(0.9^'Mon Alliance'!$H$1),0) -> 
A76: ='Mon Alliance'!A78 ->  | B76: ='Mon Alliance'!G78 ->  | C76: =ROUNDUP(24*3600*(1-EXP(-B76/350))*7.375*(0.9^'Mon Alliance'!$H$1),0) -> 
A77: ='Mon Alliance'!A79 ->  | B77: ='Mon Alliance'!G79 ->  | C77: =ROUNDUP(24*3600*(1-EXP(-B77/350))*7.375*(0.9^'Mon Alliance'!$H$1),0) -> 
A78: ='Mon Alliance'!A80 ->  | B78: ='Mon Alliance'!G80 ->  | C78: =ROUNDUP(24*3600*(1-EXP(-B78/350))*7.375*(0.9^'Mon Alliance'!$H$1),0) -> 
A79: ='Mon Alliance'!A81 ->  | B79: ='Mon Alliance'!G81 ->  | C79: =ROUNDUP(24*3600*(1-EXP(-B79/350))*7.375*(0.9^'Mon Alliance'!$H$1),0) -> 
A80: ='Mon Alliance'!A82 ->  | B80: ='Mon Alliance'!G82 ->  | C80: =ROUNDUP(24*3600*(1-EXP(-B80/350))*7.375*(0.9^'Mon Alliance'!$H$1),0) -> 
A81: ='Mon Alliance'!A83 ->  | B81: ='Mon Alliance'!G83 ->  | C81: =ROUNDUP(24*3600*(1-EXP(-B81/350))*7.375*(0.9^'Mon Alliance'!$H$1),0) -> 
A82: ='Mon Alliance'!A84 ->  | B82: ='Mon Alliance'!G84 ->  | C82: =ROUNDUP(24*3600*(1-EXP(-B82/350))*7.375*(0.9^'Mon Alliance'!$H$1),0) -> 
A83: ='Mon Alliance'!A85 ->  | B83: ='Mon Alliance'!G85 ->  | C83: =ROUNDUP(24*3600*(1-EXP(-B83/350))*7.375*(0.9^'Mon Alliance'!$H$1),0) -> 
A84: ='Mon Alliance'!A86 ->  | B84: ='Mon Alliance'!G86 ->  | C84: =ROUNDUP(24*3600*(1-EXP(-B84/350))*7.375*(0.9^'Mon Alliance'!$H$1),0) -> 
A85: ='Mon Alliance'!A87 ->  | B85: ='Mon Alliance'!G87 ->  | C85: =ROUNDUP(24*3600*(1-EXP(-B85/350))*7.375*(0.9^'Mon Alliance'!$H$1),0) -> 
A86: ='Mon Alliance'!A88 ->  | B86: ='Mon Alliance'!G88 ->  | C86: =ROUNDUP(24*3600*(1-EXP(-B86/350))*7.375*(0.9^'Mon Alliance'!$H$1),0) -> 
A87: ='Mon Alliance'!A89 ->  | B87: ='Mon Alliance'!G89 ->  | C87: =ROUNDUP(24*3600*(1-EXP(-B87/350))*7.375*(0.9^'Mon Alliance'!$H$1),0) -> 
A88: ='Mon Alliance'!A90 ->  | B88: ='Mon Alliance'!G90 ->  | C88: =ROUNDUP(24*3600*(1-EXP(-B88/350))*7.375*(0.9^'Mon Alliance'!$H$1),0) -> 
A89: ='Mon Alliance'!A91 ->  | B89: ='Mon Alliance'!G91 ->  | C89: =ROUNDUP(24*3600*(1-EXP(-B89/350))*7.375*(0.9^'Mon Alliance'!$H$1),0) -> 
A90: ='Mon Alliance'!A92 ->  | B90: ='Mon Alliance'!G92 ->  | C90: =ROUNDUP(24*3600*(1-EXP(-B90/350))*7.375*(0.9^'Mon Alliance'!$H$1),0) -> 
A91: ='Mon Alliance'!A93 ->  | B91: ='Mon Alliance'!G93 ->  | C91: =ROUNDUP(24*3600*(1-EXP(-B91/350))*7.375*(0.9^'Mon Alliance'!$H$1),0) -> 
A92: ='Mon Alliance'!A94 ->  | B92: ='Mon Alliance'!G94 ->  | C92: =ROUNDUP(24*3600*(1-EXP(-B92/350))*7.375*(0.9^'Mon Alliance'!$H$1),0) -> 
A93: ='Mon Alliance'!A95 ->  | B93: ='Mon Alliance'!G95 ->  | C93: =ROUNDUP(24*3600*(1-EXP(-B93/350))*7.375*(0.9^'Mon Alliance'!$H$1),0) -> 
A94: ='Mon Alliance'!A96 ->  | B94: ='Mon Alliance'!G96 ->  | C94: =ROUNDUP(24*3600*(1-EXP(-B94/350))*7.375*(0.9^'Mon Alliance'!$H$1),0) -> 
A95: ='Mon Alliance'!A97 ->  | B95: ='Mon Alliance'!G97 ->  | C95: =ROUNDUP(24*3600*(1-EXP(-B95/350))*7.375*(0.9^'Mon Alliance'!$H$1),0) -> 
A96: ='Mon Alliance'!A98 ->  | B96: ='Mon Alliance'!G98 ->  | C96: =ROUNDUP(24*3600*(1-EXP(-B96/350))*7.375*(0.9^'Mon Alliance'!$H$1),0) -> 
A97: ='Mon Alliance'!A99 ->  | B97: ='Mon Alliance'!G99 ->  | C97: =ROUNDUP(24*3600*(1-EXP(-B97/350))*7.375*(0.9^'Mon Alliance'!$H$1),0) -> 
A98: ='Mon Alliance'!A100 ->  | B98: ='Mon Alliance'!G100 ->  | C98: =ROUNDUP(24*3600*(1-EXP(-B98/350))*7.375*(0.9^'Mon Alliance'!$H$1),0) -> 
A99: ='Mon Alliance'!A101 -> 0 | B99: ='Mon Alliance'!G101 -> 0 | C99: =ROUNDUP(24*3600*(1-EXP(-B99/350))*7.375*(0.9^'Mon Alliance'!$H$1),0) -> 0 | D99: 0 | E99: 0 | F99: 0 | G99: 00:00:00
A100: ='Mon Alliance'!A102 -> 0 | B100: ='Mon Alliance'!G102 -> 0 | C100: =ROUNDUP(24*3600*(1-EXP(-B100/350))*7.375*(0.9^'Mon Alliance'!$H$1),0) -> 0 | D100: 0 | E100: 0 | F100: 0 | G100: 00:00:00

Sheet Data Ally 1 (hidden)
A1: Temps | B1: Distance | C1: Temps | D1: h | E1: min | F1: sec | G1: Soit
A2: ='Alliance 1'!A4 -> crunchy | B2: ='Alliance 1'!G4 -> 137.1860051 | C2: =ROUNDUP(24*3600*(1-EXP(-B2/350))*7.375*(0.9^'Alliance 1'!$H$1),0) -> 13351 | D2: =ROUNDDOWN(C2/3600,0) -> 3 | E2: =ROUNDDOWN((C2-D2*3600)/60,0) -> 42 | F2: =ROUNDUP((C2-D2*3600-E2*60),0) -> 31 | G2: =TIME(D2,E2,F2) -> 03:42:31
A3: ='Alliance 1'!A5 -> Jericho | B3: ='Alliance 1'!G5 -> 36.12478374 | C3: =ROUNDUP(24*3600*(1-EXP(-B3/350))*7.375*(0.9^'Alliance 1'!$H$1),0) -> 4038 | D3: =ROUNDDOWN(C3/3600,0) -> 1 | E3: =ROUNDDOWN((C3-D3*3600)/60,0) -> 7 | F3: =ROUNDUP((C3-D3*3600-E3*60),0) -> 18 | G3: =TIME(D3,E3,F3) -> 01:07:18
A4: ='Alliance 1'!A6 -> Fleau | B4: ='Alliance 1'!G6 -> 3 | C4: =ROUNDUP(24*3600*(1-EXP(-B4/350))*7.375*(0.9^'Alliance 1'!$H$1),0) -> 352 | D4: 0 | E4: 5 | F4: 52 | G4: 00:05:52
A5: ='Alliance 1'!A7 -> AB64 | B5: ='Alliance 1'!G7 -> 159.1131673 | C5: =ROUNDUP(24*3600*(1-EXP(-B5/350))*7.375*(0.9^'Alliance 1'!$H$1),0) -> 15040 | D5: 4 | E5: 10 | F5: 40 | G5: 04:10:40
A6: ='Alliance 1'!A8 -> Matteo37 | B6: ='Alliance 1'!G8 -> 29.27456234 | C6: =ROUNDUP(24*3600*(1-EXP(-B6/350))*7.375*(0.9^'Alliance 1'!$H$1),0) -> 3304 | D6: 0 | E6: 55 | F6: 4 | G6: 00:55:04
A7: ='Alliance 1'!A9 -> _Angel_ | B7: ='Alliance 1'!G9 -> 24 | C7: =ROUNDUP(24*3600*(1-EXP(-B7/350))*7.375*(0.9^'Alliance 1'!$H$1),0) -> 2729 | D7: 0 | E7: 45 | F7: 29 | G7: 00:45:29
A8: ='Alliance 1'!A10 -> Norrin-Radd | B8: ='Alliance 1'!G10 -> 17.11724277 | C8: =ROUNDUP(24*3600*(1-EXP(-B8/350))*7.375*(0.9^'Alliance 1'!$H$1),0) -> 1966 | D8: 0 | E8: 32 | F8: 46 | G8: 00:32:46
A9: ='Alliance 1'!A11 -> waylander | B9: ='Alliance 1'!G11 -> 143 | C9: =ROUNDUP(24*3600*(1-EXP(-B9/350))*7.375*(0.9^'Alliance 1'!$H$1),0) -> 13809 | D9: 3 | E9: 50 | F9: 9 | G9: 03:50:09
A10: ='Alliance 1'!A12 -> Allerdyce | B10: ='Alliance 1'!G12 -> 7.071067812 | C10: =ROUNDUP(24*3600*(1-EXP(-B10/350))*7.375*(0.9^'Alliance 1'!$H$1),0) -> 824 | D10: 0 | E10: 13 | F10: 44 | G10: 00:13:44
A11: ='Alliance 1'!A13 -> mouche | B11: ='Alliance 1'!G13 -> 72.56031973 | C11: =ROUNDUP(24*3600*(1-EXP(-B11/350))*7.375*(0.9^'Alliance 1'!$H$1),0) -> 7709 | D11: 2 | E11: 8 | F11: 29 | G11: 02:08:29
A12: ='Alliance 1'!A14 -> sergioo | B12: ='Alliance 1'!G14 -> 153.8830725 | C12: =ROUNDUP(24*3600*(1-EXP(-B12/350))*7.375*(0.9^'Alliance 1'!$H$1),0) -> 14647 | D12: 4 | E12: 4 | F12: 7 | G12: 04:04:07
A13: ='Alliance 1'!A15 -> 4midiable | B13: ='Alliance 1'!G15 -> 26.83281573 | C13: =ROUNDUP(24*3600*(1-EXP(-B13/350))*7.375*(0.9^'Alliance 1'!$H$1),0) -> 3039 | D13: 0 | E13: 50 | F13: 39 | G13: 00:50:39
A14: ='Alliance 1'!A16 -> _Wolverine_ | B14: ='Alliance 1'!G16 -> 20 | C14: =ROUNDUP(24*3600*(1-EXP(-B14/350))*7.375*(0.9^'Alliance 1'!$H$1),0) -> 2287 | D14: 0 | E14: 38 | F14: 7 | G14: 00:38:07
A15: ='Alliance 1'!A17 -> bubulle | B15: ='Alliance 1'!G17 -> 53.36665626 | C15: =ROUNDUP(24*3600*(1-EXP(-B15/350))*7.375*(0.9^'Alliance 1'!$H$1),0) -> 5823 | D15: 1 | E15: 37 | F15: 3 | G15: 01:37:03
A16: ='Alliance 1'!A18 -> laika | B16: ='Alliance 1'!G18 -> 27.85677655 | C16: =ROUNDUP(24*3600*(1-EXP(-B16/350))*7.375*(0.9^'Alliance 1'!$H$1),0) -> 3150 | D16: 0 | E16: 52 | F16: 30 | G16: 00:52:30
A17: ='Alliance 1'!A19 -> shub | B17: ='Alliance 1'!G19 -> 140.4279175 | C17: =ROUNDUP(24*3600*(1-EXP(-B17/350))*7.375*(0.9^'Alliance 1'!$H$1),0) -> 13607 | D17: 3 | E17: 46 | F17: 47 | G17: 03:46:47
A18: ='Alliance 1'!A20 -> weed | B18: ='Alliance 1'!G20 -> 45.89117562 | C18: =ROUNDUP(24*3600*(1-EXP(-B18/350))*7.375*(0.9^'Alliance 1'!$H$1),0) -> 5060 | D18: 1 | E18: 24 | F18: 20 | G18: 01:24:20
A19: ='Alliance 1'!A21 -> moontribe | B19: ='Alliance 1'!G21 -> 35.80502758 | C19: =ROUNDUP(24*3600*(1-EXP(-B19/350))*7.375*(0.9^'Alliance 1'!$H$1),0) -> 4004 | D19: 1 | E19: 6 | F19: 44 | G19: 01:06:44
A20: ='Alliance 1'!A22 -> Domino | B20: ='Alliance 1'!G22 -> 6 | C20: =ROUNDUP(24*3600*(1-EXP(-B20/350))*7.375*(0.9^'Alliance 1'!$H$1),0) -> 700 | D20: 0 | E20: 11 | F20: 40 | G20: 00:11:40
A21: ='Alliance 1'!A23 -> maxbo | B21: ='Alliance 1'!G23 -> 6.32455532 | C21: =ROUNDUP(24*3600*(1-EXP(-B21/350))*7.375*(0.9^'Alliance 1'!$H$1),0) -> 738 | D21: 0 | E21: 12 | F21: 18 | G21: 00:12:18
A22: ='Alliance 1'!A24 -> Zerek | B22: ='Alliance 1'!G24 -> 114.2147101 | C22: =ROUNDUP(24*3600*(1-EXP(-B22/350))*7.375*(0.9^'Alliance 1'!$H$1),0) -> 11464 | D22: 3 | E22: 11 | F22: 4 | G22: 03:11:04
A23: ='Alliance 1'!A25 -> Cyclope | B23: ='Alliance 1'!G25 -> 5.099019514 | C23: =ROUNDUP(24*3600*(1-EXP(-B23/350))*7.375*(0.9^'Alliance 1'!$H$1),0) -> 596 | D23: 0 | E23: 9 | F23: 56 | G23: 00:09:56
A24: ='Alliance 1'!A26 -> _diablo_ | B24: ='Alliance 1'!G26 ->  | C24: =ROUNDUP(24*3600*(1-EXP(-B24/350))*7.375*(0.9^'Alliance 1'!$H$1),0) -> 
A25: ='Alliance 1'!A27 -> Prend-Ta-Claque | B25: ='Alliance 1'!G27 -> 153.0032679 | C25: =ROUNDUP(24*3600*(1-EXP(-B25/350))*7.375*(0.9^'Alliance 1'!$H$1),0) -> 14580 | D25: 4 | E25: 3 | F25: 0 | G25: 04:03:00
A26: ='Alliance 1'!A28 -> Formidabilis | B26: ='Alliance 1'!G28 -> 3.16227766 | C26: =ROUNDUP(24*3600*(1-EXP(-B26/350))*7.375*(0.9^'Alliance 1'!$H$1),0) -> 371 | D26: 0 | E26: 6 | F26: 11 | G26: 00:06:11
A27: ='Alliance 1'!A29 -> ElTornado | B27: ='Alliance 1'!G29 -> 155.724115 | C27: =ROUNDUP(24*3600*(1-EXP(-B27/350))*7.375*(0.9^'Alliance 1'!$H$1),0) -> 14786 | D27: 4 | E27: 6 | F27: 26 | G27: 04:06:26
A28: ='Alliance 1'!A30 -> kandide | B28: ='Alliance 1'!G30 -> 118.0677771 | C28: =ROUNDUP(24*3600*(1-EXP(-B28/350))*7.375*(0.9^'Alliance 1'!$H$1),0) -> 11789 | D28: 3 | E28: 16 | F28: 29 | G28: 03:16:29
A29: ='Alliance 1'!A31 -> Slipstream | B29: ='Alliance 1'!G31 -> 13 | C29: =ROUNDUP(24*3600*(1-EXP(-B29/350))*7.375*(0.9^'Alliance 1'!$H$1),0) -> 1502 | D29: 0 | E29: 25 | F29: 2 | G29: 00:25:02
A30: ='Alliance 1'!A32 -> Charles_Francois_Xavier | B30: ='Alliance 1'!G32 -> 44.94441011 | C30: =ROUNDUP(24*3600*(1-EXP(-B30/350))*7.375*(0.9^'Alliance 1'!$H$1),0) -> 4962 | D30: 1 | E30: 22 | F30: 42 | G30: 01:22:42
A31: ='Alliance 1'!A33 ->  | B31: ='Alliance 1'!G33 ->  | C31: =ROUNDUP(24*3600*(1-EXP(-B31/350))*7.375*(0.9^'Alliance 1'!$H$1),0) -> 
A32: ='Alliance 1'!A34 ->  | B32: ='Alliance 1'!G34 ->  | C32: =ROUNDUP(24*3600*(1-EXP(-B32/350))*7.375*(0.9^'Alliance 1'!$H$1),0) -> 
A33: ='Alliance 1'!A35 ->  | B33: ='Alliance 1'!G35 ->  | C33: =ROUNDUP(24*3600*(1-EXP(-B33/350))*7.375*(0.9^'Alliance 1'!$H$1),0) -> 
A34: ='Alliance 1'!A36 ->  | B34: ='Alliance 1'!G36 ->  | C34: =ROUNDUP(24*3600*(1-EXP(-B34/350))*7.375*(0.9^'Alliance 1'!$H$1),0) -> 
A35: ='Alliance 1'!A37 ->  | B35: ='Alliance 1'!G37 ->  | C35: =ROUNDUP(24*3600*(1-EXP(-B35/350))*7.375*(0.9^'Alliance 1'!$H$1),0) -> 
A36: ='Alliance 1'!A38 ->  | B36: ='Alliance 1'!G38 ->  | C36: =ROUNDUP(24*3600*(1-EXP(-B36/350))*7.375*(0.9^'Alliance 1'!$H$1),0) -> 
A37: ='Alliance 1'!A39 ->  | B37: ='Alliance 1'!G39 ->  | C37: =ROUNDUP(24*3600*(1-EXP(-B37/350))*7.375*(0.9^'Alliance 1'!$H$1),0) -> 
A38: ='Alliance 1'!A40 ->  | B38: ='Alliance 1'!G40 ->  | C38: =ROUNDUP(24*3600*(1-EXP(-B38/350))*7.375*(0.9^'Alliance 1'!$H$1),0) -> 
A39: ='Alliance 1'!A41 ->  | B39: ='Alliance 1'!G41 ->  | C39: =ROUNDUP(24*3600*(1-EXP(-B39/350))*7.375*(0.9^'Alliance 1'!$H$1),0) -> 
A40: ='Alliance 1'!A42 ->  | B40: ='Alliance 1'!G42 ->  | C40: =ROUNDUP(24*3600*(1-EXP(-B40/350))*7.375*(0.9^'Alliance 1'!$H$1),0) -> 
A41: ='Alliance 1'!A43 ->  | B41: ='Alliance 1'!G43 ->  | C41: =ROUNDUP(24*3600*(1-EXP(-B41/350))*7.375*(0.9^'Alliance 1'!$H$1),0) -> 
A42: ='Alliance 1'!A44 ->  | B42: ='Alliance 1'!G44 ->  | C42: =ROUNDUP(24*3600*(1-EXP(-B42/350))*7.375*(0.9^'Alliance 1'!$H$1),0) -> 
A43: ='Alliance 1'!A45 ->  | B43: ='Alliance 1'!G45 ->  | C43: =ROUNDUP(24*3600*(1-EXP(-B43/350))*7.375*(0.9^'Alliance 1'!$H$1),0) -> 
A44: ='Alliance 1'!A46 ->  | B44: ='Alliance 1'!G46 ->  | C44: =ROUNDUP(24*3600*(1-EXP(-B44/350))*7.375*(0.9^'Alliance 1'!$H$1),0) -> 
A45: ='Alliance 1'!A47 ->  | B45: ='Alliance 1'!G47 ->  | C45: =ROUNDUP(24*3600*(1-EXP(-B45/350))*7.375*(0.9^'Alliance 1'!$H$1),0) -> 
A46: ='Alliance 1'!A48 ->  | B46: ='Alliance 1'!G48 ->  | C46: =ROUNDUP(24*3600*(1-EXP(-B46/350))*7.375*(0.9^'Alliance 1'!$H$1),0) -> 
A47: ='Alliance 1'!A49 ->  | B47: ='Alliance 1'!G49 ->  | C47: =ROUNDUP(24*3600*(1-EXP(-B47/350))*7.375*(0.9^'Alliance 1'!$H$1),0) -> 
A48: ='Alliance 1'!A50 ->  | B48: ='Alliance 1'!G50 ->  | C48: =ROUNDUP(24*3600*(1-EXP(-B48/350))*7.375*(0.9^'Alliance 1'!$H$1),0) -> 
A49: ='Alliance 1'!A51 ->  | B49: ='Alliance 1'!G51 ->  | C49: =ROUNDUP(24*3600*(1-EXP(-B49/350))*7.375*(0.9^'Alliance 1'!$H$1),0) -> 
A50: ='Alliance 1'!A52 ->  | B50: ='Alliance 1'!G52 ->  | C50: =ROUNDUP(24*3600*(1-EXP(-B50/350))*7.375*(0.9^'Alliance 1'!$H$1),0) -> 
A51: ='Alliance 1'!A53 ->  | B51: ='Alliance 1'!G53 ->  | C51: =ROUNDUP(24*3600*(1-EXP(-B51/350))*7.375*(0.9^'Alliance 1'!$H$1),0) -> 
A52: ='Alliance 1'!A54 ->  | B52: ='Alliance 1'!G54 ->  | C52: =ROUNDUP(24*3600*(1-EXP(-B52/350))*7.375*(0.9^'Alliance 1'!$H$1),0) -> 
A53: ='Alliance 1'!A55 ->  | B53: ='Alliance 1'!G55 ->  | C53: =ROUNDUP(24*3600*(1-EXP(-B53/350))*7.375*(0.9^'Alliance 1'!$H$1),0) -> 
A54: ='Alliance 1'!A56 ->  | B54: ='Alliance 1'!G56 ->  | C54: =ROUNDUP(24*3600*(1-EXP(-B54/350))*7.375*(0.9^'Alliance 1'!$H$1),0) -> 
A55: ='Alliance 1'!A57 ->  | B55: ='Alliance 1'!G57 ->  | C55: =ROUNDUP(24*3600*(1-EXP(-B55/350))*7.375*(0.9^'Alliance 1'!$H$1),0) -> 
A56: ='Alliance 1'!A58 ->  | B56: ='Alliance 1'!G58 ->  | C56: =ROUNDUP(24*3600*(1-EXP(-B56/350))*7.375*(0.9^'Alliance 1'!$H$1),0) -> 
A57: ='Alliance 1'!A59 ->  | B57: ='Alliance 1'!G59 ->  | C57: =ROUNDUP(24*3600*(1-EXP(-B57/350))*7.375*(0.9^'Alliance 1'!$H$1),0) -> 
A58: ='Alliance 1'!A60 ->  | B58: ='Alliance 1'!G60 ->  | C58: =ROUNDUP(24*3600*(1-EXP(-B58/350))*7.375*(0.9^'Alliance 1'!$H$1),0) -> 
A59: ='Alliance 1'!A61 ->  | B59: ='Alliance 1'!G61 ->  | C59: =ROUNDUP(24*3600*(1-EXP(-B59/350))*7.375*(0.9^'Alliance 1'!$H$1),0) -> 
A60: ='Alliance 1'!A62 ->  | B60: ='Alliance 1'!G62 ->  | C60: =ROUNDUP(24*3600*(1-EXP(-B60/350))*7.375*(0.9^'Alliance 1'!$H$1),0) -> 
A61: ='Alliance 1'!A63 ->  | B61: ='Alliance 1'!G63 ->  | C61: =ROUNDUP(24*3600*(1-EXP(-B61/350))*7.375*(0.9^'Alliance 1'!$H$1),0) -> 
A62: ='Alliance 1'!A64 ->  | B62: ='Alliance 1'!G64 ->  | C62: =ROUNDUP(24*3600*(1-EXP(-B62/350))*7.375*(0.9^'Alliance 1'!$H$1),0) -> 
A63: ='Alliance 1'!A65 ->  | B63: ='Alliance 1'!G65 ->  | C63: =ROUNDUP(24*3600*(1-EXP(-B63/350))*7.375*(0.9^'Alliance 1'!$H$1),0) -> 
A64: ='Alliance 1'!A66 ->  | B64: ='Alliance 1'!G66 ->  | C64: =ROUNDUP(24*3600*(1-EXP(-B64/350))*7.375*(0.9^'Alliance 1'!$H$1),0) -> 
A65: ='Alliance 1'!A67 ->  | B65: ='Alliance 1'!G67 ->  | C65: =ROUNDUP(24*3600*(1-EXP(-B65/350))*7.375*(0.9^'Alliance 1'!$H$1),0) -> 
A66: ='Alliance 1'!A68 ->  | B66: ='Alliance 1'!G68 ->  | C66: =ROUNDUP(24*3600*(1-EXP(-B66/350))*7.375*(0.9^'Alliance 1'!$H$1),0) -> 
A67: ='Alliance 1'!A69 ->  | B67: ='Alliance 1'!G69 ->  | C67: =ROUNDUP(24*3600*(1-EXP(-B67/350))*7.375*(0.9^'Alliance 1'!$H$1),0) ->  | D67: =ROUNDDOWN(C67/3600,0) ->  | E67: =ROUNDDOWN((C67-D67*3600)/60,0) ->  | F67: =ROUNDUP((C67-D67*3600-E67*60),0) ->  | G67: =TIME(D67,E67,F67) -> 
A68: ='Alliance 1'!A70 ->  | B68: ='Alliance 1'!G70 ->  | C68: =ROUNDUP(24*3600*(1-EXP(-B68/350))*7.375*(0.9^'Alliance 1'!$H$1),0) -> 
A69: ='Alliance 1'!A71 ->  | B69: ='Alliance 1'!G71 ->  | C69: =ROUNDUP(24*3600*(1-EXP(-B69/350))*7.375*(0.9^'Alliance 1'!$H$1),0) -> 
A70: ='Alliance 1'!A72 ->  | B70: ='Alliance 1'!G72 ->  | C70: =ROUNDUP(24*3600*(1-EXP(-B70/350))*7.375*(0.9^'Alliance 1'!$H$1),0) -> 
A71: ='Alliance 1'!A73 ->  | B71: ='Alliance 1'!G73 ->  | C71: =ROUNDUP(24*3600*(1-EXP(-B71/350))*7.375*(0.9^'Alliance 1'!$H$1),0) -> 
A72: ='Alliance 1'!A74 ->  | B72: ='Alliance 1'!G74 ->  | C72: =ROUNDUP(24*3600*(1-EXP(-B72/350))*7.375*(0.9^'Alliance 1'!$H$1),0) -> 
A73: ='Alliance 1'!A75 ->  | B73: ='Alliance 1'!G75 ->  | C73: =ROUNDUP(24*3600*(1-EXP(-B73/350))*7.375*(0.9^'Alliance 1'!$H$1),0) -> 
A74: ='Alliance 1'!A76 ->  | B74: ='Alliance 1'!G76 ->  | C74: =ROUNDUP(24*3600*(1-EXP(-B74/350))*7.375*(0.9^'Alliance 1'!$H$1),0) -> 
A75: ='Alliance 1'!A77 ->  | B75: ='Alliance 1'!G77 ->  | C75: =ROUNDUP(24*3600*(1-EXP(-B75/350))*7.375*(0.9^'Alliance 1'!$H$1),0) -> 
A76: ='Alliance 1'!A78 ->  | B76: ='Alliance 1'!G78 ->  | C76: =ROUNDUP(24*3600*(1-EXP(-B76/350))*7.375*(0.9^'Alliance 1'!$H$1),0) -> 
A77: ='Alliance 1'!A79 ->  | B77: ='Alliance 1'!G79 ->  | C77: =ROUNDUP(24*3600*(1-EXP(-B77/350))*7.375*(0.9^'Alliance 1'!$H$1),0) -> 
A78: ='Alliance 1'!A80 ->  | B78: ='Alliance 1'!G80 ->  | C78: =ROUNDUP(24*3600*(1-EXP(-B78/350))*7.375*(0.9^'Alliance 1'!$H$1),0) -> 
A79: ='Alliance 1'!A81 ->  | B79: ='Alliance 1'!G81 ->  | C79: =ROUNDUP(24*3600*(1-EXP(-B79/350))*7.375*(0.9^'Alliance 1'!$H$1),0) -> 
A80: ='Alliance 1'!A82 ->  | B80: ='Alliance 1'!G82 ->  | C80: =ROUNDUP(24*3600*(1-EXP(-B80/350))*7.375*(0.9^'Alliance 1'!$H$1),0) -> 
A81: ='Alliance 1'!A83 ->  | B81: ='Alliance 1'!G83 ->  | C81: =ROUNDUP(24*3600*(1-EXP(-B81/350))*7.375*(0.9^'Alliance 1'!$H$1),0) -> 
A82: ='Alliance 1'!A84 ->  | B82: ='Alliance 1'!G84 ->  | C82: =ROUNDUP(24*3600*(1-EXP(-B82/350))*7.375*(0.9^'Alliance 1'!$H$1),0) -> 
A83: ='Alliance 1'!A85 ->  | B83: ='Alliance 1'!G85 ->  | C83: =ROUNDUP(24*3600*(1-EXP(-B83/350))*7.375*(0.9^'Alliance 1'!$H$1),0) -> 
A84: ='Alliance 1'!A86 ->  | B84: ='Alliance 1'!G86 ->  | C84: =ROUNDUP(24*3600*(1-EXP(-B84/350))*7.375*(0.9^'Alliance 1'!$H$1),0) -> 
A85: ='Alliance 1'!A87 ->  | B85: ='Alliance 1'!G87 ->  | C85: =ROUNDUP(24*3600*(1-EXP(-B85/350))*7.375*(0.9^'Alliance 1'!$H$1),0) -> 
A86: ='Alliance 1'!A88 ->  | B86: ='Alliance 1'!G88 ->  | C86: =ROUNDUP(24*3600*(1-EXP(-B86/350))*7.375*(0.9^'Alliance 1'!$H$1),0) -> 
A87: ='Alliance 1'!A89 ->  | B87: ='Alliance 1'!G89 ->  | C87: =ROUNDUP(24*3600*(1-EXP(-B87/350))*7.375*(0.9^'Alliance 1'!$H$1),0) -> 
A88: ='Alliance 1'!A90 ->  | B88: ='Alliance 1'!G90 ->  | C88: =ROUNDUP(24*3600*(1-EXP(-B88/350))*7.375*(0.9^'Alliance 1'!$H$1),0) -> 
A89: ='Alliance 1'!A91 ->  | B89: ='Alliance 1'!G91 ->  | C89: =ROUNDUP(24*3600*(1-EXP(-B89/350))*7.375*(0.9^'Alliance 1'!$H$1),0) -> 
A90: ='Alliance 1'!A92 ->  | B90: ='Alliance 1'!G92 ->  | C90: =ROUNDUP(24*3600*(1-EXP(-B90/350))*7.375*(0.9^'Alliance 1'!$H$1),0) -> 
A91: ='Alliance 1'!A93 ->  | B91: ='Alliance 1'!G93 ->  | C91: =ROUNDUP(24*3600*(1-EXP(-B91/350))*7.375*(0.9^'Alliance 1'!$H$1),0) -> 
A92: ='Alliance 1'!A94 ->  | B92: ='Alliance 1'!G94 ->  | C92: =ROUNDUP(24*3600*(1-EXP(-B92/350))*7.375*(0.9^'Alliance 1'!$H$1),0) -> 
A93: ='Alliance 1'!A95 ->  | B93: ='Alliance 1'!G95 ->  | C93: =ROUNDUP(24*3600*(1-EXP(-B93/350))*7.375*(0.9^'Alliance 1'!$H$1),0) -> 
A94: ='Alliance 1'!A96 ->  | B94: ='Alliance 1'!G96 ->  | C94: =ROUNDUP(24*3600*(1-EXP(-B94/350))*7.375*(0.9^'Alliance 1'!$H$1),0) -> 
A95: ='Alliance 1'!A97 ->  | B95: ='Alliance 1'!G97 ->  | C95: =ROUNDUP(24*3600*(1-EXP(-B95/350))*7.375*(0.9^'Alliance 1'!$H$1),0) -> 
A96: ='Alliance 1'!A98 ->  | B96: ='Alliance 1'!G98 ->  | C96: =ROUNDUP(24*3600*(1-EXP(-B96/350))*7.375*(0.9^'Alliance 1'!$H$1),0) -> 
A97: ='Alliance 1'!A99 ->  | B97: ='Alliance 1'!G99 ->  | C97: =ROUNDUP(24*3600*(1-EXP(-B97/350))*7.375*(0.9^'Alliance 1'!$H$1),0) -> 
A98: ='Alliance 1'!A100 ->  | B98: ='Alliance 1'!G100 ->  | C98: =ROUNDUP(24*3600*(1-EXP(-B98/350))*7.375*(0.9^'Alliance 1'!$H$1),0) -> 
A99: ='Alliance 1'!A101 -> , | B99: ='Alliance 1'!G101 -> 0 | C99: =ROUNDUP(24*3600*(1-EXP(-B99/350))*7.375*(0.9^'Alliance 1'!$H$1),0) -> 0 | D99: 0 | E99: 0 | F99: 0 | G99: 00:00:00
A100: ='Alliance 1'!A102 -> 0 | B100: ='Alliance 1'!G102 -> 0 | C100: =ROUNDUP(24*3600*(1-EXP(-B100/350))*7.375*(0.9^'Alliance 1'!$H$1),0) -> 0 | D100: 0 | E100: 0 | F100: 0 | G100: 00:00:00

Sheet Data Ally 2 (hidden)
A1: Temps | B1: Distance | C1: Temps | D1: h | E1: min | F1: sec | G1: Soit
A2: ='Alliance 2'!A4 ->  | B2: ='Alliance 2'!G4 ->  | C2: =ROUNDUP(24*3600*(1-EXP(-B2/350))*7.375*(0.9^'Alliance 2'!$H$1),0) ->  | D2: =ROUNDDOWN(C2/3600,0) ->  | E2: =ROUNDDOWN((C2-D2*3600)/60,0) ->  | F2: =ROUNDUP((C2-D2*3600-E2*60),0) ->  | G2: =TIME(D2,E2,F2) -> 
A3: ='Alliance 2'!A5 ->  | B3: ='Alliance 2'!G5 ->  | C3: =ROUNDUP(24*3600*(1-EXP(-B3/350))*7.375*(0.9^'Alliance 2'!$H$1),0) ->  | D3: =ROUNDDOWN(C3/3600,0) ->  | E3: =ROUNDDOWN((C3-D3*3600)/60,0) ->  | F3: =ROUNDUP((C3-D3*3600-E3*60),0) ->  | G3: =TIME(D3,E3,F3) -> 
A4: ='Alliance 2'!A6 ->  | B4: ='Alliance 2'!G6 ->  | C4: =ROUNDUP(24*3600*(1-EXP(-B4/350))*7.375*(0.9^'Alliance 2'!$H$1),0) -> 
A5: ='Alliance 2'!A7 ->  | B5: ='Alliance 2'!G7 ->  | C5: =ROUNDUP(24*3600*(1-EXP(-B5/350))*7.375*(0.9^'Alliance 2'!$H$1),0) -> 
A6: ='Alliance 2'!A8 ->  | B6: ='Alliance 2'!G8 ->  | C6: =ROUNDUP(24*3600*(1-EXP(-B6/350))*7.375*(0.9^'Alliance 2'!$H$1),0) -> 
A7: ='Alliance 2'!A9 ->  | B7: ='Alliance 2'!G9 ->  | C7: =ROUNDUP(24*3600*(1-EXP(-B7/350))*7.375*(0.9^'Alliance 2'!$H$1),0) -> 
A8: ='Alliance 2'!A10 ->  | B8: ='Alliance 2'!G10 ->  | C8: =ROUNDUP(24*3600*(1-EXP(-B8/350))*7.375*(0.9^'Alliance 2'!$H$1),0) -> 
A9: ='Alliance 2'!A11 ->  | B9: ='Alliance 2'!G11 ->  | C9: =ROUNDUP(24*3600*(1-EXP(-B9/350))*7.375*(0.9^'Alliance 2'!$H$1),0) -> 
A10: ='Alliance 2'!A12 ->  | B10: ='Alliance 2'!G12 ->  | C10: =ROUNDUP(24*3600*(1-EXP(-B10/350))*7.375*(0.9^'Alliance 2'!$H$1),0) -> 
A11: ='Alliance 2'!A13 ->  | B11: ='Alliance 2'!G13 ->  | C11: =ROUNDUP(24*3600*(1-EXP(-B11/350))*7.375*(0.9^'Alliance 2'!$H$1),0) -> 
A12: ='Alliance 2'!A14 ->  | B12: ='Alliance 2'!G14 ->  | C12: =ROUNDUP(24*3600*(1-EXP(-B12/350))*7.375*(0.9^'Alliance 2'!$H$1),0) -> 
A13: ='Alliance 2'!A15 ->  | B13: ='Alliance 2'!G15 ->  | C13: =ROUNDUP(24*3600*(1-EXP(-B13/350))*7.375*(0.9^'Alliance 2'!$H$1),0) -> 
A14: ='Alliance 2'!A16 ->  | B14: ='Alliance 2'!G16 ->  | C14: =ROUNDUP(24*3600*(1-EXP(-B14/350))*7.375*(0.9^'Alliance 2'!$H$1),0) -> 
A15: ='Alliance 2'!A17 ->  | B15: ='Alliance 2'!G17 ->  | C15: =ROUNDUP(24*3600*(1-EXP(-B15/350))*7.375*(0.9^'Alliance 2'!$H$1),0) -> 
A16: ='Alliance 2'!A18 ->  | B16: ='Alliance 2'!G18 ->  | C16: =ROUNDUP(24*3600*(1-EXP(-B16/350))*7.375*(0.9^'Alliance 2'!$H$1),0) -> 
A17: ='Alliance 2'!A19 ->  | B17: ='Alliance 2'!G19 ->  | C17: =ROUNDUP(24*3600*(1-EXP(-B17/350))*7.375*(0.9^'Alliance 2'!$H$1),0) -> 
A18: ='Alliance 2'!A20 ->  | B18: ='Alliance 2'!G20 ->  | C18: =ROUNDUP(24*3600*(1-EXP(-B18/350))*7.375*(0.9^'Alliance 2'!$H$1),0) -> 
A19: ='Alliance 2'!A21 ->  | B19: ='Alliance 2'!G21 ->  | C19: =ROUNDUP(24*3600*(1-EXP(-B19/350))*7.375*(0.9^'Alliance 2'!$H$1),0) -> 
A20: ='Alliance 2'!A22 ->  | B20: ='Alliance 2'!G22 ->  | C20: =ROUNDUP(24*3600*(1-EXP(-B20/350))*7.375*(0.9^'Alliance 2'!$H$1),0) -> 
A21: ='Alliance 2'!A23 ->  | B21: ='Alliance 2'!G23 ->  | C21: =ROUNDUP(24*3600*(1-EXP(-B21/350))*7.375*(0.9^'Alliance 2'!$H$1),0) -> 
A22: ='Alliance 2'!A24 ->  | B22: ='Alliance 2'!G24 ->  | C22: =ROUNDUP(24*3600*(1-EXP(-B22/350))*7.375*(0.9^'Alliance 2'!$H$1),0) -> 
A23: ='Alliance 2'!A25 ->  | B23: ='Alliance 2'!G25 ->  | C23: =ROUNDUP(24*3600*(1-EXP(-B23/350))*7.375*(0.9^'Alliance 2'!$H$1),0) -> 
A24: ='Alliance 2'!A26 ->  | B24: ='Alliance 2'!G26 ->  | C24: =ROUNDUP(24*3600*(1-EXP(-B24/350))*7.375*(0.9^'Alliance 2'!$H$1),0) -> 
A25: ='Alliance 2'!A27 ->  | B25: ='Alliance 2'!G27 ->  | C25: =ROUNDUP(24*3600*(1-EXP(-B25/350))*7.375*(0.9^'Alliance 2'!$H$1),0) -> 
A26: ='Alliance 2'!A28 ->  | B26: ='Alliance 2'!G28 ->  | C26: =ROUNDUP(24*3600*(1-EXP(-B26/350))*7.375*(0.9^'Alliance 2'!$H$1),0) -> 
A27: ='Alliance 2'!A29 ->  | B27: ='Alliance 2'!G29 ->  | C27: =ROUNDUP(24*3600*(1-EXP(-B27/350))*7.375*(0.9^'Alliance 2'!$H$1),0) -> 
A28: ='Alliance 2'!A30 ->  | B28: ='Alliance 2'!G30 ->  | C28: =ROUNDUP(24*3600*(1-EXP(-B28/350))*7.375*(0.9^'Alliance 2'!$H$1),0) -> 
A29: ='Alliance 2'!A31 ->  | B29: ='Alliance 2'!G31 ->  | C29: =ROUNDUP(24*3600*(1-EXP(-B29/350))*7.375*(0.9^'Alliance 2'!$H$1),0) -> 
A30: ='Alliance 2'!A32 ->  | B30: ='Alliance 2'!G32 ->  | C30: =ROUNDUP(24*3600*(1-EXP(-B30/350))*7.375*(0.9^'Alliance 2'!$H$1),0) -> 
A31: ='Alliance 2'!A33 ->  | B31: ='Alliance 2'!G33 ->  | C31: =ROUNDUP(24*3600*(1-EXP(-B31/350))*7.375*(0.9^'Alliance 2'!$H$1),0) -> 
A32: ='Alliance 2'!A34 ->  | B32: ='Alliance 2'!G34 ->  | C32: =ROUNDUP(24*3600*(1-EXP(-B32/350))*7.375*(0.9^'Alliance 2'!$H$1),0) -> 
A33: ='Alliance 2'!A35 ->  | B33: ='Alliance 2'!G35 ->  | C33: =ROUNDUP(24*3600*(1-EXP(-B33/350))*7.375*(0.9^'Alliance 2'!$H$1),0) -> 
A34: ='Alliance 2'!A36 ->  | B34: ='Alliance 2'!G36 ->  | C34: =ROUNDUP(24*3600*(1-EXP(-B34/350))*7.375*(0.9^'Alliance 2'!$H$1),0) -> 
A35: ='Alliance 2'!A37 ->  | B35: ='Alliance 2'!G37 ->  | C35: =ROUNDUP(24*3600*(1-EXP(-B35/350))*7.375*(0.9^'Alliance 2'!$H$1),0) -> 
A36: ='Alliance 2'!A38 ->  | B36: ='Alliance 2'!G38 ->  | C36: =ROUNDUP(24*3600*(1-EXP(-B36/350))*7.375*(0.9^'Alliance 2'!$H$1),0) -> 
A37: ='Alliance 2'!A39 ->  | B37: ='Alliance 2'!G39 ->  | C37: =ROUNDUP(24*3600*(1-EXP(-B37/350))*7.375*(0.9^'Alliance 2'!$H$1),0) -> 
A38: ='Alliance 2'!A40 ->  | B38: ='Alliance 2'!G40 ->  | C38: =ROUNDUP(24*3600*(1-EXP(-B38/350))*7.375*(0.9^'Alliance 2'!$H$1),0) -> 
A39: ='Alliance 2'!A41 ->  | B39: ='Alliance 2'!G41 ->  | C39: =ROUNDUP(24*3600*(1-EXP(-B39/350))*7.375*(0.9^'Alliance 2'!$H$1),0) -> 
A40: ='Alliance 2'!A42 ->  | B40: ='Alliance 2'!G42 ->  | C40: =ROUNDUP(24*3600*(1-EXP(-B40/350))*7.375*(0.9^'Alliance 2'!$H$1),0) -> 
A41: ='Alliance 2'!A43 ->  | B41: ='Alliance 2'!G43 ->  | C41: =ROUNDUP(24*3600*(1-EXP(-B41/350))*7.375*(0.9^'Alliance 2'!$H$1),0) -> 
A42: ='Alliance 2'!A44 ->  | B42: ='Alliance 2'!G44 ->  | C42: =ROUNDUP(24*3600*(1-EXP(-B42/350))*7.375*(0.9^'Alliance 2'!$H$1),0) -> 
A43: ='Alliance 2'!A45 ->  | B43: ='Alliance 2'!G45 ->  | C43: =ROUNDUP(24*3600*(1-EXP(-B43/350))*7.375*(0.9^'Alliance 2'!$H$1),0) -> 
A44: ='Alliance 2'!A46 ->  | B44: ='Alliance 2'!G46 ->  | C44: =ROUNDUP(24*3600*(1-EXP(-B44/350))*7.375*(0.9^'Alliance 2'!$H$1),0) -> 
A45: ='Alliance 2'!A47 ->  | B45: ='Alliance 2'!G47 ->  | C45: =ROUNDUP(24*3600*(1-EXP(-B45/350))*7.375*(0.9^'Alliance 2'!$H$1),0) -> 
A46: ='Alliance 2'!A48 ->  | B46: ='Alliance 2'!G48 ->  | C46: =ROUNDUP(24*3600*(1-EXP(-B46/350))*7.375*(0.9^'Alliance 2'!$H$1),0) -> 
A47: ='Alliance 2'!A49 ->  | B47: ='Alliance 2'!G49 ->  | C47: =ROUNDUP(24*3600*(1-EXP(-B47/350))*7.375*(0.9^'Alliance 2'!$H$1),0) -> 
A48: ='Alliance 2'!A50 ->  | B48: ='Alliance 2'!G50 ->  | C48: =ROUNDUP(24*3600*(1-EXP(-B48/350))*7.375*(0.9^'Alliance 2'!$H$1),0) -> 
A49: ='Alliance 2'!A51 ->  | B49: ='Alliance 2'!G51 ->  | C49: =ROUNDUP(24*3600*(1-EXP(-B49/350))*7.375*(0.9^'Alliance 2'!$H$1),0) -> 
A50: ='Alliance 2'!A52 ->  | B50: ='Alliance 2'!G52 ->  | C50: =ROUNDUP(24*3600*(1-EXP(-B50/350))*7.375*(0.9^'Alliance 2'!$H$1),0) -> 
A51: ='Alliance 2'!A53 ->  | B51: ='Alliance 2'!G53 ->  | C51: =ROUNDUP(24*3600*(1-EXP(-B51/350))*7.375*(0.9^'Alliance 2'!$H$1),0) -> 
A52: ='Alliance 2'!A54 ->  | B52: ='Alliance 2'!G54 ->  | C52: =ROUNDUP(24*3600*(1-EXP(-B52/350))*7.375*(0.9^'Alliance 2'!$H$1),0) -> 
A53: ='Alliance 2'!A55 ->  | B53: ='Alliance 2'!G55 ->  | C53: =ROUNDUP(24*3600*(1-EXP(-B53/350))*7.375*(0.9^'Alliance 2'!$H$1),0) -> 
A54: ='Alliance 2'!A56 ->  | B54: ='Alliance 2'!G56 ->  | C54: =ROUNDUP(24*3600*(1-EXP(-B54/350))*7.375*(0.9^'Alliance 2'!$H$1),0) -> 
A55: ='Alliance 2'!A57 ->  | B55: ='Alliance 2'!G57 ->  | C55: =ROUNDUP(24*3600*(1-EXP(-B55/350))*7.375*(0.9^'Alliance 2'!$H$1),0) -> 
A56: ='Alliance 2'!A58 ->  | B56: ='Alliance 2'!G58 ->  | C56: =ROUNDUP(24*3600*(1-EXP(-B56/350))*7.375*(0.9^'Alliance 2'!$H$1),0) -> 
A57: ='Alliance 2'!A59 ->  | B57: ='Alliance 2'!G59 ->  | C57: =ROUNDUP(24*3600*(1-EXP(-B57/350))*7.375*(0.9^'Alliance 2'!$H$1),0) -> 
A58: ='Alliance 2'!A60 ->  | B58: ='Alliance 2'!G60 ->  | C58: =ROUNDUP(24*3600*(1-EXP(-B58/350))*7.375*(0.9^'Alliance 2'!$H$1),0) -> 
A59: ='Alliance 2'!A61 ->  | B59: ='Alliance 2'!G61 ->  | C59: =ROUNDUP(24*3600*(1-EXP(-B59/350))*7.375*(0.9^'Alliance 2'!$H$1),0) -> 
A60: ='Alliance 2'!A62 ->  | B60: ='Alliance 2'!G62 ->  | C60: =ROUNDUP(24*3600*(1-EXP(-B60/350))*7.375*(0.9^'Alliance 2'!$H$1),0) -> 
A61: ='Alliance 2'!A63 ->  | B61: ='Alliance 2'!G63 ->  | C61: =ROUNDUP(24*3600*(1-EXP(-B61/350))*7.375*(0.9^'Alliance 2'!$H$1),0) -> 
A62: ='Alliance 2'!A64 ->  | B62: ='Alliance 2'!G64 ->  | C62: =ROUNDUP(24*3600*(1-EXP(-B62/350))*7.375*(0.9^'Alliance 2'!$H$1),0) -> 
A63: ='Alliance 2'!A65 ->  | B63: ='Alliance 2'!G65 ->  | C63: =ROUNDUP(24*3600*(1-EXP(-B63/350))*7.375*(0.9^'Alliance 2'!$H$1),0) -> 
A64: ='Alliance 2'!A66 ->  | B64: ='Alliance 2'!G66 ->  | C64: =ROUNDUP(24*3600*(1-EXP(-B64/350))*7.375*(0.9^'Alliance 2'!$H$1),0) -> 
A65: ='Alliance 2'!A67 ->  | B65: ='Alliance 2'!G67 ->  | C65: =ROUNDUP(24*3600*(1-EXP(-B65/350))*7.375*(0.9^'Alliance 2'!$H$1),0) -> 
A66: ='Alliance 2'!A68 ->  | B66: ='Alliance 2'!G68 ->  | C66: =ROUNDUP(24*3600*(1-EXP(-B66/350))*7.375*(0.9^'Alliance 2'!$H$1),0) -> 
A67: ='Alliance 2'!A69 ->  | B67: ='Alliance 2'!G69 ->  | C67: =ROUNDUP(24*3600*(1-EXP(-B67/350))*7.375*(0.9^'Alliance 2'!$H$1),0) ->  | D67: =ROUNDDOWN(C67/3600,0) ->  | E67: =ROUNDDOWN((C67-D67*3600)/60,0) ->  | F67: =ROUNDUP((C67-D67*3600-E67*60),0) ->  | G67: =TIME(D67,E67,F67) -> 
A68: ='Alliance 2'!A70 ->  | B68: ='Alliance 2'!G70 ->  | C68: =ROUNDUP(24*3600*(1-EXP(-B68/350))*7.375*(0.9^'Alliance 2'!$H$1),0) -> 
A69: ='Alliance 2'!A71 ->  | B69: ='Alliance 2'!G71 ->  | C69: =ROUNDUP(24*3600*(1-EXP(-B69/350))*7.375*(0.9^'Alliance 2'!$H$1),0) -> 
A70: ='Alliance 2'!A72 ->  | B70: ='Alliance 2'!G72 ->  | C70: =ROUNDUP(24*3600*(1-EXP(-B70/350))*7.375*(0.9^'Alliance 2'!$H$1),0) -> 
A71: ='Alliance 2'!A73 ->  | B71: ='Alliance 2'!G73 ->  | C71: =ROUNDUP(24*3600*(1-EXP(-B71/350))*7.375*(0.9^'Alliance 2'!$H$1),0) -> 
A72: ='Alliance 2'!A74 ->  | B72: ='Alliance 2'!G74 ->  | C72: =ROUNDUP(24*3600*(1-EXP(-B72/350))*7.375*(0.9^'Alliance 2'!$H$1),0) -> 
A73: ='Alliance 2'!A75 ->  | B73: ='Alliance 2'!G75 ->  | C73: =ROUNDUP(24*3600*(1-EXP(-B73/350))*7.375*(0.9^'Alliance 2'!$H$1),0) -> 
A74: ='Alliance 2'!A76 ->  | B74: ='Alliance 2'!G76 ->  | C74: =ROUNDUP(24*3600*(1-EXP(-B74/350))*7.375*(0.9^'Alliance 2'!$H$1),0) -> 
A75: ='Alliance 2'!A77 ->  | B75: ='Alliance 2'!G77 ->  | C75: =ROUNDUP(24*3600*(1-EXP(-B75/350))*7.375*(0.9^'Alliance 2'!$H$1),0) -> 
A76: ='Alliance 2'!A78 ->  | B76: ='Alliance 2'!G78 ->  | C76: =ROUNDUP(24*3600*(1-EXP(-B76/350))*7.375*(0.9^'Alliance 2'!$H$1),0) -> 
A77: ='Alliance 2'!A79 ->  | B77: ='Alliance 2'!G79 ->  | C77: =ROUNDUP(24*3600*(1-EXP(-B77/350))*7.375*(0.9^'Alliance 2'!$H$1),0) -> 
A78: ='Alliance 2'!A80 ->  | B78: ='Alliance 2'!G80 ->  | C78: =ROUNDUP(24*3600*(1-EXP(-B78/350))*7.375*(0.9^'Alliance 2'!$H$1),0) -> 
A79: ='Alliance 2'!A81 ->  | B79: ='Alliance 2'!G81 ->  | C79: =ROUNDUP(24*3600*(1-EXP(-B79/350))*7.375*(0.9^'Alliance 2'!$H$1),0) -> 
A80: ='Alliance 2'!A82 ->  | B80: ='Alliance 2'!G82 ->  | C80: =ROUNDUP(24*3600*(1-EXP(-B80/350))*7.375*(0.9^'Alliance 2'!$H$1),0) -> 
A81: ='Alliance 2'!A83 ->  | B81: ='Alliance 2'!G83 ->  | C81: =ROUNDUP(24*3600*(1-EXP(-B81/350))*7.375*(0.9^'Alliance 2'!$H$1),0) -> 
A82: ='Alliance 2'!A84 ->  | B82: ='Alliance 2'!G84 ->  | C82: =ROUNDUP(24*3600*(1-EXP(-B82/350))*7.375*(0.9^'Alliance 2'!$H$1),0) -> 
A83: ='Alliance 2'!A85 ->  | B83: ='Alliance 2'!G85 ->  | C83: =ROUNDUP(24*3600*(1-EXP(-B83/350))*7.375*(0.9^'Alliance 2'!$H$1),0) -> 
A84: ='Alliance 2'!A86 ->  | B84: ='Alliance 2'!G86 ->  | C84: =ROUNDUP(24*3600*(1-EXP(-B84/350))*7.375*(0.9^'Alliance 2'!$H$1),0) -> 
A85: ='Alliance 2'!A87 ->  | B85: ='Alliance 2'!G87 ->  | C85: =ROUNDUP(24*3600*(1-EXP(-B85/350))*7.375*(0.9^'Alliance 2'!$H$1),0) -> 
A86: ='Alliance 2'!A88 ->  | B86: ='Alliance 2'!G88 ->  | C86: =ROUNDUP(24*3600*(1-EXP(-B86/350))*7.375*(0.9^'Alliance 2'!$H$1),0) -> 
A87: ='Alliance 2'!A89 ->  | B87: ='Alliance 2'!G89 ->  | C87: =ROUNDUP(24*3600*(1-EXP(-B87/350))*7.375*(0.9^'Alliance 2'!$H$1),0) -> 
A88: ='Alliance 2'!A90 ->  | B88: ='Alliance 2'!G90 ->  | C88: =ROUNDUP(24*3600*(1-EXP(-B88/350))*7.375*(0.9^'Alliance 2'!$H$1),0) -> 
A89: ='Alliance 2'!A91 ->  | B89: ='Alliance 2'!G91 ->  | C89: =ROUNDUP(24*3600*(1-EXP(-B89/350))*7.375*(0.9^'Alliance 2'!$H$1),0) -> 
A90: ='Alliance 2'!A92 ->  | B90: ='Alliance 2'!G92 ->  | C90: =ROUNDUP(24*3600*(1-EXP(-B90/350))*7.375*(0.9^'Alliance 2'!$H$1),0) -> 
A91: ='Alliance 2'!A93 ->  | B91: ='Alliance 2'!G93 ->  | C91: =ROUNDUP(24*3600*(1-EXP(-B91/350))*7.375*(0.9^'Alliance 2'!$H$1),0) -> 
A92: ='Alliance 2'!A94 ->  | B92: ='Alliance 2'!G94 ->  | C92: =ROUNDUP(24*3600*(1-EXP(-B92/350))*7.375*(0.9^'Alliance 2'!$H$1),0) -> 
A93: ='Alliance 2'!A95 ->  | B93: ='Alliance 2'!G95 ->  | C93: =ROUNDUP(24*3600*(1-EXP(-B93/350))*7.375*(0.9^'Alliance 2'!$H$1),0) -> 
A94: ='Alliance 2'!A96 ->  | B94: ='Alliance 2'!G96 ->  | C94: =ROUNDUP(24*3600*(1-EXP(-B94/350))*7.375*(0.9^'Alliance 2'!$H$1),0) -> 
A95: ='Alliance 2'!A97 ->  | B95: ='Alliance 2'!G97 ->  | C95: =ROUNDUP(24*3600*(1-EXP(-B95/350))*7.375*(0.9^'Alliance 2'!$H$1),0) -> 
A96: ='Alliance 2'!A98 ->  | B96: ='Alliance 2'!G98 ->  | C96: =ROUNDUP(24*3600*(1-EXP(-B96/350))*7.375*(0.9^'Alliance 2'!$H$1),0) -> 
A97: ='Alliance 2'!A99 ->  | B97: ='Alliance 2'!G99 ->  | C97: =ROUNDUP(24*3600*(1-EXP(-B97/350))*7.375*(0.9^'Alliance 2'!$H$1),0) -> 
A98: ='Alliance 2'!A100 ->  | B98: ='Alliance 2'!G100 ->  | C98: =ROUNDUP(24*3600*(1-EXP(-B98/350))*7.375*(0.9^'Alliance 2'!$H$1),0) -> 
A99: ='Alliance 2'!A101 -> , | B99: ='Alliance 2'!G101 -> 0 | C99: =ROUNDUP(24*3600*(1-EXP(-B99/350))*7.375*(0.9^'Alliance 2'!$H$1),0) -> 0 | D99: 0 | E99: 0 | F99: 0 | G99: 00:00:00
A100: ='Alliance 2'!A102 -> 0 | B100: ='Alliance 2'!G102 -> 0 | C100: =ROUNDUP(24*3600*(1-EXP(-B100/350))*7.375*(0.9^'Alliance 2'!$H$1),0) -> 0 | D100: 0 | E100: 0 | F100: 0 | G100: 00:00:00

Sheet Data Ally 3 (hidden)
A1: Temps | B1: Distance | C1: Temps | D1: h | E1: min | F1: sec | G1: Soit
A2: ='Alliance 3'!A4 ->  | B2: ='Alliance 3'!G4 ->  | C2: =ROUNDUP(24*3600*(1-EXP(-B2/350))*7.375*(0.9^'Alliance 2'!$H$1),0) ->  | D2: =ROUNDDOWN(C2/3600,0) ->  | E2: =ROUNDDOWN((C2-D2*3600)/60,0) ->  | F2: =ROUNDUP((C2-D2*3600-E2*60),0) ->  | G2: =TIME(D2,E2,F2) -> 
A3: ='Alliance 3'!A5 ->  | B3: ='Alliance 3'!G5 ->  | C3: =ROUNDUP(24*3600*(1-EXP(-B3/350))*7.375*(0.9^'Alliance 2'!$H$1),0) ->  | D3: =ROUNDDOWN(C3/3600,0) ->  | E3: =ROUNDDOWN((C3-D3*3600)/60,0) ->  | F3: =ROUNDUP((C3-D3*3600-E3*60),0) ->  | G3: =TIME(D3,E3,F3) -> 
A4: ='Alliance 3'!A6 ->  | B4: ='Alliance 3'!G6 ->  | C4: =ROUNDUP(24*3600*(1-EXP(-B4/350))*7.375*(0.9^'Alliance 2'!$H$1),0) -> 
A5: ='Alliance 3'!A7 ->  | B5: ='Alliance 3'!G7 ->  | C5: =ROUNDUP(24*3600*(1-EXP(-B5/350))*7.375*(0.9^'Alliance 2'!$H$1),0) -> 
A6: ='Alliance 3'!A8 ->  | B6: ='Alliance 3'!G8 ->  | C6: =ROUNDUP(24*3600*(1-EXP(-B6/350))*7.375*(0.9^'Alliance 2'!$H$1),0) -> 
A7: ='Alliance 3'!A9 ->  | B7: ='Alliance 3'!G9 ->  | C7: =ROUNDUP(24*3600*(1-EXP(-B7/350))*7.375*(0.9^'Alliance 2'!$H$1),0) -> 
A8: ='Alliance 3'!A10 ->  | B8: ='Alliance 3'!G10 ->  | C8: =ROUNDUP(24*3600*(1-EXP(-B8/350))*7.375*(0.9^'Alliance 2'!$H$1),0) -> 
A9: ='Alliance 3'!A11 ->  | B9: ='Alliance 3'!G11 ->  | C9: =ROUNDUP(24*3600*(1-EXP(-B9/350))*7.375*(0.9^'Alliance 2'!$H$1),0) -> 
A10: ='Alliance 3'!A12 ->  | B10: ='Alliance 3'!G12 ->  | C10: =ROUNDUP(24*3600*(1-EXP(-B10/350))*7.375*(0.9^'Alliance 2'!$H$1),0) -> 
A11: ='Alliance 3'!A13 ->  | B11: ='Alliance 3'!G13 ->  | C11: =ROUNDUP(24*3600*(1-EXP(-B11/350))*7.375*(0.9^'Alliance 2'!$H$1),0) -> 
A12: ='Alliance 3'!A14 ->  | B12: ='Alliance 3'!G14 ->  | C12: =ROUNDUP(24*3600*(1-EXP(-B12/350))*7.375*(0.9^'Alliance 2'!$H$1),0) -> 
A13: ='Alliance 3'!A15 ->  | B13: ='Alliance 3'!G15 ->  | C13: =ROUNDUP(24*3600*(1-EXP(-B13/350))*7.375*(0.9^'Alliance 2'!$H$1),0) -> 
A14: ='Alliance 3'!A16 ->  | B14: ='Alliance 3'!G16 ->  | C14: =ROUNDUP(24*3600*(1-EXP(-B14/350))*7.375*(0.9^'Alliance 2'!$H$1),0) -> 
A15: ='Alliance 3'!A17 ->  | B15: ='Alliance 3'!G17 ->  | C15: =ROUNDUP(24*3600*(1-EXP(-B15/350))*7.375*(0.9^'Alliance 2'!$H$1),0) -> 
A16: ='Alliance 3'!A18 ->  | B16: ='Alliance 3'!G18 ->  | C16: =ROUNDUP(24*3600*(1-EXP(-B16/350))*7.375*(0.9^'Alliance 2'!$H$1),0) -> 
A17: ='Alliance 3'!A19 ->  | B17: ='Alliance 3'!G19 ->  | C17: =ROUNDUP(24*3600*(1-EXP(-B17/350))*7.375*(0.9^'Alliance 2'!$H$1),0) -> 
A18: ='Alliance 3'!A20 ->  | B18: ='Alliance 3'!G20 ->  | C18: =ROUNDUP(24*3600*(1-EXP(-B18/350))*7.375*(0.9^'Alliance 2'!$H$1),0) -> 
A19: ='Alliance 3'!A21 ->  | B19: ='Alliance 3'!G21 ->  | C19: =ROUNDUP(24*3600*(1-EXP(-B19/350))*7.375*(0.9^'Alliance 2'!$H$1),0) -> 
A20: ='Alliance 3'!A22 ->  | B20: ='Alliance 3'!G22 ->  | C20: =ROUNDUP(24*3600*(1-EXP(-B20/350))*7.375*(0.9^'Alliance 2'!$H$1),0) -> 
A21: ='Alliance 3'!A23 ->  | B21: ='Alliance 3'!G23 ->  | C21: =ROUNDUP(24*3600*(1-EXP(-B21/350))*7.375*(0.9^'Alliance 2'!$H$1),0) -> 
A22: ='Alliance 3'!A24 ->  | B22: ='Alliance 3'!G24 ->  | C22: =ROUNDUP(24*3600*(1-EXP(-B22/350))*7.375*(0.9^'Alliance 2'!$H$1),0) -> 
A23: ='Alliance 3'!A25 ->  | B23: ='Alliance 3'!G25 ->  | C23: =ROUNDUP(24*3600*(1-EXP(-B23/350))*7.375*(0.9^'Alliance 2'!$H$1),0) -> 
A24: ='Alliance 3'!A26 ->  | B24: ='Alliance 3'!G26 ->  | C24: =ROUNDUP(24*3600*(1-EXP(-B24/350))*7.375*(0.9^'Alliance 2'!$H$1),0) -> 
A25: ='Alliance 3'!A27 ->  | B25: ='Alliance 3'!G27 ->  | C25: =ROUNDUP(24*3600*(1-EXP(-B25/350))*7.375*(0.9^'Alliance 2'!$H$1),0) -> 
A26: ='Alliance 3'!A28 ->  | B26: ='Alliance 3'!G28 ->  | C26: =ROUNDUP(24*3600*(1-EXP(-B26/350))*7.375*(0.9^'Alliance 2'!$H$1),0) -> 
A27: ='Alliance 3'!A29 ->  | B27: ='Alliance 3'!G29 ->  | C27: =ROUNDUP(24*3600*(1-EXP(-B27/350))*7.375*(0.9^'Alliance 2'!$H$1),0) -> 
A28: ='Alliance 3'!A30 ->  | B28: ='Alliance 3'!G30 ->  | C28: =ROUNDUP(24*3600*(1-EXP(-B28/350))*7.375*(0.9^'Alliance 2'!$H$1),0) -> 
A29: ='Alliance 3'!A31 ->  | B29: ='Alliance 3'!G31 ->  | C29: =ROUNDUP(24*3600*(1-EXP(-B29/350))*7.375*(0.9^'Alliance 2'!$H$1),0) -> 
A30: ='Alliance 3'!A32 ->  | B30: ='Alliance 3'!G32 ->  | C30: =ROUNDUP(24*3600*(1-EXP(-B30/350))*7.375*(0.9^'Alliance 2'!$H$1),0) -> 
A31: ='Alliance 3'!A33 ->  | B31: ='Alliance 3'!G33 ->  | C31: =ROUNDUP(24*3600*(1-EXP(-B31/350))*7.375*(0.9^'Alliance 2'!$H$1),0) -> 
A32: ='Alliance 3'!A34 ->  | B32: ='Alliance 3'!G34 ->  | C32: =ROUNDUP(24*3600*(1-EXP(-B32/350))*7.375*(0.9^'Alliance 2'!$H$1),0) -> 
A33: ='Alliance 3'!A35 ->  | B33: ='Alliance 3'!G35 ->  | C33: =ROUNDUP(24*3600*(1-EXP(-B33/350))*7.375*(0.9^'Alliance 2'!$H$1),0) -> 
A34: ='Alliance 3'!A36 ->  | B34: ='Alliance 3'!G36 ->  | C34: =ROUNDUP(24*3600*(1-EXP(-B34/350))*7.375*(0.9^'Alliance 2'!$H$1),0) -> 
A35: ='Alliance 3'!A37 ->  | B35: ='Alliance 3'!G37 ->  | C35: =ROUNDUP(24*3600*(1-EXP(-B35/350))*7.375*(0.9^'Alliance 2'!$H$1),0) -> 
A36: ='Alliance 3'!A38 ->  | B36: ='Alliance 3'!G38 ->  | C36: =ROUNDUP(24*3600*(1-EXP(-B36/350))*7.375*(0.9^'Alliance 2'!$H$1),0) -> 
A37: ='Alliance 3'!A39 ->  | B37: ='Alliance 3'!G39 ->  | C37: =ROUNDUP(24*3600*(1-EXP(-B37/350))*7.375*(0.9^'Alliance 2'!$H$1),0) -> 
A38: ='Alliance 3'!A40 ->  | B38: ='Alliance 3'!G40 ->  | C38: =ROUNDUP(24*3600*(1-EXP(-B38/350))*7.375*(0.9^'Alliance 2'!$H$1),0) -> 
A39: ='Alliance 3'!A41 ->  | B39: ='Alliance 3'!G41 ->  | C39: =ROUNDUP(24*3600*(1-EXP(-B39/350))*7.375*(0.9^'Alliance 2'!$H$1),0) -> 
A40: ='Alliance 3'!A42 ->  | B40: ='Alliance 3'!G42 ->  | C40: =ROUNDUP(24*3600*(1-EXP(-B40/350))*7.375*(0.9^'Alliance 2'!$H$1),0) -> 
A41: ='Alliance 3'!A43 ->  | B41: ='Alliance 3'!G43 ->  | C41: =ROUNDUP(24*3600*(1-EXP(-B41/350))*7.375*(0.9^'Alliance 2'!$H$1),0) -> 
A42: ='Alliance 3'!A44 ->  | B42: ='Alliance 3'!G44 ->  | C42: =ROUNDUP(24*3600*(1-EXP(-B42/350))*7.375*(0.9^'Alliance 2'!$H$1),0) -> 
A43: ='Alliance 3'!A45 ->  | B43: ='Alliance 3'!G45 ->  | C43: =ROUNDUP(24*3600*(1-EXP(-B43/350))*7.375*(0.9^'Alliance 2'!$H$1),0) -> 
A44: ='Alliance 3'!A46 ->  | B44: ='Alliance 3'!G46 ->  | C44: =ROUNDUP(24*3600*(1-EXP(-B44/350))*7.375*(0.9^'Alliance 2'!$H$1),0) -> 
A45: ='Alliance 3'!A47 ->  | B45: ='Alliance 3'!G47 ->  | C45: =ROUNDUP(24*3600*(1-EXP(-B45/350))*7.375*(0.9^'Alliance 2'!$H$1),0) -> 
A46: ='Alliance 3'!A48 ->  | B46: ='Alliance 3'!G48 ->  | C46: =ROUNDUP(24*3600*(1-EXP(-B46/350))*7.375*(0.9^'Alliance 2'!$H$1),0) -> 
A47: ='Alliance 3'!A49 ->  | B47: ='Alliance 3'!G49 ->  | C47: =ROUNDUP(24*3600*(1-EXP(-B47/350))*7.375*(0.9^'Alliance 2'!$H$1),0) -> 
A48: ='Alliance 3'!A50 ->  | B48: ='Alliance 3'!G50 ->  | C48: =ROUNDUP(24*3600*(1-EXP(-B48/350))*7.375*(0.9^'Alliance 2'!$H$1),0) -> 
A49: ='Alliance 3'!A51 ->  | B49: ='Alliance 3'!G51 ->  | C49: =ROUNDUP(24*3600*(1-EXP(-B49/350))*7.375*(0.9^'Alliance 2'!$H$1),0) -> 
A50: ='Alliance 3'!A52 ->  | B50: ='Alliance 3'!G52 ->  | C50: =ROUNDUP(24*3600*(1-EXP(-B50/350))*7.375*(0.9^'Alliance 2'!$H$1),0) -> 
A51: ='Alliance 3'!A53 ->  | B51: ='Alliance 3'!G53 ->  | C51: =ROUNDUP(24*3600*(1-EXP(-B51/350))*7.375*(0.9^'Alliance 2'!$H$1),0) -> 
A52: ='Alliance 3'!A54 ->  | B52: ='Alliance 3'!G54 ->  | C52: =ROUNDUP(24*3600*(1-EXP(-B52/350))*7.375*(0.9^'Alliance 2'!$H$1),0) -> 
A53: ='Alliance 3'!A55 ->  | B53: ='Alliance 3'!G55 ->  | C53: =ROUNDUP(24*3600*(1-EXP(-B53/350))*7.375*(0.9^'Alliance 2'!$H$1),0) -> 
A54: ='Alliance 3'!A56 ->  | B54: ='Alliance 3'!G56 ->  | C54: =ROUNDUP(24*3600*(1-EXP(-B54/350))*7.375*(0.9^'Alliance 2'!$H$1),0) -> 
A55: ='Alliance 3'!A57 ->  | B55: ='Alliance 3'!G57 ->  | C55: =ROUNDUP(24*3600*(1-EXP(-B55/350))*7.375*(0.9^'Alliance 2'!$H$1),0) -> 
A56: ='Alliance 3'!A58 ->  | B56: ='Alliance 3'!G58 ->  | C56: =ROUNDUP(24*3600*(1-EXP(-B56/350))*7.375*(0.9^'Alliance 2'!$H$1),0) -> 
A57: ='Alliance 3'!A59 ->  | B57: ='Alliance 3'!G59 ->  | C57: =ROUNDUP(24*3600*(1-EXP(-B57/350))*7.375*(0.9^'Alliance 2'!$H$1),0) -> 
A58: ='Alliance 3'!A60 ->  | B58: ='Alliance 3'!G60 ->  | C58: =ROUNDUP(24*3600*(1-EXP(-B58/350))*7.375*(0.9^'Alliance 2'!$H$1),0) -> 
A59: ='Alliance 3'!A61 ->  | B59: ='Alliance 3'!G61 ->  | C59: =ROUNDUP(24*3600*(1-EXP(-B59/350))*7.375*(0.9^'Alliance 2'!$H$1),0) -> 
A60: ='Alliance 3'!A62 ->  | B60: ='Alliance 3'!G62 ->  | C60: =ROUNDUP(24*3600*(1-EXP(-B60/350))*7.375*(0.9^'Alliance 2'!$H$1),0) -> 
A61: ='Alliance 3'!A63 ->  | B61: ='Alliance 3'!G63 ->  | C61: =ROUNDUP(24*3600*(1-EXP(-B61/350))*7.375*(0.9^'Alliance 2'!$H$1),0) -> 
A62: ='Alliance 3'!A64 ->  | B62: ='Alliance 3'!G64 ->  | C62: =ROUNDUP(24*3600*(1-EXP(-B62/350))*7.375*(0.9^'Alliance 2'!$H$1),0) -> 
A63: ='Alliance 3'!A65 ->  | B63: ='Alliance 3'!G65 ->  | C63: =ROUNDUP(24*3600*(1-EXP(-B63/350))*7.375*(0.9^'Alliance 2'!$H$1),0) -> 
A64: ='Alliance 3'!A66 ->  | B64: ='Alliance 3'!G66 ->  | C64: =ROUNDUP(24*3600*(1-EXP(-B64/350))*7.375*(0.9^'Alliance 2'!$H$1),0) -> 
A65: ='Alliance 3'!A67 ->  | B65: ='Alliance 3'!G67 ->  | C65: =ROUNDUP(24*3600*(1-EXP(-B65/350))*7.375*(0.9^'Alliance 2'!$H$1),0) -> 
A66: ='Alliance 3'!A68 ->  | B66: ='Alliance 3'!G68 ->  | C66: =ROUNDUP(24*3600*(1-EXP(-B66/350))*7.375*(0.9^'Alliance 2'!$H$1),0) -> 
A67: ='Alliance 3'!A69 ->  | B67: ='Alliance 3'!G69 ->  | C67: =ROUNDUP(24*3600*(1-EXP(-B67/350))*7.375*(0.9^'Alliance 2'!$H$1),0) ->  | D67: =ROUNDDOWN(C67/3600,0) ->  | E67: =ROUNDDOWN((C67-D67*3600)/60,0) ->  | F67: =ROUNDUP((C67-D67*3600-E67*60),0) ->  | G67: =TIME(D67,E67,F67) -> 
A68: ='Alliance 3'!A70 ->  | B68: ='Alliance 3'!G70 ->  | C68: =ROUNDUP(24*3600*(1-EXP(-B68/350))*7.375*(0.9^'Alliance 2'!$H$1),0) -> 
A69: ='Alliance 3'!A71 ->  | B69: ='Alliance 3'!G71 ->  | C69: =ROUNDUP(24*3600*(1-EXP(-B69/350))*7.375*(0.9^'Alliance 2'!$H$1),0) -> 
A70: ='Alliance 3'!A72 ->  | B70: ='Alliance 3'!G72 ->  | C70: =ROUNDUP(24*3600*(1-EXP(-B70/350))*7.375*(0.9^'Alliance 2'!$H$1),0) -> 
A71: ='Alliance 3'!A73 ->  | B71: ='Alliance 3'!G73 ->  | C71: =ROUNDUP(24*3600*(1-EXP(-B71/350))*7.375*(0.9^'Alliance 2'!$H$1),0) -> 
A72: ='Alliance 3'!A74 ->  | B72: ='Alliance 3'!G74 ->  | C72: =ROUNDUP(24*3600*(1-EXP(-B72/350))*7.375*(0.9^'Alliance 2'!$H$1),0) -> 
A73: ='Alliance 3'!A75 ->  | B73: ='Alliance 3'!G75 ->  | C73: =ROUNDUP(24*3600*(1-EXP(-B73/350))*7.375*(0.9^'Alliance 2'!$H$1),0) -> 
A74: ='Alliance 3'!A76 ->  | B74: ='Alliance 3'!G76 ->  | C74: =ROUNDUP(24*3600*(1-EXP(-B74/350))*7.375*(0.9^'Alliance 2'!$H$1),0) -> 
A75: ='Alliance 3'!A77 ->  | B75: ='Alliance 3'!G77 ->  | C75: =ROUNDUP(24*3600*(1-EXP(-B75/350))*7.375*(0.9^'Alliance 2'!$H$1),0) -> 
A76: ='Alliance 3'!A78 ->  | B76: ='Alliance 3'!G78 ->  | C76: =ROUNDUP(24*3600*(1-EXP(-B76/350))*7.375*(0.9^'Alliance 2'!$H$1),0) -> 
A77: ='Alliance 3'!A79 ->  | B77: ='Alliance 3'!G79 ->  | C77: =ROUNDUP(24*3600*(1-EXP(-B77/350))*7.375*(0.9^'Alliance 2'!$H$1),0) -> 
A78: ='Alliance 3'!A80 ->  | B78: ='Alliance 3'!G80 ->  | C78: =ROUNDUP(24*3600*(1-EXP(-B78/350))*7.375*(0.9^'Alliance 2'!$H$1),0) -> 
A79: ='Alliance 3'!A81 ->  | B79: ='Alliance 3'!G81 ->  | C79: =ROUNDUP(24*3600*(1-EXP(-B79/350))*7.375*(0.9^'Alliance 2'!$H$1),0) -> 
A80: ='Alliance 3'!A82 ->  | B80: ='Alliance 3'!G82 ->  | C80: =ROUNDUP(24*3600*(1-EXP(-B80/350))*7.375*(0.9^'Alliance 2'!$H$1),0) -> 
A81: ='Alliance 3'!A83 ->  | B81: ='Alliance 3'!G83 ->  | C81: =ROUNDUP(24*3600*(1-EXP(-B81/350))*7.375*(0.9^'Alliance 2'!$H$1),0) -> 
A82: ='Alliance 3'!A84 ->  | B82: ='Alliance 3'!G84 ->  | C82: =ROUNDUP(24*3600*(1-EXP(-B82/350))*7.375*(0.9^'Alliance 2'!$H$1),0) -> 
A83: ='Alliance 3'!A85 ->  | B83: ='Alliance 3'!G85 ->  | C83: =ROUNDUP(24*3600*(1-EXP(-B83/350))*7.375*(0.9^'Alliance 2'!$H$1),0) -> 
A84: ='Alliance 3'!A86 ->  | B84: ='Alliance 3'!G86 ->  | C84: =ROUNDUP(24*3600*(1-EXP(-B84/350))*7.375*(0.9^'Alliance 2'!$H$1),0) -> 
A85: ='Alliance 3'!A87 ->  | B85: ='Alliance 3'!G87 ->  | C85: =ROUNDUP(24*3600*(1-EXP(-B85/350))*7.375*(0.9^'Alliance 2'!$H$1),0) -> 
A86: ='Alliance 3'!A88 ->  | B86: ='Alliance 3'!G88 ->  | C86: =ROUNDUP(24*3600*(1-EXP(-B86/350))*7.375*(0.9^'Alliance 2'!$H$1),0) -> 
A87: ='Alliance 3'!A89 ->  | B87: ='Alliance 3'!G89 ->  | C87: =ROUNDUP(24*3600*(1-EXP(-B87/350))*7.375*(0.9^'Alliance 2'!$H$1),0) -> 
A88: ='Alliance 3'!A90 ->  | B88: ='Alliance 3'!G90 ->  | C88: =ROUNDUP(24*3600*(1-EXP(-B88/350))*7.375*(0.9^'Alliance 2'!$H$1),0) -> 
A89: ='Alliance 3'!A91 ->  | B89: ='Alliance 3'!G91 ->  | C89: =ROUNDUP(24*3600*(1-EXP(-B89/350))*7.375*(0.9^'Alliance 2'!$H$1),0) -> 
A90: ='Alliance 3'!A92 ->  | B90: ='Alliance 3'!G92 ->  | C90: =ROUNDUP(24*3600*(1-EXP(-B90/350))*7.375*(0.9^'Alliance 2'!$H$1),0) -> 
A91: ='Alliance 3'!A93 ->  | B91: ='Alliance 3'!G93 ->  | C91: =ROUNDUP(24*3600*(1-EXP(-B91/350))*7.375*(0.9^'Alliance 2'!$H$1),0) -> 
A92: ='Alliance 3'!A94 ->  | B92: ='Alliance 3'!G94 ->  | C92: =ROUNDUP(24*3600*(1-EXP(-B92/350))*7.375*(0.9^'Alliance 2'!$H$1),0) -> 
A93: ='Alliance 3'!A95 ->  | B93: ='Alliance 3'!G95 ->  | C93: =ROUNDUP(24*3600*(1-EXP(-B93/350))*7.375*(0.9^'Alliance 2'!$H$1),0) -> 
A94: ='Alliance 3'!A96 ->  | B94: ='Alliance 3'!G96 ->  | C94: =ROUNDUP(24*3600*(1-EXP(-B94/350))*7.375*(0.9^'Alliance 2'!$H$1),0) -> 
A95: ='Alliance 3'!A97 ->  | B95: ='Alliance 3'!G97 ->  | C95: =ROUNDUP(24*3600*(1-EXP(-B95/350))*7.375*(0.9^'Alliance 2'!$H$1),0) -> 
A96: ='Alliance 3'!A98 ->  | B96: ='Alliance 3'!G98 ->  | C96: =ROUNDUP(24*3600*(1-EXP(-B96/350))*7.375*(0.9^'Alliance 2'!$H$1),0) -> 
A97: ='Alliance 3'!A99 ->  | B97: ='Alliance 3'!G99 ->  | C97: =ROUNDUP(24*3600*(1-EXP(-B97/350))*7.375*(0.9^'Alliance 2'!$H$1),0) -> 
A98: ='Alliance 3'!A100 ->  | B98: ='Alliance 3'!G100 ->  | C98: =ROUNDUP(24*3600*(1-EXP(-B98/350))*7.375*(0.9^'Alliance 2'!$H$1),0) -> 
A99: ='Alliance 3'!A101 -> , | B99: ='Alliance 3'!G101 -> 0 | C99: =ROUNDUP(24*3600*(1-EXP(-B99/350))*7.375*(0.9^'Alliance 2'!$H$1),0) -> 0 | D99: 0 | E99: 0 | F99: 0 | G99: 00:00:00
A100: ='Alliance 3'!A102 -> 0 | B100: ='Alliance 3'!G102 -> 0 | C100: =ROUNDUP(24*3600*(1-EXP(-B100/350))*7.375*(0.9^'Alliance 2'!$H$1),0) -> 0 | D100: 0 | E100: 0 | F100: 0 | G100: 00:00:00

Sheet Liste des joueurs
A1: Pseudo | B1: x | C1: y | D1: Alliance
A2: ------------------ | B2: 36 | C2: 1711 | D2: ='[2]Analyse BDD'!H10024 -> LF
A3: ....assassin123.... | B3: 26 | C3: 37 | D3: ='[2]Analyse BDD'!H444 -> CXIII
A4: ...Rza... | B4: 29 | C4: 28 | D4: ='[2]Analyse BDD'!H318 -> God
A5: .4l3x | B5: 42 | C5: 484 | D5: ='[2]Analyse BDD'!H3587 -> 0
A6: .666. | B6: 37 | C6: 1297 | D6: ='[2]Analyse BDD'!H7578 -> 0
A7: .GuiGou12. | B7: 7 | C7: 96 | D7: ='[2]Analyse BDD'!H1163 -> 0
A8: .Limi. | B8: 47 | C8: 390 | D8: ='[2]Analyse BDD'!H3162 -> MS
A9: .Linou. | B9: 3 | C9: 2374 | D9: ='[2]Analyse BDD'!H19583 -> 0
A10: .nicolas62. | B10: 28 | C10: 2167 | D10: ='[2]Analyse BDD'!H15229 -> 0
A11: .vins.96 | B11: 29 | C11: 2130 | D11: ='[2]Analyse BDD'!H14398 -> 0
A12: ___________________ | B12: 12 | C12: 2061 | D12: ='[2]Analyse BDD'!H12361 -> 0
A13: _Angel_ | B13: 40 | C13: 173 | D13: ='[2]Analyse BDD'!H1906 -> LXM
A14: _Antho_ | B14: 14 | C14: 257 | D14: ='[2]Analyse BDD'!H2461 -> ADFR
A15: _changement_ | B15: 10 | C15: 1640 | D15: ='[2]Analyse BDD'!H9565 -> _LDF_
A16: _diablo_ | B16: 5 | C16: 173 | D16: ='[2]Analyse BDD'!H1896 -> LXM
A17: -_-diabolix-_- | B17: 41 | C17: 801 | D17: ='[2]Analyse BDD'!H5070 -> 0
A18: _Elektra_ | B18: 32 | C18: 2289 | D18: ='[2]Analyse BDD'!H17747 -> 0
A19: _Emeraude_ | B19: 32 | C19: 1571 | D19: ='[2]Analyse BDD'!H9142 -> A.E
A20: _foumi_ | B20: 2 | C20: 2306 | D20: ='[2]Analyse BDD'!H18128 -> 0
A21: _Master169_ | B21: 19 | C21: 1989 | D21: ='[2]Analyse BDD'!H11314 -> 0
A22: _moimoimoi575 | B22: 15 | C22: 2019 | D22: ='[2]Analyse BDD'!H11612 -> 0
A23: _Niki_ | B23: 29 | C23: 885 | D23: ='[2]Analyse BDD'!H5506 -> 0
A24: _SEB_ou07 | B24: 18 | C24: 379 | D24: ='[2]Analyse BDD'!H3119 -> L.M
A25: _Wolverine_ | B25: 36 | C25: 173 | D25: ='[2]Analyse BDD'!H1905 -> LXM
A26: _XxNYTHOxX_ | B26: 29 | C26: 767 | D26: ='[2]Analyse BDD'!H4908 -> 0
A27: _Z.4_ | B27: 24 | C27: 84 | D27: ='[2]Analyse BDD'!H1000 -> TOD
A28: 000000000 | B28: 23 | C28: 2083 | D28: ='[2]Analyse BDD'!H12798 -> 0
A29: 000000000 | B29: 23 | C29: 2083 | D29: ='[2]Analyse BDD'!H13464 -> 0
A30: 007-travers | B30: 39 | C30: 1981 | D30: ='[2]Analyse BDD'!H11244 -> vinc
A31: 00titou00 | B31: 30 | C31: 2371 | D31: ='[2]Analyse BDD'!H9235 -> 0
A32: 0111 | B32: 34 | C32: 2303 | D32: ='[2]Analyse BDD'!H18063 -> 0
A33: 01zun | B33: 7 | C33: 1649 | D33: ='[2]Analyse BDD'!H9613 -> ONE
A34: 04diogo | B34: 11 | C34: 945 | D34: ='[2]Analyse BDD'!H5815 -> sud
A35: 08hardcore08 | B35: 18 | C35: 117 | D35: ='[2]Analyse BDD'!H1409 -> LCM
A36: 0o-oasis82-o0 | B36: 42 | C36: 2332 | D36: ='[2]Analyse BDD'!H18694 -> L-G-T
A37: 0-YoP | B37: 39 | C37: 2075 | D37: ='[2]Analyse BDD'!H12639 -> 0
A38: 1000pattes | B38: 4 | C38: 825 | D38: ='[2]Analyse BDD'!H5177 -> Aire
A39: 100e | B39: 27 | C39: 834 | D39: ='[2]Analyse BDD'!H5227 -> CSBok
A40: 100emilien | B40: 18 | C40: 1689 | D40: ='[2]Analyse BDD'!H9878 -> tic
A41: 103.683eme | B41: 14 | C41: 2263 | D41: ='[2]Analyse BDD'!H17229 -> 0
A42: 103_683 | B42: 1 | C42: 1826 | D42: ='[2]Analyse BDD'!H10236 -> 0
A43: 103603 | B43: 37 | C43: 182 | D43: ='[2]Analyse BDD'!H1619 -> 0
A44: 103683e | B44: 7 | C44: 514 | D44: ='[2]Analyse BDD'!H3735 -> 0
A45: 103eme | B45: 33 | C45: 256 | D45: ='[2]Analyse BDD'!H2455 -> -LMF-
A46: 103rodo | B46: 11 | C46: 233 | D46: ='[2]Analyse BDD'!H2293 -> 0
A47: 104e | B47: 10 | C47: 1852 | D47: ='[2]Analyse BDD'!H10399 -> 0
A48: 10emilien | B48: 22 | C48: 1327 | D48: ='[2]Analyse BDD'!H468 -> 0
A49: 10jap | B49: 29 | C49: 2185 | D49: ='[2]Analyse BDD'!H11514 -> 0
A50: 10rotules | B50: 6 | C50: 448 | D50: ='[2]Analyse BDD'!H3429 -> WNE
A51: 10The-Crow01 | B51: 29 | C51: 1575 | D51: ='[2]Analyse BDD'!H9184 -> L-PHX
A52: 113eme | B52: 27 | C52: 1594 | D52: ='[2]Analyse BDD'!H9299 -> M.U.F
A53: 118009 | B53: 3 | C53: 2373 | D53: ='[2]Analyse BDD'!H19544 -> 0
A54: 1234 | B54: 23 | C54: 936 | D54: ='[2]Analyse BDD'!H5781 -> C.C
A55: 123456789p | B55: 45 | C55: 1831 | D55: ='[2]Analyse BDD'!H10274 -> 0
A56: 1234568 | B56: 43 | C56: 898 | D56: ='[2]Analyse BDD'!H5584 -> 0
A57: 1234asdf | B57: 22 | C57: 1361 | D57: ='[2]Analyse BDD'!H7963 -> 0
A58: 123ABC | B58: 19 | C58: 2405 | D58: ='[2]Analyse BDD'!H20206 -> 0
A59: 123fourmi | B59: 20 | C59: 331 | D59: ='[2]Analyse BDD'!H2916 -> 0
A60: 1250 | B60: 2 | C60: 393 | D60: ='[2]Analyse BDD'!H3133 -> LWP
A61: 12ans | B61: 9 | C61: 2345 | D61: ='[2]Analyse BDD'!H18981 -> 0
A62: 143451 | B62: 28 | C62: 2120 | D62: ='[2]Analyse BDD'!H14284 -> 0
A63: 14anskevin | B63: 36 | C63: 543 | D63: ='[2]Analyse BDD'!H3854 -> ANTI
A64: 1524 | B64: 44 | C64: 2070 | D64: ='[2]Analyse BDD'!H12546 -> 0
A65: 15900000000 | B65: 23 | C65: 2276 | D65: ='[2]Analyse BDD'!H17487 -> 0
A66: 16260 | B66: 38 | C66: 2349 | D66: ='[2]Analyse BDD'!H19088 -> 0
A67: 163eme | B67: 29 | C67: 93 | D67: ='[2]Analyse BDD'!H1122 -> ZEN
A68: 169258 | B68: 34 | C68: 2298 | D68: ='[2]Analyse BDD'!H17959 -> 0
A69: 180799 | B69: 44 | C69: 2247 | D69: ='[2]Analyse BDD'!H16944 -> 0
A70: 183e | B70: 39 | C70: 2151 | D70: ='[2]Analyse BDD'!H14890 -> 0
A71: 19kevin98 | B71: 14 | C71: 1640 | D71: ='[2]Analyse BDD'!H9563 -> 0
A72: 1emilien | B72: 20 | C72: 837 | D72: ='[2]Analyse BDD'!H5252 -> 666
A73: 1Laura1 | B73: 42 | C73: 2115 | D73: ='[2]Analyse BDD'!H14157 -> 0
A74: 1olli | B74: 37 | C74: 2274 | D74: ='[2]Analyse BDD'!H17431 -> 0
A75: 1sully1 | B75: 21 | C75: 1243 | D75: ='[2]Analyse BDD'!H7295 -> FYW
A76: 1-Tox | B76: 37 | C76: 122 | D76: ='[2]Analyse BDD'!H1466 -> RSF
A77: 20000 | B77: 7 | C77: 1679 | D77: ='[2]Analyse BDD'!H9821 -> 0
A78: 202034 | B78: 14 | C78: 2354 | D78: ='[2]Analyse BDD'!H19151 -> 0
A79: 20cyl | B79: 23 | C79: 597 | D79: ='[2]Analyse BDD'!H4098 -> GANJA
A80: 21leon | B80: 9 | C80: 2148 | D80: ='[2]Analyse BDD'!H14802 -> 0
A81: 222222 | B81: 44 | C81: 637 | D81: ='[2]Analyse BDD'!H4272 -> 0
A82: 2222228 | B82: 20 | C82: 2188 | D82: ='[2]Analyse BDD'!H15676 -> 0
A83: 2401floflo | B83: 27 | C83: 2163 | D83: ='[2]Analyse BDD'!H15101 -> 0
A84: 240601 | B84: 17 | C84: 1035 | D84: ='[2]Analyse BDD'!H6221 -> 24060
A85: 24eme | B85: 46 | C85: 2272 | D85: ='[2]Analyse BDD'!H17390 -> 0
A86: 250789 | B86: 17 | C86: 2144 | D86: ='[2]Analyse BDD'!H14733 -> 0
A87: 2509buck | B87: 20 | C87: 2239 | D87: ='[2]Analyse BDD'!H16734 -> 0
A88: 25niko | B88: 6 | C88: 1618 | D88: ='[2]Analyse BDD'!H9441 -> 0
A89: 26titi11 | B89: 16 | C89: 522 | D89: ='[2]Analyse BDD'!H3777 -> 0
A90: 275abis | B90: 19 | C90: 1508 | D90: ='[2]Analyse BDD'!H8758 -> DD
A91: 2803bart | B91: 13 | C91: 2339 | D91: ='[2]Analyse BDD'!H18855 -> 0
A92: 2891-218 | B92: 42 | C92: 852 | D92: ='[2]Analyse BDD'!H5323 -> S.A
A93: 29xraypbd | B93: 12 | C93: 2290 | D93: ='[2]Analyse BDD'!H17769 -> 0
A94: 2cwx632 | B94: 16 | C94: 2121 | D94: ='[2]Analyse BDD'!H14258 -> 0
A95: 2FLAG | B95: 36 | C95: 2299 | D95: ='[2]Analyse BDD'!H17973 -> LCM
A96: -2-HiGRiSE-8- | B96: 32 | C96: 2083 | D96: ='[2]Analyse BDD'!H12795 -> 0
A97: -2-HiGRiSE-8- | B97: 32 | C97: 2083 | D97: ='[2]Analyse BDD'!H13461 -> 0
A98: 2k2m | B98: 5 | C98: 17 | D98: ='[2]Analyse BDD'!H161 -> 0
A99: 2-Sevrian | B99: 16 | C99: 1867 | D99: ='[2]Analyse BDD'!H10484 -> 0
A100: 3_3_3_3 | B100: 41 | C100: 2073 | D100: ='[2]Analyse BDD'!H12600 -> 0
A101: 30000 | B101: 36 | C101: 2141 | D101: ='[2]Analyse BDD'!H14669 -> 0
A102: 300balle | B102: 18 | C102: 2113 | D102: ='[2]Analyse BDD'!H14120 -> NO-AF
A103: 314pir | B103: 28 | C103: 1295 | D103: ='[2]Analyse BDD'!H7576 -> 0
A104: 326emale | B104: 7 | C104: 963 | D104: ='[2]Analyse BDD'!H5882 -> 0
A105: 327e | B105: 34 | C105: 575 | D105: ='[2]Analyse BDD'!H3999 -> 0
A106: 3333RIDDICK3333 | B106: 33 | C106: 480 | D106: ='[2]Analyse BDD'!H3578 -> -EMP-
A107: 333Spartiate333 | B107: 43 | C107: 25 | D107: ='[2]Analyse BDD'!H278 -> TOD
A108: 38ALLSTARS | B108: 14 | C108: 2242 | D108: ='[2]Analyse BDD'!H16830 -> 0
A109: 3siop3 | B109: 8 | C109: 1973 | D109: ='[2]Analyse BDD'!H11172 -> 0
A110: 3TAZ | B110: 37 | C110: 257 | D110: ='[2]Analyse BDD'!H2459 -> tzzzz
A111: 3words8letters | B111: 33 | C111: 1129 | D111: ='[2]Analyse BDD'!H6699 -> AKS
A112: 47210 | B112: 23 | C112: 1977 | D112: ='[2]Analyse BDD'!H11209 -> 0
A113: 4gphan76 | B113: 13 | C113: 49 | D113: ='[2]Analyse BDD'!H603 -> 0
A114: 4midiable | B114: 40 | C114: 161 | D114: ='[2]Analyse BDD'!H1793 -> LXM
A115: 4mis | B115: 16 | C115: 1253 | D115: ='[2]Analyse BDD'!H7353 -> Rasta
A116: 4sile | B116: 41 | C116: 1266 | D116: ='[2]Analyse BDD'!H7419 -> 0
A117: 543006 | B117: 25 | C117: 2349 | D117: ='[2]Analyse BDD'!H19075 -> 0
A118: 54julie54 | B118: 8 | C118: 2380 | D118: ='[2]Analyse BDD'!H19674 -> 0
A119: 56eme | B119: 11 | C119: 2106 | D119: ='[2]Analyse BDD'!H13302 -> 0
A120: 56eme | B120: 11 | C120: 2106 | D120: ='[2]Analyse BDD'!H13968 -> 0
A121: 59690 | B121: 33 | C121: 2404 | D121: ='[2]Analyse BDD'!H20172 -> 0
A122: 5audrey5 | B122: 42 | C122: 2366 | D122: ='[2]Analyse BDD'!H19438 -> 0
A123: 600balles | B123: 19 | C123: 297 | D123: ='[2]Analyse BDD'!H2651 -> RCZ
A124: 666x666 | B124: 39 | C124: 183 | D124: ='[2]Analyse BDD'!H1980 -> LEFzz
A125: 69cam | B125: 12 | C125: 341 | D125: ='[2]Analyse BDD'!H2954 -> 0
A126: 69chilou | B126: 40 | C126: 1260 | D126: ='[2]Analyse BDD'!H7390 -> PRS
A127: 6yoda6 | B127: 14 | C127: 1930 | D127: ='[2]Analyse BDD'!H10867 -> 0
A128: 70Cachou | B128: 6 | C128: 1940 | D128: ='[2]Analyse BDD'!H10939 -> 0
A129: 77blackbird | B129: 47 | C129: 948 | D129: ='[2]Analyse BDD'!H5826 -> ALCOL
A130: 77leiable | B130: 18 | C130: 1995 | D130: ='[2]Analyse BDD'!H11381 -> Lion
A131: 77marvin77 | B131: 38 | C131: 2319 | D131: ='[2]Analyse BDD'!H18442 -> 0
A132: 77snake77 | B132: 18 | C132: 309 | D132: ='[2]Analyse BDD'!H2697 -> ODT
A133: 78miss | B133: 30 | C133: 1404 | D133: ='[2]Analyse BDD'!H8214 -> 0
A134: 7Lisa | B134: 46 | C134: 2144 | D134: ='[2]Analyse BDD'!H14720 -> 0
A135: 7Solo7 | B135: 31 | C135: 2189 | D135: ='[2]Analyse BDD'!H15700 -> A.R
A136: 7val7 | B136: 32 | C136: 2322 | D136: ='[2]Analyse BDD'!H18482 -> 0
A137: 89000 | B137: 13 | C137: 2268 | D137: ='[2]Analyse BDD'!H17291 -> 0
A138: 8bierealeop | B138: 42 | C138: 2364 | D138: ='[2]Analyse BDD'!H19394 -> 0
A139: 8ejiTa | B139: 30 | C139: 1836 | D139: ='[2]Analyse BDD'!H10307 -> 0
A140: 8pattes | B140: 44 | C140: 2075 | D140: ='[2]Analyse BDD'!H12646 -> MA
A141: 8romain | B141: 41 | C141: 2030 | D141: ='[2]Analyse BDD'!H11716 -> 0
A142: 914571 | B142: 16 | C142: 2314 | D142: ='[2]Analyse BDD'!H18323 -> 0
A143: 93master | B143: 44 | C143: 2374 | D143: ='[2]Analyse BDD'!H19560 -> 0
A144: 974BLANKO | B144: 4 | C144: 1501 | D144: ='[2]Analyse BDD'!H8543 -> Aire
A145: 97remi | B145: 6 | C145: 2117 | D145: ='[2]Analyse BDD'!H14219 -> 0
A146: 987654321 | B146: 10 | C146: 1568 | D146: ='[2]Analyse BDD'!H9110 -> 0
A147: 987654321marvin | B147: 16 | C147: 1228 | D147: ='[2]Analyse BDD'!H7207 -> MV
A148: 99lolo | B148: 36 | C148: 2247 | D148: ='[2]Analyse BDD'!H16947 -> 0
A149: 9oiukpascal | B149: 3 | C149: 653 | D149: ='[2]Analyse BDD'!H4354 -> RCZ
A150: A.T.T.I.L.A. | B150: 40 | C150: 112 | D150: ='[2]Analyse BDD'!H1347 -> H-K
A151: A_la_mirabelle | B151: 11 | C151: 1651 | D151: ='[2]Analyse BDD'!H9617 -> 0
A152: a2mots | B152: 28 | C152: 1181 | D152: ='[2]Analyse BDD'!H6979 -> SER
A153: aaaaaaa | B153: 42 | C153: 2336 | D153: ='[2]Analyse BDD'!H18787 -> 0
A154: aaaaarrrgh | B154: 13 | C154: 139 | D154: ='[2]Analyse BDD'!H1599 -> LSTR
A155: aabbcc | B155: 42 | C155: 2193 | D155: ='[2]Analyse BDD'!H15796 -> 0
A156: Aaldaron | B156: 38 | C156: 2160 | D156: ='[2]Analyse BDD'!H15060 -> 0
A157: aaprtt | B157: 45 | C157: 2177 | D157: ='[2]Analyse BDD'!H15443 -> 0
A158: Aarion | B158: 37 | C158: 114 | D158: ='[2]Analyse BDD'!H1375 -> SPLIF
A159: aaronnick | B159: 29 | C159: 2398 | D159: ='[2]Analyse BDD'!H20064 -> 0
A160: aarrg | B160: 26 | C160: 2038 | D160: ='[2]Analyse BDD'!H11898 -> 0
A161: aarrthuurr | B161: 11 | C161: 2036 | D161: ='[2]Analyse BDD'!H11868 -> 0
A162: ab123 | B162: 33 | C162: 989 | D162: ='[2]Analyse BDD'!H5992 -> 0
A163: AB64 | B163: 22 | C163: 14 | D163: ='[2]Analyse BDD'!H124 -> LXM
A164: abba | B164: 44 | C164: 1563 | D164: ='[2]Analyse BDD'!H9074 -> 0
A165: Abby | B165: 21 | C165: 1423 | D165: ='[2]Analyse BDD'!H8328 -> EST
A166: abbyssion | B166: 14 | C166: 67 | D166: ='[2]Analyse BDD'!H811 -> nwnc
A167: abc-123 | B167: 11 | C167: 1042 | D167: ='[2]Analyse BDD'!H6268 -> 0
A168: abc2002 | B168: 42 | C168: 2054 | D168: ='[2]Analyse BDD'!H12155 -> 0
A169: abc321 | B169: 40 | C169: 2035 | D169: ='[2]Analyse BDD'!H11846 -> 0
A170: abc741852963 | B170: 13 | C170: 2305 | D170: ='[2]Analyse BDD'!H18119 -> 0
A171: ABCD.Delaviolance. | B171: 27 | C171: 2331 | D171: ='[2]Analyse BDD'!H18690 -> -EdC-
A172: abdelhamid-24 | B172: 34 | C172: 998 | D172: ='[2]Analyse BDD'!H6030 -> 0
A173: Abdou | B173: 16 | C173: 317 | D173: ='[2]Analyse BDD'!H2749 -> 0
A174: Abdoul95 | B174: 11 | C174: 2195 | D174: ='[2]Analyse BDD'!H15828 -> 0
A175: Abdouman | B175: 34 | C175: 1591 | D175: ='[2]Analyse BDD'!H9283 -> 0
A176: abdoustef | B176: 39 | C176: 1594 | D176: ='[2]Analyse BDD'!H9295 -> lftag
A177: Abdramane | B177: 20 | C177: 319 | D177: ='[2]Analyse BDD'!H2795 -> 0
A178: abductor | B178: 29 | C178: 881 | D178: ='[2]Analyse BDD'!H5479 -> ADP
A179: Abdullah | B179: 12 | C179: 316 | D179: ='[2]Analyse BDD'!H2737 -> 0
A180: abec | B180: 29 | C180: 2159 | D180: ='[2]Analyse BDD'!H15049 -> LRS
A181: Abeceday | B181: 40 | C181: 1298 | D181: ='[2]Analyse BDD'!H7597 -> 0
A182: abeille | B182: 30 | C182: 1515 | D182: ='[2]Analyse BDD'!H8789 -> lgdeE
A183: abidou01 | B183: 3 | C183: 1335 | D183: ='[2]Analyse BDD'!H7785 -> chupa
A184: abino | B184: 41 | C184: 2251 | D184: ='[2]Analyse BDD'!H17025 -> 0
A185: abird | B185: 48 | C185: 2160 | D185: ='[2]Analyse BDD'!H15019 -> 0
A186: abla | B186: 39 | C186: 2142 | D186: ='[2]Analyse BDD'!H14683 -> 0
A187: Ablatia | B187: 34 | C187: 23 | D187: ='[2]Analyse BDD'!H231 -> Troll
A188: abnegallum | B188: 1 | C188: 192 | D188: ='[2]Analyse BDD'!H2024 -> 0
A189: Abneos | B189: 37 | C189: 121 | D189: ='[2]Analyse BDD'!H1456 -> ADFR
A190: abnndd | B190: 21 | C190: 2394 | D190: ='[2]Analyse BDD'!H19936 -> 0
A191: abou | B191: 45 | C191: 2204 | D191: ='[2]Analyse BDD'!H16008 -> 0
A192: Aboubakar | B192: 38 | C192: 320 | D192: ='[2]Analyse BDD'!H2809 -> 0
A193: aboud888 | B193: 16 | C193: 2117 | D193: ='[2]Analyse BDD'!H14213 -> 0
A194: Abous | B194: 41 | C194: 2052 | D194: ='[2]Analyse BDD'!H12170 -> 0
A195: abpavie | B195: 9 | C195: 741 | D195: ='[2]Analyse BDD'!H4777 -> 0
A196: Abraham | B196: 13 | C196: 320 | D196: ='[2]Analyse BDD'!H2819 -> 0
A197: Abraracourcix | B197: 38 | C197: 199 | D197: ='[2]Analyse BDD'!H2094 -> L.I.B
A198: Abraxas | B198: 21 | C198: 1988 | D198: ='[2]Analyse BDD'!H11302 -> Aire
A199: abryl2 | B199: 4 | C199: 226 | D199: ='[2]Analyse BDD'!H2266 -> -PAX-
A200: aburame | B200: 6 | C200: 2000 | D200: ='[2]Analyse BDD'!H11412 -> 0
... 20108 more rows

Sheet Traque
I1: Temps resté en loge | L1: Temps passé en loge ennemie
B2: Choix de la cible | E2: X | F2: =IFERROR(VLOOKUP(B3,'Liste des joueurs'!A2:D20305,2),"Pseudo Incorrect") -> 16 | G2: TDC | H2: =IFERROR(VLOOKUP(B3,'Data Common'!B2:C389,2,FALSE),"Pseudo Incorrect") -> 1338053964 | I2: min | J2: sec | L2: min | M2: sec
B3: Rockslide | E3: Y | F3: =IFERROR(VLOOKUP(B3,'Liste des joueurs'!A2:D20305,3),"Pseudo Incorrect") -> 173 | G3: VA | H3: 24 | I3: 1 | L3: 1 | M3: 20
A4: Taper manuellement le pseudo exact de la cible
A6: Si RC | B6: Heure départ | C6: 02h44
A8: Si avec TDP | B8: Heure RC | C8: 14h50 | E8: Quantité sur sonde | F8: Jsn | G8: Sn | H8: Ne | I8: Js | J8: S | K8: C | L8: Ce | M8: A | N8: Ae | O8: Se | P8: Tk | Q8: Tke | R8: Tu | S8: Tue | T8: Temps Total
B9: Evo TDP | C9: 85 | F9: 15356 | G9: 0 | H9: 0 | I9: 0 | J9: 0 | K9: 0 | L9: 0 | M9: 0 | N9: 0 | O9: 0 | P9: 4568 | Q9: 25 | R9: 0 | S9: 0
B10: Equiv Tutu | C10: ='Data Traque'!E14*0.9^C9 -> 0.3534792014 | E10: Temps correspondant | F10: =TIME(0,0,'Data Traque'!C19) -> 00:09:54 | G10: =TIME(0,0,'Data Traque'!C20) -> 00:00:00 | H10: =TIME(0,0,'Data Traque'!C21) -> 00:00:00 | I10: =TIME(0,0,'Data Traque'!C22) -> 00:00:00 | J10: =TIME(0,0,'Data Traque'!C23) -> 00:00:00 | K10: =TIME(0,0,'Data Traque'!C24) -> 00:00:00 | L10: =TIME(0,0,'Data Traque'!C25) -> 00:00:00 | M10: =TIME(0,0,'Data Traque'!C26) -> 00:00:00 | N10: =TIME(0,0,'Data Traque'!C27) -> 00:00:00 | O10: =TIME(0,0,'Data Traque'!C28) -> 00:00:00 | P10: =TIME(0,0,'Data Traque'!C29) -> 00:18:16 | Q10: =TIME(0,0,'Data Traque'!C30) -> 00:00:05 | R10: =TIME(0,0,'Data Traque'!C31) -> 00:00:00 | S10: =TIME(0,0,'Data Traque'!C32) -> 00:00:00 | T10: =SUM(F10:S10) -> 00:28:15
B11: Heure départ | C11: ='Data Traque'!A6-T10 -> 14:21:45
I12: DOME | K12: LOGE
D13: Pseudo | E13: TDC | F13: A portée ? | G13: Distance | H13: Temps | I13: Heure d'arrivée | J13: Lancer après | K13: Heure d'arrivée2 | L13: Lancer après3
D14: ='Data Common'!J2 ->  | E14: =IF('Data Common'!C2=0,"",'Data Common'!C2) ->  | F14: =IFERROR('Data Common'!K2,"") ->  | G14: =IFERROR('Data Common'!L2,"") ->  | H14: =IFERROR('Data Common'!Q2,"") ->  | I14: =IFERROR('Data Traque'!$A$2+Traque!H14+TIME(0,Traque!$I$3,Traque!$J$3),"") ->  | J14: =IFERROR(I14-'Data Common'!X2,"") ->  | K14: =IFERROR(I14+TIME(0,$L$3,$M$3)+H14,"") ->  | L14: =IFERROR(K14-'Data Common'!X2,"") -> 
D15: ='Data Common'!J3 ->  | E15: =IF('Data Common'!C3=0,"",'Data Common'!C3) ->  | F15: =IFERROR('Data Common'!K3,"") ->  | G15: =IFERROR('Data Common'!L3,"") ->  | H15: =IFERROR('Data Common'!Q3,"") ->  | I15: =IFERROR('Data Traque'!$A$2+Traque!H15+TIME(0,Traque!$I$3,Traque!$J$3),"") ->  | J15: =IFERROR(I15-'Data Common'!X3,"") ->  | L15: =IFERROR(K15-'Data Common'!X3,"") -> 
D16: ='Data Common'!J4 ->  | E16: =IF('Data Common'!C4=0,"",'Data Common'!C4) ->  | F16: =IFERROR('Data Common'!K4,"") ->  | G16: =IFERROR('Data Common'!L4,"") ->  | H16: =IFERROR('Data Common'!Q4,"") ->  | I16: =IFERROR('Data Traque'!$A$2+Traque!H16+TIME(0,Traque!$I$3,Traque!$J$3),"") ->  | J16: =IFERROR(I16-'Data Common'!X4,"") ->  | L16: =IFERROR(K16-'Data Common'!X4,"") -> 
D17: ='Data Common'!J5 ->  | E17: =IF('Data Common'!C5=0,"",'Data Common'!C5) ->  | F17: =IFERROR('Data Common'!K5,"") ->  | G17: =IFERROR('Data Common'!L5,"") ->  | H17: =IFERROR('Data Common'!Q5,"") ->  | I17: =IFERROR('Data Traque'!$A$2+Traque!H17+TIME(0,Traque!$I$3,Traque!$J$3),"") ->  | J17: =IFERROR(I17-'Data Common'!X5,"") ->  | L17: =IFERROR(K17-'Data Common'!X5,"") -> 
D18: ='Data Common'!J6 ->  | E18: =IF('Data Common'!C6=0,"",'Data Common'!C6) ->  | F18: =IFERROR('Data Common'!K6,"") ->  | G18: =IFERROR('Data Common'!L6,"") ->  | H18: =IFERROR('Data Common'!Q6,"") ->  | I18: =IFERROR('Data Traque'!$A$2+Traque!H18+TIME(0,Traque!$I$3,Traque!$J$3),"") ->  | J18: =IFERROR(I18-'Data Common'!X6,"") ->  | L18: =IFERROR(K18-'Data Common'!X6,"") -> 
D19: ='Data Common'!J7 ->  | E19: =IF('Data Common'!C7=0,"",'Data Common'!C7) ->  | F19: =IFERROR('Data Common'!K7,"") ->  | G19: =IFERROR('Data Common'!L7,"") ->  | H19: =IFERROR('Data Common'!Q7,"") ->  | I19: =IFERROR('Data Traque'!$A$2+Traque!H19+TIME(0,Traque!$I$3,Traque!$J$3),"") ->  | J19: =IFERROR(I19-'Data Common'!X7,"") ->  | L19: =IFERROR(K19-'Data Common'!X7,"") -> 
D20: ='Data Common'!J8 ->  | E20: =IF('Data Common'!C8=0,"",'Data Common'!C8) ->  | F20: =IFERROR('Data Common'!K8,"") ->  | G20: =IFERROR('Data Common'!L8,"") ->  | H20: =IFERROR('Data Common'!Q8,"") ->  | I20: =IFERROR('Data Traque'!$A$2+Traque!H20+TIME(0,Traque!$I$3,Traque!$J$3),"") ->  | J20: =IFERROR(I20-'Data Common'!X8,"") ->  | L20: =IFERROR(K20-'Data Common'!X8,"") -> 
D21: ='Data Common'!J9 ->  | E21: =IF('Data Common'!C9=0,"",'Data Common'!C9) ->  | F21: =IFERROR('Data Common'!K9,"") ->  | G21: =IFERROR('Data Common'!L9,"") ->  | H21: =IFERROR('Data Common'!Q9,"") ->  | I21: =IFERROR('Data Traque'!$A$2+Traque!H21+TIME(0,Traque!$I$3,Traque!$J$3),"") ->  | J21: =IFERROR(I21-'Data Common'!X9,"") ->  | L21: =IFERROR(K21-'Data Common'!X9,"") -> 
D22: ='Data Common'!J10 ->  | E22: =IF('Data Common'!C10=0,"",'Data Common'!C10) ->  | F22: =IFERROR('Data Common'!K10,"") ->  | G22: =IFERROR('Data Common'!L10,"") ->  | H22: =IFERROR('Data Common'!Q10,"") ->  | I22: =IFERROR('Data Traque'!$A$2+Traque!H22+TIME(0,Traque!$I$3,Traque!$J$3),"") ->  | J22: =IFERROR(I22-'Data Common'!X10,"") ->  | L22: =IFERROR(K22-'Data Common'!X10,"") -> 
D23: ='Data Common'!J11 ->  | E23: =IF('Data Common'!C11=0,"",'Data Common'!C11) ->  | F23: =IFERROR('Data Common'!K11,"") ->  | G23: =IFERROR('Data Common'!L11,"") ->  | H23: =IFERROR('Data Common'!Q11,"") ->  | I23: =IFERROR('Data Traque'!$A$2+Traque!H23+TIME(0,Traque!$I$3,Traque!$J$3),"") ->  | J23: =IFERROR(I23-'Data Common'!X11,"") ->  | L23: =IFERROR(K23-'Data Common'!X11,"") -> 
D24: ='Data Common'!J12 ->  | E24: =IF('Data Common'!C12=0,"",'Data Common'!C12) ->  | F24: =IFERROR('Data Common'!K12,"") ->  | G24: =IFERROR('Data Common'!L12,"") ->  | H24: =IFERROR('Data Common'!Q12,"") ->  | I24: =IFERROR('Data Traque'!$A$2+Traque!H24+TIME(0,Traque!$I$3,Traque!$J$3),"") ->  | J24: =IFERROR(I24-'Data Common'!X12,"") ->  | L24: =IFERROR(K24-'Data Common'!X12,"") -> 
D25: ='Data Common'!J13 ->  | E25: =IF('Data Common'!C13=0,"",'Data Common'!C13) ->  | F25: =IFERROR('Data Common'!K13,"") ->  | G25: =IFERROR('Data Common'!L13,"") ->  | H25: =IFERROR('Data Common'!Q13,"") ->  | I25: =IFERROR('Data Traque'!$A$2+Traque!H25+TIME(0,Traque!$I$3,Traque!$J$3),"") ->  | J25: =IFERROR(I25-'Data Common'!X13,"") ->  | L25: =IFERROR(K25-'Data Common'!X13,"") -> 
D26: ='Data Common'!J14 ->  | E26: =IF('Data Common'!C14=0,"",'Data Common'!C14) ->  | F26: =IFERROR('Data Common'!K14,"") ->  | G26: =IFERROR('Data Common'!L14,"") ->  | H26: =IFERROR('Data Common'!Q14,"") ->  | I26: =IFERROR('Data Traque'!$A$2+Traque!H26+TIME(0,Traque!$I$3,Traque!$J$3),"") ->  | J26: =IFERROR(I26-'Data Common'!X14,"") ->  | L26: =IFERROR(K26-'Data Common'!X14,"") -> 
D27: ='Data Common'!J15 ->  | E27: =IF('Data Common'!C15=0,"",'Data Common'!C15) ->  | F27: =IFERROR('Data Common'!K15,"") ->  | G27: =IFERROR('Data Common'!L15,"") ->  | H27: =IFERROR('Data Common'!Q15,"") ->  | I27: =IFERROR('Data Traque'!$A$2+Traque!H27+TIME(0,Traque!$I$3,Traque!$J$3),"") ->  | J27: =IFERROR(I27-'Data Common'!X15,"") ->  | L27: =IFERROR(K27-'Data Common'!X15,"") -> 
D28: ='Data Common'!J16 ->  | E28: =IF('Data Common'!C16=0,"",'Data Common'!C16) ->  | F28: =IFERROR('Data Common'!K16,"") ->  | G28: =IFERROR('Data Common'!L16,"") ->  | H28: =IFERROR('Data Common'!Q16,"") ->  | I28: =IFERROR('Data Traque'!$A$2+Traque!H28+TIME(0,Traque!$I$3,Traque!$J$3),"") ->  | J28: =IFERROR(I28-'Data Common'!X16,"") ->  | L28: =IFERROR(K28-'Data Common'!X16,"") -> 
D29: ='Data Common'!J17 ->  | E29: =IF('Data Common'!C17=0,"",'Data Common'!C17) ->  | F29: =IFERROR('Data Common'!K17,"") ->  | G29: =IFERROR('Data Common'!L17,"") ->  | H29: =IFERROR('Data Common'!Q17,"") ->  | I29: =IFERROR('Data Traque'!$A$2+Traque!H29+TIME(0,Traque!$I$3,Traque!$J$3),"") ->  | J29: =IFERROR(I29-'Data Common'!X17,"") ->  | L29: =IFERROR(K29-'Data Common'!X17,"") -> 
D30: ='Data Common'!J18 ->  | E30: =IF('Data Common'!C18=0,"",'Data Common'!C18) ->  | F30: =IFERROR('Data Common'!K18,"") ->  | G30: =IFERROR('Data Common'!L18,"") ->  | H30: =IFERROR('Data Common'!Q18,"") ->  | I30: =IFERROR('Data Traque'!$A$2+Traque!H30+TIME(0,Traque!$I$3,Traque!$J$3),"") ->  | J30: =IFERROR(I30-'Data Common'!X18,"") ->  | L30: =IFERROR(K30-'Data Common'!X18,"") -> 
D31: ='Data Common'!J19 ->  | E31: =IF('Data Common'!C19=0,"",'Data Common'!C19) ->  | F31: =IFERROR('Data Common'!K19,"") ->  | G31: =IFERROR('Data Common'!L19,"") ->  | H31: =IFERROR('Data Common'!Q19,"") ->  | I31: =IFERROR('Data Traque'!$A$2+Traque!H31+TIME(0,Traque!$I$3,Traque!$J$3),"") ->  | J31: =IFERROR(I31-'Data Common'!X19,"") ->  | L31: =IFERROR(K31-'Data Common'!X19,"") -> 
D32: ='Data Common'!J20 ->  | E32: =IF('Data Common'!C20=0,"",'Data Common'!C20) ->  | F32: =IFERROR('Data Common'!K20,"") ->  | G32: =IFERROR('Data Common'!L20,"") ->  | H32: =IFERROR('Data Common'!Q20,"") ->  | I32: =IFERROR('Data Traque'!$A$2+Traque!H32+TIME(0,Traque!$I$3,Traque!$J$3),"") ->  | J32: =IFERROR(I32-'Data Common'!X20,"") ->  | L32: =IFERROR(K32-'Data Common'!X20,"") -> 
D33: ='Data Common'!J21 ->  | E33: =IF('Data Common'!C21=0,"",'Data Common'!C21) ->  | F33: =IFERROR('Data Common'!K21,"") ->  | G33: =IFERROR('Data Common'!L21,"") ->  | H33: =IFERROR('Data Common'!Q21,"") ->  | I33: =IFERROR('Data Traque'!$A$2+Traque!H33+TIME(0,Traque!$I$3,Traque!$J$3),"") ->  | J33: =IFERROR(I33-'Data Common'!X21,"") ->  | L33: =IFERROR(K33-'Data Common'!X21,"") -> 
D34: ='Data Common'!J22 ->  | E34: =IF('Data Common'!C22=0,"",'Data Common'!C22) ->  | F34: =IFERROR('Data Common'!K22,"") ->  | G34: =IFERROR('Data Common'!L22,"") ->  | H34: =IFERROR('Data Common'!Q22,"") ->  | I34: =IFERROR('Data Traque'!$A$2+Traque!H34+TIME(0,Traque!$I$3,Traque!$J$3),"") ->  | J34: =IFERROR(I34-'Data Common'!X22,"") ->  | L34: =IFERROR(K34-'Data Common'!X22,"") -> 
D35: ='Data Common'!J23 ->  | E35: =IF('Data Common'!C23=0,"",'Data Common'!C23) ->  | F35: =IFERROR('Data Common'!K23,"") ->  | G35: =IFERROR('Data Common'!L23,"") ->  | H35: =IFERROR('Data Common'!Q23,"") ->  | I35: =IFERROR('Data Traque'!$A$2+Traque!H35+TIME(0,Traque!$I$3,Traque!$J$3),"") ->  | J35: =IFERROR(I35-'Data Common'!X23,"") ->  | L35: =IFERROR(K35-'Data Common'!X23,"") -> 
D36: ='Data Common'!J24 ->  | E36: =IF('Data Common'!C24=0,"",'Data Common'!C24) ->  | F36: =IFERROR('Data Common'!K24,"") ->  | G36: =IFERROR('Data Common'!L24,"") ->  | H36: =IFERROR('Data Common'!Q24,"") ->  | I36: =IFERROR('Data Traque'!$A$2+Traque!H36+TIME(0,Traque!$I$3,Traque!$J$3),"") ->  | J36: =IFERROR(I36-'Data Common'!X24,"") ->  | L36: =IFERROR(K36-'Data Common'!X24,"") -> 
D37: ='Data Common'!J25 ->  | E37: =IF('Data Common'!C25=0,"",'Data Common'!C25) ->  | F37: =IFERROR('Data Common'!K25,"") ->  | G37: =IFERROR('Data Common'!L25,"") ->  | H37: =IFERROR('Data Common'!Q25,"") ->  | I37: =IFERROR('Data Traque'!$A$2+Traque!H37+TIME(0,Traque!$I$3,Traque!$J$3),"") ->  | J37: =IFERROR(I37-'Data Common'!X25,"") ->  | L37: =IFERROR(K37-'Data Common'!X25,"") -> 
D38: ='Data Common'!J26 ->  | E38: =IF('Data Common'!C26=0,"",'Data Common'!C26) ->  | F38: =IFERROR('Data Common'!K26,"") ->  | G38: =IFERROR('Data Common'!L26,"") ->  | H38: =IFERROR('Data Common'!Q26,"") ->  | I38: =IFERROR('Data Traque'!$A$2+Traque!H38+TIME(0,Traque!$I$3,Traque!$J$3),"") ->  | J38: =IFERROR(I38-'Data Common'!X26,"") ->  | L38: =IFERROR(K38-'Data Common'!X26,"") -> 
D39: ='Data Common'!J27 ->  | E39: =IF('Data Common'!C27=0,"",'Data Common'!C27) ->  | F39: =IFERROR('Data Common'!K27,"") ->  | G39: =IFERROR('Data Common'!L27,"") ->  | H39: =IFERROR('Data Common'!Q27,"") ->  | I39: =IFERROR('Data Traque'!$A$2+Traque!H39+TIME(0,Traque!$I$3,Traque!$J$3),"") ->  | J39: =IFERROR(I39-'Data Common'!X27,"") ->  | L39: =IFERROR(K39-'Data Common'!X27,"") -> 
D40: ='Data Common'!J28 ->  | E40: =IF('Data Common'!C28=0,"",'Data Common'!C28) ->  | F40: =IFERROR('Data Common'!K28,"") ->  | G40: =IFERROR('Data Common'!L28,"") ->  | H40: =IFERROR('Data Common'!Q28,"") ->  | I40: =IFERROR('Data Traque'!$A$2+Traque!H40+TIME(0,Traque!$I$3,Traque!$J$3),"") ->  | J40: =IFERROR(I40-'Data Common'!X28,"") ->  | L40: =IFERROR(K40-'Data Common'!X28,"") -> 
D41: ='Data Common'!J29 ->  | E41: =IF('Data Common'!C29=0,"",'Data Common'!C29) ->  | F41: =IFERROR('Data Common'!K29,"") ->  | G41: =IFERROR('Data Common'!L29,"") ->  | H41: =IFERROR('Data Common'!Q29,"") ->  | I41: =IFERROR('Data Traque'!$A$2+Traque!H41+TIME(0,Traque!$I$3,Traque!$J$3),"") ->  | J41: =IFERROR(I41-'Data Common'!X29,"") ->  | L41: =IFERROR(K41-'Data Common'!X29,"") -> 
D42: ='Data Common'!J30 ->  | E42: =IF('Data Common'!C30=0,"",'Data Common'!C30) ->  | F42: =IFERROR('Data Common'!K30,"") ->  | G42: =IFERROR('Data Common'!L30,"") ->  | H42: =IFERROR('Data Common'!Q30,"") ->  | I42: =IFERROR('Data Traque'!$A$2+Traque!H42+TIME(0,Traque!$I$3,Traque!$J$3),"") ->  | J42: =IFERROR(I42-'Data Common'!X30,"") ->  | L42: =IFERROR(K42-'Data Common'!X30,"") -> 
D43: ='Data Common'!J31 ->  | E43: =IF('Data Common'!C31=0,"",'Data Common'!C31) ->  | F43: =IFERROR('Data Common'!K31,"") ->  | G43: =IFERROR('Data Common'!L31,"") ->  | H43: =IFERROR('Data Common'!Q31,"") ->  | I43: =IFERROR('Data Traque'!$A$2+Traque!H43+TIME(0,Traque!$I$3,Traque!$J$3),"") ->  | J43: =IFERROR(I43-'Data Common'!X31,"") ->  | L43: =IFERROR(K43-'Data Common'!X31,"") -> 
D44: ='Data Common'!J32 ->  | E44: =IF('Data Common'!C32=0,"",'Data Common'!C32) ->  | F44: =IFERROR('Data Common'!K32,"") ->  | G44: =IFERROR('Data Common'!L32,"") ->  | H44: =IFERROR('Data Common'!Q32,"") ->  | I44: =IFERROR('Data Traque'!$A$2+Traque!H44+TIME(0,Traque!$I$3,Traque!$J$3),"") ->  | J44: =IFERROR(I44-'Data Common'!X32,"") ->  | L44: =IFERROR(K44-'Data Common'!X32,"") -> 
D45: ='Data Common'!J33 ->  | E45: =IF('Data Common'!C33=0,"",'Data Common'!C33) ->  | F45: =IFERROR('Data Common'!K33,"") ->  | G45: =IFERROR('Data Common'!L33,"") ->  | H45: =IFERROR('Data Common'!Q33,"") ->  | I45: =IFERROR('Data Traque'!$A$2+Traque!H45+TIME(0,Traque!$I$3,Traque!$J$3),"") ->  | J45: =IFERROR(I45-'Data Common'!X33,"") ->  | L45: =IFERROR(K45-'Data Common'!X33,"") -> 
D46: ='Data Common'!J34 ->  | E46: =IF('Data Common'!C34=0,"",'Data Common'!C34) ->  | F46: =IFERROR('Data Common'!K34,"") ->  | G46: =IFERROR('Data Common'!L34,"") ->  | H46: =IFERROR('Data Common'!Q34,"") ->  | I46: =IFERROR('Data Traque'!$A$2+Traque!H46+TIME(0,Traque!$I$3,Traque!$J$3),"") ->  | J46: =IFERROR(I46-'Data Common'!X34,"") ->  | L46: =IFERROR(K46-'Data Common'!X34,"") -> 
D47: ='Data Common'!J35 ->  | E47: =IF('Data Common'!C35=0,"",'Data Common'!C35) ->  | F47: =IFERROR('Data Common'!K35,"") ->  | G47: =IFERROR('Data Common'!L35,"") ->  | H47: =IFERROR('Data Common'!Q35,"") ->  | I47: =IFERROR('Data Traque'!$A$2+Traque!H47+TIME(0,Traque!$I$3,Traque!$J$3),"") ->  | J47: =IFERROR(I47-'Data Common'!X35,"") ->  | L47: =IFERROR(K47-'Data Common'!X35,"") -> 
D48: ='Data Common'!J36 ->  | E48: =IF('Data Common'!C36=0,"",'Data Common'!C36) ->  | F48: =IFERROR('Data Common'!K36,"") ->  | G48: =IFERROR('Data Common'!L36,"") ->  | H48: =IFERROR('Data Common'!Q36,"") ->  | I48: =IFERROR('Data Traque'!$A$2+Traque!H48+TIME(0,Traque!$I$3,Traque!$J$3),"") ->  | J48: =IFERROR(I48-'Data Common'!X36,"") ->  | L48: =IFERROR(K48-'Data Common'!X36,"") -> 
D49: ='Data Common'!J37 ->  | E49: =IF('Data Common'!C37=0,"",'Data Common'!C37) ->  | F49: =IFERROR('Data Common'!K37,"") ->  | G49: =IFERROR('Data Common'!L37,"") ->  | H49: =IFERROR('Data Common'!Q37,"") ->  | I49: =IFERROR('Data Traque'!$A$2+Traque!H49+TIME(0,Traque!$I$3,Traque!$J$3),"") ->  | J49: =IFERROR(I49-'Data Common'!X37,"") ->  | L49: =IFERROR(K49-'Data Common'!X37,"") -> 
D50: ='Data Common'!J38 ->  | E50: =IF('Data Common'!C38=0,"",'Data Common'!C38) ->  | F50: =IFERROR('Data Common'!K38,"") ->  | G50: =IFERROR('Data Common'!L38,"") ->  | H50: =IFERROR('Data Common'!Q38,"") ->  | I50: =IFERROR('Data Traque'!$A$2+Traque!H50+TIME(0,Traque!$I$3,Traque!$J$3),"") ->  | J50: =IFERROR(I50-'Data Common'!X38,"") ->  | L50: =IFERROR(K50-'Data Common'!X38,"") -> 
D51: ='Data Common'!J39 ->  | E51: =IF('Data Common'!C39=0,"",'Data Common'!C39) ->  | F51: =IFERROR('Data Common'!K39,"") ->  | G51: =IFERROR('Data Common'!L39,"") ->  | H51: =IFERROR('Data Common'!Q39,"") ->  | I51: =IFERROR('Data Traque'!$A$2+Traque!H51+TIME(0,Traque!$I$3,Traque!$J$3),"") ->  | J51: =IFERROR(I51-'Data Common'!X39,"") ->  | L51: =IFERROR(K51-'Data Common'!X39,"") -> 
D52: ='Data Common'!J40 ->  | E52: =IF('Data Common'!C40=0,"",'Data Common'!C40) ->  | F52: =IFERROR('Data Common'!K40,"") ->  | G52: =IFERROR('Data Common'!L40,"") ->  | H52: =IFERROR('Data Common'!Q40,"") ->  | I52: =IFERROR('Data Traque'!$A$2+Traque!H52+TIME(0,Traque!$I$3,Traque!$J$3),"") ->  | J52: =IFERROR(I52-'Data Common'!X40,"") ->  | L52: =IFERROR(K52-'Data Common'!X40,"") -> 
D53: ='Data Common'!J41 ->  | E53: =IF('Data Common'!C41=0,"",'Data Common'!C41) ->  | F53: =IFERROR('Data Common'!K41,"") ->  | G53: =IFERROR('Data Common'!L41,"") ->  | H53: =IFERROR('Data Common'!Q41,"") ->  | I53: =IFERROR('Data Traque'!$A$2+Traque!H53+TIME(0,Traque!$I$3,Traque!$J$3),"") ->  | J53: =IFERROR(I53-'Data Common'!X41,"") ->  | L53: =IFERROR(K53-'Data Common'!X41,"") -> 
D54: ='Data Common'!J42 ->  | E54: =IF('Data Common'!C42=0,"",'Data Common'!C42) ->  | F54: =IFERROR('Data Common'!K42,"") ->  | G54: =IFERROR('Data Common'!L42,"") ->  | H54: =IFERROR('Data Common'!Q42,"") ->  | I54: =IFERROR('Data Traque'!$A$2+Traque!H54+TIME(0,Traque!$I$3,Traque!$J$3),"") ->  | J54: =IFERROR(I54-'Data Common'!X42,"") ->  | L54: =IFERROR(K54-'Data Common'!X42,"") -> 
D55: ='Data Common'!J43 ->  | E55: =IF('Data Common'!C43=0,"",'Data Common'!C43) ->  | F55: =IFERROR('Data Common'!K43,"") ->  | G55: =IFERROR('Data Common'!L43,"") ->  | H55: =IFERROR('Data Common'!Q43,"") ->  | I55: =IFERROR('Data Traque'!$A$2+Traque!H55+TIME(0,Traque!$I$3,Traque!$J$3),"") ->  | J55: =IFERROR(I55-'Data Common'!X43,"") ->  | L55: =IFERROR(K55-'Data Common'!X43,"") -> 
D56: ='Data Common'!J44 ->  | E56: =IF('Data Common'!C44=0,"",'Data Common'!C44) ->  | F56: =IFERROR('Data Common'!K44,"") ->  | G56: =IFERROR('Data Common'!L44,"") ->  | H56: =IFERROR('Data Common'!Q44,"") ->  | I56: =IFERROR('Data Traque'!$A$2+Traque!H56+TIME(0,Traque!$I$3,Traque!$J$3),"") ->  | J56: =IFERROR(I56-'Data Common'!X44,"") ->  | L56: =IFERROR(K56-'Data Common'!X44,"") -> 
D57: ='Data Common'!J45 ->  | E57: =IF('Data Common'!C45=0,"",'Data Common'!C45) ->  | F57: =IFERROR('Data Common'!K45,"") ->  | G57: =IFERROR('Data Common'!L45,"") ->  | H57: =IFERROR('Data Common'!Q45,"") ->  | I57: =IFERROR('Data Traque'!$A$2+Traque!H57+TIME(0,Traque!$I$3,Traque!$J$3),"") ->  | J57: =IFERROR(I57-'Data Common'!X45,"") ->  | L57: =IFERROR(K57-'Data Common'!X45,"") -> 
D58: ='Data Common'!J46 ->  | E58: =IF('Data Common'!C46=0,"",'Data Common'!C46) ->  | F58: =IFERROR('Data Common'!K46,"") ->  | G58: =IFERROR('Data Common'!L46,"") ->  | H58: =IFERROR('Data Common'!Q46,"") ->  | I58: =IFERROR('Data Traque'!$A$2+Traque!H58+TIME(0,Traque!$I$3,Traque!$J$3),"") ->  | J58: =IFERROR(I58-'Data Common'!X46,"") ->  | L58: =IFERROR(K58-'Data Common'!X46,"") -> 
D59: ='Data Common'!J47 ->  | E59: =IF('Data Common'!C47=0,"",'Data Common'!C47) ->  | F59: =IFERROR('Data Common'!K47,"") ->  | G59: =IFERROR('Data Common'!L47,"") ->  | H59: =IFERROR('Data Common'!Q47,"") ->  | I59: =IFERROR('Data Traque'!$A$2+Traque!H59+TIME(0,Traque!$I$3,Traque!$J$3),"") ->  | J59: =IFERROR(I59-'Data Common'!X47,"") ->  | L59: =IFERROR(K59-'Data Common'!X47,"") -> 
D60: ='Data Common'!J48 ->  | E60: =IF('Data Common'!C48=0,"",'Data Common'!C48) ->  | F60: =IFERROR('Data Common'!K48,"") ->  | G60: =IFERROR('Data Common'!L48,"") ->  | H60: =IFERROR('Data Common'!Q48,"") ->  | I60: =IFERROR('Data Traque'!$A$2+Traque!H60+TIME(0,Traque!$I$3,Traque!$J$3),"") ->  | J60: =IFERROR(I60-'Data Common'!X48,"") ->  | L60: =IFERROR(K60-'Data Common'!X48,"") -> 
D61: ='Data Common'!J49 ->  | E61: =IF('Data Common'!C49=0,"",'Data Common'!C49) ->  | F61: =IFERROR('Data Common'!K49,"") ->  | G61: =IFERROR('Data Common'!L49,"") ->  | H61: =IFERROR('Data Common'!Q49,"") ->  | I61: =IFERROR('Data Traque'!$A$2+Traque!H61+TIME(0,Traque!$I$3,Traque!$J$3),"") ->  | J61: =IFERROR(I61-'Data Common'!X49,"") ->  | L61: =IFERROR(K61-'Data Common'!X49,"") -> 
D62: ='Data Common'!J50 ->  | E62: =IF('Data Common'!C50=0,"",'Data Common'!C50) ->  | F62: =IFERROR('Data Common'!K50,"") ->  | G62: =IFERROR('Data Common'!L50,"") ->  | H62: =IFERROR('Data Common'!Q50,"") ->  | I62: =IFERROR('Data Traque'!$A$2+Traque!H62+TIME(0,Traque!$I$3,Traque!$J$3),"") ->  | J62: =IFERROR(I62-'Data Common'!X50,"") ->  | L62: =IFERROR(K62-'Data Common'!X50,"") -> 
D63: ='Data Common'!J51 ->  | E63: =IF('Data Common'!C51=0,"",'Data Common'!C51) ->  | F63: =IFERROR('Data Common'!K51,"") ->  | G63: =IFERROR('Data Common'!L51,"") ->  | H63: =IFERROR('Data Common'!Q51,"") ->  | I63: =IFERROR('Data Traque'!$A$2+Traque!H63+TIME(0,Traque!$I$3,Traque!$J$3),"") ->  | J63: =IFERROR(I63-'Data Common'!X51,"") ->  | L63: =IFERROR(K63-'Data Common'!X51,"") -> 
D64: ='Data Common'!J52 ->  | E64: =IF('Data Common'!C52=0,"",'Data Common'!C52) ->  | F64: =IFERROR('Data Common'!K52,"") ->  | G64: =IFERROR('Data Common'!L52,"") ->  | H64: =IFERROR('Data Common'!Q52,"") ->  | I64: =IFERROR('Data Traque'!$A$2+Traque!H64+TIME(0,Traque!$I$3,Traque!$J$3),"") ->  | J64: =IFERROR(I64-'Data Common'!X52,"") ->  | L64: =IFERROR(K64-'Data Common'!X52,"") -> 
D65: ='Data Common'!J53 ->  | E65: =IF('Data Common'!C53=0,"",'Data Common'!C53) ->  | F65: =IFERROR('Data Common'!K53,"") ->  | G65: =IFERROR('Data Common'!L53,"") ->  | H65: =IFERROR('Data Common'!Q53,"") ->  | I65: =IFERROR('Data Traque'!$A$2+Traque!H65+TIME(0,Traque!$I$3,Traque!$J$3),"") ->  | J65: =IFERROR(I65-'Data Common'!X53,"") ->  | L65: =IFERROR(K65-'Data Common'!X53,"") -> 
D66: ='Data Common'!J54 ->  | E66: =IF('Data Common'!C54=0,"",'Data Common'!C54) ->  | F66: =IFERROR('Data Common'!K54,"") ->  | G66: =IFERROR('Data Common'!L54,"") ->  | H66: =IFERROR('Data Common'!Q54,"") ->  | I66: =IFERROR('Data Traque'!$A$2+Traque!H66+TIME(0,Traque!$I$3,Traque!$J$3),"") ->  | J66: =IFERROR(I66-'Data Common'!X54,"") ->  | L66: =IFERROR(K66-'Data Common'!X54,"") -> 
D67: ='Data Common'!J55 ->  | E67: =IF('Data Common'!C55=0,"",'Data Common'!C55) ->  | F67: =IFERROR('Data Common'!K55,"") ->  | G67: =IFERROR('Data Common'!L55,"") ->  | H67: =IFERROR('Data Common'!Q55,"") ->  | I67: =IFERROR('Data Traque'!$A$2+Traque!H67+TIME(0,Traque!$I$3,Traque!$J$3),"") ->  | J67: =IFERROR(I67-'Data Common'!X55,"") ->  | L67: =IFERROR(K67-'Data Common'!X55,"") -> 
D68: ='Data Common'!J56 ->  | E68: =IF('Data Common'!C56=0,"",'Data Common'!C56) ->  | F68: =IFERROR('Data Common'!K56,"") ->  | G68: =IFERROR('Data Common'!L56,"") ->  | H68: =IFERROR('Data Common'!Q56,"") ->  | I68: =IFERROR('Data Traque'!$A$2+Traque!H68+TIME(0,Traque!$I$3,Traque!$J$3),"") ->  | J68: =IFERROR(I68-'Data Common'!X56,"") ->  | L68: =IFERROR(K68-'Data Common'!X56,"") -> 
D69: ='Data Common'!J57 ->  | E69: =IF('Data Common'!C57=0,"",'Data Common'!C57) ->  | F69: =IFERROR('Data Common'!K57,"") ->  | G69: =IFERROR('Data Common'!L57,"") ->  | H69: =IFERROR('Data Common'!Q57,"") ->  | I69: =IFERROR('Data Traque'!$A$2+Traque!H69+TIME(0,Traque!$I$3,Traque!$J$3),"") ->  | J69: =IFERROR(I69-'Data Common'!X57,"") ->  | L69: =IFERROR(K69-'Data Common'!X57,"") -> 
D70: ='Data Common'!J58 ->  | E70: =IF('Data Common'!C58=0,"",'Data Common'!C58) ->  | F70: =IFERROR('Data Common'!K58,"") ->  | G70: =IFERROR('Data Common'!L58,"") ->  | H70: =IFERROR('Data Common'!Q58,"") ->  | I70: =IFERROR('Data Traque'!$A$2+Traque!H70+TIME(0,Traque!$I$3,Traque!$J$3),"") ->  | J70: =IFERROR(I70-'Data Common'!X58,"") ->  | L70: =IFERROR(K70-'Data Common'!X58,"") -> 
D71: ='Data Common'!J59 ->  | E71: =IF('Data Common'!C59=0,"",'Data Common'!C59) ->  | F71: =IFERROR('Data Common'!K59,"") ->  | G71: =IFERROR('Data Common'!L59,"") ->  | H71: =IFERROR('Data Common'!Q59,"") ->  | I71: =IFERROR('Data Traque'!$A$2+Traque!H71+TIME(0,Traque!$I$3,Traque!$J$3),"") ->  | J71: =IFERROR(I71-'Data Common'!X59,"") ->  | L71: =IFERROR(K71-'Data Common'!X59,"") -> 
D72: ='Data Common'!J60 ->  | E72: =IF('Data Common'!C60=0,"",'Data Common'!C60) ->  | F72: =IFERROR('Data Common'!K60,"") ->  | G72: =IFERROR('Data Common'!L60,"") ->  | H72: =IFERROR('Data Common'!Q60,"") ->  | I72: =IFERROR('Data Traque'!$A$2+Traque!H72+TIME(0,Traque!$I$3,Traque!$J$3),"") ->  | J72: =IFERROR(I72-'Data Common'!X60,"") ->  | L72: =IFERROR(K72-'Data Common'!X60,"") -> 
D73: ='Data Common'!J61 ->  | E73: =IF('Data Common'!C61=0,"",'Data Common'!C61) ->  | F73: =IFERROR('Data Common'!K61,"") ->  | G73: =IFERROR('Data Common'!L61,"") ->  | H73: =IFERROR('Data Common'!Q61,"") ->  | I73: =IFERROR('Data Traque'!$A$2+Traque!H73+TIME(0,Traque!$I$3,Traque!$J$3),"") ->  | J73: =IFERROR(I73-'Data Common'!X61,"") ->  | L73: =IFERROR(K73-'Data Common'!X61,"") -> 
D74: ='Data Common'!J62 ->  | E74: =IF('Data Common'!C62=0,"",'Data Common'!C62) ->  | F74: =IFERROR('Data Common'!K62,"") ->  | G74: =IFERROR('Data Common'!L62,"") ->  | H74: =IFERROR('Data Common'!Q62,"") ->  | I74: =IFERROR('Data Traque'!$A$2+Traque!H74+TIME(0,Traque!$I$3,Traque!$J$3),"") ->  | J74: =IFERROR(I74-'Data Common'!X62,"") ->  | L74: =IFERROR(K74-'Data Common'!X62,"") -> 
D75: ='Data Common'!J63 ->  | E75: =IF('Data Common'!C63=0,"",'Data Common'!C63) ->  | F75: =IFERROR('Data Common'!K63,"") ->  | G75: =IFERROR('Data Common'!L63,"") ->  | H75: =IFERROR('Data Common'!Q63,"") ->  | I75: =IFERROR('Data Traque'!$A$2+Traque!H75+TIME(0,Traque!$I$3,Traque!$J$3),"") ->  | J75: =IFERROR(I75-'Data Common'!X63,"") ->  | L75: =IFERROR(K75-'Data Common'!X63,"") -> 
D76: ='Data Common'!J64 ->  | E76: =IF('Data Common'!C64=0,"",'Data Common'!C64) ->  | F76: =IFERROR('Data Common'!K64,"") ->  | G76: =IFERROR('Data Common'!L64,"") ->  | H76: =IFERROR('Data Common'!Q64,"") ->  | I76: =IFERROR('Data Traque'!$A$2+Traque!H76+TIME(0,Traque!$I$3,Traque!$J$3),"") ->  | J76: =IFERROR(I76-'Data Common'!X64,"") ->  | L76: =IFERROR(K76-'Data Common'!X64,"") -> 
D77: ='Data Common'!J65 ->  | E77: =IF('Data Common'!C65=0,"",'Data Common'!C65) ->  | F77: =IFERROR('Data Common'!K65,"") ->  | G77: =IFERROR('Data Common'!L65,"") ->  | H77: =IFERROR('Data Common'!Q65,"") ->  | I77: =IFERROR('Data Traque'!$A$2+Traque!H77+TIME(0,Traque!$I$3,Traque!$J$3),"") ->  | J77: =IFERROR(I77-'Data Common'!X65,"") ->  | L77: =IFERROR(K77-'Data Common'!X65,"") -> 
D78: ='Data Common'!J66 ->  | E78: =IF('Data Common'!C66=0,"",'Data Common'!C66) ->  | F78: =IFERROR('Data Common'!K66,"") ->  | G78: =IFERROR('Data Common'!L66,"") ->  | H78: =IFERROR('Data Common'!Q66,"") ->  | I78: =IFERROR('Data Traque'!$A$2+Traque!H78+TIME(0,Traque!$I$3,Traque!$J$3),"") ->  | J78: =IFERROR(I78-'Data Common'!X66,"") ->  | K78: =IFERROR(I78+TIME(0,$L$3,$M$3)+H78,"") ->  | L78: =IFERROR(K78-'Data Common'!X66,"") -> 
D79: ='Data Common'!J67 ->  | E79: =IF('Data Common'!C67=0,"",'Data Common'!C67) ->  | F79: =IFERROR('Data Common'!K67,"") ->  | G79: =IFERROR('Data Common'!L67,"") ->  | H79: =IFERROR('Data Common'!Q67,"") ->  | I79: =IFERROR('Data Traque'!$A$2+Traque!H79+TIME(0,Traque!$I$3,Traque!$J$3),"") ->  | J79: =IFERROR(I79-'Data Common'!X67,"") ->  | L79: =IFERROR(K79-'Data Common'!X67,"") -> 
D80: ='Data Common'!J68 ->  | E80: =IF('Data Common'!C68=0,"",'Data Common'!C68) ->  | F80: =IFERROR('Data Common'!K68,"") ->  | G80: =IFERROR('Data Common'!L68,"") ->  | H80: =IFERROR('Data Common'!Q68,"") ->  | I80: =IFERROR('Data Traque'!$A$2+Traque!H80+TIME(0,Traque!$I$3,Traque!$J$3),"") ->  | J80: =IFERROR(I80-'Data Common'!X68,"") ->  | L80: =IFERROR(K80-'Data Common'!X68,"") -> 
D81: ='Data Common'!J69 ->  | E81: =IF('Data Common'!C69=0,"",'Data Common'!C69) ->  | F81: =IFERROR('Data Common'!K69,"") ->  | G81: =IFERROR('Data Common'!L69,"") ->  | H81: =IFERROR('Data Common'!Q69,"") ->  | I81: =IFERROR('Data Traque'!$A$2+Traque!H81+TIME(0,Traque!$I$3,Traque!$J$3),"") ->  | J81: =IFERROR(I81-'Data Common'!X69,"") ->  | L81: =IFERROR(K81-'Data Common'!X69,"") -> 
D82: ='Data Common'!J70 ->  | E82: =IF('Data Common'!C70=0,"",'Data Common'!C70) ->  | F82: =IFERROR('Data Common'!K70,"") ->  | G82: =IFERROR('Data Common'!L70,"") ->  | H82: =IFERROR('Data Common'!Q70,"") ->  | I82: =IFERROR('Data Traque'!$A$2+Traque!H82+TIME(0,Traque!$I$3,Traque!$J$3),"") ->  | J82: =IFERROR(I82-'Data Common'!X70,"") ->  | L82: =IFERROR(K82-'Data Common'!X70,"") -> 
D83: ='Data Common'!J71 ->  | E83: =IF('Data Common'!C71=0,"",'Data Common'!C71) ->  | F83: =IFERROR('Data Common'!K71,"") ->  | G83: =IFERROR('Data Common'!L71,"") ->  | H83: =IFERROR('Data Common'!Q71,"") ->  | I83: =IFERROR('Data Traque'!$A$2+Traque!H83+TIME(0,Traque!$I$3,Traque!$J$3),"") ->  | J83: =IFERROR(I83-'Data Common'!X71,"") ->  | L83: =IFERROR(K83-'Data Common'!X71,"") -> 
D84: ='Data Common'!J72 ->  | E84: =IF('Data Common'!C72=0,"",'Data Common'!C72) ->  | F84: =IFERROR('Data Common'!K72,"") ->  | G84: =IFERROR('Data Common'!L72,"") ->  | H84: =IFERROR('Data Common'!Q72,"") ->  | I84: =IFERROR('Data Traque'!$A$2+Traque!H84+TIME(0,Traque!$I$3,Traque!$J$3),"") ->  | J84: =IFERROR(I84-'Data Common'!X72,"") ->  | L84: =IFERROR(K84-'Data Common'!X72,"") -> 
D85: ='Data Common'!J73 ->  | E85: =IF('Data Common'!C73=0,"",'Data Common'!C73) ->  | F85: =IFERROR('Data Common'!K73,"") ->  | G85: =IFERROR('Data Common'!L73,"") ->  | H85: =IFERROR('Data Common'!Q73,"") ->  | I85: =IFERROR('Data Traque'!$A$2+Traque!H85+TIME(0,Traque!$I$3,Traque!$J$3),"") ->  | J85: =IFERROR(I85-'Data Common'!X73,"") ->  | L85: =IFERROR(K85-'Data Common'!X73,"") -> 
D86: ='Data Common'!J74 ->  | E86: =IF('Data Common'!C74=0,"",'Data Common'!C74) ->  | F86: =IFERROR('Data Common'!K74,"") ->  | G86: =IFERROR('Data Common'!L74,"") ->  | H86: =IFERROR('Data Common'!Q74,"") ->  | I86: =IFERROR('Data Traque'!$A$2+Traque!H86+TIME(0,Traque!$I$3,Traque!$J$3),"") ->  | J86: =IFERROR(I86-'Data Common'!X74,"") ->  | L86: =IFERROR(K86-'Data Common'!X74,"") -> 
D87: ='Data Common'!J75 ->  | E87: =IF('Data Common'!C75=0,"",'Data Common'!C75) ->  | F87: =IFERROR('Data Common'!K75,"") ->  | G87: =IFERROR('Data Common'!L75,"") ->  | H87: =IFERROR('Data Common'!Q75,"") ->  | I87: =IFERROR('Data Traque'!$A$2+Traque!H87+TIME(0,Traque!$I$3,Traque!$J$3),"") ->  | J87: =IFERROR(I87-'Data Common'!X75,"") ->  | L87: =IFERROR(K87-'Data Common'!X75,"") -> 
D88: ='Data Common'!J76 ->  | E88: =IF('Data Common'!C76=0,"",'Data Common'!C76) ->  | F88: =IFERROR('Data Common'!K76,"") ->  | G88: =IFERROR('Data Common'!L76,"") ->  | H88: =IFERROR('Data Common'!Q76,"") ->  | I88: =IFERROR('Data Traque'!$A$2+Traque!H88+TIME(0,Traque!$I$3,Traque!$J$3),"") ->  | J88: =IFERROR(I88-'Data Common'!X76,"") ->  | L88: =IFERROR(K88-'Data Common'!X76,"") -> 
D89: ='Data Common'!J77 ->  | E89: =IF('Data Common'!C77=0,"",'Data Common'!C77) ->  | F89: =IFERROR('Data Common'!K77,"") ->  | G89: =IFERROR('Data Common'!L77,"") ->  | H89: =IFERROR('Data Common'!Q77,"") ->  | I89: =IFERROR('Data Traque'!$A$2+Traque!H89+TIME(0,Traque!$I$3,Traque!$J$3),"") ->  | J89: =IFERROR(I89-'Data Common'!X77,"") ->  | L89: =IFERROR(K89-'Data Common'!X77,"") -> 
D90: ='Data Common'!J78 ->  | E90: =IF('Data Common'!C78=0,"",'Data Common'!C78) ->  | F90: =IFERROR('Data Common'!K78,"") ->  | G90: =IFERROR('Data Common'!L78,"") ->  | H90: =IFERROR('Data Common'!Q78,"") ->  | I90: =IFERROR('Data Traque'!$A$2+Traque!H90+TIME(0,Traque!$I$3,Traque!$J$3),"") ->  | J90: =IFERROR(I90-'Data Common'!X78,"") ->  | L90: =IFERROR(K90-'Data Common'!X78,"") -> 
D91: ='Data Common'!J79 ->  | E91: =IF('Data Common'!C79=0,"",'Data Common'!C79) ->  | F91: =IFERROR('Data Common'!K79,"") ->  | G91: =IFERROR('Data Common'!L79,"") ->  | H91: =IFERROR('Data Common'!Q79,"") ->  | I91: =IFERROR('Data Traque'!$A$2+Traque!H91+TIME(0,Traque!$I$3,Traque!$J$3),"") ->  | J91: =IFERROR(I91-'Data Common'!X79,"") ->  | L91: =IFERROR(K91-'Data Common'!X79,"") -> 
D92: ='Data Common'!J80 ->  | E92: =IF('Data Common'!C80=0,"",'Data Common'!C80) ->  | F92: =IFERROR('Data Common'!K80,"") ->  | G92: =IFERROR('Data Common'!L80,"") ->  | H92: =IFERROR('Data Common'!Q80,"") ->  | I92: =IFERROR('Data Traque'!$A$2+Traque!H92+TIME(0,Traque!$I$3,Traque!$J$3),"") ->  | J92: =IFERROR(I92-'Data Common'!X80,"") ->  | L92: =IFERROR(K92-'Data Common'!X80,"") -> 
D93: ='Data Common'!J81 ->  | E93: =IF('Data Common'!C81=0,"",'Data Common'!C81) ->  | F93: =IFERROR('Data Common'!K81,"") ->  | G93: =IFERROR('Data Common'!L81,"") ->  | H93: =IFERROR('Data Common'!Q81,"") ->  | I93: =IFERROR('Data Traque'!$A$2+Traque!H93+TIME(0,Traque!$I$3,Traque!$J$3),"") ->  | J93: =IFERROR(I93-'Data Common'!X81,"") ->  | L93: =IFERROR(K93-'Data Common'!X81,"") -> 
D94: ='Data Common'!J82 ->  | E94: =IF('Data Common'!C82=0,"",'Data Common'!C82) ->  | F94: =IFERROR('Data Common'!K82,"") ->  | G94: =IFERROR('Data Common'!L82,"") ->  | H94: =IFERROR('Data Common'!Q82,"") ->  | I94: =IFERROR('Data Traque'!$A$2+Traque!H94+TIME(0,Traque!$I$3,Traque!$J$3),"") ->  | J94: =IFERROR(I94-'Data Common'!X82,"") ->  | L94: =IFERROR(K94-'Data Common'!X82,"") -> 
D95: ='Data Common'!J83 ->  | E95: =IF('Data Common'!C83=0,"",'Data Common'!C83) ->  | F95: =IFERROR('Data Common'!K83,"") ->  | G95: =IFERROR('Data Common'!L83,"") ->  | H95: =IFERROR('Data Common'!Q83,"") ->  | I95: =IFERROR('Data Traque'!$A$2+Traque!H95+TIME(0,Traque!$I$3,Traque!$J$3),"") ->  | J95: =IFERROR(I95-'Data Common'!X83,"") ->  | L95: =IFERROR(K95-'Data Common'!X83,"") -> 
D96: ='Data Common'!J84 ->  | E96: =IF('Data Common'!C84=0,"",'Data Common'!C84) ->  | F96: =IFERROR('Data Common'!K84,"") ->  | G96: =IFERROR('Data Common'!L84,"") ->  | H96: =IFERROR('Data Common'!Q84,"") ->  | I96: =IFERROR('Data Traque'!$A$2+Traque!H96+TIME(0,Traque!$I$3,Traque!$J$3),"") ->  | J96: =IFERROR(I96-'Data Common'!X84,"") ->  | L96: =IFERROR(K96-'Data Common'!X84,"") -> 
D97: ='Data Common'!J85 ->  | E97: =IF('Data Common'!C85=0,"",'Data Common'!C85) ->  | F97: =IFERROR('Data Common'!K85,"") ->  | G97: =IFERROR('Data Common'!L85,"") ->  | H97: =IFERROR('Data Common'!Q85,"") ->  | I97: =IFERROR('Data Traque'!$A$2+Traque!H97+TIME(0,Traque!$I$3,Traque!$J$3),"") ->  | J97: =IFERROR(I97-'Data Common'!X85,"") ->  | L97: =IFERROR(K97-'Data Common'!X85,"") -> 
D98: ='Data Common'!J86 ->  | E98: =IF('Data Common'!C86=0,"",'Data Common'!C86) ->  | F98: =IFERROR('Data Common'!K86,"") ->  | G98: =IFERROR('Data Common'!L86,"") ->  | H98: =IFERROR('Data Common'!Q86,"") ->  | I98: =IFERROR('Data Traque'!$A$2+Traque!H98+TIME(0,Traque!$I$3,Traque!$J$3),"") ->  | J98: =IFERROR(I98-'Data Common'!X86,"") ->  | L98: =IFERROR(K98-'Data Common'!X86,"") -> 
D99: ='Data Common'!J87 ->  | E99: =IF('Data Common'!C87=0,"",'Data Common'!C87) ->  | F99: =IFERROR('Data Common'!K87,"") ->  | G99: =IFERROR('Data Common'!L87,"") ->  | H99: =IFERROR('Data Common'!Q87,"") ->  | I99: =IFERROR('Data Traque'!$A$2+Traque!H99+TIME(0,Traque!$I$3,Traque!$J$3),"") ->  | J99: =IFERROR(I99-'Data Common'!X87,"") ->  | L99: =IFERROR(K99-'Data Common'!X87,"") -> 
D100: ='Data Common'!J88 ->  | E100: =IF('Data Common'!C88=0,"",'Data Common'!C88) ->  | F100: =IFERROR('Data Common'!K88,"") ->  | G100: =IFERROR('Data Common'!L88,"") ->  | H100: =IFERROR('Data Common'!Q88,"") ->  | I100: =IFERROR('Data Traque'!$A$2+Traque!H100+TIME(0,Traque!$I$3,Traque!$J$3),"") ->  | J100: =IFERROR(I100-'Data Common'!X88,"") ->  | L100: =IFERROR(K100-'Data Common'!X88,"") -> 
D101: ='Data Common'!J89 ->  | E101: =IF('Data Common'!C89=0,"",'Data Common'!C89) ->  | F101: =IFERROR('Data Common'!K89,"") ->  | G101: =IFERROR('Data Common'!L89,"") ->  | H101: =IFERROR('Data Common'!Q89,"") ->  | I101: =IFERROR('Data Traque'!$A$2+Traque!H101+TIME(0,Traque!$I$3,Traque!$J$3),"") ->  | J101: =IFERROR(I101-'Data Common'!X89,"") ->  | L101: =IFERROR(K101-'Data Common'!X89,"") -> 
D102: ='Data Common'!J90 ->  | E102: =IF('Data Common'!C90=0,"",'Data Common'!C90) ->  | F102: =IFERROR('Data Common'!K90,"") ->  | G102: =IFERROR('Data Common'!L90,"") ->  | H102: =IFERROR('Data Common'!Q90,"") ->  | I102: =IFERROR('Data Traque'!$A$2+Traque!H102+TIME(0,Traque!$I$3,Traque!$J$3),"") ->  | J102: =IFERROR(I102-'Data Common'!X90,"") ->  | L102: =IFERROR(K102-'Data Common'!X90,"") -> 
D103: ='Data Common'!J91 ->  | E103: =IF('Data Common'!C91=0,"",'Data Common'!C91) ->  | F103: =IFERROR('Data Common'!K91,"") ->  | G103: =IFERROR('Data Common'!L91,"") ->  | H103: =IFERROR('Data Common'!Q91,"") ->  | I103: =IFERROR('Data Traque'!$A$2+Traque!H103+TIME(0,Traque!$I$3,Traque!$J$3),"") ->  | J103: =IFERROR(I103-'Data Common'!X91,"") ->  | L103: =IFERROR(K103-'Data Common'!X91,"") -> 
D104: ='Data Common'!J92 ->  | E104: =IF('Data Common'!C92=0,"",'Data Common'!C92) ->  | F104: =IFERROR('Data Common'!K92,"") ->  | G104: =IFERROR('Data Common'!L92,"") ->  | H104: =IFERROR('Data Common'!Q92,"") ->  | I104: =IFERROR('Data Traque'!$A$2+Traque!H104+TIME(0,Traque!$I$3,Traque!$J$3),"") ->  | J104: =IFERROR(I104-'Data Common'!X92,"") ->  | L104: =IFERROR(K104-'Data Common'!X92,"") -> 
D105: ='Data Common'!J93 ->  | E105: =IF('Data Common'!C93=0,"",'Data Common'!C93) ->  | F105: =IFERROR('Data Common'!K93,"") ->  | G105: =IFERROR('Data Common'!L93,"") ->  | H105: =IFERROR('Data Common'!Q93,"") ->  | I105: =IFERROR('Data Traque'!$A$2+Traque!H105+TIME(0,Traque!$I$3,Traque!$J$3),"") ->  | J105: =IFERROR(I105-'Data Common'!X93,"") ->  | L105: =IFERROR(K105-'Data Common'!X93,"") -> 
D106: ='Data Common'!J94 ->  | E106: =IF('Data Common'!C94=0,"",'Data Common'!C94) ->  | F106: =IFERROR('Data Common'!K94,"") ->  | G106: =IFERROR('Data Common'!L94,"") ->  | H106: =IFERROR('Data Common'!Q94,"") ->  | I106: =IFERROR('Data Traque'!$A$2+Traque!H106+TIME(0,Traque!$I$3,Traque!$J$3),"") ->  | J106: =IFERROR(I106-'Data Common'!X94,"") ->  | L106: =IFERROR(K106-'Data Common'!X94,"") -> 
D107: ='Data Common'!J95 ->  | E107: =IF('Data Common'!C95=0,"",'Data Common'!C95) ->  | F107: =IFERROR('Data Common'!K95,"") ->  | G107: =IFERROR('Data Common'!L95,"") ->  | H107: =IFERROR('Data Common'!Q95,"") ->  | I107: =IFERROR('Data Traque'!$A$2+Traque!H107+TIME(0,Traque!$I$3,Traque!$J$3),"") ->  | J107: =IFERROR(I107-'Data Common'!X95,"") ->  | L107: =IFERROR(K107-'Data Common'!X95,"") -> 
D108: ='Data Common'!J96 ->  | E108: =IF('Data Common'!C96=0,"",'Data Common'!C96) ->  | F108: =IFERROR('Data Common'!K96,"") ->  | G108: =IFERROR('Data Common'!L96,"") ->  | H108: =IFERROR('Data Common'!Q96,"") ->  | I108: =IFERROR('Data Traque'!$A$2+Traque!H108+TIME(0,Traque!$I$3,Traque!$J$3),"") ->  | J108: =IFERROR(I108-'Data Common'!X96,"") ->  | L108: =IFERROR(K108-'Data Common'!X96,"") -> 
D109: ='Data Common'!J97 ->  | E109: =IF('Data Common'!C97=0,"",'Data Common'!C97) ->  | F109: =IFERROR('Data Common'!K97,"") ->  | G109: =IFERROR('Data Common'!L97,"") ->  | H109: =IFERROR('Data Common'!Q97,"") ->  | I109: =IFERROR('Data Traque'!$A$2+Traque!H109+TIME(0,Traque!$I$3,Traque!$J$3),"") ->  | J109: =IFERROR(I109-'Data Common'!X97,"") ->  | L109: =IFERROR(K109-'Data Common'!X97,"") -> 
D110: ='Data Common'!J98 ->  | E110: =IF('Data Common'!C98=0,"",'Data Common'!C98) ->  | F110: =IFERROR('Data Common'!K98,"") ->  | G110: =IFERROR('Data Common'!L98,"") ->  | H110: =IFERROR('Data Common'!Q98,"") ->  | I110: =IFERROR('Data Traque'!$A$2+Traque!H110+TIME(0,Traque!$I$3,Traque!$J$3),"") ->  | J110: =IFERROR(I110-'Data Common'!X98,"") ->  | L110: =IFERROR(K110-'Data Common'!X98,"") -> 
D111: ='Data Common'!J99 ->  | E111: =IF('Data Common'!C99=0,"",'Data Common'!C99) ->  | F111: =IFERROR('Data Common'!K99,"") ->  | G111: =IFERROR('Data Common'!L99,"") ->  | H111: =IFERROR('Data Common'!Q99,"") ->  | I111: =IFERROR('Data Traque'!$A$2+Traque!H111+TIME(0,Traque!$I$3,Traque!$J$3),"") ->  | J111: =IFERROR(I111-'Data Common'!X99,"") ->  | L111: =IFERROR(K111-'Data Common'!X99,"") -> 
D112: ='Data Common'!J100 ->  | E112: =IF('Data Common'!C100=0,"",'Data Common'!C100) ->  | F112: =IFERROR('Data Common'!K100,"") ->  | G112: =IFERROR('Data Common'!L100,"") ->  | H112: =IFERROR('Data Common'!Q100,"") ->  | I112: =IFERROR('Data Traque'!$A$2+Traque!H112+TIME(0,Traque!$I$3,Traque!$J$3),"") ->  | J112: =IFERROR(I112-'Data Common'!X100,"") ->  | L112: =IFERROR(K112-'Data Common'!X100,"") -> 
D113: ='Data Common'!J101 ->  | E113: =IF('Data Common'!C101=0,"",'Data Common'!C101) ->  | F113: =IFERROR('Data Common'!K101,"") ->  | G113: =IFERROR('Data Common'!L101,"") ->  | H113: =IFERROR('Data Common'!Q101,"") ->  | I113: =IFERROR('Data Traque'!$A$2+Traque!H113+TIME(0,Traque!$I$3,Traque!$J$3),"") ->  | J113: =IFERROR(I113-'Data Common'!X101,"") ->  | L113: =IFERROR(K113-'Data Common'!X101,"") -> 
D114: ='Data Common'!J102 ->  | E114: =IF('Data Common'!C102=0,"",'Data Common'!C102) ->  | F114: =IFERROR('Data Common'!K102,"") ->  | G114: =IFERROR('Data Common'!L102,"") ->  | H114: =IFERROR('Data Common'!Q102,"") ->  | I114: =IFERROR('Data Traque'!$A$2+Traque!H114+TIME(0,Traque!$I$3,Traque!$J$3),"") ->  | J114: =IFERROR(I114-'Data Common'!X102,"") ->  | L114: =IFERROR(K114-'Data Common'!X102,"") -> 
D115: ='Data Common'!J103 ->  | E115: =IF('Data Common'!C103=0,"",'Data Common'!C103) ->  | F115: =IFERROR('Data Common'!K103,"") ->  | G115: =IFERROR('Data Common'!L103,"") ->  | H115: =IFERROR('Data Common'!Q103,"") ->  | I115: =IFERROR('Data Traque'!$A$2+Traque!H115+TIME(0,Traque!$I$3,Traque!$J$3),"") ->  | J115: =IFERROR(I115-'Data Common'!X103,"") ->  | L115: =IFERROR(K115-'Data Common'!X103,"") -> 
D116: ='Data Common'!J104 ->  | E116: =IF('Data Common'!C104=0,"",'Data Common'!C104) ->  | F116: =IFERROR('Data Common'!K104,"") ->  | G116: =IFERROR('Data Common'!L104,"") ->  | H116: =IFERROR('Data Common'!Q104,"") ->  | I116: =IFERROR('Data Traque'!$A$2+Traque!H116+TIME(0,Traque!$I$3,Traque!$J$3),"") ->  | J116: =IFERROR(I116-'Data Common'!X104,"") ->  | L116: =IFERROR(K116-'Data Common'!X104,"") -> 
D117: ='Data Common'!J105 ->  | E117: =IF('Data Common'!C105=0,"",'Data Common'!C105) ->  | F117: =IFERROR('Data Common'!K105,"") ->  | G117: =IFERROR('Data Common'!L105,"") ->  | H117: =IFERROR('Data Common'!Q105,"") ->  | I117: =IFERROR('Data Traque'!$A$2+Traque!H117+TIME(0,Traque!$I$3,Traque!$J$3),"") ->  | J117: =IFERROR(I117-'Data Common'!X105,"") ->  | L117: =IFERROR(K117-'Data Common'!X105,"") -> 
D118: ='Data Common'!J106 ->  | E118: =IF('Data Common'!C106=0,"",'Data Common'!C106) ->  | F118: =IFERROR('Data Common'!K106,"") ->  | G118: =IFERROR('Data Common'!L106,"") ->  | H118: =IFERROR('Data Common'!Q106,"") ->  | I118: =IFERROR('Data Traque'!$A$2+Traque!H118+TIME(0,Traque!$I$3,Traque!$J$3),"") ->  | J118: =IFERROR(I118-'Data Common'!X106,"") ->  | L118: =IFERROR(K118-'Data Common'!X106,"") -> 
D119: ='Data Common'!J107 ->  | E119: =IF('Data Common'!C107=0,"",'Data Common'!C107) ->  | F119: =IFERROR('Data Common'!K107,"") ->  | G119: =IFERROR('Data Common'!L107,"") ->  | H119: =IFERROR('Data Common'!Q107,"") ->  | I119: =IFERROR('Data Traque'!$A$2+Traque!H119+TIME(0,Traque!$I$3,Traque!$J$3),"") ->  | J119: =IFERROR(I119-'Data Common'!X107,"") ->  | L119: =IFERROR(K119-'Data Common'!X107,"") -> 
D120: ='Data Common'!J108 ->  | E120: =IF('Data Common'!C108=0,"",'Data Common'!C108) ->  | F120: =IFERROR('Data Common'!K108,"") ->  | G120: =IFERROR('Data Common'!L108,"") ->  | H120: =IFERROR('Data Common'!Q108,"") ->  | I120: =IFERROR('Data Traque'!$A$2+Traque!H120+TIME(0,Traque!$I$3,Traque!$J$3),"") ->  | J120: =IFERROR(I120-'Data Common'!X108,"") ->  | L120: =IFERROR(K120-'Data Common'!X108,"") -> 
D121: ='Data Common'!J109 ->  | E121: =IF('Data Common'!C109=0,"",'Data Common'!C109) ->  | F121: =IFERROR('Data Common'!K109,"") ->  | G121: =IFERROR('Data Common'!L109,"") ->  | H121: =IFERROR('Data Common'!Q109,"") ->  | I121: =IFERROR('Data Traque'!$A$2+Traque!H121+TIME(0,Traque!$I$3,Traque!$J$3),"") ->  | J121: =IFERROR(I121-'Data Common'!X109,"") ->  | L121: =IFERROR(K121-'Data Common'!X109,"") -> 
D122: ='Data Common'!J110 ->  | E122: =IF('Data Common'!C110=0,"",'Data Common'!C110) ->  | F122: =IFERROR('Data Common'!K110,"") ->  | G122: =IFERROR('Data Common'!L110,"") ->  | H122: =IFERROR('Data Common'!Q110,"") ->  | I122: =IFERROR('Data Traque'!$A$2+Traque!H122+TIME(0,Traque!$I$3,Traque!$J$3),"") ->  | J122: =IFERROR(I122-'Data Common'!X110,"") ->  | L122: =IFERROR(K122-'Data Common'!X110,"") -> 
D123: ='Data Common'!J111 ->  | E123: =IF('Data Common'!C111=0,"",'Data Common'!C111) ->  | F123: =IFERROR('Data Common'!K111,"") ->  | G123: =IFERROR('Data Common'!L111,"") ->  | H123: =IFERROR('Data Common'!Q111,"") ->  | I123: =IFERROR('Data Traque'!$A$2+Traque!H123+TIME(0,Traque!$I$3,Traque!$J$3),"") ->  | J123: =IFERROR(I123-'Data Common'!X111,"") ->  | L123: =IFERROR(K123-'Data Common'!X111,"") -> 
D124: ='Data Common'!J112 ->  | E124: =IF('Data Common'!C112=0,"",'Data Common'!C112) ->  | F124: =IFERROR('Data Common'!K112,"") ->  | G124: =IFERROR('Data Common'!L112,"") ->  | H124: =IFERROR('Data Common'!Q112,"") ->  | I124: =IFERROR('Data Traque'!$A$2+Traque!H124+TIME(0,Traque!$I$3,Traque!$J$3),"") ->  | J124: =IFERROR(I124-'Data Common'!X112,"") ->  | L124: =IFERROR(K124-'Data Common'!X112,"") -> 
D125: ='Data Common'!J113 ->  | E125: =IF('Data Common'!C113=0,"",'Data Common'!C113) ->  | F125: =IFERROR('Data Common'!K113,"") ->  | G125: =IFERROR('Data Common'!L113,"") ->  | H125: =IFERROR('Data Common'!Q113,"") ->  | I125: =IFERROR('Data Traque'!$A$2+Traque!H125+TIME(0,Traque!$I$3,Traque!$J$3),"") ->  | J125: =IFERROR(I125-'Data Common'!X113,"") ->  | L125: =IFERROR(K125-'Data Common'!X113,"") -> 
D126: ='Data Common'!J114 ->  | E126: =IF('Data Common'!C114=0,"",'Data Common'!C114) ->  | F126: =IFERROR('Data Common'!K114,"") ->  | G126: =IFERROR('Data Common'!L114,"") ->  | H126: =IFERROR('Data Common'!Q114,"") ->  | I126: =IFERROR('Data Traque'!$A$2+Traque!H126+TIME(0,Traque!$I$3,Traque!$J$3),"") ->  | J126: =IFERROR(I126-'Data Common'!X114,"") ->  | L126: =IFERROR(K126-'Data Common'!X114,"") -> 
D127: ='Data Common'!J115 ->  | E127: =IF('Data Common'!C115=0,"",'Data Common'!C115) ->  | F127: =IFERROR('Data Common'!K115,"") ->  | G127: =IFERROR('Data Common'!L115,"") ->  | H127: =IFERROR('Data Common'!Q115,"") ->  | I127: =IFERROR('Data Traque'!$A$2+Traque!H127+TIME(0,Traque!$I$3,Traque!$J$3),"") ->  | J127: =IFERROR(I127-'Data Common'!X115,"") ->  | L127: =IFERROR(K127-'Data Common'!X115,"") -> 
D128: ='Data Common'!J116 ->  | E128: =IF('Data Common'!C116=0,"",'Data Common'!C116) ->  | F128: =IFERROR('Data Common'!K116,"") ->  | G128: =IFERROR('Data Common'!L116,"") ->  | H128: =IFERROR('Data Common'!Q116,"") ->  | I128: =IFERROR('Data Traque'!$A$2+Traque!H128+TIME(0,Traque!$I$3,Traque!$J$3),"") ->  | J128: =IFERROR(I128-'Data Common'!X116,"") ->  | L128: =IFERROR(K128-'Data Common'!X116,"") -> 
D129: ='Data Common'!J117 ->  | E129: =IF('Data Common'!C117=0,"",'Data Common'!C117) ->  | F129: =IFERROR('Data Common'!K117,"") ->  | G129: =IFERROR('Data Common'!L117,"") ->  | H129: =IFERROR('Data Common'!Q117,"") ->  | I129: =IFERROR('Data Traque'!$A$2+Traque!H129+TIME(0,Traque!$I$3,Traque!$J$3),"") ->  | J129: =IFERROR(I129-'Data Common'!X117,"") ->  | L129: =IFERROR(K129-'Data Common'!X117,"") -> 
D130: ='Data Common'!J118 ->  | E130: =IF('Data Common'!C118=0,"",'Data Common'!C118) ->  | F130: =IFERROR('Data Common'!K118,"") ->  | G130: =IFERROR('Data Common'!L118,"") ->  | H130: =IFERROR('Data Common'!Q118,"") ->  | I130: =IFERROR('Data Traque'!$A$2+Traque!H130+TIME(0,Traque!$I$3,Traque!$J$3),"") ->  | J130: =IFERROR(I130-'Data Common'!X118,"") ->  | L130: =IFERROR(K130-'Data Common'!X118,"") -> 
D131: ='Data Common'!J119 ->  | E131: =IF('Data Common'!C119=0,"",'Data Common'!C119) ->  | F131: =IFERROR('Data Common'!K119,"") ->  | G131: =IFERROR('Data Common'!L119,"") ->  | H131: =IFERROR('Data Common'!Q119,"") ->  | I131: =IFERROR('Data Traque'!$A$2+Traque!H131+TIME(0,Traque!$I$3,Traque!$J$3),"") ->  | J131: =IFERROR(I131-'Data Common'!X119,"") ->  | L131: =IFERROR(K131-'Data Common'!X119,"") -> 
D132: ='Data Common'!J120 ->  | E132: =IF('Data Common'!C120=0,"",'Data Common'!C120) ->  | F132: =IFERROR('Data Common'!K120,"") ->  | G132: =IFERROR('Data Common'!L120,"") ->  | H132: =IFERROR('Data Common'!Q120,"") ->  | I132: =IFERROR('Data Traque'!$A$2+Traque!H132+TIME(0,Traque!$I$3,Traque!$J$3),"") ->  | J132: =IFERROR(I132-'Data Common'!X120,"") ->  | L132: =IFERROR(K132-'Data Common'!X120,"") -> 
D133: ='Data Common'!J121 ->  | E133: =IF('Data Common'!C121=0,"",'Data Common'!C121) ->  | F133: =IFERROR('Data Common'!K121,"") ->  | G133: =IFERROR('Data Common'!L121,"") ->  | H133: =IFERROR('Data Common'!Q121,"") ->  | I133: =IFERROR('Data Traque'!$A$2+Traque!H133+TIME(0,Traque!$I$3,Traque!$J$3),"") ->  | J133: =IFERROR(I133-'Data Common'!X121,"") ->  | L133: =IFERROR(K133-'Data Common'!X121,"") -> 
D134: ='Data Common'!J122 ->  | E134: =IF('Data Common'!C122=0,"",'Data Common'!C122) ->  | F134: =IFERROR('Data Common'!K122,"") ->  | G134: =IFERROR('Data Common'!L122,"") ->  | H134: =IFERROR('Data Common'!Q122,"") ->  | I134: =IFERROR('Data Traque'!$A$2+Traque!H134+TIME(0,Traque!$I$3,Traque!$J$3),"") ->  | J134: =IFERROR(I134-'Data Common'!X122,"") ->  | L134: =IFERROR(K134-'Data Common'!X122,"") -> 
D135: ='Data Common'!J123 ->  | E135: =IF('Data Common'!C123=0,"",'Data Common'!C123) ->  | F135: =IFERROR('Data Common'!K123,"") ->  | G135: =IFERROR('Data Common'!L123,"") ->  | H135: =IFERROR('Data Common'!Q123,"") ->  | I135: =IFERROR('Data Traque'!$A$2+Traque!H135+TIME(0,Traque!$I$3,Traque!$J$3),"") ->  | J135: =IFERROR(I135-'Data Common'!X123,"") ->  | L135: =IFERROR(K135-'Data Common'!X123,"") -> 
D136: ='Data Common'!J124 ->  | E136: =IF('Data Common'!C124=0,"",'Data Common'!C124) ->  | F136: =IFERROR('Data Common'!K124,"") ->  | G136: =IFERROR('Data Common'!L124,"") ->  | H136: =IFERROR('Data Common'!Q124,"") ->  | I136: =IFERROR('Data Traque'!$A$2+Traque!H136+TIME(0,Traque!$I$3,Traque!$J$3),"") ->  | J136: =IFERROR(I136-'Data Common'!X124,"") ->  | L136: =IFERROR(K136-'Data Common'!X124,"") -> 
D137: ='Data Common'!J125 ->  | E137: =IF('Data Common'!C125=0,"",'Data Common'!C125) ->  | F137: =IFERROR('Data Common'!K125,"") ->  | G137: =IFERROR('Data Common'!L125,"") ->  | H137: =IFERROR('Data Common'!Q125,"") ->  | I137: =IFERROR('Data Traque'!$A$2+Traque!H137+TIME(0,Traque!$I$3,Traque!$J$3),"") ->  | J137: =IFERROR(I137-'Data Common'!X125,"") ->  | L137: =IFERROR(K137-'Data Common'!X125,"") -> 
D138: ='Data Common'!J126 ->  | E138: =IF('Data Common'!C126=0,"",'Data Common'!C126) ->  | F138: =IFERROR('Data Common'!K126,"") ->  | G138: =IFERROR('Data Common'!L126,"") ->  | H138: =IFERROR('Data Common'!Q126,"") ->  | I138: =IFERROR('Data Traque'!$A$2+Traque!H138+TIME(0,Traque!$I$3,Traque!$J$3),"") ->  | J138: =IFERROR(I138-'Data Common'!X126,"") ->  | L138: =IFERROR(K138-'Data Common'!X126,"") -> 
D139: ='Data Common'!J127 ->  | E139: =IF('Data Common'!C127=0,"",'Data Common'!C127) ->  | F139: =IFERROR('Data Common'!K127,"") ->  | G139: =IFERROR('Data Common'!L127,"") ->  | H139: =IFERROR('Data Common'!Q127,"") ->  | I139: =IFERROR('Data Traque'!$A$2+Traque!H139+TIME(0,Traque!$I$3,Traque!$J$3),"") ->  | J139: =IFERROR(I139-'Data Common'!X127,"") ->  | L139: =IFERROR(K139-'Data Common'!X127,"") -> 
D140: ='Data Common'!J128 ->  | E140: =IF('Data Common'!C128=0,"",'Data Common'!C128) ->  | F140: =IFERROR('Data Common'!K128,"") ->  | G140: =IFERROR('Data Common'!L128,"") ->  | H140: =IFERROR('Data Common'!Q128,"") ->  | I140: =IFERROR('Data Traque'!$A$2+Traque!H140+TIME(0,Traque!$I$3,Traque!$J$3),"") ->  | J140: =IFERROR(I140-'Data Common'!X128,"") ->  | L140: =IFERROR(K140-'Data Common'!X128,"") -> 
D141: ='Data Common'!J129 ->  | E141: =IF('Data Common'!C129=0,"",'Data Common'!C129) ->  | F141: =IFERROR('Data Common'!K129,"") ->  | G141: =IFERROR('Data Common'!L129,"") ->  | H141: =IFERROR('Data Common'!Q129,"") ->  | I141: =IFERROR('Data Traque'!$A$2+Traque!H141+TIME(0,Traque!$I$3,Traque!$J$3),"") ->  | J141: =IFERROR(I141-'Data Common'!X129,"") ->  | L141: =IFERROR(K141-'Data Common'!X129,"") -> 
D142: ='Data Common'!J130 ->  | E142: =IF('Data Common'!C130=0,"",'Data Common'!C130) ->  | F142: =IFERROR('Data Common'!K130,"") ->  | G142: =IFERROR('Data Common'!L130,"") ->  | H142: =IFERROR('Data Common'!Q130,"") ->  | I142: =IFERROR('Data Traque'!$A$2+Traque!H142+TIME(0,Traque!$I$3,Traque!$J$3),"") ->  | J142: =IFERROR(I142-'Data Common'!X130,"") ->  | K142: =IFERROR(I142+TIME(0,$L$3,$M$3)+H142,"") ->  | L142: =IFERROR(K142-'Data Common'!X130,"") -> 
D143: ='Data Common'!J131 ->  | E143: =IF('Data Common'!C131=0,"",'Data Common'!C131) ->  | F143: =IFERROR('Data Common'!K131,"") ->  | G143: =IFERROR('Data Common'!L131,"") ->  | H143: =IFERROR('Data Common'!Q131,"") ->  | I143: =IFERROR('Data Traque'!$A$2+Traque!H143+TIME(0,Traque!$I$3,Traque!$J$3),"") ->  | J143: =IFERROR(I143-'Data Common'!X131,"") ->  | L143: =IFERROR(K143-'Data Common'!X131,"") -> 
D144: ='Data Common'!J132 ->  | E144: =IF('Data Common'!C132=0,"",'Data Common'!C132) ->  | F144: =IFERROR('Data Common'!K132,"") ->  | G144: =IFERROR('Data Common'!L132,"") ->  | H144: =IFERROR('Data Common'!Q132,"") ->  | I144: =IFERROR('Data Traque'!$A$2+Traque!H144+TIME(0,Traque!$I$3,Traque!$J$3),"") ->  | J144: =IFERROR(I144-'Data Common'!X132,"") ->  | L144: =IFERROR(K144-'Data Common'!X132,"") -> 
D145: ='Data Common'!J133 ->  | E145: =IF('Data Common'!C133=0,"",'Data Common'!C133) ->  | F145: =IFERROR('Data Common'!K133,"") ->  | G145: =IFERROR('Data Common'!L133,"") ->  | H145: =IFERROR('Data Common'!Q133,"") ->  | I145: =IFERROR('Data Traque'!$A$2+Traque!H145+TIME(0,Traque!$I$3,Traque!$J$3),"") ->  | J145: =IFERROR(I145-'Data Common'!X133,"") ->  | L145: =IFERROR(K145-'Data Common'!X133,"") -> 
D146: ='Data Common'!J134 ->  | E146: =IF('Data Common'!C134=0,"",'Data Common'!C134) ->  | F146: =IFERROR('Data Common'!K134,"") ->  | G146: =IFERROR('Data Common'!L134,"") ->  | H146: =IFERROR('Data Common'!Q134,"") ->  | I146: =IFERROR('Data Traque'!$A$2+Traque!H146+TIME(0,Traque!$I$3,Traque!$J$3),"") ->  | J146: =IFERROR(I146-'Data Common'!X134,"") ->  | L146: =IFERROR(K146-'Data Common'!X134,"") -> 
D147: ='Data Common'!J135 ->  | E147: =IF('Data Common'!C135=0,"",'Data Common'!C135) ->  | F147: =IFERROR('Data Common'!K135,"") ->  | G147: =IFERROR('Data Common'!L135,"") ->  | H147: =IFERROR('Data Common'!Q135,"") ->  | I147: =IFERROR('Data Traque'!$A$2+Traque!H147+TIME(0,Traque!$I$3,Traque!$J$3),"") ->  | J147: =IFERROR(I147-'Data Common'!X135,"") ->  | L147: =IFERROR(K147-'Data Common'!X135,"") -> 
D148: ='Data Common'!J136 ->  | E148: =IF('Data Common'!C136=0,"",'Data Common'!C136) ->  | F148: =IFERROR('Data Common'!K136,"") ->  | G148: =IFERROR('Data Common'!L136,"") ->  | H148: =IFERROR('Data Common'!Q136,"") ->  | I148: =IFERROR('Data Traque'!$A$2+Traque!H148+TIME(0,Traque!$I$3,Traque!$J$3),"") ->  | J148: =IFERROR(I148-'Data Common'!X136,"") ->  | L148: =IFERROR(K148-'Data Common'!X136,"") -> 
D149: ='Data Common'!J137 ->  | E149: =IF('Data Common'!C137=0,"",'Data Common'!C137) ->  | F149: =IFERROR('Data Common'!K137,"") ->  | G149: =IFERROR('Data Common'!L137,"") ->  | H149: =IFERROR('Data Common'!Q137,"") ->  | I149: =IFERROR('Data Traque'!$A$2+Traque!H149+TIME(0,Traque!$I$3,Traque!$J$3),"") ->  | J149: =IFERROR(I149-'Data Common'!X137,"") ->  | L149: =IFERROR(K149-'Data Common'!X137,"") -> 
D150: ='Data Common'!J138 ->  | E150: =IF('Data Common'!C138=0,"",'Data Common'!C138) ->  | F150: =IFERROR('Data Common'!K138,"") ->  | G150: =IFERROR('Data Common'!L138,"") ->  | H150: =IFERROR('Data Common'!Q138,"") ->  | I150: =IFERROR('Data Traque'!$A$2+Traque!H150+TIME(0,Traque!$I$3,Traque!$J$3),"") ->  | J150: =IFERROR(I150-'Data Common'!X138,"") ->  | L150: =IFERROR(K150-'Data Common'!X138,"") -> 
D151: ='Data Common'!J139 ->  | E151: =IF('Data Common'!C139=0,"",'Data Common'!C139) ->  | F151: =IFERROR('Data Common'!K139,"") ->  | G151: =IFERROR('Data Common'!L139,"") ->  | H151: =IFERROR('Data Common'!Q139,"") ->  | I151: =IFERROR('Data Traque'!$A$2+Traque!H151+TIME(0,Traque!$I$3,Traque!$J$3),"") ->  | J151: =IFERROR(I151-'Data Common'!X139,"") ->  | L151: =IFERROR(K151-'Data Common'!X139,"") -> 
D152: ='Data Common'!J140 ->  | E152: =IF('Data Common'!C140=0,"",'Data Common'!C140) ->  | F152: =IFERROR('Data Common'!K140,"") ->  | G152: =IFERROR('Data Common'!L140,"") ->  | H152: =IFERROR('Data Common'!Q140,"") ->  | I152: =IFERROR('Data Traque'!$A$2+Traque!H152+TIME(0,Traque!$I$3,Traque!$J$3),"") ->  | J152: =IFERROR(I152-'Data Common'!X140,"") ->  | L152: =IFERROR(K152-'Data Common'!X140,"") -> 
D153: ='Data Common'!J141 ->  | E153: =IF('Data Common'!C141=0,"",'Data Common'!C141) ->  | F153: =IFERROR('Data Common'!K141,"") ->  | G153: =IFERROR('Data Common'!L141,"") ->  | H153: =IFERROR('Data Common'!Q141,"") ->  | I153: =IFERROR('Data Traque'!$A$2+Traque!H153+TIME(0,Traque!$I$3,Traque!$J$3),"") ->  | J153: =IFERROR(I153-'Data Common'!X141,"") ->  | L153: =IFERROR(K153-'Data Common'!X141,"") -> 
D154: ='Data Common'!J142 ->  | E154: =IF('Data Common'!C142=0,"",'Data Common'!C142) ->  | F154: =IFERROR('Data Common'!K142,"") ->  | G154: =IFERROR('Data Common'!L142,"") ->  | H154: =IFERROR('Data Common'!Q142,"") ->  | I154: =IFERROR('Data Traque'!$A$2+Traque!H154+TIME(0,Traque!$I$3,Traque!$J$3),"") ->  | J154: =IFERROR(I154-'Data Common'!X142,"") ->  | L154: =IFERROR(K154-'Data Common'!X142,"") -> 
D155: ='Data Common'!J143 ->  | E155: =IF('Data Common'!C143=0,"",'Data Common'!C143) ->  | F155: =IFERROR('Data Common'!K143,"") ->  | G155: =IFERROR('Data Common'!L143,"") ->  | H155: =IFERROR('Data Common'!Q143,"") ->  | I155: =IFERROR('Data Traque'!$A$2+Traque!H155+TIME(0,Traque!$I$3,Traque!$J$3),"") ->  | J155: =IFERROR(I155-'Data Common'!X143,"") ->  | L155: =IFERROR(K155-'Data Common'!X143,"") -> 
D156: ='Data Common'!J144 ->  | E156: =IF('Data Common'!C144=0,"",'Data Common'!C144) ->  | F156: =IFERROR('Data Common'!K144,"") ->  | G156: =IFERROR('Data Common'!L144,"") ->  | H156: =IFERROR('Data Common'!Q144,"") ->  | I156: =IFERROR('Data Traque'!$A$2+Traque!H156+TIME(0,Traque!$I$3,Traque!$J$3),"") ->  | J156: =IFERROR(I156-'Data Common'!X144,"") ->  | L156: =IFERROR(K156-'Data Common'!X144,"") -> 
D157: ='Data Common'!J145 ->  | E157: =IF('Data Common'!C145=0,"",'Data Common'!C145) ->  | F157: =IFERROR('Data Common'!K145,"") ->  | G157: =IFERROR('Data Common'!L145,"") ->  | H157: =IFERROR('Data Common'!Q145,"") ->  | I157: =IFERROR('Data Traque'!$A$2+Traque!H157+TIME(0,Traque!$I$3,Traque!$J$3),"") ->  | J157: =IFERROR(I157-'Data Common'!X145,"") ->  | L157: =IFERROR(K157-'Data Common'!X145,"") -> 
D158: ='Data Common'!J146 ->  | E158: =IF('Data Common'!C146=0,"",'Data Common'!C146) ->  | F158: =IFERROR('Data Common'!K146,"") ->  | G158: =IFERROR('Data Common'!L146,"") ->  | H158: =IFERROR('Data Common'!Q146,"") ->  | I158: =IFERROR('Data Traque'!$A$2+Traque!H158+TIME(0,Traque!$I$3,Traque!$J$3),"") ->  | J158: =IFERROR(I158-'Data Common'!X146,"") ->  | L158: =IFERROR(K158-'Data Common'!X146,"") -> 
D159: ='Data Common'!J147 ->  | E159: =IF('Data Common'!C147=0,"",'Data Common'!C147) ->  | F159: =IFERROR('Data Common'!K147,"") ->  | G159: =IFERROR('Data Common'!L147,"") ->  | H159: =IFERROR('Data Common'!Q147,"") ->  | I159: =IFERROR('Data Traque'!$A$2+Traque!H159+TIME(0,Traque!$I$3,Traque!$J$3),"") ->  | J159: =IFERROR(I159-'Data Common'!X147,"") ->  | L159: =IFERROR(K159-'Data Common'!X147,"") -> 
D160: ='Data Common'!J148 ->  | E160: =IF('Data Common'!C148=0,"",'Data Common'!C148) ->  | F160: =IFERROR('Data Common'!K148,"") ->  | G160: =IFERROR('Data Common'!L148,"") ->  | H160: =IFERROR('Data Common'!Q148,"") ->  | I160: =IFERROR('Data Traque'!$A$2+Traque!H160+TIME(0,Traque!$I$3,Traque!$J$3),"") ->  | J160: =IFERROR(I160-'Data Common'!X148,"") ->  | L160: =IFERROR(K160-'Data Common'!X148,"") -> 
D161: ='Data Common'!J149 ->  | E161: =IF('Data Common'!C149=0,"",'Data Common'!C149) ->  | F161: =IFERROR('Data Common'!K149,"") ->  | G161: =IFERROR('Data Common'!L149,"") ->  | H161: =IFERROR('Data Common'!Q149,"") ->  | I161: =IFERROR('Data Traque'!$A$2+Traque!H161+TIME(0,Traque!$I$3,Traque!$J$3),"") ->  | J161: =IFERROR(I161-'Data Common'!X149,"") ->  | L161: =IFERROR(K161-'Data Common'!X149,"") -> 
D162: ='Data Common'!J150 ->  | E162: =IF('Data Common'!C150=0,"",'Data Common'!C150) ->  | F162: =IFERROR('Data Common'!K150,"") ->  | G162: =IFERROR('Data Common'!L150,"") ->  | H162: =IFERROR('Data Common'!Q150,"") ->  | I162: =IFERROR('Data Traque'!$A$2+Traque!H162+TIME(0,Traque!$I$3,Traque!$J$3),"") ->  | J162: =IFERROR(I162-'Data Common'!X150,"") ->  | L162: =IFERROR(K162-'Data Common'!X150,"") -> 
D163: ='Data Common'!J151 ->  | E163: =IF('Data Common'!C151=0,"",'Data Common'!C151) ->  | F163: =IFERROR('Data Common'!K151,"") ->  | G163: =IFERROR('Data Common'!L151,"") ->  | H163: =IFERROR('Data Common'!Q151,"") ->  | I163: =IFERROR('Data Traque'!$A$2+Traque!H163+TIME(0,Traque!$I$3,Traque!$J$3),"") ->  | J163: =IFERROR(I163-'Data Common'!X151,"") ->  | L163: =IFERROR(K163-'Data Common'!X151,"") -> 
D164: ='Data Common'!J152 ->  | E164: =IF('Data Common'!C152=0,"",'Data Common'!C152) ->  | F164: =IFERROR('Data Common'!K152,"") ->  | G164: =IFERROR('Data Common'!L152,"") ->  | H164: =IFERROR('Data Common'!Q152,"") ->  | I164: =IFERROR('Data Traque'!$A$2+Traque!H164+TIME(0,Traque!$I$3,Traque!$J$3),"") ->  | J164: =IFERROR(I164-'Data Common'!X152,"") ->  | L164: =IFERROR(K164-'Data Common'!X152,"") -> 
D165: ='Data Common'!J153 ->  | E165: =IF('Data Common'!C153=0,"",'Data Common'!C153) ->  | F165: =IFERROR('Data Common'!K153,"") ->  | G165: =IFERROR('Data Common'!L153,"") ->  | H165: =IFERROR('Data Common'!Q153,"") ->  | I165: =IFERROR('Data Traque'!$A$2+Traque!H165+TIME(0,Traque!$I$3,Traque!$J$3),"") ->  | J165: =IFERROR(I165-'Data Common'!X153,"") ->  | L165: =IFERROR(K165-'Data Common'!X153,"") -> 
D166: ='Data Common'!J154 ->  | E166: =IF('Data Common'!C154=0,"",'Data Common'!C154) ->  | F166: =IFERROR('Data Common'!K154,"") ->  | G166: =IFERROR('Data Common'!L154,"") ->  | H166: =IFERROR('Data Common'!Q154,"") ->  | I166: =IFERROR('Data Traque'!$A$2+Traque!H166+TIME(0,Traque!$I$3,Traque!$J$3),"") ->  | J166: =IFERROR(I166-'Data Common'!X154,"") ->  | L166: =IFERROR(K166-'Data Common'!X154,"") -> 
D167: ='Data Common'!J155 ->  | E167: =IF('Data Common'!C155=0,"",'Data Common'!C155) ->  | F167: =IFERROR('Data Common'!K155,"") ->  | G167: =IFERROR('Data Common'!L155,"") ->  | H167: =IFERROR('Data Common'!Q155,"") ->  | I167: =IFERROR('Data Traque'!$A$2+Traque!H167+TIME(0,Traque!$I$3,Traque!$J$3),"") ->  | J167: =IFERROR(I167-'Data Common'!X155,"") ->  | L167: =IFERROR(K167-'Data Common'!X155,"") -> 
D168: ='Data Common'!J156 ->  | E168: =IF('Data Common'!C156=0,"",'Data Common'!C156) ->  | F168: =IFERROR('Data Common'!K156,"") ->  | G168: =IFERROR('Data Common'!L156,"") ->  | H168: =IFERROR('Data Common'!Q156,"") ->  | I168: =IFERROR('Data Traque'!$A$2+Traque!H168+TIME(0,Traque!$I$3,Traque!$J$3),"") ->  | J168: =IFERROR(I168-'Data Common'!X156,"") ->  | L168: =IFERROR(K168-'Data Common'!X156,"") -> 
D169: ='Data Common'!J157 ->  | E169: =IF('Data Common'!C157=0,"",'Data Common'!C157) ->  | F169: =IFERROR('Data Common'!K157,"") ->  | G169: =IFERROR('Data Common'!L157,"") ->  | H169: =IFERROR('Data Common'!Q157,"") ->  | I169: =IFERROR('Data Traque'!$A$2+Traque!H169+TIME(0,Traque!$I$3,Traque!$J$3),"") ->  | J169: =IFERROR(I169-'Data Common'!X157,"") ->  | L169: =IFERROR(K169-'Data Common'!X157,"") -> 
D170: ='Data Common'!J158 ->  | E170: =IF('Data Common'!C158=0,"",'Data Common'!C158) ->  | F170: =IFERROR('Data Common'!K158,"") ->  | G170: =IFERROR('Data Common'!L158,"") ->  | H170: =IFERROR('Data Common'!Q158,"") ->  | I170: =IFERROR('Data Traque'!$A$2+Traque!H170+TIME(0,Traque!$I$3,Traque!$J$3),"") ->  | J170: =IFERROR(I170-'Data Common'!X158,"") ->  | L170: =IFERROR(K170-'Data Common'!X158,"") -> 
D171: ='Data Common'!J159 ->  | E171: =IF('Data Common'!C159=0,"",'Data Common'!C159) ->  | F171: =IFERROR('Data Common'!K159,"") ->  | G171: =IFERROR('Data Common'!L159,"") ->  | H171: =IFERROR('Data Common'!Q159,"") ->  | I171: =IFERROR('Data Traque'!$A$2+Traque!H171+TIME(0,Traque!$I$3,Traque!$J$3),"") ->  | J171: =IFERROR(I171-'Data Common'!X159,"") ->  | L171: =IFERROR(K171-'Data Common'!X159,"") -> 
D172: ='Data Common'!J160 ->  | E172: =IF('Data Common'!C160=0,"",'Data Common'!C160) ->  | F172: =IFERROR('Data Common'!K160,"") ->  | G172: =IFERROR('Data Common'!L160,"") ->  | H172: =IFERROR('Data Common'!Q160,"") ->  | I172: =IFERROR('Data Traque'!$A$2+Traque!H172+TIME(0,Traque!$I$3,Traque!$J$3),"") ->  | J172: =IFERROR(I172-'Data Common'!X160,"") ->  | L172: =IFERROR(K172-'Data Common'!X160,"") -> 
D173: ='Data Common'!J161 ->  | E173: =IF('Data Common'!C161=0,"",'Data Common'!C161) ->  | F173: =IFERROR('Data Common'!K161,"") ->  | G173: =IFERROR('Data Common'!L161,"") ->  | H173: =IFERROR('Data Common'!Q161,"") ->  | I173: =IFERROR('Data Traque'!$A$2+Traque!H173+TIME(0,Traque!$I$3,Traque!$J$3),"") ->  | J173: =IFERROR(I173-'Data Common'!X161,"") ->  | L173: =IFERROR(K173-'Data Common'!X161,"") -> 
D174: ='Data Common'!J162 ->  | E174: =IF('Data Common'!C162=0,"",'Data Common'!C162) ->  | F174: =IFERROR('Data Common'!K162,"") ->  | G174: =IFERROR('Data Common'!L162,"") ->  | H174: =IFERROR('Data Common'!Q162,"") ->  | I174: =IFERROR('Data Traque'!$A$2+Traque!H174+TIME(0,Traque!$I$3,Traque!$J$3),"") ->  | J174: =IFERROR(I174-'Data Common'!X162,"") ->  | L174: =IFERROR(K174-'Data Common'!X162,"") -> 
D175: ='Data Common'!J163 ->  | E175: =IF('Data Common'!C163=0,"",'Data Common'!C163) ->  | F175: =IFERROR('Data Common'!K163,"") ->  | G175: =IFERROR('Data Common'!L163,"") ->  | H175: =IFERROR('Data Common'!Q163,"") ->  | I175: =IFERROR('Data Traque'!$A$2+Traque!H175+TIME(0,Traque!$I$3,Traque!$J$3),"") ->  | J175: =IFERROR(I175-'Data Common'!X163,"") ->  | L175: =IFERROR(K175-'Data Common'!X163,"") -> 
D176: ='Data Common'!J164 ->  | E176: =IF('Data Common'!C164=0,"",'Data Common'!C164) ->  | F176: =IFERROR('Data Common'!K164,"") ->  | G176: =IFERROR('Data Common'!L164,"") ->  | H176: =IFERROR('Data Common'!Q164,"") ->  | I176: =IFERROR('Data Traque'!$A$2+Traque!H176+TIME(0,Traque!$I$3,Traque!$J$3),"") ->  | J176: =IFERROR(I176-'Data Common'!X164,"") ->  | L176: =IFERROR(K176-'Data Common'!X164,"") -> 
D177: ='Data Common'!J165 ->  | E177: =IF('Data Common'!C165=0,"",'Data Common'!C165) ->  | F177: =IFERROR('Data Common'!K165,"") ->  | G177: =IFERROR('Data Common'!L165,"") ->  | H177: =IFERROR('Data Common'!Q165,"") ->  | I177: =IFERROR('Data Traque'!$A$2+Traque!H177+TIME(0,Traque!$I$3,Traque!$J$3),"") ->  | J177: =IFERROR(I177-'Data Common'!X165,"") ->  | L177: =IFERROR(K177-'Data Common'!X165,"") -> 
D178: ='Data Common'!J166 ->  | E178: =IF('Data Common'!C166=0,"",'Data Common'!C166) ->  | F178: =IFERROR('Data Common'!K166,"") ->  | G178: =IFERROR('Data Common'!L166,"") ->  | H178: =IFERROR('Data Common'!Q166,"") ->  | I178: =IFERROR('Data Traque'!$A$2+Traque!H178+TIME(0,Traque!$I$3,Traque!$J$3),"") ->  | J178: =IFERROR(I178-'Data Common'!X166,"") ->  | L178: =IFERROR(K178-'Data Common'!X166,"") -> 
D179: ='Data Common'!J167 ->  | E179: =IF('Data Common'!C167=0,"",'Data Common'!C167) ->  | F179: =IFERROR('Data Common'!K167,"") ->  | G179: =IFERROR('Data Common'!L167,"") ->  | H179: =IFERROR('Data Common'!Q167,"") ->  | I179: =IFERROR('Data Traque'!$A$2+Traque!H179+TIME(0,Traque!$I$3,Traque!$J$3),"") ->  | J179: =IFERROR(I179-'Data Common'!X167,"") ->  | L179: =IFERROR(K179-'Data Common'!X167,"") -> 
D180: ='Data Common'!J168 ->  | E180: =IF('Data Common'!C168=0,"",'Data Common'!C168) ->  | F180: =IFERROR('Data Common'!K168,"") ->  | G180: =IFERROR('Data Common'!L168,"") ->  | H180: =IFERROR('Data Common'!Q168,"") ->  | I180: =IFERROR('Data Traque'!$A$2+Traque!H180+TIME(0,Traque!$I$3,Traque!$J$3),"") ->  | J180: =IFERROR(I180-'Data Common'!X168,"") ->  | L180: =IFERROR(K180-'Data Common'!X168,"") -> 
D181: ='Data Common'!J169 ->  | E181: =IF('Data Common'!C169=0,"",'Data Common'!C169) ->  | F181: =IFERROR('Data Common'!K169,"") ->  | G181: =IFERROR('Data Common'!L169,"") ->  | H181: =IFERROR('Data Common'!Q169,"") ->  | I181: =IFERROR('Data Traque'!$A$2+Traque!H181+TIME(0,Traque!$I$3,Traque!$J$3),"") ->  | J181: =IFERROR(I181-'Data Common'!X169,"") ->  | L181: =IFERROR(K181-'Data Common'!X169,"") -> 
D182: ='Data Common'!J170 ->  | E182: =IF('Data Common'!C170=0,"",'Data Common'!C170) ->  | F182: =IFERROR('Data Common'!K170,"") ->  | G182: =IFERROR('Data Common'!L170,"") ->  | H182: =IFERROR('Data Common'!Q170,"") ->  | I182: =IFERROR('Data Traque'!$A$2+Traque!H182+TIME(0,Traque!$I$3,Traque!$J$3),"") ->  | J182: =IFERROR(I182-'Data Common'!X170,"") ->  | L182: =IFERROR(K182-'Data Common'!X170,"") -> 
D183: ='Data Common'!J171 ->  | E183: =IF('Data Common'!C171=0,"",'Data Common'!C171) ->  | F183: =IFERROR('Data Common'!K171,"") ->  | G183: =IFERROR('Data Common'!L171,"") ->  | H183: =IFERROR('Data Common'!Q171,"") ->  | I183: =IFERROR('Data Traque'!$A$2+Traque!H183+TIME(0,Traque!$I$3,Traque!$J$3),"") ->  | J183: =IFERROR(I183-'Data Common'!X171,"") ->  | L183: =IFERROR(K183-'Data Common'!X171,"") -> 
D184: ='Data Common'!J172 ->  | E184: =IF('Data Common'!C172=0,"",'Data Common'!C172) ->  | F184: =IFERROR('Data Common'!K172,"") ->  | G184: =IFERROR('Data Common'!L172,"") ->  | H184: =IFERROR('Data Common'!Q172,"") ->  | I184: =IFERROR('Data Traque'!$A$2+Traque!H184+TIME(0,Traque!$I$3,Traque!$J$3),"") ->  | J184: =IFERROR(I184-'Data Common'!X172,"") ->  | L184: =IFERROR(K184-'Data Common'!X172,"") -> 
D185: ='Data Common'!J173 ->  | E185: =IF('Data Common'!C173=0,"",'Data Common'!C173) ->  | F185: =IFERROR('Data Common'!K173,"") ->  | G185: =IFERROR('Data Common'!L173,"") ->  | H185: =IFERROR('Data Common'!Q173,"") ->  | I185: =IFERROR('Data Traque'!$A$2+Traque!H185+TIME(0,Traque!$I$3,Traque!$J$3),"") ->  | J185: =IFERROR(I185-'Data Common'!X173,"") ->  | L185: =IFERROR(K185-'Data Common'!X173,"") -> 
D186: ='Data Common'!J174 ->  | E186: =IF('Data Common'!C174=0,"",'Data Common'!C174) ->  | F186: =IFERROR('Data Common'!K174,"") ->  | G186: =IFERROR('Data Common'!L174,"") ->  | H186: =IFERROR('Data Common'!Q174,"") ->  | I186: =IFERROR('Data Traque'!$A$2+Traque!H186+TIME(0,Traque!$I$3,Traque!$J$3),"") ->  | J186: =IFERROR(I186-'Data Common'!X174,"") ->  | L186: =IFERROR(K186-'Data Common'!X174,"") -> 
D187: ='Data Common'!J175 ->  | E187: =IF('Data Common'!C175=0,"",'Data Common'!C175) ->  | F187: =IFERROR('Data Common'!K175,"") ->  | G187: =IFERROR('Data Common'!L175,"") ->  | H187: =IFERROR('Data Common'!Q175,"") ->  | I187: =IFERROR('Data Traque'!$A$2+Traque!H187+TIME(0,Traque!$I$3,Traque!$J$3),"") ->  | J187: =IFERROR(I187-'Data Common'!X175,"") ->  | L187: =IFERROR(K187-'Data Common'!X175,"") -> 
D188: ='Data Common'!J176 ->  | E188: =IF('Data Common'!C176=0,"",'Data Common'!C176) ->  | F188: =IFERROR('Data Common'!K176,"") ->  | G188: =IFERROR('Data Common'!L176,"") ->  | H188: =IFERROR('Data Common'!Q176,"") ->  | I188: =IFERROR('Data Traque'!$A$2+Traque!H188+TIME(0,Traque!$I$3,Traque!$J$3),"") ->  | J188: =IFERROR(I188-'Data Common'!X176,"") ->  | L188: =IFERROR(K188-'Data Common'!X176,"") -> 
D189: ='Data Common'!J177 ->  | E189: =IF('Data Common'!C177=0,"",'Data Common'!C177) ->  | F189: =IFERROR('Data Common'!K177,"") ->  | G189: =IFERROR('Data Common'!L177,"") ->  | H189: =IFERROR('Data Common'!Q177,"") ->  | I189: =IFERROR('Data Traque'!$A$2+Traque!H189+TIME(0,Traque!$I$3,Traque!$J$3),"") ->  | J189: =IFERROR(I189-'Data Common'!X177,"") ->  | L189: =IFERROR(K189-'Data Common'!X177,"") -> 
D190: ='Data Common'!J178 ->  | E190: =IF('Data Common'!C178=0,"",'Data Common'!C178) ->  | F190: =IFERROR('Data Common'!K178,"") ->  | G190: =IFERROR('Data Common'!L178,"") ->  | H190: =IFERROR('Data Common'!Q178,"") ->  | I190: =IFERROR('Data Traque'!$A$2+Traque!H190+TIME(0,Traque!$I$3,Traque!$J$3),"") ->  | J190: =IFERROR(I190-'Data Common'!X178,"") ->  | L190: =IFERROR(K190-'Data Common'!X178,"") -> 
D191: ='Data Common'!J179 ->  | E191: =IF('Data Common'!C179=0,"",'Data Common'!C179) ->  | F191: =IFERROR('Data Common'!K179,"") ->  | G191: =IFERROR('Data Common'!L179,"") ->  | H191: =IFERROR('Data Common'!Q179,"") ->  | I191: =IFERROR('Data Traque'!$A$2+Traque!H191+TIME(0,Traque!$I$3,Traque!$J$3),"") ->  | J191: =IFERROR(I191-'Data Common'!X179,"") ->  | L191: =IFERROR(K191-'Data Common'!X179,"") -> 
D192: ='Data Common'!J180 ->  | E192: =IF('Data Common'!C180=0,"",'Data Common'!C180) ->  | F192: =IFERROR('Data Common'!K180,"") ->  | G192: =IFERROR('Data Common'!L180,"") ->  | H192: =IFERROR('Data Common'!Q180,"") ->  | I192: =IFERROR('Data Traque'!$A$2+Traque!H192+TIME(0,Traque!$I$3,Traque!$J$3),"") ->  | J192: =IFERROR(I192-'Data Common'!X180,"") ->  | L192: =IFERROR(K192-'Data Common'!X180,"") -> 
D193: ='Data Common'!J181 ->  | E193: =IF('Data Common'!C181=0,"",'Data Common'!C181) ->  | F193: =IFERROR('Data Common'!K181,"") ->  | G193: =IFERROR('Data Common'!L181,"") ->  | H193: =IFERROR('Data Common'!Q181,"") ->  | I193: =IFERROR('Data Traque'!$A$2+Traque!H193+TIME(0,Traque!$I$3,Traque!$J$3),"") ->  | J193: =IFERROR(I193-'Data Common'!X181,"") ->  | L193: =IFERROR(K193-'Data Common'!X181,"") -> 
D194: ='Data Common'!J182 ->  | E194: =IF('Data Common'!C182=0,"",'Data Common'!C182) ->  | F194: =IFERROR('Data Common'!K182,"") ->  | G194: =IFERROR('Data Common'!L182,"") ->  | H194: =IFERROR('Data Common'!Q182,"") ->  | I194: =IFERROR('Data Traque'!$A$2+Traque!H194+TIME(0,Traque!$I$3,Traque!$J$3),"") ->  | J194: =IFERROR(I194-'Data Common'!X182,"") ->  | L194: =IFERROR(K194-'Data Common'!X182,"") -> 
D195: ='Data Common'!J183 ->  | E195: =IF('Data Common'!C183=0,"",'Data Common'!C183) ->  | F195: =IFERROR('Data Common'!K183,"") ->  | G195: =IFERROR('Data Common'!L183,"") ->  | H195: =IFERROR('Data Common'!Q183,"") ->  | I195: =IFERROR('Data Traque'!$A$2+Traque!H195+TIME(0,Traque!$I$3,Traque!$J$3),"") ->  | J195: =IFERROR(I195-'Data Common'!X183,"") ->  | L195: =IFERROR(K195-'Data Common'!X183,"") -> 
D196: ='Data Common'!J184 ->  | E196: =IF('Data Common'!C184=0,"",'Data Common'!C184) ->  | F196: =IFERROR('Data Common'!K184,"") ->  | G196: =IFERROR('Data Common'!L184,"") ->  | H196: =IFERROR('Data Common'!Q184,"") ->  | I196: =IFERROR('Data Traque'!$A$2+Traque!H196+TIME(0,Traque!$I$3,Traque!$J$3),"") ->  | J196: =IFERROR(I196-'Data Common'!X184,"") ->  | L196: =IFERROR(K196-'Data Common'!X184,"") -> 
D197: ='Data Common'!J185 ->  | E197: =IF('Data Common'!C185=0,"",'Data Common'!C185) ->  | F197: =IFERROR('Data Common'!K185,"") ->  | G197: =IFERROR('Data Common'!L185,"") ->  | H197: =IFERROR('Data Common'!Q185,"") ->  | I197: =IFERROR('Data Traque'!$A$2+Traque!H197+TIME(0,Traque!$I$3,Traque!$J$3),"") ->  | J197: =IFERROR(I197-'Data Common'!X185,"") ->  | L197: =IFERROR(K197-'Data Common'!X185,"") -> 
D198: ='Data Common'!J186 ->  | E198: =IF('Data Common'!C186=0,"",'Data Common'!C186) ->  | F198: =IFERROR('Data Common'!K186,"") ->  | G198: =IFERROR('Data Common'!L186,"") ->  | H198: =IFERROR('Data Common'!Q186,"") ->  | I198: =IFERROR('Data Traque'!$A$2+Traque!H198+TIME(0,Traque!$I$3,Traque!$J$3),"") ->  | J198: =IFERROR(I198-'Data Common'!X186,"") ->  | L198: =IFERROR(K198-'Data Common'!X186,"") -> 
D199: ='Data Common'!J187 ->  | E199: =IF('Data Common'!C187=0,"",'Data Common'!C187) ->  | F199: =IFERROR('Data Common'!K187,"") ->  | G199: =IFERROR('Data Common'!L187,"") ->  | H199: =IFERROR('Data Common'!Q187,"") ->  | I199: =IFERROR('Data Traque'!$A$2+Traque!H199+TIME(0,Traque!$I$3,Traque!$J$3),"") ->  | J199: =IFERROR(I199-'Data Common'!X187,"") ->  | L199: =IFERROR(K199-'Data Common'!X187,"") -> 
D200: ='Data Common'!J188 ->  | E200: =IF('Data Common'!C188=0,"",'Data Common'!C188) ->  | F200: =IFERROR('Data Common'!K188,"") ->  | G200: =IFERROR('Data Common'!L188,"") ->  | H200: =IFERROR('Data Common'!Q188,"") ->  | I200: =IFERROR('Data Traque'!$A$2+Traque!H200+TIME(0,Traque!$I$3,Traque!$J$3),"") ->  | J200: =IFERROR(I200-'Data Common'!X188,"") ->  | L200: =IFERROR(K200-'Data Common'!X188,"") -> 
D201: ='Data Common'!J189 ->  | E201: =IF('Data Common'!C189=0,"",'Data Common'!C189) ->  | F201: =IFERROR('Data Common'!K189,"") ->  | G201: =IFERROR('Data Common'!L189,"") ->  | H201: =IFERROR('Data Common'!Q189,"") ->  | I201: =IFERROR('Data Traque'!$A$2+Traque!H201+TIME(0,Traque!$I$3,Traque!$J$3),"") ->  | J201: =IFERROR(I201-'Data Common'!X189,"") ->  | L201: =IFERROR(K201-'Data Common'!X189,"") -> 
D202: ='Data Common'!J190 ->  | E202: =IF('Data Common'!C190=0,"",'Data Common'!C190) ->  | F202: =IFERROR('Data Common'!K190,"") ->  | G202: =IFERROR('Data Common'!L190,"") ->  | H202: =IFERROR('Data Common'!Q190,"") ->  | I202: =IFERROR('Data Traque'!$A$2+Traque!H202+TIME(0,Traque!$I$3,Traque!$J$3),"") ->  | J202: =IFERROR(I202-'Data Common'!X190,"") ->  | L202: =IFERROR(K202-'Data Common'!X190,"") -> 
... 199 more rows

Sheet Data Common
A1: Alliance | B1: Nom | C1: Tdc | D1: A portée | E1: x | F1: y | H1: x cible | I1: =Traque!F2 -> 16 | J1: Nom | K1: A portée de cible ? | L1: Distance | M1: Temps | N1: h | O1: min | P1: sec | Q1: Soit | S1: Lanceravant | T1: Temps | U1: h | V1: min | W1: sec | X1: Soit
A2: Mon Ally | B2: ='Mon Alliance'!A58 ->  | C2: ='Mon Alliance'!C58 -> 0 | E2: ='Mon Alliance'!E58 ->  | F2: ='Mon Alliance'!F58 ->  | H2: y cible | I2: =Traque!F3 -> 173 | J2: =B2 ->  | K2: =IF(AND((C2<=(3*$I$5)),(C2>=(0.5*$I$5))),"A PORTEE"," ") ->  | L2: =SQRT(($I$1-E2)^2+($I$2-F2)^2) ->  | M2: =24*3600*(1-EXP(-L2/350))*7.375*(0.9^$I$4) ->  | N2: =ROUNDDOWN(M2/3600,0) ->  | O2: =ROUNDDOWN((M2-N2*3600)/60,0) ->  | P2: =ROUNDUP((M2-N2*3600-O2*60),0) ->  | Q2: =TIME(N2,O2,P2) ->  | S2: =SQRT((Moi!$C$4-E2)^2+(Moi!$C$5-F2)^2) ->  | T2: =24*3600*(1-EXP(-S2/350))*7.375*(0.9^Moi!$C$7) ->  | U2: =ROUNDDOWN(T2/3600,0) ->  | V2: =ROUNDDOWN((T2-U2*3600)/60,0) ->  | W2: =ROUNDUP((T2-U2*3600-V2*60),0) ->  | X2: =TIME(U2,V2,W2) -> 
B3: ='Mon Alliance'!A59 ->  | C3: ='Mon Alliance'!C59 -> 0 | E3: ='Mon Alliance'!E59 ->  | F3: ='Mon Alliance'!F59 ->  | J3: =B3 ->  | K3: =IF(AND((C3<=(3*$I$5)),(C3>=(0.5*$I$5))),"A PORTEE"," ") ->  | L3: =SQRT(($I$1-E3)^2+($I$2-F3)^2) ->  | M3: =24*3600*(1-EXP(-L3/350))*7.375*(0.9^$I$4) ->  | N3: =ROUNDDOWN(M3/3600,0) ->  | O3: =ROUNDDOWN((M3-N3*3600)/60,0) ->  | P3: =ROUNDUP((M3-N3*3600-O3*60),0) ->  | Q3: =TIME(N3,O3,P3) ->  | S3: =SQRT((Moi!$C$4-E3)^2+(Moi!$C$5-F3)^2) ->  | T3: =24*3600*(1-EXP(-S3/350))*7.375*(0.9^Moi!$C$7) ->  | U3: =ROUNDDOWN(T3/3600,0) ->  | V3: =ROUNDDOWN((T3-U3*3600)/60,0) ->  | W3: =ROUNDUP((T3-U3*3600-V3*60),0) ->  | X3: =TIME(U3,V3,W3) -> 
B4: ='Mon Alliance'!A60 ->  | C4: ='Mon Alliance'!C60 -> 0 | E4: ='Mon Alliance'!E60 ->  | F4: ='Mon Alliance'!F60 ->  | H4: VA cible | I4: =Traque!H3 -> 24 | S4: =SQRT((Moi!$C$4-E4)^2+(Moi!$C$5-F4)^2) ->  | T4: =24*3600*(1-EXP(-S4/350))*7.375*(0.9^Moi!$C$7) -> 
B5: ='Mon Alliance'!A61 ->  | C5: ='Mon Alliance'!C61 -> 0 | E5: ='Mon Alliance'!E61 ->  | F5: ='Mon Alliance'!F61 ->  | H5: TDC cible | I5: =Traque!H2 -> 1338053964 | S5: =SQRT((Moi!$C$4-E5)^2+(Moi!$C$5-F5)^2) ->  | T5: =24*3600*(1-EXP(-S5/350))*7.375*(0.9^Moi!$C$7) -> 
B6: ='Mon Alliance'!A62 ->  | C6: ='Mon Alliance'!C62 -> 0 | E6: ='Mon Alliance'!E62 ->  | F6: ='Mon Alliance'!F62 ->  | S6: =SQRT((Moi!$C$4-E6)^2+(Moi!$C$5-F6)^2) ->  | T6: =24*3600*(1-EXP(-S6/350))*7.375*(0.9^Moi!$C$7) -> 
B7: ='Mon Alliance'!A63 ->  | C7: ='Mon Alliance'!C63 -> 0 | E7: ='Mon Alliance'!E63 ->  | F7: ='Mon Alliance'!F63 ->  | S7: =SQRT((Moi!$C$4-E7)^2+(Moi!$C$5-F7)^2) ->  | T7: =24*3600*(1-EXP(-S7/350))*7.375*(0.9^Moi!$C$7) -> 
B8: ='Mon Alliance'!A64 ->  | C8: ='Mon Alliance'!C64 -> 0 | E8: ='Mon Alliance'!E64 ->  | F8: ='Mon Alliance'!F64 ->  | S8: =SQRT((Moi!$C$4-E8)^2+(Moi!$C$5-F8)^2) ->  | T8: =24*3600*(1-EXP(-S8/350))*7.375*(0.9^Moi!$C$7) -> 
B9: ='Mon Alliance'!A65 ->  | C9: ='Mon Alliance'!C65 -> 0 | E9: ='Mon Alliance'!E65 ->  | F9: ='Mon Alliance'!F65 ->  | S9: =SQRT((Moi!$C$4-E9)^2+(Moi!$C$5-F9)^2) ->  | T9: =24*3600*(1-EXP(-S9/350))*7.375*(0.9^Moi!$C$7) -> 
B10: ='Mon Alliance'!A66 ->  | C10: ='Mon Alliance'!C66 -> 0 | E10: ='Mon Alliance'!E66 ->  | F10: ='Mon Alliance'!F66 ->  | S10: =SQRT((Moi!$C$4-E10)^2+(Moi!$C$5-F10)^2) ->  | T10: =24*3600*(1-EXP(-S10/350))*7.375*(0.9^Moi!$C$7) -> 
B11: ='Mon Alliance'!A67 ->  | C11: ='Mon Alliance'!C67 -> 0 | E11: ='Mon Alliance'!E67 ->  | F11: ='Mon Alliance'!F67 ->  | S11: =SQRT((Moi!$C$4-E11)^2+(Moi!$C$5-F11)^2) ->  | T11: =24*3600*(1-EXP(-S11/350))*7.375*(0.9^Moi!$C$7) -> 
B12: ='Mon Alliance'!A68 ->  | C12: ='Mon Alliance'!C68 -> 0 | E12: ='Mon Alliance'!E68 ->  | F12: ='Mon Alliance'!F68 ->  | S12: =SQRT((Moi!$C$4-E12)^2+(Moi!$C$5-F12)^2) ->  | T12: =24*3600*(1-EXP(-S12/350))*7.375*(0.9^Moi!$C$7) -> 
B13: ='Mon Alliance'!A69 ->  | C13: ='Mon Alliance'!C69 -> 0 | E13: ='Mon Alliance'!E69 ->  | F13: ='Mon Alliance'!F69 ->  | S13: =SQRT((Moi!$C$4-E13)^2+(Moi!$C$5-F13)^2) ->  | T13: =24*3600*(1-EXP(-S13/350))*7.375*(0.9^Moi!$C$7) -> 
B14: ='Mon Alliance'!A70 ->  | C14: ='Mon Alliance'!C70 -> 0 | E14: ='Mon Alliance'!E70 ->  | F14: ='Mon Alliance'!F70 ->  | S14: =SQRT((Moi!$C$4-E14)^2+(Moi!$C$5-F14)^2) ->  | T14: =24*3600*(1-EXP(-S14/350))*7.375*(0.9^Moi!$C$7) -> 
B15: ='Mon Alliance'!A71 ->  | C15: ='Mon Alliance'!C71 -> 0 | E15: ='Mon Alliance'!E71 ->  | F15: ='Mon Alliance'!F71 ->  | S15: =SQRT((Moi!$C$4-E15)^2+(Moi!$C$5-F15)^2) ->  | T15: =24*3600*(1-EXP(-S15/350))*7.375*(0.9^Moi!$C$7) -> 
B16: ='Mon Alliance'!A72 ->  | C16: ='Mon Alliance'!C72 -> 0 | E16: ='Mon Alliance'!E72 ->  | F16: ='Mon Alliance'!F72 ->  | S16: =SQRT((Moi!$C$4-E16)^2+(Moi!$C$5-F16)^2) ->  | T16: =24*3600*(1-EXP(-S16/350))*7.375*(0.9^Moi!$C$7) -> 
B17: ='Mon Alliance'!A73 ->  | C17: ='Mon Alliance'!C73 -> 0 | E17: ='Mon Alliance'!E73 ->  | F17: ='Mon Alliance'!F73 ->  | S17: =SQRT((Moi!$C$4-E17)^2+(Moi!$C$5-F17)^2) ->  | T17: =24*3600*(1-EXP(-S17/350))*7.375*(0.9^Moi!$C$7) -> 
B18: ='Mon Alliance'!A74 ->  | C18: ='Mon Alliance'!C74 -> 0 | E18: ='Mon Alliance'!E74 ->  | F18: ='Mon Alliance'!F74 ->  | S18: =SQRT((Moi!$C$4-E18)^2+(Moi!$C$5-F18)^2) ->  | T18: =24*3600*(1-EXP(-S18/350))*7.375*(0.9^Moi!$C$7) -> 
B19: ='Mon Alliance'!A75 ->  | C19: ='Mon Alliance'!C75 -> 0 | E19: ='Mon Alliance'!E75 ->  | F19: ='Mon Alliance'!F75 ->  | S19: =SQRT((Moi!$C$4-E19)^2+(Moi!$C$5-F19)^2) ->  | T19: =24*3600*(1-EXP(-S19/350))*7.375*(0.9^Moi!$C$7) -> 
B20: ='Mon Alliance'!A76 ->  | C20: ='Mon Alliance'!C76 -> 0 | E20: ='Mon Alliance'!E76 ->  | F20: ='Mon Alliance'!F76 ->  | S20: =SQRT((Moi!$C$4-E20)^2+(Moi!$C$5-F20)^2) ->  | T20: =24*3600*(1-EXP(-S20/350))*7.375*(0.9^Moi!$C$7) -> 
B21: ='Mon Alliance'!A77 ->  | C21: ='Mon Alliance'!C77 -> 0 | E21: ='Mon Alliance'!E77 ->  | F21: ='Mon Alliance'!F77 ->  | S21: =SQRT((Moi!$C$4-E21)^2+(Moi!$C$5-F21)^2) ->  | T21: =24*3600*(1-EXP(-S21/350))*7.375*(0.9^Moi!$C$7) -> 
B22: ='Mon Alliance'!A78 ->  | C22: ='Mon Alliance'!C78 -> 0 | E22: ='Mon Alliance'!E78 ->  | F22: ='Mon Alliance'!F78 ->  | S22: =SQRT((Moi!$C$4-E22)^2+(Moi!$C$5-F22)^2) ->  | T22: =24*3600*(1-EXP(-S22/350))*7.375*(0.9^Moi!$C$7) -> 
B23: ='Mon Alliance'!A79 ->  | C23: ='Mon Alliance'!C79 -> 0 | E23: ='Mon Alliance'!E79 ->  | F23: ='Mon Alliance'!F79 ->  | S23: =SQRT((Moi!$C$4-E23)^2+(Moi!$C$5-F23)^2) ->  | T23: =24*3600*(1-EXP(-S23/350))*7.375*(0.9^Moi!$C$7) -> 
B24: ='Mon Alliance'!A80 ->  | C24: ='Mon Alliance'!C80 -> 0 | E24: ='Mon Alliance'!E80 ->  | F24: ='Mon Alliance'!F80 ->  | S24: =SQRT((Moi!$C$4-E24)^2+(Moi!$C$5-F24)^2) ->  | T24: =24*3600*(1-EXP(-S24/350))*7.375*(0.9^Moi!$C$7) -> 
B25: ='Mon Alliance'!A81 ->  | C25: ='Mon Alliance'!C81 -> 0 | E25: ='Mon Alliance'!E81 ->  | F25: ='Mon Alliance'!F81 ->  | S25: =SQRT((Moi!$C$4-E25)^2+(Moi!$C$5-F25)^2) ->  | T25: =24*3600*(1-EXP(-S25/350))*7.375*(0.9^Moi!$C$7) -> 
B26: ='Mon Alliance'!A82 ->  | C26: ='Mon Alliance'!C82 -> 0 | E26: ='Mon Alliance'!E82 ->  | F26: ='Mon Alliance'!F82 ->  | S26: =SQRT((Moi!$C$4-E26)^2+(Moi!$C$5-F26)^2) ->  | T26: =24*3600*(1-EXP(-S26/350))*7.375*(0.9^Moi!$C$7) -> 
B27: ='Mon Alliance'!A83 ->  | C27: ='Mon Alliance'!C83 -> 0 | E27: ='Mon Alliance'!E83 ->  | F27: ='Mon Alliance'!F83 ->  | S27: =SQRT((Moi!$C$4-E27)^2+(Moi!$C$5-F27)^2) ->  | T27: =24*3600*(1-EXP(-S27/350))*7.375*(0.9^Moi!$C$7) -> 
B28: ='Mon Alliance'!A84 ->  | C28: ='Mon Alliance'!C84 -> 0 | E28: ='Mon Alliance'!E84 ->  | F28: ='Mon Alliance'!F84 ->  | S28: =SQRT((Moi!$C$4-E28)^2+(Moi!$C$5-F28)^2) ->  | T28: =24*3600*(1-EXP(-S28/350))*7.375*(0.9^Moi!$C$7) -> 
B29: ='Mon Alliance'!A85 ->  | C29: ='Mon Alliance'!C85 -> 0 | E29: ='Mon Alliance'!E85 ->  | F29: ='Mon Alliance'!F85 ->  | S29: =SQRT((Moi!$C$4-E29)^2+(Moi!$C$5-F29)^2) ->  | T29: =24*3600*(1-EXP(-S29/350))*7.375*(0.9^Moi!$C$7) -> 
B30: ='Mon Alliance'!A86 ->  | C30: ='Mon Alliance'!C86 -> 0 | E30: ='Mon Alliance'!E86 ->  | F30: ='Mon Alliance'!F86 ->  | S30: =SQRT((Moi!$C$4-E30)^2+(Moi!$C$5-F30)^2) ->  | T30: =24*3600*(1-EXP(-S30/350))*7.375*(0.9^Moi!$C$7) -> 
B31: ='Mon Alliance'!A87 ->  | C31: ='Mon Alliance'!C87 -> 0 | E31: ='Mon Alliance'!E87 ->  | F31: ='Mon Alliance'!F87 ->  | S31: =SQRT((Moi!$C$4-E31)^2+(Moi!$C$5-F31)^2) ->  | T31: =24*3600*(1-EXP(-S31/350))*7.375*(0.9^Moi!$C$7) -> 
B32: ='Mon Alliance'!A88 ->  | C32: ='Mon Alliance'!C88 -> 0 | E32: ='Mon Alliance'!E88 ->  | F32: ='Mon Alliance'!F88 ->  | S32: =SQRT((Moi!$C$4-E32)^2+(Moi!$C$5-F32)^2) ->  | T32: =24*3600*(1-EXP(-S32/350))*7.375*(0.9^Moi!$C$7) -> 
B33: ='Mon Alliance'!A89 ->  | C33: ='Mon Alliance'!C89 -> 0 | E33: ='Mon Alliance'!E89 ->  | F33: ='Mon Alliance'!F89 ->  | S33: =SQRT((Moi!$C$4-E33)^2+(Moi!$C$5-F33)^2) ->  | T33: =24*3600*(1-EXP(-S33/350))*7.375*(0.9^Moi!$C$7) -> 
B34: ='Mon Alliance'!A90 ->  | C34: ='Mon Alliance'!C90 -> 0 | E34: ='Mon Alliance'!E90 ->  | F34: ='Mon Alliance'!F90 ->  | S34: =SQRT((Moi!$C$4-E34)^2+(Moi!$C$5-F34)^2) ->  | T34: =24*3600*(1-EXP(-S34/350))*7.375*(0.9^Moi!$C$7) -> 
B35: ='Mon Alliance'!A91 ->  | C35: ='Mon Alliance'!C91 -> 0 | E35: ='Mon Alliance'!E91 ->  | F35: ='Mon Alliance'!F91 ->  | S35: =SQRT((Moi!$C$4-E35)^2+(Moi!$C$5-F35)^2) ->  | T35: =24*3600*(1-EXP(-S35/350))*7.375*(0.9^Moi!$C$7) -> 
B36: ='Mon Alliance'!A92 ->  | C36: ='Mon Alliance'!C92 -> 0 | E36: ='Mon Alliance'!E92 ->  | F36: ='Mon Alliance'!F92 ->  | S36: =SQRT((Moi!$C$4-E36)^2+(Moi!$C$5-F36)^2) ->  | T36: =24*3600*(1-EXP(-S36/350))*7.375*(0.9^Moi!$C$7) -> 
B37: ='Mon Alliance'!A93 ->  | C37: ='Mon Alliance'!C93 -> 0 | E37: ='Mon Alliance'!E93 ->  | F37: ='Mon Alliance'!F93 ->  | S37: =SQRT((Moi!$C$4-E37)^2+(Moi!$C$5-F37)^2) ->  | T37: =24*3600*(1-EXP(-S37/350))*7.375*(0.9^Moi!$C$7) -> 
B38: ='Mon Alliance'!A94 ->  | C38: ='Mon Alliance'!C94 -> 0 | E38: ='Mon Alliance'!E94 ->  | F38: ='Mon Alliance'!F94 ->  | S38: =SQRT((Moi!$C$4-E38)^2+(Moi!$C$5-F38)^2) ->  | T38: =24*3600*(1-EXP(-S38/350))*7.375*(0.9^Moi!$C$7) -> 
B39: ='Mon Alliance'!A95 ->  | C39: ='Mon Alliance'!C95 -> 0 | E39: ='Mon Alliance'!E95 ->  | F39: ='Mon Alliance'!F95 ->  | S39: =SQRT((Moi!$C$4-E39)^2+(Moi!$C$5-F39)^2) ->  | T39: =24*3600*(1-EXP(-S39/350))*7.375*(0.9^Moi!$C$7) -> 
B40: ='Mon Alliance'!A96 ->  | C40: ='Mon Alliance'!C96 -> 0 | E40: ='Mon Alliance'!E96 ->  | F40: ='Mon Alliance'!F96 ->  | S40: =SQRT((Moi!$C$4-E40)^2+(Moi!$C$5-F40)^2) ->  | T40: =24*3600*(1-EXP(-S40/350))*7.375*(0.9^Moi!$C$7) -> 
B41: ='Mon Alliance'!A97 ->  | C41: ='Mon Alliance'!C97 -> 0 | E41: ='Mon Alliance'!E97 ->  | F41: ='Mon Alliance'!F97 ->  | S41: =SQRT((Moi!$C$4-E41)^2+(Moi!$C$5-F41)^2) ->  | T41: =24*3600*(1-EXP(-S41/350))*7.375*(0.9^Moi!$C$7) -> 
B42: ='Mon Alliance'!A98 ->  | C42: ='Mon Alliance'!C98 -> 0 | E42: ='Mon Alliance'!E98 ->  | F42: ='Mon Alliance'!F98 ->  | S42: =SQRT((Moi!$C$4-E42)^2+(Moi!$C$5-F42)^2) ->  | T42: =24*3600*(1-EXP(-S42/350))*7.375*(0.9^Moi!$C$7) -> 
B43: ='Mon Alliance'!A99 ->  | C43: ='Mon Alliance'!C99 -> 0 | E43: ='Mon Alliance'!E99 ->  | F43: ='Mon Alliance'!F99 ->  | S43: =SQRT((Moi!$C$4-E43)^2+(Moi!$C$5-F43)^2) ->  | T43: =24*3600*(1-EXP(-S43/350))*7.375*(0.9^Moi!$C$7) -> 
B44: ='Mon Alliance'!A100 ->  | C44: ='Mon Alliance'!C100 -> 0 | E44: ='Mon Alliance'!E100 ->  | F44: ='Mon Alliance'!F100 ->  | S44: =SQRT((Moi!$C$4-E44)^2+(Moi!$C$5-F44)^2) ->  | T44: =24*3600*(1-EXP(-S44/350))*7.375*(0.9^Moi!$C$7) -> 
B45: ='Alliance 1'!A55 ->  | C45: ='Alliance 1'!C55 -> 0 | E45: ='Alliance 1'!E55 ->  | F45: ='Alliance 1'!F55 ->  | S45: =SQRT((Moi!$C$4-E45)^2+(Moi!$C$5-F45)^2) ->  | T45: =24*3600*(1-EXP(-S45/350))*7.375*(0.9^Moi!$C$7) -> 
B46: ='Alliance 1'!A56 ->  | C46: ='Alliance 1'!C56 -> 0 | E46: ='Alliance 1'!E56 ->  | F46: ='Alliance 1'!F56 ->  | S46: =SQRT((Moi!$C$4-E46)^2+(Moi!$C$5-F46)^2) ->  | T46: =24*3600*(1-EXP(-S46/350))*7.375*(0.9^Moi!$C$7) -> 
B47: ='Alliance 1'!A57 ->  | C47: ='Alliance 1'!C57 -> 0 | E47: ='Alliance 1'!E57 ->  | F47: ='Alliance 1'!F57 ->  | S47: =SQRT((Moi!$C$4-E47)^2+(Moi!$C$5-F47)^2) ->  | T47: =24*3600*(1-EXP(-S47/350))*7.375*(0.9^Moi!$C$7) -> 
B48: ='Alliance 1'!A58 ->  | C48: ='Alliance 1'!C58 -> 0 | E48: ='Alliance 1'!E58 ->  | F48: ='Alliance 1'!F58 ->  | S48: =SQRT((Moi!$C$4-E48)^2+(Moi!$C$5-F48)^2) ->  | T48: =24*3600*(1-EXP(-S48/350))*7.375*(0.9^Moi!$C$7) -> 
B49: ='Alliance 1'!A59 ->  | C49: ='Alliance 1'!C59 -> 0 | E49: ='Alliance 1'!E59 ->  | F49: ='Alliance 1'!F59 ->  | S49: =SQRT((Moi!$C$4-E49)^2+(Moi!$C$5-F49)^2) ->  | T49: =24*3600*(1-EXP(-S49/350))*7.375*(0.9^Moi!$C$7) -> 
B50: ='Alliance 1'!A60 ->  | C50: ='Alliance 1'!C60 -> 0 | E50: ='Alliance 1'!E60 ->  | F50: ='Alliance 1'!F60 ->  | S50: =SQRT((Moi!$C$4-E50)^2+(Moi!$C$5-F50)^2) ->  | T50: =24*3600*(1-EXP(-S50/350))*7.375*(0.9^Moi!$C$7) -> 
B51: ='Alliance 1'!A61 ->  | C51: ='Alliance 1'!C61 -> 0 | E51: ='Alliance 1'!E61 ->  | F51: ='Alliance 1'!F61 ->  | S51: =SQRT((Moi!$C$4-E51)^2+(Moi!$C$5-F51)^2) ->  | T51: =24*3600*(1-EXP(-S51/350))*7.375*(0.9^Moi!$C$7) -> 
B52: ='Alliance 1'!A62 ->  | C52: ='Alliance 1'!C62 -> 0 | E52: ='Alliance 1'!E62 ->  | F52: ='Alliance 1'!F62 ->  | S52: =SQRT((Moi!$C$4-E52)^2+(Moi!$C$5-F52)^2) ->  | T52: =24*3600*(1-EXP(-S52/350))*7.375*(0.9^Moi!$C$7) -> 
B53: ='Alliance 1'!A63 ->  | C53: ='Alliance 1'!C63 -> 0 | E53: ='Alliance 1'!E63 ->  | F53: ='Alliance 1'!F63 ->  | S53: =SQRT((Moi!$C$4-E53)^2+(Moi!$C$5-F53)^2) ->  | T53: =24*3600*(1-EXP(-S53/350))*7.375*(0.9^Moi!$C$7) -> 
B54: ='Alliance 1'!A64 ->  | C54: ='Alliance 1'!C64 -> 0 | E54: ='Alliance 1'!E64 ->  | F54: ='Alliance 1'!F64 ->  | S54: =SQRT((Moi!$C$4-E54)^2+(Moi!$C$5-F54)^2) ->  | T54: =24*3600*(1-EXP(-S54/350))*7.375*(0.9^Moi!$C$7) -> 
B55: ='Alliance 1'!A65 ->  | C55: ='Alliance 1'!C65 -> 0 | E55: ='Alliance 1'!E65 ->  | F55: ='Alliance 1'!F65 ->  | S55: =SQRT((Moi!$C$4-E55)^2+(Moi!$C$5-F55)^2) ->  | T55: =24*3600*(1-EXP(-S55/350))*7.375*(0.9^Moi!$C$7) -> 
B56: ='Alliance 1'!A66 ->  | C56: ='Alliance 1'!C66 -> 0 | E56: ='Alliance 1'!E66 ->  | F56: ='Alliance 1'!F66 ->  | S56: =SQRT((Moi!$C$4-E56)^2+(Moi!$C$5-F56)^2) ->  | T56: =24*3600*(1-EXP(-S56/350))*7.375*(0.9^Moi!$C$7) -> 
B57: ='Alliance 1'!A67 ->  | C57: ='Alliance 1'!C67 -> 0 | E57: ='Alliance 1'!E67 ->  | F57: ='Alliance 1'!F67 ->  | S57: =SQRT((Moi!$C$4-E57)^2+(Moi!$C$5-F57)^2) ->  | T57: =24*3600*(1-EXP(-S57/350))*7.375*(0.9^Moi!$C$7) -> 
B58: ='Alliance 1'!A68 ->  | C58: ='Alliance 1'!C68 -> 0 | E58: ='Alliance 1'!E68 ->  | F58: ='Alliance 1'!F68 ->  | S58: =SQRT((Moi!$C$4-E58)^2+(Moi!$C$5-F58)^2) ->  | T58: =24*3600*(1-EXP(-S58/350))*7.375*(0.9^Moi!$C$7) -> 
B59: ='Alliance 1'!A69 ->  | C59: ='Alliance 1'!C69 -> 0 | E59: ='Alliance 1'!E69 ->  | F59: ='Alliance 1'!F69 ->  | S59: =SQRT((Moi!$C$4-E59)^2+(Moi!$C$5-F59)^2) ->  | T59: =24*3600*(1-EXP(-S59/350))*7.375*(0.9^Moi!$C$7) -> 
B60: ='Alliance 1'!A70 ->  | C60: ='Alliance 1'!C70 -> 0 | E60: ='Alliance 1'!E70 ->  | F60: ='Alliance 1'!F70 ->  | S60: =SQRT((Moi!$C$4-E60)^2+(Moi!$C$5-F60)^2) ->  | T60: =24*3600*(1-EXP(-S60/350))*7.375*(0.9^Moi!$C$7) -> 
B61: ='Alliance 1'!A71 ->  | C61: ='Alliance 1'!C71 -> 0 | E61: ='Alliance 1'!E71 ->  | F61: ='Alliance 1'!F71 ->  | S61: =SQRT((Moi!$C$4-E61)^2+(Moi!$C$5-F61)^2) ->  | T61: =24*3600*(1-EXP(-S61/350))*7.375*(0.9^Moi!$C$7) -> 
B62: ='Alliance 1'!A72 ->  | C62: ='Alliance 1'!C72 -> 0 | E62: ='Alliance 1'!E72 ->  | F62: ='Alliance 1'!F72 ->  | S62: =SQRT((Moi!$C$4-E62)^2+(Moi!$C$5-F62)^2) ->  | T62: =24*3600*(1-EXP(-S62/350))*7.375*(0.9^Moi!$C$7) -> 
B63: ='Alliance 1'!A73 ->  | C63: ='Alliance 1'!C73 -> 0 | E63: ='Alliance 1'!E73 ->  | F63: ='Alliance 1'!F73 ->  | S63: =SQRT((Moi!$C$4-E63)^2+(Moi!$C$5-F63)^2) ->  | T63: =24*3600*(1-EXP(-S63/350))*7.375*(0.9^Moi!$C$7) -> 
B64: ='Alliance 1'!A74 ->  | C64: ='Alliance 1'!C74 -> 0 | E64: ='Alliance 1'!E74 ->  | F64: ='Alliance 1'!F74 ->  | S64: =SQRT((Moi!$C$4-E64)^2+(Moi!$C$5-F64)^2) ->  | T64: =24*3600*(1-EXP(-S64/350))*7.375*(0.9^Moi!$C$7) -> 
B65: ='Alliance 1'!A75 ->  | C65: ='Alliance 1'!C75 -> 0 | E65: ='Alliance 1'!E75 ->  | F65: ='Alliance 1'!F75 ->  | S65: =SQRT((Moi!$C$4-E65)^2+(Moi!$C$5-F65)^2) ->  | T65: =24*3600*(1-EXP(-S65/350))*7.375*(0.9^Moi!$C$7) -> 
B66: ='Alliance 1'!A76 ->  | C66: ='Alliance 1'!C76 -> 0 | E66: ='Alliance 1'!E76 ->  | F66: ='Alliance 1'!F76 ->  | S66: =SQRT((Moi!$C$4-E66)^2+(Moi!$C$5-F66)^2) ->  | T66: =24*3600*(1-EXP(-S66/350))*7.375*(0.9^Moi!$C$7) -> 
B67: ='Alliance 1'!A77 ->  | C67: ='Alliance 1'!C77 -> 0 | E67: ='Alliance 1'!E77 ->  | F67: ='Alliance 1'!F77 ->  | J67: =B67 ->  | K67: =IF(AND((C67<=(3*$I$5)),(C67>=(0.5*$I$5))),"A PORTEE"," ") ->  | L67: =SQRT(($I$1-E67)^2+($I$2-F67)^2) ->  | M67: =24*3600*(1-EXP(-L67/350))*7.375*(0.9^$I$4) ->  | N67: =ROUNDDOWN(M67/3600,0) ->  | O67: =ROUNDDOWN((M67-N67*3600)/60,0) ->  | P67: =ROUNDUP((M67-N67*3600-O67*60),0) ->  | Q67: =TIME(N67,O67,P67) ->  | S67: =SQRT((Moi!$C$4-E67)^2+(Moi!$C$5-F67)^2) ->  | T67: =24*3600*(1-EXP(-S67/350))*7.375*(0.9^Moi!$C$7) ->  | U67: =ROUNDDOWN(T67/3600,0) ->  | V67: =ROUNDDOWN((T67-U67*3600)/60,0) ->  | W67: =ROUNDUP((T67-U67*3600-V67*60),0) ->  | X67: =TIME(U67,V67,W67) -> 
B68: ='Alliance 1'!A78 ->  | C68: ='Alliance 1'!C78 -> 0 | E68: ='Alliance 1'!E78 ->  | F68: ='Alliance 1'!F78 ->  | S68: =SQRT((Moi!$C$4-E68)^2+(Moi!$C$5-F68)^2) ->  | T68: =24*3600*(1-EXP(-S68/350))*7.375*(0.9^Moi!$C$7) -> 
B69: ='Alliance 1'!A79 ->  | C69: ='Alliance 1'!C79 -> 0 | E69: ='Alliance 1'!E79 ->  | F69: ='Alliance 1'!F79 ->  | S69: =SQRT((Moi!$C$4-E69)^2+(Moi!$C$5-F69)^2) ->  | T69: =24*3600*(1-EXP(-S69/350))*7.375*(0.9^Moi!$C$7) -> 
B70: ='Alliance 1'!A80 ->  | C70: ='Alliance 1'!C80 -> 0 | E70: ='Alliance 1'!E80 ->  | F70: ='Alliance 1'!F80 ->  | S70: =SQRT((Moi!$C$4-E70)^2+(Moi!$C$5-F70)^2) ->  | T70: =24*3600*(1-EXP(-S70/350))*7.375*(0.9^Moi!$C$7) -> 
B71: ='Alliance 1'!A81 ->  | C71: ='Alliance 1'!C81 -> 0 | E71: ='Alliance 1'!E81 ->  | F71: ='Alliance 1'!F81 ->  | S71: =SQRT((Moi!$C$4-E71)^2+(Moi!$C$5-F71)^2) ->  | T71: =24*3600*(1-EXP(-S71/350))*7.375*(0.9^Moi!$C$7) -> 
B72: ='Alliance 1'!A82 ->  | C72: ='Alliance 1'!C82 -> 0 | E72: ='Alliance 1'!E82 ->  | F72: ='Alliance 1'!F82 ->  | S72: =SQRT((Moi!$C$4-E72)^2+(Moi!$C$5-F72)^2) ->  | T72: =24*3600*(1-EXP(-S72/350))*7.375*(0.9^Moi!$C$7) -> 
B73: ='Alliance 1'!A83 ->  | C73: ='Alliance 1'!C83 -> 0 | E73: ='Alliance 1'!E83 ->  | F73: ='Alliance 1'!F83 ->  | S73: =SQRT((Moi!$C$4-E73)^2+(Moi!$C$5-F73)^2) ->  | T73: =24*3600*(1-EXP(-S73/350))*7.375*(0.9^Moi!$C$7) -> 
B74: ='Alliance 1'!A84 ->  | C74: ='Alliance 1'!C84 -> 0 | E74: ='Alliance 1'!E84 ->  | F74: ='Alliance 1'!F84 ->  | S74: =SQRT((Moi!$C$4-E74)^2+(Moi!$C$5-F74)^2) ->  | T74: =24*3600*(1-EXP(-S74/350))*7.375*(0.9^Moi!$C$7) -> 
B75: ='Alliance 1'!A85 ->  | C75: ='Alliance 1'!C85 -> 0 | E75: ='Alliance 1'!E85 ->  | F75: ='Alliance 1'!F85 ->  | S75: =SQRT((Moi!$C$4-E75)^2+(Moi!$C$5-F75)^2) ->  | T75: =24*3600*(1-EXP(-S75/350))*7.375*(0.9^Moi!$C$7) -> 
B76: ='Alliance 1'!A86 ->  | C76: ='Alliance 1'!C86 -> 0 | E76: ='Alliance 1'!E86 ->  | F76: ='Alliance 1'!F86 ->  | S76: =SQRT((Moi!$C$4-E76)^2+(Moi!$C$5-F76)^2) ->  | T76: =24*3600*(1-EXP(-S76/350))*7.375*(0.9^Moi!$C$7) -> 
B77: ='Alliance 1'!A87 ->  | C77: ='Alliance 1'!C87 -> 0 | E77: ='Alliance 1'!E87 ->  | F77: ='Alliance 1'!F87 ->  | S77: =SQRT((Moi!$C$4-E77)^2+(Moi!$C$5-F77)^2) ->  | T77: =24*3600*(1-EXP(-S77/350))*7.375*(0.9^Moi!$C$7) -> 
B78: ='Alliance 1'!A88 ->  | C78: ='Alliance 1'!C88 -> 0 | E78: ='Alliance 1'!E88 ->  | F78: ='Alliance 1'!F88 ->  | S78: =SQRT((Moi!$C$4-E78)^2+(Moi!$C$5-F78)^2) ->  | T78: =24*3600*(1-EXP(-S78/350))*7.375*(0.9^Moi!$C$7) -> 
B79: ='Alliance 1'!A89 ->  | C79: ='Alliance 1'!C89 -> 0 | E79: ='Alliance 1'!E89 ->  | F79: ='Alliance 1'!F89 ->  | S79: =SQRT((Moi!$C$4-E79)^2+(Moi!$C$5-F79)^2) ->  | T79: =24*3600*(1-EXP(-S79/350))*7.375*(0.9^Moi!$C$7) -> 
B80: ='Alliance 1'!A90 ->  | C80: ='Alliance 1'!C90 -> 0 | E80: ='Alliance 1'!E90 ->  | F80: ='Alliance 1'!F90 ->  | S80: =SQRT((Moi!$C$4-E80)^2+(Moi!$C$5-F80)^2) ->  | T80: =24*3600*(1-EXP(-S80/350))*7.375*(0.9^Moi!$C$7) -> 
B81: ='Alliance 1'!A91 ->  | C81: ='Alliance 1'!C91 -> 0 | E81: ='Alliance 1'!E91 ->  | F81: ='Alliance 1'!F91 ->  | S81: =SQRT((Moi!$C$4-E81)^2+(Moi!$C$5-F81)^2) ->  | T81: =24*3600*(1-EXP(-S81/350))*7.375*(0.9^Moi!$C$7) -> 
B82: ='Alliance 1'!A92 ->  | C82: ='Alliance 1'!C92 -> 0 | E82: ='Alliance 1'!E92 ->  | F82: ='Alliance 1'!F92 ->  | S82: =SQRT((Moi!$C$4-E82)^2+(Moi!$C$5-F82)^2) ->  | T82: =24*3600*(1-EXP(-S82/350))*7.375*(0.9^Moi!$C$7) -> 
B83: ='Alliance 1'!A93 ->  | C83: ='Alliance 1'!C93 -> 0 | E83: ='Alliance 1'!E93 ->  | F83: ='Alliance 1'!F93 ->  | S83: =SQRT((Moi!$C$4-E83)^2+(Moi!$C$5-F83)^2) ->  | T83: =24*3600*(1-EXP(-S83/350))*7.375*(0.9^Moi!$C$7) -> 
B84: ='Alliance 1'!A94 ->  | C84: ='Alliance 1'!C94 -> 0 | E84: ='Alliance 1'!E94 ->  | F84: ='Alliance 1'!F94 ->  | S84: =SQRT((Moi!$C$4-E84)^2+(Moi!$C$5-F84)^2) ->  | T84: =24*3600*(1-EXP(-S84/350))*7.375*(0.9^Moi!$C$7) -> 
B85: ='Alliance 1'!A95 ->  | C85: ='Alliance 1'!C95 -> 0 | E85: ='Alliance 1'!E95 ->  | F85: ='Alliance 1'!F95 ->  | S85: =SQRT((Moi!$C$4-E85)^2+(Moi!$C$5-F85)^2) ->  | T85: =24*3600*(1-EXP(-S85/350))*7.375*(0.9^Moi!$C$7) -> 
B86: ='Alliance 1'!A96 ->  | C86: ='Alliance 1'!C96 -> 0 | E86: ='Alliance 1'!E96 ->  | F86: ='Alliance 1'!F96 ->  | S86: =SQRT((Moi!$C$4-E86)^2+(Moi!$C$5-F86)^2) ->  | T86: =24*3600*(1-EXP(-S86/350))*7.375*(0.9^Moi!$C$7) -> 
B87: ='Alliance 1'!A97 ->  | C87: ='Alliance 1'!C97 -> 0 | E87: ='Alliance 1'!E97 ->  | F87: ='Alliance 1'!F97 ->  | S87: =SQRT((Moi!$C$4-E87)^2+(Moi!$C$5-F87)^2) ->  | T87: =24*3600*(1-EXP(-S87/350))*7.375*(0.9^Moi!$C$7) -> 
B88: ='Alliance 1'!A98 ->  | C88: ='Alliance 1'!C98 -> 0 | E88: ='Alliance 1'!E98 ->  | F88: ='Alliance 1'!F98 ->  | S88: =SQRT((Moi!$C$4-E88)^2+(Moi!$C$5-F88)^2) ->  | T88: =24*3600*(1-EXP(-S88/350))*7.375*(0.9^Moi!$C$7) -> 
B89: ='Alliance 1'!A99 ->  | C89: ='Alliance 1'!C99 -> 0 | E89: ='Alliance 1'!E99 ->  | F89: ='Alliance 1'!F99 ->  | S89: =SQRT((Moi!$C$4-E89)^2+(Moi!$C$5-F89)^2) ->  | T89: =24*3600*(1-EXP(-S89/350))*7.375*(0.9^Moi!$C$7) -> 
B90: ='Alliance 1'!A100 ->  | C90: ='Alliance 1'!C100 -> 0 | E90: ='Alliance 1'!E100 ->  | F90: ='Alliance 1'!F100 ->  | S90: =SQRT((Moi!$C$4-E90)^2+(Moi!$C$5-F90)^2) ->  | T90: =24*3600*(1-EXP(-S90/350))*7.375*(0.9^Moi!$C$7) -> 
B91: ='Alliance 2'!A98 ->  | C91: ='Alliance 2'!C98 -> 0 | E91: ='Alliance 2'!E98 ->  | F91: ='Alliance 2'!F98 ->  | S91: =SQRT((Moi!$C$4-E91)^2+(Moi!$C$5-F91)^2) ->  | T91: =24*3600*(1-EXP(-S91/350))*7.375*(0.9^Moi!$C$7) -> 
B92: ='Alliance 2'!A99 ->  | C92: ='Alliance 2'!C99 -> 0 | E92: ='Alliance 2'!E99 ->  | F92: ='Alliance 2'!F99 ->  | S92: =SQRT((Moi!$C$4-E92)^2+(Moi!$C$5-F92)^2) ->  | T92: =24*3600*(1-EXP(-S92/350))*7.375*(0.9^Moi!$C$7) -> 
B93: ='Alliance 2'!A100 ->  | C93: ='Alliance 2'!C100 -> 0 | E93: ='Alliance 2'!E100 ->  | F93: ='Alliance 2'!F100 ->  | S93: =SQRT((Moi!$C$4-E93)^2+(Moi!$C$5-F93)^2) ->  | T93: =24*3600*(1-EXP(-S93/350))*7.375*(0.9^Moi!$C$7) -> 
B94: ='Alliance 3'!A47 ->  | C94: ='Alliance 3'!C47 -> 0 | E94: ='Alliance 3'!E47 ->  | F94: ='Alliance 3'!F47 ->  | S94: =SQRT((Moi!$C$4-E94)^2+(Moi!$C$5-F94)^2) ->  | T94: =24*3600*(1-EXP(-S94/350))*7.375*(0.9^Moi!$C$7) -> 
B95: ='Alliance 3'!A48 ->  | C95: ='Alliance 3'!C48 -> 0 | E95: ='Alliance 3'!E48 ->  | F95: ='Alliance 3'!F48 ->  | S95: =SQRT((Moi!$C$4-E95)^2+(Moi!$C$5-F95)^2) ->  | T95: =24*3600*(1-EXP(-S95/350))*7.375*(0.9^Moi!$C$7) -> 
B96: ='Alliance 3'!A49 ->  | C96: ='Alliance 3'!C49 -> 0 | E96: ='Alliance 3'!E49 ->  | F96: ='Alliance 3'!F49 ->  | S96: =SQRT((Moi!$C$4-E96)^2+(Moi!$C$5-F96)^2) ->  | T96: =24*3600*(1-EXP(-S96/350))*7.375*(0.9^Moi!$C$7) -> 
B97: ='Alliance 3'!A50 ->  | C97: ='Alliance 3'!C50 -> 0 | E97: ='Alliance 3'!E50 ->  | F97: ='Alliance 3'!F50 ->  | S97: =SQRT((Moi!$C$4-E97)^2+(Moi!$C$5-F97)^2) ->  | T97: =24*3600*(1-EXP(-S97/350))*7.375*(0.9^Moi!$C$7) -> 
B98: ='Alliance 3'!A51 ->  | C98: ='Alliance 3'!C51 -> 0 | E98: ='Alliance 3'!E51 ->  | F98: ='Alliance 3'!F51 ->  | S98: =SQRT((Moi!$C$4-E98)^2+(Moi!$C$5-F98)^2) ->  | T98: =24*3600*(1-EXP(-S98/350))*7.375*(0.9^Moi!$C$7) -> 
A99: Alliance 1 | B99: ='Alliance 3'!A52 ->  | C99: ='Alliance 3'!C52 -> 0 | E99: ='Alliance 3'!E52 ->  | F99: ='Alliance 3'!F52 ->  | S99: =SQRT((Moi!$C$4-E99)^2+(Moi!$C$5-F99)^2) ->  | T99: =24*3600*(1-EXP(-S99/350))*7.375*(0.9^Moi!$C$7) -> 
B100: ='Alliance 3'!A53 ->  | C100: ='Alliance 3'!C53 -> 0 | E100: ='Alliance 3'!E53 ->  | F100: ='Alliance 3'!F53 ->  | S100: =SQRT((Moi!$C$4-E100)^2+(Moi!$C$5-F100)^2) ->  | T100: =24*3600*(1-EXP(-S100/350))*7.375*(0.9^Moi!$C$7) -> 
B101: ='Alliance 3'!A54 ->  | C101: ='Alliance 3'!C54 -> 0 | E101: ='Alliance 3'!E54 ->  | F101: ='Alliance 3'!F54 ->  | S101: =SQRT((Moi!$C$4-E101)^2+(Moi!$C$5-F101)^2) ->  | T101: =24*3600*(1-EXP(-S101/350))*7.375*(0.9^Moi!$C$7) -> 
B102: ='Alliance 3'!A55 ->  | C102: ='Alliance 3'!C55 -> 0 | E102: ='Alliance 3'!E55 ->  | F102: ='Alliance 3'!F55 ->  | S102: =SQRT((Moi!$C$4-E102)^2+(Moi!$C$5-F102)^2) ->  | T102: =24*3600*(1-EXP(-S102/350))*7.375*(0.9^Moi!$C$7) -> 
